Workbook

Sheet Меню
E1: ВНИМАНИЕ! Цены носят информационный характер, каждая заявка рассчитывается индивидуально!!!
C2: WWW.KIMRYHOLOD.RU
H4: COMPACK
B6: Intercold | I6: Посудомоечные машины
C8: Компрессорно-конденсаторные блоки
C9: Сплит-системы | H9: VESTA
I11: Мангалы
B12: Полаир | I12: Печи для пиццы, для казана, коптильни
C14: Холодильные шкафы
C15: Машины холодильные, козырьки
C16: Лари морозильные
C17: Камеры холодильные
C18: Камеры со стеклопакетом | H18: FROSTOR
C19: Столы холодильные | I19: Лари морозильные
C20: Холодильные камеры со стеклянными фронтами | I20: Бонеты морозильные
C21: Компрессорно-конденсаторные блоки | I21: Шкафы холодильные, винные
C22: Выносной холод
H23: SMEG
I24: Печи и аксессуары
B25: Aucma | I25: Посудомоечные машины ECOLINE
C26: Лари морозильные | I26: Посудомоечные машины EASYLINE
I27: Посудомоечные машины TOPLINE
I28: Посудомоечные машины GREENLINE
B29: Россо
C30: Холодильные столы | H30: Linnafrost
C31: Электромеханическое и тепловое оборудование
H33: Ассум
B35: Hicold | I35: Технологическое оборудование
C36: Барные модульные стойки | I36: Нейтральное оборудование
C37: Кондитерские витрины
C38: Нейтральное оборудование
C39: Охлаждаемые столы | H39: ЧувашТоргТехника
C40: Тепловое оборудование
C41: Барные холодильные шкафы и шкафы шоковой заморозки | I41: Технологическое оборудование
C42: Вытяжные зонты
H45: Тулаторгтехника
B46: Рада
C47: Тепловое оборудование | I47: Технологическое оборудование
C48: Линии раздачи
C49: Нейтральное оборудование
H50: Полюс
B52: Zanotti | I52: Торговое и холодильное оборудование
C53: Коммерческий холод (упрощенный) | I53: Моноблоки и Сплит-системы
C54: Коммерческий холод (расширенный)
B56: Irbis | H56: Снеж
C57: Распашные двери
C58: Откатные двери | I58: Холодильное оборудование
C59: Камеры шоковой заморозки коммерческой серии
C60: Противопожарные двери
C61: Маятниковые двери
H62: МариХолодМаш
B63: Kuvings
I64: Шкафы холодильные
B65: Гомогенизатор «Pacojet 2». | I65: Витрины
I66: Тепловые витрины
B67: Мартэл (HESSEN) | I67: Холодильные камеры 80 мм шип-паз
C68: Нейтральное оборудование | I68: Холодильные камеры 100 мм замковые
C69: Гастроемкости | I69: Стеклянные фронты
B70: Мартэл (THOR) | I70: Машины холодильные
C71: Нейтральное оборудование | I71: Компрессорно-конденсаторные блоки
I72: Стеллажи
I73: Нейтральное оборудование
B74: Ариада | I74: Прилавки
C75: Лари (бонеты) London | I75: Кухонный инвентарь
C76: Холодильные витрины, горки, бонеты
C77: Холодильные шкафы | I77: Выносной холод
C78: Камеры со стеклопакетами | I78: Столы для овощей
C79: Машины холодильные | I79: Пивоохладители
C80: Камеры холодильные | I80: Лари
C81: Двери распашные одностворчатые
C82: Двери откатные изотермические
C83: Строительные сэндвич-панели | H83: ТоргМаш, СЭГЗ, ТехТоргМаш, Гамма
B85: БЗТО | I85: Электромеханическое оборудование ( Торгмаш, Респ. Беларусь, г. Барановичи)
C86: Витрины | I86: Электромеханическое оборудование (СЭГЗ, ТехТоргМаш, Гамма)
C87: Мясные столы
C88: Шведские столы (салат-бары)
H89: ТоргМаш (г. Пермь)
B91: Восход | I91: Электромеханическое оборудование
C93: Пекарское оборудование
C94: Кондитерское оборудование
B95: KOBOR
C96: Индукционные плиты
C97: FastFood
C98: Витрины настольные
C99: Тепловое оборудование
C100: Барные станции
C101: Нейтральное оборудование
B103: Levin | H103: Pozis
C105: Ларь-бонеты ARTICA
K106: Торговые стеллажи ООО "Борторгтехмаш НН"
H107: ITON

Sheet CCB
B2: Наименование модели | C2: Холодопроизводительность, Вт Токр.ср=25 С | I2: Холодопроизводительность, Вт Токр.ср=32С | O2: Холодопроизводительность, Вт Токр.ср=40С | U2: Розничная цена | W2: Опция А (антикислотный фильтр) | X2: Опция D (возврат масла) | Y2: Опция Е (отделитель жидкости) | Z2: Опция I (малошумный вентилятор) | AA2: Опция I2 (малошумный вентилятор) | AB2: Опция I3 (малошумный вентилятор) | AC2: Воздухоохладитель INTERCOLD | AE2: Воздухоохладитель LUVE | AG2: Щит управления воздухоохладителем | AI2: Комплект ТРВ | AK2: Комплект соленоидного вентиля | AN2: Главное меню
C3: t0= -5 | D3: t0= -10 | E3: t0= -15 | F3: t0= -25 | G3: t0= -30 | H3: t0= -35 | I3: t0= -5 | J3: t0= -10 | K3: t0= -15 | L3: t0= -25 | M3: t0= -30 | N3: t0= -35 | O3: t0= -5 | P3: t0= -10 | Q3: t0= -15 | R3: t0= -25 | S3: t0= -30 | T3: t0= -35 | W3: Розничная цена
B4: Компрессорно-конденсаторный блок среднетемпературный (R404a) на базе поршневого компрессора Tecumseh
B5: ККБМ-TAJ4517 | C5: 2.70 | D5: 2.40 | E5: 2.00 | I5: 2.30 | J5: 2.00 | K5: 1.70 | O5: 2.20 | P5: 1.70 | Q5: 1.30 | U5: € 1,354 | W5: - | X5: € 108 | Y5: € 121 | Z5: - | AA5: - | AB5: - | AC5: ВО-1350-4 | AD5: € 475 | AE5: F35HC59E6 | AF5: € 839 | AG5: ЩАУ-K06В-Т6.6 | AH5: € 167 | AI5: TES2-3 | AJ5: € 51 | AK5: EVR 6S(1/2) | AL5: € 38
B6: ККБМ-TAJ4519 | C6: 3.4 | D6: 2.9 | E6: 2.4 | I6: 2.99 | J6: 2.65 | K6: 2.06 | O6: 2.4 | P6: 2.2 | Q6: 1.665 | U6: € 1,362 | W6: - | X6: € 108 | Y6: € 121 | Z6: - | AA6: - | AB6: - | AC6: ВО-1350-4 | AD6: € 475 | AE6: F35HC59E6 | AF6: € 839 | AG6: ЩАУ-K06В-Т6.6 | AH6: € 167 | AI6: TES2-3 | AJ6: € 51 | AK6: EVR 6S(1/2) | AL6: € 38
B7: ККБ2-TFH4540 | C7: 6.89 | D7: 5.7 | E7: 4.6 | I7: 6.1 | J7: 5 | K7: 4.05 | O7: 4.8 | P7: 3.9 | Q7: 3.1 | U7: € 1,883 | W7: € 64 | X7: € 108 | Y7: € 121 | Z7: б | AA7: € 244 | AB7: € 244 | AC7: ВО-2350-4 | AD7: € 788 | AE7: F35H117E6 | AF7: € 1,312 | AG7: ЩАУ-K06В-Т10.6 | AH7: € 167 | AI7: TES2-4 | AJ7: € 51 | AK7: EVR 6S(1/2) | AL7: € 38
B8: ККБ2-TAG4546 | C8: 8 | D8: 6.5 | E8: 5.2 | I8: 6.9 | J8: 5.5 | K8: 4.3 | O8: 5.3 | P8: 4.2 | Q8: 3.2 | U8: € 2,162 | W8: € 64 | X8: € 108 | Y8: € 121 | Z8: б | AA8: € 244 | AB8: € 244 | AC8: ВО-2350-4 | AD8: € 788 | AE8: F35H117E6 | AF8: € 1,312 | AG8: ЩАУ-K06В-Т10.6 | AH8: € 167 | AI8: TES2-4 | AJ8: € 51 | AK8: EVR 6S(1/2) | AL8: € 38
B9: ККБ2-TAG4553 | C9: 8.8 | D9: 7.2 | E9: 5.7 | I9: 7.6 | J9: 6.1 | K9: 4.8 | O9: 5.8 | P9: 4.6 | Q9: 3.5 | U9: € 2,202 | W9: € 64 | X9: € 108 | Y9: € 121 | Z9: б | AA9: € 244 | AB9: € 244 | AC9: ВО-2350-4 | AD9: € 788 | AE9: F35H117E6 | AF9: € 1,312 | AG9: ЩАУ-K06В-Т10.6 | AH9: € 167 | AI9: TES2-4 | AJ9: € 51 | AK9: EVR 6S(1/2) | AL9: € 38
B10: ККБ2-TAG4561 | C10: 10.5 | D10: 8.5 | E10: 6.8 | I10: 9.2 | J10: 7.4 | K10: 5.8 | O10: 7.1 | P10: 5.6 | Q10: 4.4 | U10: € 2,274 | W10: € 64 | X10: € 108 | Y10: € 121 | Z10: б | AA10: € 244 | AB10: € 244 | AC10: ВО-3350-6 | AD10: € 964 | AE10: F35H174E6 | AF10: € 1,681 | AG10: ЩАУ-K06В-Т12.12 | AH10: € 167 | AI10: TES2-5 | AJ10: € 51 | AK10: EVR 6S(1/2) | AL10: € 38
B11: ККБ2-TAG4568 | C11: 11.6 | D11: 9.6 | E11: 7.7 | I11: 10.2 | J11: 8.3 | K11: 6.7 | O11: 8 | P11: 6.5 | Q11: 5.06 | U11: € 2,304 | W11: € 64 | X11: € 108 | Y11: € 121 | Z11: б | AA11: € 244 | AB11: € 244 | AC11: ВО-3350-6 | AD11: € 964 | AE11: F35H174E6 | AF11: € 1,681 | AG11: ЩАУ-K06В-Т12.12 | AH11: € 167 | AI11: TES2-5 | AJ11: € 51 | AK11: EVR 6S(1/2) | AL11: € 38
B12: ККБ2-TAG4573 | C12: 12.3 | D12: 10.179 | E12: 8.24 | I12: 10.9 | J12: 9.1 | K12: 7.2 | O12: 8.7 | P12: 7.054 | Q12: 5.6 | U12: € 2,378 | W12: € 64 | X12: € 108 | Y12: € 121 | Z12: б | AA12: € 244 | AB12: € 244 | AC12: ВО-3350-6 | AD12: € 964 | AE12: F35H174E6 | AF12: € 1,681 | AG12: ЩАУ-K06В-Т12.12 | AH12: € 167 | AI12: TES2-5 | AJ12: € 51 | AK12: EVR 6S(1/2) | AL12: € 38
B13: ККБ2-TAG4581 | C13: 13.2 | D13: 11 | E13: 8.9 | I13: 11.8 | J13: 9.7 | K13: 7.9 | O13: 9.5 | P13: 7.7 | Q13: 6.2 | U13: € 2,454 | W13: € 64 | X13: € 108 | Y13: € 121 | Z13: б | AA13: € 244 | AB13: € 244 | AC13: ВО-4350-6 | AD13: € 1,215 | AE13: F35H179E6 | AF13: € 2,100 | AG13: ЩАУ-K06В-Т20.18 | AH13: € 167 | AI13: TES2-6 | AJ13: € 51 | AK13: EVR 6S(1/2) | AL13: € 38
B14: Компрессорно-конденсаторный блок низкотемпературный (R404a) на базе поршневого компрессора Tecumseh
B15: ККБМ-TFH2480 | F15: 2.2 | G15: 1.7 | H15: 1.2 | L15: 1.9 | M15: 1.4 | N15: 1 | R15: 1.6 | S15: 1.1 | T15: 0.7 | U15: € 1,579 | W15: - | X15: € 108 | Y15: € 121 | Z15: - | AA15: - | AB15: - | AC15: ВО-1350-4 | AD15: € 475 | AE15: F35HC59E6 | AF15: € 839 | AG15: ЩАУ-K06В-Т6.6 | AH15: € 167 | AI15: TES2-3 | AJ15: € 51 | AK15: EVR 6S(1/2) | AL15: € 38
B16: ККБМ-TFH2511 | F16: 3.1 | G16: 2.3 | H16: 1.6 | L16: 2.5 | M16: 1.9 | N16: 1.3 | R16: 2 | S16: 1.5 | T16: 0.95 | U16: € 1,602 | W16: - | X16: € 108 | Y16: € 121 | Z16: - | AA16: - | AB16: - | AC16: ВО-1350-4 | AD16: € 475 | AE16: F35HC59E6 | AF16: € 839 | AG16: ЩАУ-K06В-Т6.6 | AH16: € 167 | AI16: TES2-3 | AJ16: € 51 | AK16: EVR 6S(1/2) | AL16: € 38
B17: ККБМ-TAG2516 | F17: 3.5 | G17: 2.8 | H17: 1.9 | L17: 3.8 | M17: 2.2 | N17: 1.4 | R17: 2.5 | S17: 1.6 | T17: 0.9 | U17: € 1,882 | W17: - | X17: € 108 | Y17: € 121 | Z17: - | AA17: - | AB17: - | AC17: ВО-2350-4 | AD17: € 788 | AE17: F35H117E6 | AF17: € 1,312 | AG17: ЩАУ-K06В-Т10.6 | AH17: € 167 | AI17: TES2-3 | AJ17: € 51 | AK17: EVR 6S(1/2) | AL17: € 38
B18: ККБ2-TAG2522 | F18: 5.7 | G18: 4.2 | H18: 3 | L18: 4.8 | M18: 3.5 | N18: 2.4 | R18: 3.8 | S18: 2.6 | T18: 1.7 | U18: € 2,245 | W18: € 64 | X18: € 108 | Y18: € 121 | Z18: б | AA18: € 244 | AB18: € 244 | AC18: ВО-2350-4 | AD18: € 788 | AE18: F35H117E6 | AF18: € 1,312 | AG18: ЩАУ-K06В-Т10.6 | AH18: € 167 | AI18: TES2-4 | AJ18: € 51 | AK18: EVR 6S(1/2) | AL18: € 38
B19: ККБ2-TAG2525 | F19: 6.3 | G19: 4.6 | H19: 3.3 | L19: 5.4 | M19: 3.8 | N19: 2.6 | R19: 4.3 | S19: 3 | T19: 2 | U19: € 2,301 | W19: € 64 | X19: € 108 | Y19: € 121 | Z19: б | AA19: € 244 | AB19: € 244 | AC19: ВО-2350-4 | AD19: € 788 | AE19: F35H117E6 | AF19: € 1,312 | AG19: ЩАУ-K06В-Т10.6 | AH19: € 167 | AI19: TES2-4 | AJ19: € 51 | AK19: EVR 6S(1/2) | AL19: € 38
B20: Компрессорно-конденсаторный блок среднетемпературный (R404a) на базе спирального компрессора Copeland Scroll
B21: ККБМ-ZB15 | C21: 4.54 | D21: 3.76 | E21: 3.23 | I21: 3.6 | J21: 3.05 | K21: 2.94 | O21: 3.2 | P21: 2.7 | Q21: 2.23 | U21: € 2,413 | W21: € 64 | X21: € 108 | Y21: € 121 | Z21: б | AA21: € 244 | AB21: € 244 | AC21: ВО-1350-4 | AD21: € 475 | AE21: F35HC59E6 | AF21: € 839 | AG21: ЩАУ-K06В-Т6.6 | AH21: € 167 | AI21: TES2-3 | AJ21: € 51 | AK21: EVR 6S(1/2) | AL21: € 38
B22: ККБ2-ZB21 | C22: 6.42 | D22: 5.5 | E22: 4.65 | I22: 5.9 | J22: 5.07 | K22: 4.29 | O22: 4.7 | P22: 4.06 | Q22: 3.44 | U22: € 2,490 | W22: € 64 | X22: € 108 | Y22: € 121 | Z22: б | AA22: € 244 | AB22: € 244 | AC22: ВО-2350-4 | AD22: € 788 | AE22: F35H117E6 | AF22: € 1,312 | AG22: ЩАУ-K06В-Т6.6 | AH22: € 167 | AI22: TES2-4 | AJ22: € 51 | AK22: EVR 6S(1/2) | AL22: € 38
B23: ККБ2-ZB26 | C23: 7.17 | D23: 6 | E23: 5.2 | I23: 6.6 | J23: 5.43 | K23: 4.8 | O23: 5.28 | P23: 4.5 | Q23: 3.8 | U23: € 2,659 | W23: € 64 | X23: € 108 | Y23: € 121 | Z23: б | AA23: € 244 | AB23: € 244 | AC23: ВО-2350-4 | AD23: € 788 | AE23: F35H117E6 | AF23: € 1,312 | AG23: ЩАУ-K06В-Т10.6 | AH23: € 167 | AI23: TES2-4 | AJ23: € 51 | AK23: EVR 6S(1/2) | AL23: € 38
B24: ККБ2-ZB30 | C24: 8.9 | D24: 7.65 | E24: 6.45 | I24: 8.3 | J24: 7 | K24: 5.95 | O24: 6.7 | P24: 5.68 | Q24: 4.77 | U24: € 2,773 | W24: € 64 | X24: € 108 | Y24: € 121 | Z24: б | AA24: € 244 | AB24: € 244 | AC24: ВО-2350-4 | AD24: € 788 | AE24: F35H117E6 | AF24: € 1,312 | AG24: ЩАУ-K06В-Т10.6 | AH24: € 167 | AI24: TES2-5 | AJ24: € 51 | AK24: EVR 6S(1/2) | AL24: € 38
B25: ККБ2-ZB38 | C25: 10.5 | D25: 9 | E25: 7.7 | I25: 9.7 | J25: 8.35 | K25: 7.09 | O25: 7.8 | P25: 6.7 | Q25: 5.7 | U25: € 2,902 | W25: € 64 | X25: € 108 | Y25: € 121 | Z25: б | AA25: € 244 | AB25: € 244 | AC25: ВО-3350-6 | AD25: € 964 | AE25: F35H174E6 | AF25: € 1,681 | AG25: ЩАУ-K06В-Т10.6 | AH25: € 167 | AI25: TES2-5 | AJ25: € 51 | AK25: EVR 6S(1/2) | AL25: € 38
B26: ККБ2-ZB45 | C26: 12.75 | D26: 10.95 | E26: 9.26 | I26: 11.75 | J26: 10 | K26: 8.54 | O26: 9.52 | P26: 8.15 | Q26: 6.9 | U26: € 3,056 | W26: € 64 | X26: € 108 | Y26: € 121 | Z26: б | AA26: € 244 | AB26: € 244 | AC26: ВО-4350-6 | AD26: € 1,215 | AE26: F35H174E6 | AF26: € 1,681 | AG26: ЩАУ-K06В-Т12.12 | AH26: € 167 | AI26: TES2-6 | AJ26: € 51 | AK26: EVR 6S(1/2) | AL26: € 38
B27: ККБ2-ZB50 | C27: 14.6 | D27: 12.5 | E27: 10.45 | I27: 13.4 | J27: 11.4 | K27: 9.44 | O27: 10.5 | P27: 8.72 | Q27: 7 | U27: € 3,534 | W27: € 77 | X27: € 108 | Y27: € 121 | Z27: - | AA27: - | AB27: - | AC27: - | AD27: - | AE27: F35H261E6 | AF27: € 2,340 | AG27: ЩАУ-K06В-Т20.18 | AH27: € 167 | AI27: TES5-2 | AJ27: € 99 | AK27: EVR 10(5/8) | AL27: € 45
B28: ККБ2-ZB58 | C28: 15.75 | D28: 13.55 | E28: 11.45 | I28: 14.45 | J28: 12.35 | K28: 10.4 | O28: 12.75 | P28: 9.54 | Q28: 9 | U28: € 3,676 | W28: € 77 | X28: € 108 | Y28: € 121 | Z28: - | AA28: - | AB28: - | AC28: - | AD28: - | AE28: F35H261E6 | AF28: € 2,340 | AG28: ЩАУ-K06В-Т20.18 | AH28: € 167 | AI28: TES5-2 | AJ28: € 99 | AK28: EVR 10(5/8) | AL28: € 45
B29: ККБ3-ZB50 | C29: 14.6 | D29: 12.5 | E29: 10.45 | I29: 13.4 | J29: 11.4 | K29: 9.44 | O29: 10.5 | P29: 8.72 | Q29: 7 | U29: € 4,286 | W29: € 77 | X29: € 108 | Y29: € 121 | Z29: б | AA29: € 488 | AB29: - | AC29: - | AD29: - | AE29: F35H261E6 | AF29: € 2,340 | AG29: ЩАУ-K06В-Т20.18 | AH29: € 167 | AI29: TES5-2 | AJ29: € 99 | AK29: EVR 10(5/8) | AL29: € 45
B30: ККБ3-ZB58 | C30: 15.75 | D30: 13.55 | E30: 11.45 | I30: 14.45 | J30: 12.35 | K30: 10.4 | O30: 12.75 | P30: 9.54 | Q30: 9 | U30: € 4,442 | W30: € 77 | X30: € 108 | Y30: € 121 | Z30: б | AA30: € 488 | AB30: - | AC30: - | AD30: - | AE30: F35H261E6 | AF30: € 2,340 | AG30: ЩАУ-K06В-Т20.18 | AH30: € 167 | AI30: TES5-2 | AJ30: € 99 | AK30: EVR 10(5/8) | AL30: € 45
B31: ККБ3-ZB66 | D31: 15.7 | E31: 13.35 | J31: 14 | K31: 12.3 | P31: 11.5 | Q31: 9.8 | U31: € 4,661 | W31: € 77 | X31: € 108 | Y31: € 121 | Z31: - | AA31: - | AB31: - | AC31: - | AD31: - | AE31: F35H261E6 | AF31: € 2,340 | AG31: ЩАУ-K06В-Т20.18 | AH31: € 167 | AI31: TES5-2 | AJ31: € 99 | AK31: EVR 10(5/8) | AL31: € 45
B32: ККБ3-ZB76 | D32: 18.9 | E32: 15.8 | J32: 17.15 | K32: 14.55 | P32: 13.6 | Q32: 11.5 | U32: € 4,973 | W32: € 77 | X32: € 108 | Y32: € 121 | Z32: - | AA32: - | AB32: - | AC32: - | AD32: - | AE32: F45H1206E6 | AF32: € 2,567 | AG32: ЩАУ-K06В-Т20.18 | AH32: € 167 | AI32: TES5-3 | AJ32: € 99 | AK32: EVR 10(5/8) | AL32: € 45
B33: Компрессорно-конденсаторный блок низкотемпературный (R404a) на базе спирального компрессора Copeland Scroll
B34: ККБ2-ZF09 | F34: 3.00 | G34: 2.50 | H34: 2.00 | L34: 2.70 | M34: 2.30 | N34: 1.90 | R34: 2.50 | S34: 2.10 | T34: 1.70 | U34: € 3,006 | W34: € 64 | X34: € 108 | Y34: € 121 | Z34: б | AA34: € 244 | AB34: € 244 | AC34: ВО-1350-4 | AD34: € 475 | AE34: F35HC59E6 | AF34: € 839 | AG34: ЩАУ-K06В-Т6.6 | AH34: € 167 | AI34: TES2-3 | AJ34: € 51 | AK34: EVR 6S(1/2) | AL34: € 38
B35: ККБ2-ZF11 | F35: 3.80 | G35: 3.15 | H35: 2.60 | L35: 3.50 | M35: 2.90 | N35: 2.43 | R35: 2.90 | S35: 2.40 | T35: 2.00 | U35: € 3,131 | W35: € 64 | X35: € 108 | Y35: € 121 | Z35: б | AA35: € 244 | AB35: € 244 | AC35: ВО-2350-4 | AD35: € 788 | AE35: F35H117E6 | AF35: € 1,312 | AG35: ЩАУ-K06В-Т10.6 | AH35: € 167 | AI35: TES2-3 | AJ35: € 51 | AK35: EVR 6S(1/2) | AL35: € 38
B36: ККБ2-ZF13 | F36: 4.60 | G36: 3.80 | H36: 3.00 | L36: 4.30 | M36: 3.50 | N36: 2.80 | R36: 3.50 | S36: 2.90 | T36: 2.40 | U36: € 3,219 | W36: € 64 | X36: € 108 | Y36: € 121 | Z36: б | AA36: € 244 | AB36: € 244 | AC36: ВО-2350-4 | AD36: € 788 | AE36: F35H117E6 | AF36: € 1,312 | AG36: ЩАУ-K06В-Т10.6 | AH36: € 167 | AI36: TES2-4 | AJ36: € 51 | AK36: EVR 6S(1/2) | AL36: € 38
B37: ККБ2-ZF15 | F37: 5.50 | G37: 4.56 | H37: 3.70 | L37: 5.15 | M37: 4.25 | N37: 3.50 | R37: 4.30 | S37: 3.55 | T37: 2.90 | U37: € 3,400 | W37: € 64 | X37: € 108 | Y37: € 121 | Z37: б | AA37: € 244 | AB37: € 244 | AC37: ВО-2350-4 | AD37: € 788 | AE37: F35H117E6 | AF37: € 1,312 | AG37: ЩАУ-K06В-Т10.6 | AH37: € 167 | AI37: TES2-4 | AJ37: € 51 | AK37: EVR 6S(1/2) | AL37: € 38
B38: ККБ2-ZF18 | F38: 6.59 | G38: 5.3 | H38: 4.35 | L38: 5.5 | M38: 4.9 | N38: 4 | R38: 4.8 | S38: 4 | T38: 3.3 | U38: € 3,558 | W38: € 64 | X38: € 108 | Y38: € 121 | Z38: б | AA38: € 244 | AB38: € 244 | AC38: ВО-4350-6 | AD38: € 1,215 | AE38: F35H179E7 | AF38: € 2,100 | AG38: ЩАУ-K06В-Т10.6 | AH38: € 167 | AI38: TES2-5 | AJ38: € 51 | AK38: EVR 6S(1/2) | AL38: € 38
B39: ККБ2-ZF25 | F39: 8.3 | G39: 6.8 | H39: 5.3 | L39: 6.61 | M39: 6.3 | N39: 5 | R39: 6 | S39: 5.2 | T39: 4 | U39: € 3,796 | W39: € 77 | X39: € 108 | Y39: € 121 | Z39: б | AA39: - | AB39: € 244 | AC39: ВО-4350-6 | AD39: € 1,215 | AE39: F35H179E7 | AF39: € 2,100 | AG39: ЩАУ-K06В-Т20.18 | AH39: € 167 | AI39: TES5-2 | AJ39: € 99 | AK39: EVR 6S(1/2) | AL39: € 38
B40: ККБ2-ZF34 | F40: 10.6 | G40: 8.8 | H40: 7.3 | L40: 9.48 | M40: 8.2 | N40: 6.8 | S40: 6.7 | T40: 5.6 | U40: € 4,603 | W40: € 77 | X40: € 108 | Y40: € 121 | Z40: - | AA40: - | AB40: - | AC40: - | AD40: - | AE40: F45H1308E7 | AF40: € 2,943 | AG40: ЩАУ-K06В-Т25.22 | AH40: € 167 | AI40: TES5-2 | AJ40: € 99 | AK40: EVR 10(5/8) | AL40: € 45
B41: ККБ3-ZF34 | F41: 10.6 | G41: 8.8 | H41: 7.3 | L41: 9.48 | M41: 8.2 | N41: 6.8 | S41: 6.7 | T41: 5.6 | U41: € 5,453 | W41: € 77 | X41: € 108 | Y41: € 121 | Z41: б | AA41: € 488 | AB41: - | AC41: - | AD41: - | AE41: F45H1308E7 | AF41: € 2,943 | AG41: ЩАУ-K06В-Т25.22 | AH41: € 167 | AI41: TES5-2 | AJ41: € 99 | AK41: EVR 10(5/8) | AL41: € 45
B42: ККБ3-ZF41 | F42: 13.1 | G42: 11 | H42: 9 | L42: 11.7 | M42: 10.2 | N42: 8.3 | S42: 8.2 | T42: 6.8 | U42: € 5,808 | W42: € 77 | X42: € 108 | Y42: € 121 | Z42: б | AA42: € 488 | AB42: - | AC42: - | AD42: - | AE42: F45H1308E7 | AF42: € 2,943 | AG42: ЩАУ-K06В-Т25.22 | AH42: € 167 | AI42: TES5-2 | AJ42: € 99 | AK42: EVR 10(5/8) | AL42: € 45
B43: ККБ3-ZF49 | F43: 14.9 | G43: 12.55 | H43: 14 | L43: 13.7 | M43: 11.55 | N43: 9.61 | U43: € 6,059 | W43: € 77 | X43: € 108 | Y43: € 121 | Z43: - | AA43: - | AB43: - | AC43: - | AD43: - | AE43: F45H1308E7 | AF43: € 2,943 | AG43: ЩАУ-K06В-Т25.22 | AH43: € 167 | AI43: TES5-3 | AJ43: € 99 | AK43: EVR 10(5/8) | AL43: € 45
B44: Компрессорно-конденсаторный блок среднетемпературный (R404a) на базе спирального цифрового компрессора Copeland Scroll Digital
B45: ККБ2-ZBD21 | C45: 6.42 | D45: 5.5 | E45: 4.65 | I45: 5.9 | J45: 5.07 | K45: 4.29 | O45: 4.7 | P45: 4.06 | Q45: 3.44 | U45: € 3,285 | W45: € 64 | X45: € 108 | Y45: € 121 | Z45: б | AA45: € 244 | AB45: € 244 | AC45: ВО-1350-4 | AD45: € 475 | AE45: F35HC59E6 | AF45: € 839 | AG45: ЩАУ-K06В-Т6.6 | AH45: € 167 | AI45: TES2-4 | AJ45: € 51 | AK45: EVR 6S(1/2) | AL45: € 38
B46: ККБ2-ZBD30 | C46: 8.9 | D46: 7.65 | E46: 6.45 | I46: 8.3 | J46: 7 | K46: 5.95 | O46: 6.7 | P46: 5.68 | Q46: 4.77 | U46: € 3,627 | W46: € 64 | X46: € 108 | Y46: € 121 | Z46: б | AA46: € 244 | AB46: € 244 | AC46: ВО-2350-4 | AD46: € 788 | AE46: F35H117E6 | AF46: € 1,312 | AG46: ЩАУ-K06В-Т10.6 | AH46: € 167 | AI46: TES2-5 | AJ46: € 51 | AK46: EVR 6S(1/2) | AL46: € 38
B47: ККБ2-ZBD38 | C47: 10.5 | D47: 9 | E47: 7.7 | I47: 9.7 | J47: 8.35 | K47: 7.09 | O47: 7.8 | P47: 6.7 | Q47: 5.7 | U47: € 3,811 | W47: € 64 | X47: € 108 | Y47: € 121 | Z47: б | AA47: € 244 | AB47: € 244 | AC47: ВО-3350-6 | AD47: € 964 | AE47: F35H117E6 | AF47: € 1,312 | AG47: ЩАУ-K06В-Т10.6 | AH47: € 167 | AI47: TES2-5 | AJ47: € 51 | AK47: EVR 6S(1/2) | AL47: € 38
B48: ККБ2-ZBD45 | C48: 12.75 | D48: 10.95 | E48: 9.26 | I48: 11.75 | J48: 10 | K48: 8.54 | O48: 9.52 | P48: 8.15 | Q48: 6.9 | U48: € 4,011 | W48: € 64 | X48: € 108 | Y48: € 121 | Z48: б | AA48: € 244 | AB48: € 244 | AC48: - | AD48: - | AE48: F35H174E6 | AF48: € 1,681 | AG48: ЩАУ-K06В-Т12.12 | AH48: € 167 | AI48: TES2-6 | AJ48: € 51 | AK48: EVR 6S(1/2) | AL48: € 38
B49: ККБ3-ZBD58 | C49: 15.75 | D49: 13.55 | E49: 11.45 | I49: 14.45 | J49: 12.35 | K49: 10.4 | O49: 12.75 | P49: 9.54 | Q49: 9 | U49: € 5,075 | W49: € 77 | X49: € 108 | Y49: € 121 | Z49: б | AA49: € 488 | AB49: - | AC49: - | AD49: - | AE49: F35H261E6 | AF49: € 2,340 | AG49: ЩАУ-K06В-Т20.18 | AH49: € 167 | AI49: TES5-2 | AJ49: € 99 | AK49: EVR 10(5/8) | AL49: € 45
B50: ККБ3-ZBD76 | D50: 18.9 | E50: 15.8 | J50: 17.15 | K50: 14.55 | P50: 13.6 | Q50: 11.5 | U50: € 5,749 | W50: € 77 | X50: € 108 | Y50: € 121 | Z50: - | AA50: - | AB50: - | AC50: - | AD50: - | AE50: F45H1206E6 | AF50: € 2,567 | AG50: ЩАУ-K06В-Т20.18 | AH50: € 167 | AI50: TES5-3 | AJ50: € 99 | AK50: EVR 10(5/8) | AL50: € 45
B51: Компрессорно-конденсаторный блок среднетемпературный (R404a) на базе спирального компрессора Invotech
B52: ККБ2-YM49E1G | C52: 6.42 | D52: 5.5 | E52: 4.65 | I52: 5.9 | J52: 5.07 | K52: 4.29 | O52: 4.7 | P52: 4.06 | Q52: 3.44 | U52: € 2,179 | W52: € 64 | X52: € 108 | Y52: € 121 | Z52: б | AA52: € 244 | AB52: € 244 | AC52: ВО-1350-4 | AD52: € 475 | AE52: F35HC59E6 | AF52: € 839 | AG52: ЩАУ-K06В-Т6.6 | AH52: € 167 | AI52: TES2-4 | AJ52: € 51 | AK52: EVR 6S(1/2) | AL52: € 38
B53: ККБ2-YM70E1G | C53: 8.9 | D53: 7.65 | E53: 6.45 | I53: 8.3 | J53: 7 | K53: 5.95 | O53: 6.7 | P53: 5.68 | Q53: 4.77 | U53: € 2,250 | W53: € 64 | X53: € 108 | Y53: € 121 | Z53: б | AA53: € 244 | AB53: € 244 | AC53: ВО-2350-4 | AD53: € 788 | AE53: F35H117E6 | AF53: € 1,312 | AG53: ЩАУ-K06В-Т10.6 | AH53: € 167 | AI53: TES2-5 | AJ53: € 51 | AK53: EVR 6S(1/2) | AL53: € 38
B54: ККБ2-YM86E1G | C54: 10.5 | D54: 9 | E54: 7.7 | I54: 9.7 | J54: 8.35 | K54: 7.09 | O54: 7.8 | P54: 6.7 | Q54: 5.7 | U54: € 2,328 | W54: € 64 | X54: € 108 | Y54: € 121 | Z54: б | AA54: € 244 | AB54: € 244 | AC54: ВО-3350-6 | AD54: € 964 | AE54: F35H117E6 | AF54: € 1,312 | AG54: ЩАУ-K06В-Т10.6 | AH54: € 167 | AI54: TES2-5 | AJ54: € 51 | AK54: EVR 6S(1/2) | AL54: € 38
B55: ККБ2-YM102E1G | C55: 12.75 | D55: 10.95 | E55: 9.26 | I55: 11.75 | J55: 10 | K55: 8.54 | O55: 9.52 | P55: 8.15 | Q55: 6.9 | U55: € 2,421 | W55: € 64 | X55: € 108 | Y55: € 121 | Z55: б | AA55: € 244 | AB55: € 244 | AC55: ВО-4350-6 | AD55: € 1,215 | AE55: F35H174E6 | AF55: € 1,681 | AG55: ЩАУ-K06В-Т12.12 | AH55: € 167 | AI55: TES2-6 | AJ55: € 51 | AK55: EVR 6S(1/2) | AL55: € 38
B56: ККБ3-YM132E1G | C56: 15.75 | D56: 13.55 | E56: 11.45 | I56: 14.45 | J56: 12.35 | K56: 10.4 | O56: 12.75 | P56: 9.54 | Q56: 9 | U56: € 3,843 | W56: € 64 | X56: € 108 | Y56: € 121 | Z56: б | AA56: € 488 | AB56: - | AC56: - | AD56: - | AE56: F35H261E6 | AF56: € 2,340 | AG56: ЩАУ-K06В-Т20.18 | AH56: € 167 | AI56: TES5-2 | AJ56: € 99 | AK56: EVR 10(5/8) | AL56: € 45
B57: ККБ3-YM172E1G | D57: 18.9 | E57: 15.8 | J57: 17.15 | K57: 14.55 | P57: 13.6 | Q57: 11.5 | U57: € 3,992 | W57: € 64 | X57: € 108 | Y57: € 121 | Z57: - | AA57: - | AB57: - | AC57: - | AD57: - | AE57: F45H1206E6 | AF57: € 2,567 | AG57: ЩАУ-K06В-Т20.18 | AH57: € 167 | AI57: TES5-3 | AJ57: € 99 | AK57: EVR 10(5/8) | AL57: € 45
B58: Компрессорно-конденсаторный блок низкотемпературный (R404a) на базе спирального компрессора Invotech
B59: ККБ2-YF41E1 | F59: 6.59 | G59: 5.3 | H59: 4.35 | L59: 5.5 | M59: 4.9 | N59: 4 | R59: 4.8 | S59: 4 | T59: 3.3 | U59: € 3,114 | W59: € 64 | X59: € 108 | Y59: € 121 | Z59: б | AA59: € 244 | AB59: € 244 | AC59: ВО-4350-6 | AD59: € 1,215 | AE59: F35H117E6 | AF59: € 1,293 | AG59: ЩАУ-K06В-Т10.6 | AH59: € 167 | AI59: TES2-5 | AJ59: €51 | AK59: EVR 6S(1/2) | AL59: € 38
B61: В стандартную комплектацию входит:
B62: Окрашенный металлический корпус
B63: Обслуживающая фурнитура и запорная арматура
B64: Силовой щит с автоматикой и монитором контроля сети
B65: Компрессор поршневой герметичный или полугерметичный, спиральный герметичный обычный или цифровой
B66: Микроканальный конденсатор с вентилятором
B67: Рессивер хладагента
B68: Регулировка давления конденсации позволяющая адаприровать работу агрегата до -30 С,
B69: Шумоизоляция компрессорного отсека
B71: Описание опций
B72: Опция А: антикислотный фильтр
B73: Опция D: отделение и возврат масла в компрессор
B74: Опция Е: отделитель жидкости
B75: Опция I: установка малошумного 6-полюсного вентилятора DUNLI
B76: Опция I2: установка малошумного 6-полюсного вентилятора EBM
B77: Опция I3: установка малошумного 8-полюсного вентилятора EBM

Sheet Сплиты
I2: Главное меню
B5: Модель | D5: Напряжение, В. | F5: Компрессор | H5: Розничная цена
B6: МСМ 110 | D6: 220 | F6: AE 4460 z | H6: 58,814
B7: МСМ 115 | D7: 220 | F7: CAJ 9510 z | H7: 76,314
B8: МСМ 218 | D8: 220 | F8: CAJ 9513 z | H8: 86,379
B9: МСМ 223 220 | D9: 220 | F9: СAJ 4517 z | H9: 94,521
B10: МСМ 223 380 | D10: 380 | F10: TAJ 4517 z | H10: 94,521
B11: MCM 231 220 | D11: 220 | F11: СAJ 4519 z | H11: 101,368
B12: MCM 231 380 | D12: 380 | F12: TAJ 4519 z | H12: 101,368
B13: МСМ 331 | D13: 380 | F13: TAJ 4519 z | H13: 131,311
B14: МСМ 342 | D14: 380 | F14: TFH 4531 z | H14: 148,526
B15: МСМ 451* | D15: 380 | F15: TFH 4540 z | H15: 208,927
B16: МСМ 454* | D16: 380 | F16: TAG 4546 z | H16: 224,693
B17: МСМ 462* | D17: 380 | F17: TAG 4553 z | H17: 228,522
B18: МСМ 471* | D18: 380 | F18: TAG 4561 z | H18: 250,197
B19: МСМ 582* | D19: 380 | F19: TAG 4568 z | H19: 322,649
B20: МСМ 588* | D20: 380 | F20: TAG 4573 z | H20: 331,200
B21: МСМ 5102* | D21: 380 | F21: TAG 4581 z | H21: 337,500
B22: МСМ 6136* | D22: 380 | F22: ZB 57 | H22: 480,189
B23: МСМ 6159* | D23: 380 | F23: ZB 66 | H23: 497,426
B24: МСМ 6186* | D24: 380 | F24: ZB 76 | H24: 577,031
B25: MCM 6200* | D25: 380 | F25: ZB 95 | H25: 606,519
B26: LCM 108 | D26: 220 | F26: CAJ 2440 z | H26: 75,489
B27: LCM 109 | D27: 220 | F27: CAJ 2446 z | H27: 83,248
B28: LCM 210 | D28: 220 | F28: CAJ 2464 z | H28: 87,508
B29: LCM 316 | D29: 380 | F29: TFH 2480 z | H29: 101,063
B30: LCM 324 | D30: 380 | F30: TFH 2511 z | H30: 117,861
B31: LCM 434 | D31: 380 | F31: TAG 2516 z | H31: 142,439
B32: LCM 443* | D32: 380 | F32: TAG 2522 z | H32: 220,383
B33: LCM 447* | D33: 380 | F33: TAG 2525 z | H33: 234,824
B34: LCM 565* | D34: 380 | F34: ZF 25 | H34: 434,468
B35: LCM 583* | D35: 380 | F35: ZF 34 | H35: 500,882
B36: LCM 6131* | D36: 380 | F36: ZF 41 | H36: 635,639
B37: LCM 6149* | D37: 380 | F37: ZF 49 | H37: 656,115
B38: *- ТРВ в стандартной комплектации
B39: Выносной щит управления в стандартной комплектации на всех машинах!
B40: Дополнительные опции (цены розничные):
B41: - монитор напряжения (с установкой) - 3 500 рублей.
B42: - зимняя опция до -10 ̊С (с установкой) - 9 350 рублей.
B43: - зимняя опция до -10 ̊С (без установки) - 7 350 рублей.
B44: - зимняя опция до -30 ̊С (с установкой) на машины 1, 2 и 3 серии - 25 350 рублей. | F44: На машины 1, 2 и 3 серии
B45: - зимняя опция до -30 ̊С (с установкой) на машины 4 серии - 18 650 рублей. | F45: На машины 4 серии.
B46: - зимняя опция до -30 ̊С на машины 5 и 6 серии установлена в стандартной комплектации.
B47: - кронштейн 1000*700 для крепления наружного блока сплит-систем - 800 рублей за 1 штуку.
B48: - для сплит-систем 1,2,3 серии требуется 2 штуки.
B49: - для сплит-систем 4,5,6 серии требуется 3 штуки.
B50: - комплект медных труб (с теплоизоляцией) и силовых кабелей длиной 5 метров для сплит-систем 1,2,3 серии - 7 200 рублей.
B51: - комплект медных труб (с теплоизоляцией) и силовых кабелей длиной 5 метров для сплит-систем 4 серии - 11 900 рублей.
B52: - комплект медных труб (с теплоизоляцией) и силовых кабелей длиной 5 метров для сплит-систем 5,6 серии -
B54: Для монтажа сплит-систем Вам потребуется:
B55: 1. Шланг сантехнический под диаметр сливного патрубка 12 мм (для сплит-систем 1 и 2 серии). Труба сантехническая с гидрозатвором под диаметр сливного отверстия 1 1/2 дюйма (для сплит-систем 3,4,5,6 серии). Данное решение не допускает перемерзания трубы слива конденсата и позволяет не использовать ПЭН.
B56: 2. Медная труба необходимой длины.
B57: 3. Кабель для соединения щита управления, компрессорно-конденсаторного блока и воздухоохладителя.
B59: Температура в камере | C59: Темп. внешняя | D59: МСМ110 | G59: МСМ115 | K59: МСМ223
D60: Q Вт | E60: V м3 | G60: Q Вт | H60: V м3 | I60: V м3 | K60: Q Вт | L60: V м3
E61: 100 мм | F61: 80 мм | H61: 100 мм | I61: 100 мм | J61: 80 мм | L61: 100 мм | M61: 80 мм
B62: +5°C | C62: 25 | D62: 977 | E62: 10 | F62: 8.3 | G62: 1897 | H62: 14 | I62: 25 | J62: 23 | K62: 2822 | L62: 30 | M62: 28
C63: 32 | D63: 872 | E63: 9 | F63: 7 | G63: 1684 | H63: 12 | I63: 21 | J63: 19 | K63: 2664 | L63: 29 | M63: 26
C64: 40 | D64: 710 | E64: 7.8 | F64: 6.5 | G64: 1347 | H64: 11 | I64: 18 | J64: 16 | K64: 2348 | L64: 24 | M64: 23
B65: 0°C | C65: 25 | D65: 826 | E65: 6.3 | F65: 5.7 | G65: 1578 | H65: 12 | I65: 20 | J65: 18 | K65: 2369 | L65: 26 | M65: 24
C66: 32 | D66: 735 | E66: 5.1 | F66: 4.6 | G66: 1398 | H66: 10 | I66: 17 | J66: 15 | K66: 2119 | L66: 22 | M66: 20
C67: 40 | D67: 595 | E67: 4.5 | F67: 4.1 | G67: 1114 | H67: 9.2 | I67: 16 | J67: 15 | K67: 1772 | L67: 19 | M67: 17
B68: -5°C | C68: 25 | D68: 690 | E68: 4.9 | F68: 4.5 | G68: 1294 | H68: 9.7 | I68: 17 | J68: 15 | K68: 1918 | L68: 19 | M68: 17
C69: 32 | D69: 612 | E69: 3.9 | F69: 3.5 | G69: 1142 | H69: 8.2 | I69: 14 | J69: 13 | K69: 1713 | L69: 17 | M69: 15
C70: 40 | D70: 492 | E70: 3.5 | F70: 3.2 | G70: 902 | H70: 7.4 | I70: 13 | J70: 12 | K70: 1400 | L70: 15 | M70: 14
B72: Температура в камере | C72: Темп. внешняя | D72: МСМ231 | G72: MCM 331 | K72: MCM 451 | N72: *- максимальная температура кипения для MCM 342 не более -5 ̊С
D73: Q Вт | E73: V м3 | G73: Q Вт | H73: V м3 | I73: V м3 | K73: Q Вт | L73: V м3
E74: 100 мм | F74: 80 мм | H74: 100 мм | I74: 100 мм | J74: 80 мм | L74: 100 мм | M74: 80 мм
B75: +5°C | C75: 25 | D75: 3140 | E75: 35 | F75: 32 | G75: 3600 | H75: 42 | I75: 75 | J75: 60 | K75: 6000 | L75: 120 | M75: 110
C76: 32 | D76: 2971 | E76: 32 | F76: 31 | G76: 3215 | H76: 40 | I76: 70 | J76: 52 | K76: 5500 | L76: 104 | M76: 100
C77: 40 | D77: 2625 | E77: 27 | F77: 26 | G77: 2920 | H77: 36 | I77: 60 | J77: 41 | K77: 4700 | L77: 97 | M77: 90
B78: 0°C | C78: 25 | D78: 3031 | E78: 30 | F78: 27 | G78: 3345 | H78: 34 | I78: 66 | J78: 52 | K78: 5904 | L78: 98 | M78: 79
C79: 32 | D79: 2683 | E79: 27 | F79: 24 | G79: 3040 | H79: 31 | I79: 58 | J79: 47 | K79: 5246 | L79: 87 | M79: 75
C80: 40 | D80: 2280 | E80: 23 | F80: 21 | G80: 2704 | H80: 29 | I80: 48 | J80: 39 | K80: 4198 | L80: 73 | M80: 66
B81: -5°C | C81: 25 | D81: 2484 | E81: 25 | F81: 23 | G81: 2800 | H81: 27 | I81: 50 | J81: 43 | K81: 4814 | L81: 78 | M81: 71
C82: 32 | D82: 2178 | E82: 22 | F82: 22 | G82: 2540 | H82: 25 | I82: 45 | J82: 33 | K82: 4232 | L82: 72 | M82: 66
C83: 40 | D83: 1821 | E83: 19 | F83: 17 | G83: 2100 | H83: 22 | I83: 32 | J83: 29 | K83: 3300 | L83: 58 | M83: 53
B85: Температура в камере | C85: Темп. внешняя | D85: МСМ454 | G85: МСМ462 | K85: МСМ582 | N85: МСМ588
D86: Q Вт | E86: V м3 | G86: Q Вт | H86: V м3 | I86: V м3 | K86: Q Вт | L86: V м3 | N86: Q Вт | O86: V м3
E87: 100 мм | F87: 80 мм | H87: 100 мм | I87: 100 мм | J87: 80 мм | L87: 100 мм | M87: 80 мм | O87: 100 мм | P87: 80 мм
B88: +5°C | C88: 25 | D88: 8346 | E88: 158 | F88: 144 | G88: 8840 | H88: 165 | I88: 184 | J88: 167 | K88: 11900 | L88: 232 | M88: 211 | N88: 14400 | O88: 292 | P88: 266
C89: 32 | D89: 7189 | E89: 138 | F89: 126 | G89: 7689 | H89: 145 | I89: 161 | J89: 147 | K89: 10700 | L89: 205 | M89: 190 | N89: 13100 | O89: 260 | P89: 230
C90: 40 | D90: 5427 | E90: 127 | F90: 116 | G90: 5923 | H90: 140 | I90: 148 | J90: 135 | K90: 9800 | L90: 183 | M90: 167 | N90: 11800 | O90: 230 | P90: 210
B91: 0°C | C91: 25 | D91: 6767 | E91: 134 | F91: 122 | G91: 7213 | H91: 144 | I91: 157 | J91: 143 | K91: 10500 | L91: 200 | M91: 181 | N91: 12685 | O91: 250 | P91: 227
C92: 32 | D92: 5751 | E92: 116 | F92: 106 | G92: 6213 | H92: 126 | I92: 137 | J92: 125 | K92: 9500 | L92: 175 | M92: 160 | N92: 11500 | O92: 220 | P92: 200
C93: 40 | D93: 4216 | E93: 105 | F93: 96 | G93: 4677 | H93: 115 | I93: 126 | J93: 115 | K93: 8600 | L93: 156 | M93: 142 | N93: 10400 | O93: 196 | P93: 180
B94: -5°C | C94: 25 | D94: 5372 | E94: 110 | F94: 100 | G94: 5765 | H94: 120 | I94: 130 | J94: 118 | K94: 9100 | L94: 167 | M94: 152 | N94: 10900 | O94: 210 | P94: 190
C95: 32 | D95: 4483 | E95: 95 | F95: 86 | G95: 4897 | H95: 105 | I95: 112 | J95: 102 | K95: 8300 | L95: 150 | M95: 135 | N95: 10000 | O95: 185 | P95: 170
C96: 40 | D96: 3151 | E96: 86 | F96: 78 | G96: 3558 | H96: 96 | I96: 103 | J96: 94 | K96: 7500 | L96: 131 | M96: 119 | N96: 9000 | O96: 160 | P96: 150
B98: Температура в камере | C98: Темп. внешняя | D98: МСМ5102 | G98: МСМ6136 | K98: МСМ6186 | N98: МСМ6200
D99: Q Вт | E99: V м3 | G99: Q Вт | H99: V м3 | I99: V м3 | K99: Q Вт | L99: V м3 | N99: Q Вт | O99: V м3
E100: 100 мм | F100: 80 мм | H100: 100 мм | I100: 100 мм | J100: 80 мм | L100: 100 мм | M100: 80 мм | O100: 100 мм | P100: 80 мм
B101: +5°C | C101: 25 | D101: 16617 | E101: 344 | F101: 313 | G101: 17500 | H101: 432 | I101: 490 | J101: 393 | K101: 23300 | L101: 570 | M101: =L101*0.8 -> 456 | N101: 28700 | O101: 700 | P101: 560
C102: 32 | D102: 15000 | E102: 305 | F102: 275 | G102: 16100 | H102: 363 | I102: 396 | J102: 330 | K102: 20500 | L102: 432 | M102: 345.6 | N102: 25000 | O102: 546 | P102: 436
C103: 40 | D103: 13500 | E103: 269 | F103: 245 | G103: 13500 | H103: 300 | I103: 310 | J103: 290 | K103: 17500 | L103: 330 | M103: 264 | N103: 21000 | O103: 363 | P103: 290
B104: 0°C | C104: 25 | D104: 14700 | E104: 300 | F104: 272 | G104: 15100 | H104: 340 | I104: 363 | J104: 315 | K104: 19400 | L104: 432 | M104: 346 | N104: 23800 | O104: 507 | P104: 405
C105: 32 | D105: 13200 | E105: 265 | F105: 245 | G105: 13900 | H105: 300 | I105: 310 | J105: 280 | K105: 17000 | L105: 330 | M105: 264 | N105: 20000 | O105: 363 | P105: 290
C106: 40 | D106: 12000 | E106: 235 | F106: 214 | G106: 13000 | H106: 270 | I106: 280 | J106: 260 | K106: 14450 | L106: 300 | M106: 240 | N106: 17050 | O106: 310 | P106: 250
B107: -5°C | C107: 25 | D107: 12800 | E107: 250 | F107: 230 | G107: 13300 | H107: 300 | I107: 310 | J107: 275 | K107: 16000 | L107: 320 | M107: 256 | N107: 19450 | O107: 370 | P107: 296
C108: 32 | D108: 11000 | E108: 225 | F108: 205 | G108: 12000 | H108: 250 | I108: 270 | J108: 235 | K108: 14000 | L108: 280 | M108: 224
C109: 40 | D109: 10000 | E109: 198 | F109: 180 | G109: 10500 | H109: 210 | I109: 230 | J109: 215 | K109: 11750 | L109: 250 | M109: 200
B111: Температура в камере | C111: Темп. внешняя | D111: LCM108 | G111: LCM109 | K111: LCM 316
D112: Q Вт | E112: V м3 | G112: Q Вт | H112: V м3 | I112: V м3 | K112: Q Вт | L112: V м3
E113: 100 мм | F113: 80 мм | H113: 100 мм | I113: 100 мм | J113: 80 мм | L113: 100 мм | M113: 80 мм
B114: -18°C | C114: 25 | D114: 763 | E114: 3.8 | F114: 3.4 | G114: 1117 | H114: 5.7 | I114: 12 | J114: 10 | K114: 1984 | L114: 15 | M114: 13
C115: 32 | D115: 661 | E115: 3.4 | F115: 3 | G115: 966 | H115: 4.9 | I115: 9.8 | J115: 8.6 | K115: 1747 | L115: 13 | M115: 12
C116: 40 | D116: 510 | E116: 3.1 | F116: 2.7 | G116: 732 | H116: 4.4 | I116: 9.8 | J116: 8.6 | K116: 1423 | L116: 12 | M116: 10
B117: -25°C | C117: 25 | D117: 461 | E117: 2.6 | F117: 2.3 | G117: 680 | H117: 4.5 | I117: 8.1 | J117: 7.1 | K117: 1180 | L117: 12 | M117: 10
C118: 32 | D118: 389 | E118: 2.3 | F118: 2 | G118: 573 | H118: 3.4 | I118: 6.9 | J118: 6.1 | K118: 1005 | L118: 9 | M118: 7
C119: 40 | D119: 283 | E119: 2 | F119: 1.8 | G119: 410 | H119: 3 | I119: 6.3 | J119: 5.5 | K119: 787 | L119: 8 | M119: 7
B121: Температура в камере | C121: Темп. внешняя | D121: LCM 324 | G121: LCM 434 | K121: LCM447
D122: Q Вт | E122: V м3 | G122: Q Вт | H122: V м3 | I122: V м3 | K122: Q Вт | L122: V м3
E123: 100 мм | F123: 80 мм | H123: 100 мм | I123: 100 мм | J123: 80 мм | L123: 100 мм | M123: 80 мм
B124: -18°C | C124: 25 | D124: 2616 | E124: 34 | F124: 30 | G124: 3852 | H124: 43 | I124: 71 | J124: 62 | K124: 5382 | L124: 90 | M124: 82
C125: 32 | D125: 2284 | E125: 27 | F125: 25 | G125: 3397 | H125: 35 | I125: 56 | J125: 51 | K125: 4611 | L125: 76 | M125: 71
C126: 40 | D126: 1773 | E126: 25 | F126: 22 | G126: 2772 | H126: 28 | I126: 47 | J126: 41 | K126: 3446 | L126: 67 | M126: 61
B127: -25°C | C127: 25 | D127: 1552 | E127: 24 | F127: 21 | G127: 2255 | H127: 33 | I127: 53 | J127: 47 | K127: 3165 | L127: 73 | M127: 67
C128: 32 | D128: 1300 | E128: 21 | F128: 18 | G128: 1923 | H128: 26 | I128: 41 | J128: 36 | K128: 2630 | L128: 61 | M128: 56
C129: 40 | D129: 920 | E129: 17 | F129: 15 | G129: 1504 | H129: 21 | I129: 32 | J129: 28 | K129: 1841 | L129: 52 | M129: 48
B131: Температура в камере | C131: Темп. внешняя | D131: LCM565 | G131: LCM583 | K131: LCM6149
D132: Q Вт | E132: V м3 | G132: Q Вт | H132: V м3 | I132: V м3 | K132: Q Вт | L132: V м3
E133: 100 мм | F133: 80 мм | H133: 100 мм | I133: 100 мм | J133: 80 мм | L133: 100 мм | M133: 80 мм
B134: -18°C | C134: 25 | D134: 6830 | E134: 125 | F134: 109 | G134: 9240 | H134: 190 | I134: 247 | J134: 217 | K134: 13690 | L134: 328 | M134: 287
C135: 32 | D135: 6200 | E135: 110 | F135: 96 | G135: 8300 | H135: 168 | I135: 210 | J135: 183 | K135: 12200 | L135: 281 | M135: 250
C136: 40 | D136: 5600 | E136: 93 | F136: 82 | G136: 7586 | H136: 144 | I136: 182 | J136: 160 | K136: 10918 | L136: 241 | M136: 211
B137: -25°C | C137: 25 | D137: 5845 | E137: 100 | F137: 87 | G137: 7856 | H137: 152 | I137: 197 | J137: 172 | K137: 11699 | L137: 265 | M137: 232
C138: 32 | D138: 5200 | E138: 87 | F138: 77 | G138: 7100 | H138: 131 | I138: 170 | J138: 146 | K138: 10500 | L138: 225 | M138: 198
C139: 40 | D139: 4780 | E139: 74 | F139: 65 | G139: 6427 | H139: 114 | I139: 143 | J139: 126 | K139: 9236 | L139: 190 | M139: 167
B141: Холодильные машины на объем холодильных камер подобраны при обязательном соблюдении следующих условий эксплуатации:
B142: - материал теплоизоляции - пенополиуретан, не менее 80мм;
B143: - относительная влажность воздуха не более 85%;
B144: - разница температуры загружаемого продукта и поддерживаемой температуры в камере не более 5ºС при условии, что продукт не будет проходить точку замерзания;
B145: - коэффициент рабочего времени не более 0.75, при своевременной очистке теплообменников и ежемесячных профилактических работ проводимых сервисным центром;
B146: - плотность загрузки не более 250 кг/м³;
B147: - суточный оборот камеры не более 10%.

Sheet Voshod_pek
D2: Главное меню
B3: Наименование | C3: цены, руб.*
B4: Пекарское оборудование/001. Печи ротационные и люлечные
B5: Печь ротац. электрич. "Муссон-ротор" мод. 77М-02 (В 633.00.00.000) (сварн., в ж/д) | C5: по запросу
B6: Печь ротац. электрич. "Муссон-ротор" мод. 77М-02 (В530.00.00.000) (сварн.) | C6: по запросу
B7: Печь ротац. электрич. "Муссон-ротор" мод. 77М-02 (В633.00.00.000) (сварн.) | C7: по запросу
B8: Печь хлебопек. ротац. "Муссон-ротор" мод. 77М-01 (В 632.00.00.000) (сварн.) | C8: по запросу
B9: Печь хлебопек. ротац. "Муссон-ротор" мод. 77М-01 (В 632.00.00.000) (сварн., в ж/д) | C9: по запросу
B10: Печь ротац. электрич. "Муссон-ротор" мод. 55Р-02 (В625.00.00.000) | C10: по запросу
B11: Печь хлебопек. люлечная "Циклон-ротор" мод. 240Р | C11: по запросу
B12: Печь хлебопек. ротац. "Муссон-ротор" мод. 250МР Супер (В629.00.00.00.000, дверь с 2-м стеклом) | C12: по запросу
B13: Печь хлебопек. ротац. "Муссон-ротор" мод. 350 (В564.00.00.000) | C13: по запросу
B14: Печь хлебопек. ротац. "Муссон-ротор" мод. 350 (В649.00.00.000, дверь с 2-м стеклом) | C14: по запросу
B15: Печь хлебопек. ротац. "Муссон-ротор" мод. 55-01 (В528.00.00.000) в уп. для ж/д | C15: по запросу
B16: Печь хлебопек. ротац. "Муссон-ротор" мод. 55-01 (В627.00.00.000) (сварн.) | C16: по запросу
B17: Печь хлебопек. ротац. "Муссон-ротор" мод. 55-01 (В627.00.00.000) (сварн.) в ж/д упаковке | C17: по запросу
B18: Печь хлебопек. ротац. "Муссон-ротор" мод. 55-02 (В628.00.00.000) (сварн. ) | C18: по запросу
B19: Печь хлебопек. ротац. "Муссон-ротор" мод. 55-02 (В628.00.00.000) (сварн. , в ж/д) | C19: по запросу
B20: Печь хлебопек. ротац. "Муссон-ротор" мод. 55Р-01 (В626.00.00.00.000) (разборн.) | C20: по запросу
B21: Печь хлебопек. ротац. "Муссон-ротор" мод. 99/11-01 (В 636.00.00.00.000) (дверь с 2-м стеклом) | C21: по запросу
B22: Печь хлебопек. ротац. "Муссон-ротор" мод. 99/11-02 (В 647.00.00.00.000) (дверь с 2-м стеклом) | C22: по запросу
B23: Печь хлебопек. ротац. "Муссон-ротор" мод. 99М-01 (В 630.00.00.000) (сварн.) | C23: по запросу
B24: Печь хлебопек. ротац. "Муссон-ротор" мод. 99М-01 (В 630.00.00.000) (сварн.) в ж/д упаковке | C24: по запросу
B25: Печь хлебопек. ротац. "Муссон-ротор" мод. 99М-02 (В631.00.00.000) (сварн.) | C25: по запросу
B26: Печь хлебопек. ротац. "Муссон-ротор" мод. 99М-02 (В631.00.00.000) (сварн.) в ж/д упаковке | C26: по запросу
B27: Печь хлебопек. ротац. "Муссон-ротор" мод. 99МР-01 (В 620.00.00.00.000) | C27: по запросу
B28: Печь хлебопек. ротац. "Муссон-ротор" мод. 99МР-02 (В621.00.00.000) | C28: по запросу
B29: Печь хлебопек. ротац. электрич. "Муссон-ротор" мод. 33 (В590.00.00.00.000) | C29: по запросу
B30: Пекарское оборудование/002. Печи конвективные | C30: по запросу
B31: Печь электрическая конвекционная "Фотон" 1,5 (В607.00.00.00.000) | C31: по запросу
B32: Печь электрическая конвекционная "Фотон" 1,5-01 (В687.00.00.00.000, ручное управление) | C32: по запросу
B33: Печь электрическая конвекционная "Фотон" 3,0 (В608.00.00.00.000) | C33: по запросу
B34: Печь электрическая конвекционная "Фотон" 3,0-01 (В688.00.00.00.000, ручное управление) | C34: по запросу
B35: Печь электрическая конвекционная "Фотон" 4,5 (В684.00.00.00.000) | C35: по запросу
B36: Пекарское оборудование/003. Опции к печам и шкафам | C36: по запросу
B37: Козырек для печи "Циклон-ротор" мод. 240Р | C37: по запросу
B38: Корпус пароотвода для печи "Фотон" (В608.24.00.000) | C38: по запросу
B39: Опоры для печи "Муссон-ротор" мод.33 (В525.70.00.000) | C39: по запросу
B40: Опоры для шкафа расстойного "Бриз" 3,0 (В635.75.00.000) | C40: по запросу
B41: Подставка под печь "Фотон" (В622.00.00.00.000) h=500 | C41: по запросу
B42: Подставка под печь "Фотон" высокая (В654.00.00.00.000) h=790 | C42: по запросу
B43: Подставка разборная для печи "Фотон" (В681.00.00.000, h=770) | C43: по запросу
B44: Подставка разборная для печи "Фотон" (В689.00.00.00.000 h=500) | C44: по запросу
B45: Подставка разборная для печи "Фотон" (В690.00.00.00.000, h=930) | C45: по запросу
B46: Пекарское оборудование/004. Шкафы расстойные | C46: по запросу
B47: Установка микроклимата (В342.00.00.000) | C47: по запросу
B48: Шкаф предварит. расстойки "БРИЗ плюс" (В438.00.00.00.000-01) | C48: по запросу
B49: Шкаф предварительной расстойки "Бриз плюс Супер" | C49: по запросу
B50: Шкаф расстойный "Бриз" 1,5 (В619.00.00.00.000) | C50: по запросу
B51: Шкаф расстойный "Бриз" 3,0 (В635.00.00.00.000) | C51: по запросу
B52: Шкаф расстойный "Бриз" модель 33 (В598.00.00.00.000) | C52: по запросу
B53: Шкаф расстойный Бриз модель 33 (В538.00.00.000) | C53: по запросу
B54: Шкаф расстойный электрический "Бриз-022П" (В657.00.00.00.000) | C54: по запросу
B55: Шкаф расстойный электрический "Бриз-122" (В634.00.00.00.000) (разборн.) | C55: по запросу
B56: Шкаф расстойный электрический "Бриз-222" (В560.00.00.00.000 ) (разборн.) | C56: по запросу
B57: Шкаф расстойный электрический "Бриз-222" (В638.00.00.00.000 ) (разборн.) | C57: по запросу
B58: Шкаф расстойный электрический "Бриз-322" (В517.00.00.000) | C58: по запросу
B59: Шкаф расстойный электрический "Бриз-342" (В640.00.00.00.000, разборн.) | C59: по запросу
B60: Шкаф расстойный электрический "Бриз-344П" (В579.00.00.000) | C60: по запросу
B61: Пекарское оборудование/005. Печи шкафные (шкафы пекарские) | C61: по запросу
B62: Печь хлебопек. электрич. ХПЭ-500 (нержавеющая, В680.00.00.00.000) | C62: по запросу
B63: Печь хлебопек. электрич. ХПЭ-500 (нержавеющая, в обрешетке, В680.00.00.00.000) | C63: по запросу
B64: Печь хлебопек. электрич. ХПЭ-500 (оцинков., В680.00.00.00.000) | C64: по запросу
B65: Печь хлебопек. электрич. ХПЭ-500 (оцинков., в обрешетке, В680.00.00.00.000) | C65: по запросу
B66: Печь хлебопек. электрич. ХПЭ-750/1-С (со стеклянной дверью) | C66: по запросу
B67: Печь хлебопек. электрич. ХПЭ-750/3 (нерж. В322.00.00.000) | C67: по запросу
B68: Печь хлебопек. электрич. ХПЭ-750/3 (нерж. В685.00.00.000) | C68: по запросу
B69: Печь хлебопек. электрич. ХПЭ-750/3 (нерж. В685.00.00.000, в обрешетке) | C69: по запросу
B70: Печь хлебопек. электрич. ХПЭ-750/3 (нерж., в обрешетке, В322.33.00.000 сб-э1) | C70: по запросу
B71: Печь хлебопек. электрич. ХПЭ-750/3 С (со стеклянными дверьми) | C71: по запросу
B72: Печь хлебопек. электрич. ХПЭ-750/3 С (со стеклянными дверьми, В693.00.00.000) | C72: по запросу
B73: Печь хлебопек. электрич. ХПЭ-750/3 С (со стеклянными дверьми, В693.00.00.000,в обрешетке) | C73: по запросу
B74: Печь хлебопек. электрич. ХПЭ-750/3 С (со стеклянными дверьми, в обрешетке В 322.33.00.000 сб-э1) | C74: по запросу
B75: Печь хлебопек. электрич. ХПЭ-750/4 (крашен., В316.00.00.000-01) | C75: по запросу
B76: Печь хлебопек. электрич. ХПЭ-750/4 (крашен., В692.00.00.000) | C76: по запросу
B77: Печь хлебопек. электрич. ХПЭ-750/4 (крашен., в обрешетке, В692.00.00.000 сб-э) | C77: по запросу
B78: Печь хлебопек. электрич. ХПЭ-750/4 (нерж., в обрешетке, В316.33.00.000 сб-э) | C78: по запросу
B79: Печь хлебопек. электрич. ХПЭ-750/4 (нерж., в обрешетке, В692.00.00.000 сб-э) | C79: по запросу
B80: Печь хлебопек. электрич. ХПЭ-750/4 (нержавеющая, В316.00.00.000) | C80: по запросу
B81: Печь хлебопек. электрич. ХПЭ-750/4 (нержавеющая, В692.00.00.000) | C81: по запросу
B82: Печь хлебопек. электрич. ХПЭ-750/4 С (со стеклянными дверьми) | C82: по запросу
B83: Печь хлебопек. электрич. ХПЭ-750/4 С (со стеклянными дверьми, В697.00.00.000) | C83: по запросу
B84: Печь хлебопек. электрич. ХПЭ-750/4 С (со стеклянными дверьми, В697.00.00.000, в обрешетке) | C84: по запросу
B85: Печь хлебопек. электрич. ХПЭ-750/4 С (со стеклянными дверьми, в обрешетке) | C85: по запросу
B86: Печь хлебопек. электрич. ХПЭ-750/500.11 (нерж) | C86: по запросу
B87: Пекарское оборудование/006. Шкафы расстойные ярусные | C87: по запросу
B88: Шкаф расстойный электр.(со стеклянными дверцами) ШРЭ-2.1 ( в обрешетке, В604.00.00.000) | C88: по запросу
B89: Шкаф расстойный электр.(со стеклянными дверцами) ШРЭ-2.1 (В604.00.00.000) | C89: по запросу
B90: Шкаф расстойный электр.(с металлическими дверцами) ШРЭ-2.1 (В604.00.00.000) | C90: по запросу
B91: Шкаф расстойный электр.(с металлическими дверцами) ШРЭ-2.1 (в обрешетке, В604.00.00.000) | C91: по запросу
B92: Пекарское оборудование/007. Просеиватели муки | C92: по запросу
B93: Машина просеивания муки "ПМ-900М" | C93: по запросу
B94: Просеиватель муки ПВГ-600М (152.00.000-01) | C94: по запросу
B95: Просеиватель муки ПВГ-600М (152.00.000-01, в обрешетке) | C95: по запросу
B96: Пекарское оборудование/008. Дополнительное оборудование | C96: по запросу
B97: Автомат выгрузки теста (к "Прима-300АР") | C97: по запросу
B98: Дежеподъемоопрокидыватель "Восход-ДО-6" | C98: по запросу
B99: Дежеподъемоопрокидыватель ДО-8 (В468.00.00.000) | C99: по запросу
B100: Дежеподъемоопрокидыватель ДО-8 (В561.00.00.000) | C100: по запросу
B101: Загрузчик опары (к "Прима-300АР", "Прима-300Р") В331.00.00.000 | C101: по запросу
B102: Загрузчик опары Д-140 (к "Прима-160Р") | C102: по запросу
B103: Загрузчик опары зеркальный В584.00.00.000 | C103: по запросу
B104: Захват дежи Д-160 | C104: по запросу
B105: Захват дежи Д-300 (В471.00.00.000) | C105: по запросу
B106: Захват дежи Д-300М | C106: по запросу
B107: Машина для нарезки хлебобулочных изделий КАЙМАН (В 496.00.00.000-01, для пшеничного хлеба) | C107: по запросу
B108: Машина для нарезки хлебобулочных изделий КАЙМАН (В 496.00.00.000-02) | C108: по запросу
B109: Машина для резки хлебобулочных изделий "Кайман-2" (В510.00.00.000) | C109: по запросу
B110: Стол для раскрытия пакетов (В537.00.00.000) | C110: по запросу
B111: Пекарское оборудование/009. Машины тестомесильные | C111: по запросу
B112: Машина тестомесильная "Прима-300" (В551.00.00.000, с процессором, без деж) | C112: по запросу
B113: Машина тестомесильная "Прима-300" (В551.00.00.000-01, без деж) | C113: по запросу
B114: Машина тестомесильная "Прима-300Р" (В509.00.00.000) | C114: по запросу
B115: Машина тестомесильная "Прима-300Р" (В566.00.00.000) зерк. | C115: по запросу
B116: Машина тестомесильная "Прима-100" (В578.00.00.000) | C116: по запросу
B117: Машина тестомесильная "Прима-160" (В 447.00.00.000, без деж) | C117: по запросу
B118: Машина тестомесильная "Прима-160Н" (В486.00.00.000) | C118: по запросу
B119: Машина тестомесильная "Прима-160Р" (В498.00.00.000) | C119: по запросу
B120: Машина тестомесильная "Прима-40" (В372.00.00.000) | C120: по запросу
B121: Машина тестомесильная "Прима-70" (В571.00.00.000) | C121: по запросу
B122: Машина тестомесильная "Прима-80К" (В583.00.00.000) | C122: по запросу
B123: Пекарское оборудование/010. Дежи | C123: по запросу
B124: Дежа подкатная Д-160 (В 447.54.01.000) | C124: по запросу
B125: Пекарское оборудование/011. Тестоделители | C125: по запросу
B126: Машина тестоделительная "Восход-ТД-2М" (В 572.00.00.000) | C126: по запросу
B127: Машина тестоделительная "Восход ТД-7" (В600.00.00.000) | C127: по запросу
B128: Машина тестоделительная "Восход-ТД-3М" (В574.00.00.000) | C128: по запросу
B129: Машина тестоделительная "Восход-ТД-4" (В495.00.00.000 ) | C129: по запросу
B130: Машина тестоделительная "Восход-ТД-5" (В488.00.00.000) | C130: по запросу
B131: Машина тестоделительная "Восход-ТД-6" (В519.00.00.000) | C131: по запросу
B132: Пекарское оборудование/012. Тестоокруглители | C132: по запросу
B133: Тестоокруглитель "Восход-ТО-4" (В265.00.00.000) | C133: по запросу
B134: Тестоокруглитель "Восход-ТО-5" (В299.00.00.000) | C134: по запросу
B135: Тестоокруглитель "Восход-ТО-6" (В334.00.00.000) | C135: по запросу
B136: Тестоокруглитель "Восход-ТО-8 Скаут" | C136: по запросу
B137: Пекарское оборудование/013. Тестозакаточные машины | C137: по запросу
B138: Машина багетоформующая "Восход-ТЗ-5" (В 346.00.00.000) | C138: по запросу
B139: Установка тестозакаточная "Восход-ТЗ-3М" (В 446.00.00.000) | C139: по запросу
B140: Установка тестозакаточная "Восход-ТЗ-4М" (В318.00.00.000) | C140: по запросу
B141: Установка тестозакаточная "Восход-ТЗ-6" (В390.00.00.000) | C141: по запросу
B142: Пекарское оборудование/014. Листы подовые | C142: по запросу
B143: Лист подовый плоский стальной (для ТС1) 660*600 | C143: по запросу
B144: Лист подовый плоский стальной (к ТС3, ТС4) 550*750*20 В120.00.00.000 | C144: по запросу
B145: Лист подовый плоский стальной (к ТС8) 600*1000 | C145: по запросу
B146: Лист подовый плоский алюмин. штампов. 550*750 | C146: по запросу
B147: Лист подовый плоский алюмин. штампов. 660*600 | C147: по запросу
B148: Лист подовый плоский алюмин. штампов. 900*600 | C148: по запросу
B149: Лист подовый плоский стальной (2-я отбортовка с 4-х сторон) 400*600*20 | C149: по запросу
B150: Лист подовый плоский стальной (2-я отбортовка с 4-х сторон) 450*600*20 | C150: по запросу
B151: Лист подовый плоский стальной 900*600*20 | C151: по запросу
B152: Лист подовый плоский стальной 980*580*20 | C152: по запросу
B153: Лист подовый стальной (для "Циклон-ротор") 600*300 | C153: по запросу
B154: Лист подовый стальной (для печей ХПЭ) 700*460 | C154: по запросу
B155: Лист подовый стальной с 4-х сторонней отбортовкой 700*460*40 | C155: по запросу
B156: Пекарское оборудование/015. Тележки стеллажные | C156: по запросу
B157: Тележка стеллажная ТС-1-Р-18 (разборная , в упаковке, под лист 660*600 мм) | C157: по запросу
B158: Тележка стеллажная 2ТС3-8 | C158: по запросу
B159: Тележка стеллажная ТС-2-Р-18 (разборная, в упаковке, под лист 900*600 мм) | C159: по запросу
B160: Тележка стеллажная ТС-2-РН-18 (разборная нерж, в упаковке) | C160: по запросу
B161: Тележка стеллажная ТС-2-РФ-9 (разборная, в упаковке) | C161: по запросу
B162: Тележка стеллажная ТС-2-РФН-9 (разборная, в упаковке) | C162: по запросу
B163: Тележка стеллажная ТС-240-Р | C163: по запросу
B164: Тележка стеллажная ТС-4-Р-18 (разборная, в упаковке) | C164: по запросу
B165: Тележка стеллажная ТС-55-Р-18 (разборная, в упаковке, под лист 450*600 мм) | C165: по запросу
B166: Тележка стеллажная ТС-55-РН-18 (разборная, в упаковке) | C166: по запросу
B167: Тележка стеллажная ТС-55-РФ-18 (разборная, в упаковке, под лист 450*600 мм) | C167: по запросу
B168: Тележка стеллажная ТС-55-РФН-18 (разборная, в упаковке) | C168: по запросу
B169: Тележка стеллажная ТС-7-18 (под лист 580*980 мм) | C169: по запросу
B170: Тележка стеллажная ТС-8-18 | C170: по запросу
B171: Тележка стеллажная ТС-8-Р-18 (под лист 600*1000 мм) | C171: по запросу
B172: Тележка стеллажная ТС-9 К3 | C172: по запросу
B173: Тележка стеллажная ТС-Р-16-1 В679.00.00.00.000 | C173: по запросу
B174: Тележка стеллажная ТС-РН-4.5 (разборная нерж., в упаковке) | C174: по запросу
B175: Пекарское оборудование/016. Прочие | C175: по запросу
B176: Вагонетка лотковая разборная (в упаковке) ВЛ-14 | C176: по запросу
B177: Вставка в печи ХПЭ | C177: по запросу
B178: Лоток хлебный Л-14 | C178: по запросу
B179: Надставка на бункер тестоделителя (В603.00.00.000) | C179: по запросу
B180: Подставка для ТО-8 В558.00.00.000 | C180: по запросу
B181: Подставка для печи ХПЭ 750/1 (В653.00.00.00.000) | C181: по запросу
B182: Подставка разборная для печей "ХПЭ" В686.00.00.00.000 | C182: по запросу
B183: Стол производственный В-166 (столешница - н/ж сталь 1 мм) | C183: по запросу
B184: Стол производственный разделочный В-167 (столешн. деревянная) | C184: по запросу
B185: Узел смачивания ленты В495.70.00.000 (ТД-4) | C185: по запросу
B186: Пекарское оборудование/018. Горелки | C186: по запросу
B187: Газомагнитный блок MBC 65/1- F1SD 20 | C187: по запросу
B188: Горелка газовая GULLIVER BS1 | C188: по запросу
B189: Горелка газовая VG 02.120 kn 13017776 (М-Р 250 Супер) | C189: по запросу
B190: Горелка газовая VG 02.160 kN 13017778 (М-Р350) со встроен. фильтром 1" мод70602/СЕ 0070042000 | C190: по запросу
B191: Горелка газовая VG 1.55 (арт. 3832636) (М-Р 77М-01, в компл с газ. фильтром 1/2" 3832636) | C191: по запросу
B192: Горелка газовая VG 1.85 (в компл. фильтром , арт. 3832637) (М-Р 99М-01, 99МР-01) | C192: по запросу
B193: Горелка газовая VG2.140KN арт.3833554 (М-Р 250) | C193: по запросу
B194: Горелка дизельная VL 1.55 (арт. 3832617) (М-Р 77М-01) | C194: по запросу
B195: Горелка дизельная VL 1.95 (арт. 3832618) (М-Р 99М-01, 99МР-01) | C195: по запросу
B196: Горелка дизельная VL2.140 KN арт. 3833536 (М-Р 250МР) | C196: по запросу
B197: Горелка на жидком топливе VL 02.160 kN арт. 13017770 (М-Р 350) | C197: по запросу
B198: Горелка на жидком топливе GULLIVER RG1 (в комплекте с форсункой 0,85/60W) | C198: по запросу
B199: Форсунка 0,85/60W арт.3042062 | C199: по запросу
B201: * Розничная стоимость оборудования указана на сайте завода производителя ЗАО НПП фирма "Восход" - www.voskhod-saratov.ru

Sheet Voshod_kond
D2: Главное меню
B3: Наименование | C3: цены, руб.*
B4: Кондитерское оборудование/001. Машины
B5: Венчик В594.71.00.005 (для "Комета-60") | C5: 36,873
B6: Венчик В643.71.00.002 (для "Комета-100") | C6: 52,938
B7: Дежа PL-60L-VOSKHOD (к миксеру "Комета-60") | C7: 61,812
B8: Дежа В643.71.01.000 (к миксеру "Комета-100") | C8: 97,920
B9: Лопатка В594.71.00.001 (для "Комета-60") | C9: 30,753
B10: Лопатка В643.71.00.001 (для "Комета-100") | C10: 44,676
B11: Машина раскатки теста "Ролл-авто мини" (В332.00.00.000) | C11: 401,459
B12: Машина раскатки теста "Ролл-авто" (В223.00.00.000) | C12: 505,410
B13: Машина раскатки теста "Ролл-автоматик" (В464.00.00.000) | C13: 865,835
B14: Машина тиражирования пряников "Восход-МТП-1" | C14: 159,362
B15: Миксер планетарный "Комета-100" (В643.00.00.000) | C15: 928,720
B16: Миксер планетарный "Комета-60" (В623.00.00.000) | C16: 628,510
B17: Спираль В623.73.02.000 (для "Комета-60") | C17: 26,010
B18: Спираль В643.71.02.000 (для "Комета-100") | C18: 29,070
B19: Узел намотки теста В648.40.00.000 | C19: 175,950
B20: Кондитерское оборудование/002. "Вектор-220", блоки отсадочного комплекса
B21: Комплект В2-027 "Кольцо одноцветное Ф60" (В565.90.03.000) | C21: 35,190
B22: Матрица с вращением (В565.91.00.000) | C22: 182,070
B23: Матрица струнной резки "Звезда" (В565.93.00.000) | C23: 78,030
B24: Матрица струнной резки "Листик" (В565.95.00.000) | C24: 78,030
B25: Матрица струнной резки "Одноцветная Ф-40" (В565.97.00.000) | C25: 47,430
B26: Матрица струнной резки "Одноцветная Ф-40-7" (В565.98.00.000) | C26: 47,430
B27: Матрица струнной резки "Плоская палочка" (В565.71.00.000) | C27: 90,270
B28: Матрица струнной резки "Ромашка" (В565.92.00.000) | C28: 78,030
B29: Матрица струнной резки "Ромб" (В565.94.00.000) | C29: 78,030
B30: Матрица струнной резки "Сердце" (В565.96.00.000) | C30: 78,030
B31: Матрица струнной резки "Трубочка" (В565.70.00.000) | C31: 78,030
B32: Матрица щелевая (В565.99.00.000) | C32: 90,270
B33: Машина тестоотсадочная "Вектор-220" (В565.00.00.000, без сменных частей) | C33: 1,943,100
B34: Механизм отсадки валкового типа (В565.01.00.000, 2-х бункерный) | C34: 523,260
B35: Механизм отсадки комбинированного типа (В565.80.00.000, 2-х бункерный) | C35: 523,260
B36: Механизм отсадки насосного типа (В565.85.00.000) | C36: 523,260
B37: Механизм струнной резки (В565.05.00.000) | C37: 78,030
B38: Накладка "Звезда" в сборе (В565.93.01.000) | C38: 19,890
B39: Накладка "Листик" в сборе (В565.95.01.000) | C39: 19,890
B40: Накладка "Ромашка" в сборе (В565.92.03.000) | C40: 19,890
B41: Накладка "Ромб" в сборе (В565.94.01.000) | C41: 19,890
B42: Накладка "Сердце" в сборе (В565.96.01.000) | C42: 19,890
B43: Отсадная фильера Бубна В2-023(ОПГ-Д-10-126-04) | C43: 6,044
B44: Отсадная фильера Квадрат В2-019(ОПГ-Д-45-035-04) | C44: 6,044
B45: Отсадная фильера Квартет В2-015(ОПГ-Д-10-116-31) | C45: 6,044
B46: Отсадная фильера Квартет В2-024(ОПГ-Д-10-116-32) | C46: 6,044
B47: Отсадная фильера Курабье В2-008(ОПГ-Д-19-001-20) | C47: 6,044
B48: Отсадная фильера Курабье В2-009(ОПГ-Д-10-001-30) | C48: 6,044
B49: Отсадная фильера Курабье В2-011(ОПГ-Д-10-001-26) | C49: 6,044
B50: Отсадная фильера Лепешка В2-010(ОПГ-Д-19-003-14) двухцветная | C50: 6,044
B51: Отсадная фильера Лепешка В2-010(ОПГ-Д-19-003-16) | C51: 6,044
B52: Отсадная фильера Оса В2-007(ОПГ-Д-19-008-02) | C52: 6,044
B53: Отсадная фильера Подсолнух В2-018(ОПГ-Д-45-103-02) | C53: 6,044
B54: Отсадная фильера Цветок В2-020(ОПГ-Д-45-002-05) | C54: 6,044
B55: Отсадная фильера Эксцентрик В2-005(ОПГ-Д-10-040-19) | C55: 6,044
B56: Отсадная фильера Эксцентрик В2-014 (ОПГ-Д-10-040-18) | C56: 6,044
B57: Отсадная фильера Эксцентрик В2-022(ОПГ-Д-45-040-20) | C57: 6,044
B58: Отсадная фильера Декада В2-016 (ОПГ-Д19-102-15) | C58: 6,044
B59: Отсадная фильера Декада В2-021 (ОПГ-Д-19-102-17) | C59: 6,044
B60: Отсадная фильера Декада В2-021 (ОПГ-Д19-102-16) двухцветная | C60: 6,044
B61: Отсадная фильера Декада Ромашка В2-001 (ОПГ-Д45-102-02) | C61: 6,044
B62: Отсадная фильера Дюжина В2-012 (ОПГ-Д30-103-05) | C62: 6,044
B63: Отсадная фильера Месяц В2-002(ОПГ-Д-19-210-03) | C63: 6,044
B64: Отсадная фильера Октет В2-006 (ОПГ-Д10-122-10) | C64: 6,044
B65: Отсадная фильера Палочка вит. В2-003(ОПГ-Д-10-212-03) | C65: 6,044
B66: Отсадная фильера Палочка риф. В2-004(ОПГ-Д-45-211-03) | C66: 6,044
B67: Отсадная фильера Самоцвет В2-013 (ОПГ-Д51-122-08) | C67: 6,044
B68: Отсадная фильера Солнце В2-017 (ОПГ-Д45-010-03) | C68: 6,044
B69: Отсадная фильера Эксцентрик В2-025 (ОПГ-Д10-040-20) | C69: 6,044
B70: Кондитерское оборудование/003."Вектор-150", блоки отсадочного комплекса
B71: Матрица с вращением "МВ-150" (В585.31.00.000) | C71: 122,400
B72: Машина тестоотсадочная "Вектор-150" (В585.00.00.000, без сменных частей) | C72: 1,009,800
B73: Механизм отсадки валкового типа (В585.33.00.000) | C73: 189,720
B74: Механизм отсадки насосного типа (В585.32.00.000) | C74: 189,720
B75: Механизм струнной резки В585.05.00.000 (для Вектор-150) | C75: 67,320
B76: Кондитерское оборудование/004. Стол нарезочный "Восход-СН" 3500
B77: Стол нарезочный В644.00.00.00.000 | C77: 647,190
B78: Механизм резки "МР" 1 (В644.80.27.00.000,одноместный ) | C78: 91,035
B79: Механизм резки "МР" 2 (В644.80.26.00.000, двухместный ) | C79: 111,690
B80: Нож продольной резки "НПр" В644.80.19.00.000 | C80: 0
B81: Ось В644.80.13.02.000 | C81: 6,273
B82: Лезвие дисковое "ЛД" В644.80.19.01.000 | C82: 7,421
B83: Нож продольной просечки "НПП" В644.80.14.00.000 | C83: 0
B84: Ось В644.80.13.02.000 | C84: 6,273
B85: Блок лезвий продольной просечки "ЛП" 40 В644.80.14.01.000 | C85: 17,366
B86: Нож поперечной просечки "НППр" В644.80.13.00.000 | C86: 0
B87: Ось В644.80.13.02.000 | C87: 6,273
B88: Ролик В644.80.13.03.000 | C88: 7,115
B89: Блок лезвий поперечной просечки "ЛПр" 35 В644.80.13.01.000 | C89: 17,748
B90: Диск разметочный "ДР" 4 В644.80.25.00.000 | C90: 5,432
B91: Нож для круассанов "НК"120х100 В644.80.18.00.000 | C91: 37,485
B92: Нож для круассанов "НК" 140х70 В644.80.16.00.000 | C92: 37,485
B93: Нож для круассанов "НК" 180х120 В644.80.15.00.000 | C93: 37,485
B94: Нож для круассанов "НК" 200х100 В644.80.17.00.000 | C94: 37,485
B95: Нож поперечной резки "НПР" 125 В644.80.22.00.000 | C95: 19,890
B96: Нож поперечной резки "НПР" 190 В644.80.23.00.000 | C96: 15,300
B97: Нож поперечной резки "НПР" 380 В644.80.24.00.000 | C97: 12,240
B98: Нож поперечной резки "НПР" 95 В644.80.21.00.000 | C98: 22,185
B99: Кондитерское оборудование/007. Прочие | C99: 0
B100: Подставка В332.18.01.000 к Ролл-авто мини | C100: 22,585
B101: Тележка для миксера "Комета-60" В613.00.00.000 | C101: 12,531
B103: * Розничная стоимость оборудования указана на сайте завода производителя ЗАО НПП фирма "Восход" - www.voskhod-saratov.ru

Sheet Ассум_техн
J2: Главное меню
H4: Вес заказа | I4: Объем заказа
H6: =SUM(H11:H208) -> 0.00 | I6: =SUM(I11:I208) -> 0.00
A7: Полное наименование/ Характеристика | B7: Розничная цена, руб. | C7: Габариты упаковки, мм | D7: Вес нетто, кг | E7: Вес брутто, кг | F7: Объем, м. куб. | G7: Заказ | H7: Вес брутто, кг | I7: Объем, м.куб. | J7: Описание
A10: Аппарат для POPKORN
A11: Аппарат для POPKORN TT-P1 | B11: 10,115.00 | C11: 570х430х720 | D11: 24.00 | E11: 26.00 | F11: 0.18 | H11: =G11*E11 -> 0.00 | I11: =G11*F11 -> 0.00 | J11: Красный верх (высокая крыша). Вместимость 6 унций. Производительность 135 порций в час. Подогрев. Антипригарное покрытие кастрюли позволяет готовить сладкий и соленый поп-корн. Мощность 1.4 к.Вт. Напряжение 220 В. Габаритные размеры 500х360х650 мм. Вес 24 кг.
A12: Аппарат для POPKORN TT-P3 | B12: 9,380.00 | C12: 560х430х780 | D12: 20.00 | E12: 24.00 | F12: 0.19 | H12: =G12*E12 -> 0.00 | I12: =G12*F12 -> 0.00 | J12: Красный верх (плоская крыша). Вместимость 6 унций. Производительность 135 порций в час. Подогрев. Антипригарное покрытие кастрюли позволяет готовить сладкий и соленый поп-корн. Мощность 1.4 к.Вт. Напряжение 220 В. Габаритные размеры 500х360х650 мм. Вес 20 кг.
A13: Аппараты для хот догов
A14: Аппарат для хот догов TT-O165 | B14: 15,600.00 | C14: 520х350х440 | D14: 11.50 | E14: 12.50 | F14: 0.08 | H14: =G14*E14 -> 0.00 | I14: =G14*F14 -> 0.00 | J14: Корпус из нержавеющей стали. 3 насадки - штыря. Стеклянная подогреваемая колба для приготовления сосисок и поддержания их в тёплом состоянии. Кнопка включения подогрева штырей. Кнопка включения и ручка регулировки температуры внутри колбы. Мощность 0.6 кВт. Напряжение 220 В. Габаритные размеры 470х300х390 мм. Вес 11.5 кг.
A15: Аппарат для хот догов TT WE-2218 (корн дог) | B15: 11,840.00 | C15: 440х330х330 | D15: 16.00 | E15: 18.00 | F15: 0.05 | H15: =G15*E15 -> 0.00 | I15: =G15*F15 -> 0.00 | J15: Гриль позволяет выпекать сосиски в тесте, а не жарить их во фритюре. Основой корн-догов является жидкое вафельное или пикантное тесто на основе кукурузной муки, в котором обволакивается и запекается сосиска. Корпус выполнен из нержавеющей стали, формы - из чугуна. 5 ячеек для запекания. Температурный режим от 50 до 300 °С. Мощность 1.5 кВт. Напряжение 220 В. Габаритные размеры 380х270х270 мм. Вес 16 кг.
A16: Аппарат для хот догов TT-R10A | B16: 12,150.00 | C16: 470х310х235 | D16: 7.50 | E16: 10.00 | F16: 0.03 | H16: =G16*E16 -> 0.00 | I16: =G16*F16 -> 0.00 | J16: Корпус выполнен из нержавеющей стали. 5 роликов. Ручка регулировки температуры. Постоянное вращение роликов способствует прожариванию продуктов со всех сторон. Мощность 0.5 кВт. Напряжение 220 В. Габаритные размеры 410х250х175 мм. Вес 7.5 кг.
A17: Аппарат для хот догов TT-R10B | B17: 13,690.00 | C17: 500х385х235 | D17: 9.00 | E17: 11.50 | F17: 0.05 | H17: =G17*E17 -> 0.00 | I17: =G17*F17 -> 0.00 | J17: Корпус выполнен из нержавеющей стали. 7 роликов. Ручка регулировки температуры. Постоянное вращение роликов способствует прожариванию продуктов со всех сторон. Мощность 0.7 кВт. Напряжение 220 В. Габаритные размеры 440х325х175 мм. Вес 9 кг.
A18: Блендеры, миксеры для молочных коктейлей
A19: Блендер TT-I777 | B19: 6,830.00 | C19: 300х260х370 | D19: 4.50 | E19: 5.00 | F19: 0.03 | H19: =G19*E19 -> 0.00 | I19: =G19*F19 -> 0.00 | J19: Объем кувшина 2 л. Многофункциональный миксер подходит для широкой продуктовой корзины. Макасимальная скорость 27 000 об/мин. Мощность 1.25 кВт. Напряжение 220 В. Габаритные размеры180х220х550 мм. Вес 4.5 кг.
A20: Блендер TT-K4T-AD | B20: 36,080.00 | C20: 850х250х250 | D20: 7.00 | E20: 8.00 | F20: 0.05 | H20: =G20*E20 -> 0.00 | I20: =G20*F20 -> 0.00 | J20: Погружной блендер. Длина 377 мм. Регулировка скорости 3000-12000 об./мин. R-образная эргономичная конструкция ручки. Непрерывная работа достигается блокированием кнопки. Все элементы, контактирующие с пищевыми продуктами выполнены из нержавеющей стали. Мощный двигатель постоянного тока. Венчик в комплекте. Мощность 0.55 кВт. Напряжение 220 В. Габаритные размеры: 708х113х113 мм. Вес 7 кг.
A21: Миксер для молочных коктелей TT-MK4А | B21: 6,920.00 | C21: 220х220х540 | D21: 6.25 | E21: 7.00 | F21: 0.03 | H21: =G21*E21 -> 0.00 | I21: =G21*F21 -> 0.00 | J21: Корпус из нержавеющей стали. Две скорости. Объем стакана 0,6 л (нержавеющя сталь). Мощность 0.18 кВт. Напряжение 220 В. Габаритные размеры 185х185х520 мм. Вес 6.25 кг.
A22: Миксер для молочных коктелей TT-MK5А | B22: 11,670.00 | C22: 270х270х540 | D22: 9.75 | E22: 10.60 | F22: 0.04 | H22: =G22*E22 -> 0.00 | I22: =G22*F22 -> 0.00 | J22: Корпус из нержавеющей стали. Две скорости. Объем стакана 0,6 л х 2 шт (нержавеющая сталь). Мощность 0.18 кВт. Напряжение 220 В. Габаритные размеры 230х185х520 мм. Вес 9.75 кг.
A23: Блинницы, электровафельницы
A24: Блинница ТЕС-1 | B24: 12,090.00 | C24: 590х550х330 | D24: 20.00 | E24: 21.00 | F24: 0.11 | H24: =G24*E24 -> 0.00 | I24: =G24*F24 -> 0.00 | J24: Корпус выполнен из нержавеющей стали. 1 конфорка Æ400 мм из чугуна с антипригарным покрытием. Мощность 3 кВт. Напряжение 220 В. Габаритные размеры 450х485х240 мм. Вес 20 кг.
A25: Блинница ТЕС-2 | B25: 19,450.00 | C25: 960х580х340 | D25: 33.00 | E25: 35.00 | F25: 0.19 | H25: 0.00 | I25: 0.00 | J25: Корпус выполнен из нержавеющей стали. 2 конфорка Æ400 мм из чугуна с антипригарным покрытием. Мощность 6 кВт. Напряжение 220 В. Габаритные размеры 860х485х240 мм. Вес 33 кг.
A26: Электровафельница NP-547 | B26: 10,435.00 | C26: 400х290х280 | D26: 8.00 | E26: 9.00 | F26: 0.03 | H26: 0.00 | I26: 0.00 | J26: Гонконгские вафли. Корпус выполнен из нержавеющей стали. Антипригарная ударопрочная поверхность Æ175 мм. Термостат и таймер. Мощность 1.4 кВт. Напряжение 220 В. Габаритные размеры 250х450х300 мм. Вес 8 кг.
A27: Электровафельница для рожков TCB-1 | B27: 5,980.00 | C27: 400х290х280 | D27: 8.00 | E27: 9.00 | F27: 0.03 | H27: 0.00 | I27: 0.00 | J27: Для рожков. Одинарная. Корпус выполнен из нержавеющей стали. Алюминиевая ударопрочная поверхность Æ210 мм с антипригарным покрытием. Термостат и таймер. Мощность 1 кВт. Напряжение 220 В. Габаритные размеры 280х380х360 мм. Вес 8 кг.
A28: Электровафельница для рожков TCB-2 | B28: 13,950.00 | C28: 600х320х280 | D28: 16.00 | E28: 18.00 | F28: 0.05 | H28: 0.00 | I28: 0.00 | J28: Для рожков. Двойная. Корпус выполнен из нержавеющей стали. Алюминиевая ударопрочная поверхность Æ210 мм с антипригарным покрытием. Термостат и таймер. Мощность 2 кВт. Напряжение 220 В. Габаритные размеры 500х380х360 мм. Вес 16 кг.
A29: Электровафельница NP-513 | B29: 14,500.00 | J29: Вафли-лодочки удлиненной формы с закругленными краями с 4 ячейками, в которые можно закладывать разные начинки. Вафли можно готовить как мягкими, так и хрустящими. Размер вафли 105х40х30 мм. Одновременное выпекание 10 вафель. Корпус из нержавеющей стали. Алюминиевая рабочая поверхность с тефлоновым покрытием. Регулируемый термостат. Антипригарная панель. Мощность 1.5 кВт. Напряжение 220 В. Габаритные размеры 410х310х250 мм. Вес 11 кг.
A30: Электровафельница NP-690 | B30: 14,500.00 | J30: Круглые вафли размером Æ52х22 мм. Одновременное выпекание 16 вафель. Корпус из нержавеющей стали. Алюминиевая рабочая поверхность с тефлоновым покрытием. Регулируемый термостат. Антипригарная панель. Мощность 1.5 кВт. Напряжение 220 В. Габаритные размеры 410х310х250 мм. Вес 11 кг.
A31: Электровафельница ТWB-1 | B31: 7,280.00 | C31: 400х290х280 | D31: 8.00 | E31: 9.00 | F31: 0.03 | H31: 0.00 | I31: 0.00 | J31: Бельгийские вафли. Одинарная. Корпус выполнен из нержавеющей стали. Алюминиевая ударопрочная поверхность Æ170 мм с антипригарным покрытием. Термостат и таймер. Мощность 1 кВт. Напряжение 220 В. Габаритные размеры 250х380х300 мм. Вес 8 кг.
A32: Электровафельница ТWB-2 | B32: 13,880.00 | C32: 600х320х280 | D32: 16.00 | E32: 18.00 | F32: 0.05 | H32: 0.00 | I32: 0.00 | J32: Бельгийские вафли. Двойная. Корпус выполнен из нержавеющей стали. Алюминиевая ударопрочная поверхность Æ170 мм с антипригарным покрытием. Термостат и таймер. Мощность 2 кВт. Напряжение 220 В. Габаритные размеры 500х380х300 мм. Вес 16 кг.
A33: Электровафельница ТТ-WE2215 | B33: 15,308.00 | C33: 650х380х320 | D33: 10.00 | E33: 11.00 | F33: 0.08 | H33: 0.00 | I33: 0.00 | J33: Фигурные вафли. Корпус выполнен из нержавеющей стали. Форма вафель - "сердце". Размер готового продукта 230х25х60 мм. Термостат и таймер. Рабочая поверхность с антипригарным покрытием. Мощность 1.4 кВт. Напряжение 220 В. Габаритные размеры 340х310х250 мм. Вес 10 кг.
A34: Электровафельница ТТ-DM22 | B34: 14,900.00 | H34: 0.00 | I34: 0.00 | J34: Пончики диаметром 50х12 мм. Время выпекания 3-5 мин. Мощность 1.5 кВт. Напряжение 220 В.Габаритные размеры 410х385х315 мм. Вес 10 кг.
A35: Электровафельница ТТ-DM23 | B35: 14,900.00 | H35: 0.00 | I35: 0.00 | J35: Пончики диаметром 80х6 мм. Время выпекания 3-5 мин. Мощность 1.5 кВт. Напряжение 220 В.Габаритные размеры 410х385х315 мм. Вес 10 кг.
A36: Электровафельница для рожков TT-ЕТ2В(WE2216) | B36: 28,171.00 | C36: 650х380х320 | D36: 11 | E36: 19 | F36: 0.07904 | H36: 0 | I36: 0 | J36: Фигурные вафли. Корпус выполнен из нержавеющей стали. Форма вафель - "сердце". Размер готового продукта 230х25х60 мм. Термостат и таймер. Рабочая поверхность с антипригарным покрытием. Мощность 1.4 кВт. Напряжение 220 В. Габаритные размеры 340х310х250 мм. Вес 10 кг.
A37: Водонагреватели
A38: Водонагреватель TT-WB10DP | B38: 5,113.00 | C38: 295х295х440 | D38: 3.25 | E38: 3.75 | F38: 0.04 | H38: =G38*E38 -> 0.00 | I38: =G38*F38 -> 0.00 | J38: Тип - заливной. Исполнение корпуса - нержавеющая сталь, двойная стенка.Термостат. Защита от сухого хода. Нагревательный элемент - площадка. Объем 10л. Мощность 1.5 кВт. Напряжение 220 В. Габаритные размеры 295х295х440 мм. Вес 3.25 кг.
A39: Водонагреватель TT-WB15DP | B39: 5,822.00 | C39: 295х295х505 | D39: 3.37 | E39: 4.00 | F39: 0.04 | H39: =G39*E39 -> 0.00 | I39: =G39*F39 -> 0.00 | J39: Тип - заливной. Исполнение корпуса - нержавеющая сталь, двойная стенка.Термостат. Защита от сухого хода. Нагревательный элемент - площадка. Объем 15л. Мощность 1.5 кВт. Напряжение 220 В. Габаритные размеры 295х295х510 мм. Вес 3.37 кг.
A40: Водонагреватель TT-WB25DP | B40: 6,800.00 | C40: 370х370х500 | D40: 4.55 | E40: 5.22 | F40: 0.07 | H40: =G40*E40 -> 0.00 | I40: =G40*F40 -> 0.00 | J40: Тип - заливной. Исполнение корпуса - нержавеющая сталь, двойная стенка.Термостат. Защита от сухого хода. Нагревательный элемент - площадка. Объем 25л. Мощность 2 кВт. Напряжение 220 В. Габаритные размеры 370х370х510 мм. Вес 4.55 кг.
A41: Водонагреватель TT-WB30DP | B41: 7,295.00 | C41: 370х370х550 | D41: 4.83 | E41: 5.83 | F41: 0.08 | H41: =G41*E41 -> 0.00 | I41: =G41*F41 -> 0.00 | J41: Тип - заливной. Исполнение корпуса - нержавеющая сталь, двойная стенка.Термостат. Защита от сухого хода. Нагревательный элемент - площадка. Объем 30л. Мощность 2 кВт. Напряжение 220 В. Габаритные размеры 370х370х550 мм. Вес 4.83 кг.
A42: Водонагреватель TT-WB35DP | B42: 7,633.00 | C42: 370х370х620 | D42: 5.20 | E42: 6.20 | F42: 0.08 | H42: =G42*E42 -> 0.00 | I42: =G42*F42 -> 0.00 | J42: Тип - заливной. Исполнение корпуса - нержавеющая сталь, двойная стенка.Термостат. Защита от сухого хода. Нагревательный элемент - площадка. Объем 35л. Мощность 2 кВт. Напряжение 220 В. Габаритные размеры 370х370х620 мм. Вес 5.2 кг.
A43: Грили
A44: Гриль Cаламандр TT-WE200А | B44: 35,400.00 | C44: 550х550х650 | D44: 38.50 | E44: 40.00 | F44: 0.20 | H44: =G44*E44 -> 0.00 | I44: =G44*F44 -> 0.00 | J44: Корпус из нержавеющей стали. Выдвижной нижний лоток. Инфракрасный нагрев. Температурный режим 50…300°С. Зона нагрева 440х320 мм. Мощность 2.8 кВт. Напряжение 220 В. Габаритные размеры 450х450х500 мм. Вес 38.5 кг.
A45: Гриль для кур TT-WE19А | B45: 47,938.00 | C45: 910х770х810 | D45: 65.00 | E45: 70.00 | F45: 0.57 | H45: 0.00 | I45: 0.00 | J45: Полностью из нержавеющей стали. Карусельный. Вместимость 8 кур. Стеклянная задняя стенка. Мощность 4.6 кВт. Напряжение 220 В. Габаритные размеры 810х670х610 мм. Вес 65 кг.
A46: Гриль контактный TCG-811E | B46: 12,050.00 | C46: 495х440х265 | D46: 20.00 | E46: 23.00 | F46: 0.06 | H46: 0.00 | I46: 0.00 | J46: Корпус из нержавеющей стали. Поверхность нагрева - рифлёная. Температурный режим 0…300°С. Верхняя зона нагрева 338х220 мм. Нижняя зона нагрева 340х230 мм. Мощность 2.2 кВт. Напряжение 220 В. Габаритные размеры 410х305х210 мм. Вес 20 кг.
A47: Гриль контактный TCG-813 | B47: 20,667.00 | C47: 630х440х265 | D47: 28.00 | E47: 30.00 | F47: 0.07 | H47: 0.00 | I47: 0.00 | J47: Корпус из нержавеющей стали. Поверхность нагрева - рифлёная. Температурный режим 0…300°С. Верхняя зона нагрева (214х214 мм) х 2 шт. Нижняя зона нагрева 475х230 мм. Мощность 3.6 кВт. Напряжение 220 В. Габаритные размеры 570х305х210 мм. Вес 28 кг.
A48: Гриль контактный ТСG-811 | B48: 9,890.00 | C48: 440х365х265 | D48: 14.00 | E48: 15.50 | F48: 0.04 | H48: 0.00 | I48: 0.00 | J48: Корпус из нержавеющей стали. Поверхность нагрева - рифлёная. Температурный режим 0…300°С. Верхняя зона нагрева 214х214 мм. Нижняя зона нагрева 218х230 мм. Мощность 1.8 кВт. Напряжение 220 В. Габаритные размеры 290х305х210 мм. Вес 14 кг.
A49: Гриль шаурма TT-WE1290 | B49: 41,690.00 | C49: 770х640х1090 | D49: 34.00 | E49: 51.00 | F49: 0.54 | H49: 0.00 | I49: 0.00 | J49: Электрический. Корпус из нержавеющей стали. 3 обособленные зоны нагрева с отдельной регулировкой. Скорость вращения 2.5 об/мин. Диаметр загружаемого продукта до 400 мм. Мощность 9.9 кВт. Напряжение 220 В. Габаритные размеры 534х700х1015 мм. Вес 34 кг.
A50: Гриль шаурма TT-WE1291 | B50: 48,570.00 | C50: 770х640х1090 | D50: 34.00 | E50: 51.00 | F50: 0.54 | H50: 0.00 | I50: 0.00 | J50: Газовый. Корпус из нержавеющей стали. 4 горелки с отдельной регулировкой. Скорость вращения 3.6 об/мин. Диаметр загружаемого продукта до 400 мм. Мощность (эквивалент) 14.8 кВт. Напряжение 220 В (электродвигатель). Габаритные размеры 534х700х1015 мм. Вес 34 кг.
A51: Жарочная поверхность TT-WE101 | B51: 8,940.00 | C51: 840х620х300 | D51: 23.00 | E51: 32.00 | F51: 0.16 | H51: 0.00 | I51: 0.00 | J51: Полностью из нержавеющей стали. Гладкая рабочая поверхность 548х350х10. Ёмкость для сбора масла. Мощность 3 кВт. Напряжение 220 В. Габаритные размеры 550х450х230 мм. Вес 23 кг.
A52: Жарочная поверхность TT-WE104 | B52: 13,100.00 | C52: 840х620х300 | D52: 32.00 | E52: 42.00 | F52: 0.16 | H52: 0.00 | I52: 0.00 | J52: Полностью из нержавеющей стали. Комбинированная рабочая поверхность 728х400х10. Ёмкость для сбора масла. Мощность 4.4 кВт. Напряжение 220 В. Габаритные размеры 730х500х230 мм. Вес 32 кг.
A53: Жарочная поверхность TT-WE106 | B53: 13,300.00 | C53: 840х620х300 | D53: 23.00 | E53: 32.00 | F53: 0.16 | H53: 0.00 | I53: 0.00 | J53: Полностью из нержавеющей стали. Рифлёная рабочая поверхность 548х350х10. Ёмкость для сбора масла. Мощность 3 кВт. Напряжение 220 В. Габаритные размеры 550х450х230 мм. Вес 32 кг.
A54: Индукционные плиты
A55: Плита электрическая индукционная AS101 | B55: 9,000.00 | C55: 420х490х155 | D55: 2.30 | E55: 2.70 | F55: 0.03 | H55: =G55*E55 -> 0.00 | I55: =G55*F55 -> 0.00 | J55: Настольная. 1 конфорка. Напряжение 220 В. Мощность 3.5 кВт. Модель оснащена механической панелью управления. Корпус выполнен из нержавеющей стали. Рекомендовано использовать специальную посуду из материала с подходящими характеристиками. 5 уровней мощности. Температурный режим: от 60 до 240 °С. 2 вентилятора охлаждения. Габаритные размеры 360х450х105 мм. Максимальная нагрузка на поверхность: 25 кг.
A56: Плита электрическая индукционная WOK1 | B56: 16,065.00 | C56: 450*550*240 | D56: 6 | E56: 6.5 | F56: =0.45*0.55*0.24 -> 0.0594 | H56: =G56*E56 -> 0 | I56: =G56*F56 -> 0 | J56: Настольная. 1 конфорка. Напряжение 220 В. Мощность 5000 Вт. Модель оснащена механической панелью управления. Корпус выполнен из нержавеющей стали. Рекомендовано использовать специальную посуду из материала с подходящими характеристиками. Габаритные размеры 405*505*190 мм. В комплекте с чашей для приготовления.
A57: Картофелечистки
A58: Картофелечистка РР8 PAINTED | B58: 44,875.00 | C58: 500х530х734 | D58: 53.00 | E58: 69.00 | F58: 0.19 | H58: =G58*E58 -> 0.00 | I58: =G58*F58 -> 0.00 | J58: Корпус из окрашенной стали. Цикл очистки - 1-2 мин. Съёмный абразивный круг. Объем загрузки - 8 кг. Мощность 0.37 кВт. Напряжение 220 В. Габаритные размеры 430х430х725 мм. Вес 53 кг.
A59: Картофелечистка РР15 PAINTED | B59: 42,840.00 | C59: 550х640х880 | D59: 69.00 | E59: 85.00 | F59: 0.31 | H59: =G59*E59 -> 0.00 | I59: =G59*F59 -> 0.00 | J59: Корпус из окрашенной стали. Цикл очистки - 1-2 мин. Съёмный абразивный круг. Объем загрузки - 15 кг. Мощность 0.57 кВт. Напряжение 220 В. Габаритные размеры 475х540х785 мм. Вес 69 кг.
A60: Картофелечистка РР15А | B60: 63,304.00 | C60: 550х640х880 | D60: 69.00 | E60: 85.00 | F60: 0.31 | H60: =G60*E60 -> 0.00 | I60: =G60*F60 -> 0.00 | J60: Корпус из нержавеющей стали. Цикл очистки - 1-2 мин. Съёмный абразивный круг. Объем загрузки - 15 кг. Мощность 0.57 кВт. Напряжение 220 В. Габаритные размеры 475х540х785 мм. Вес 69 кг.
A61: Коптильни
A62: Коптильня DSH-S03 | B62: 28,835.00 | C62: 520х470х840 | D62: 30.00 | E62: 35.00 | F62: 0.21 | H62: =G62*E62 -> 0.00 | I62: =G62*F62 -> 0.00 | J62: Корпус из нержавеющей стали. Электромеханическая панель управления. Таймер. Термостат регулирует температуру от + 30 до +135 °С. Производительность 20 кг за 3-4 часа. Изоляционный щит толщиной 25 мл. Полки - 4шт. Мощность 1 кВт. Напряжение 220 В. Габаритные размеры 520х470х840 мм. Вес 30 кг.
A63: Коптильня DSH-S03L (Коптильня DSH-S08) | B63: 40,520.00 | C63: 520х470х1149 | D63: 42.00 | E63: 47.00 | F63: 0.28 | H63: =G63*E63 -> 0.00 | I63: =G63*F63 -> 0.00 | J63: Корпус из нержавеющей стали. Электромеханическая панель управления. Таймер. Термостат регулирует температуру от + 30 до +135 °С. Производительность 40 кг за 3-4 часа. Изоляционный щит толщиной 25 мл. Полки - 8 шт. Мощность 1 кВт. Напряжение 220 В. Габаритные размеры 520х470х1230 мм. Вес 42 кг.
A64: Коптильня DSH-S09 (в комплекте с дымогенератором) | B64: 55,690.00 | C64: 520х470х1149 | D64: 42.00 | E64: 47.00 | F64: 0.28 | H64: =G64*E64 -> 0.00 | I64: =G64*F64 -> 0.00 | J64: Корпус из нержавеющей стали. Электромеханическая панель управления. Таймер. Термостат регулирует температуру от + 30 до +135 °С. Производительность 40 кг за 3-4 часа. Дымогенератор позволяет производить "холодное" копчение. Изоляционный щит толщиной 25 мл. Полки - 8 шт. Мощность 1 кВт. Напряжение 220 В. Габаритные размеры 520х470х1230 мм. Вес 42 кг.
A65: Лапшерезки
A66: Лапшерезка TT-D25D-1 | B66: 64,540.00 | C66: 410х470х970 | D66: 83.60 | E66: 91.00 | F66: 0.19 | H66: =G66*E66 -> 0.00 | I66: =G66*F66 -> 0.00 | J66: Все элементы, контактирующие с пищевыми продуктами, выполнены из нержавеющей стали. Комплектуется 4-мя валами для разной ширины нарезки лапши. Размер вала Ø87х190 мм. Скорость вращения вала 69 об/мин. Производительность 150 кг/час. Ширина нарезки 1.5; 3; 4; 6 мм. Мощность 1.1 кВт. Напряжение 220 В. Габаритные размеры 280х390х860 мм. Вес 83.6 кг.
A67: Лапшерезка TT-D35D-1 | B67: 69,350.00 | C67: 420х570х970 | D67: 93.00 | E67: 101.00 | F67: 0.23 | H67: =G67*E67 -> 0.00 | I67: =G67*F67 -> 0.00 | J67: Все элементы, контактирующие с пищевыми продуктами, выполнены из нержавеющей стали. Комплектуется 4-мя валами для разной ширины нарезки лапши. Размер вала Ø87х290 мм. Производительность 250 кг/час. Ширина нарезки 1.5; 3; 4; 6 мм. Мощность 1.5 кВт. Напряжение 220 В. Габаритные размеры 280х490х860 мм. Вес 93 кг.
A68: Миксеры универсальные
A69: Миксер универсальный B5F | B69: 25,150.00 | C69: 480х300х500 | D69: 13.00 | E69: 15.50 | F69: 0.07 | H69: =G69*E69 -> 0.00 | I69: =G69*F69 -> 0.00 | J69: Все элементы, контактирующие с пищевыми продуктами, выполнены из нержавеющей стали. Автоматическое отключение при подъеме головы. Система защиты от перегрузки. Двигатель постоянного тока с плавной регулировкой скорости. Объем дежи 5 л. Плавная регулировка скорости до 1080 об/мин. Съемная дежа. В комплекте крюк, лопатка, венчик. Мощность 0.3 кВт. Напряжение 220 В. Габаритные размеры 350х230х400 мм. Вес 13 кг.
A70: Миксер универсальный В10F | B70: 31,400.00 | C70: 430х530х760 | D70: 50.00 | E70: 63.00 | F70: 0.17 | H70: 0.00 | I70: 0.00 | J70: Все элементы, контактирующие с пищевыми продуктами, выполнены из нержавеющей стали. Зубчатая передача. Защитная решетка. Аварийный выключатель. Съёмная дежа объёмом 10 л. Загрузка сухого продукта 2,5 кг. Вес готового продукта 3,75 кг. Скорость вращения 244 / 148 / 480 об/мин. В комплекте крюк, лопатка, венчик. Мощность 0.6 кВт. Напряжение 220 В. Габаритные размеры 470х450х600 мм. Вес 50 кг.
A71: Миксер универсальный В10F-1 | B71: 28,980.00 | C71: 430х530х760 | D71: 50.00 | E71: 63.00 | F71: 0.17 | H71: 0.00 | I71: 0.00 | J71: Все элементы, контактирующие с пищевыми продуктами, выполнены из нержавеющей стали. Зубчатая передача. Без защитной решетки. Без аварийного выключателя. Съёмная дежа объёмом 10 л. Загрузка сухого продукта 2,5 кг. Вес готового продукта 3,75 кг. Скорость вращения 244 / 148 / 480 об/мин. В комплекте крюк, лопатка, венчик. Мощность 0.6 кВт. Напряжение 220 В. Габаритные размеры 470х450х600 мм. Вес 50 кг.
A72: Миксер универсальный В20F-1 | B72: 36,980.00 | C72: 480х580х920 | D72: 75.00 | E72: 88.00 | F72: 0.26 | H72: 0.00 | I72: 0.00 | J72: Все элементы, контактирующие с пищевыми продуктами, выполнены из нержавеющей стали. Зубчатая передача. Без защитной решетки. Без аварийного выключателя. Съёмная дежа объёмом 20 л. Загрузка сухого продукта 5 кг. Вес готового продукта 7.25 кг. Скорость вращения 317 / 197 / 462 об/мин. В комплекте крюк, лопатка, венчик. Мощность 1.1 кВт. Напряжение 220 В. Габаритные размеры 540х490х780 мм. Вес 75 кг.
A73: Миксер универсальный B30FN | B73: 44,550.00 | C73: 510х620х1040 | D73: 82.00 | E73: 91.00 | F73: 0.33 | H73: 0.00 | I73: 0.00 | J73: Все элементы, контактирующие с пищевыми продуктами, выполнены из нержавеющей стали. Защитная решётка. Зубчатая передача. Аварийный выключатель. Остановка при открытии защитной решетки. Съёмная дежа объёмом 30 л. Загрузка сухого продукта 7 кг. Вес готового продукта 10.5 кг. Скорость вращения 204 / 125 / 430 об/мин. В комплекте крюк, лопатка, венчик. Мощность 1.5 кВт. Напряжение 220 В. Габаритные размеры 640х500х980 мм. Вес 82 кг.
A74: Миксер универсальный В40М | B74: 83,580.00 | C74: 750х830х1400 | D74: 170.00 | E74: 203.00 | F74: 0.87 | H74: 0.00 | I74: 0.00 | J74: Все элементы, контактирующие с пищевыми продуктами, выполнены из нержавеющей стали. Ременная передача передача. Защитная решетка. Аварийный выключатель. Таймер. Съёмная дежа объёмом 40 л. Загрузка сухого продукта 8 кг. Вес готового продукта 12.8 кг. Скорость вращения 204 / 125 / 430 об/мин. В комплекте крюк, лопатка, венчик. Мощность 1.3 кВт. Напряжение 220 В. Габаритные размеры 760х640х1170 мм. Вес 170 кг.
A75: Миксер универсальный В60F | B75: 141,300.00 | C75: 770х870х1720 | D75: 395.00 | E75: 425.00 | F75: 1.15 | H75: 0.00 | I75: 0.00 | J75: Все элементы, контактирующие с пищевыми продуктами, выполнены из нержавеющей стали. Защитная решётка. Зубчатая передача. Аварийный выключатель. Остановка при открытии защитной решетки. Подкатная тележка. Съёмная дежа объёмом 60 л. Загрузка сухого продукта 25 кг. Вес готового продукта 37.5 кг. Скорость вращения 230 / 130 / 334 об/мин. В комплекте крюк, лопатка, венчик. Мощность 2.5 кВт. Напряжение 380 В. Габаритные размеры 910х730х460 мм. Вес 395 кг.
A76: Миксер универсальный В60L | B76: 152,520.00 | C76: 1000х700х1300 | D76: 280.00 | E76: 330.00 | F76: 0.91 | H76: 0.00 | I76: 0.00 | J76: Все элементы, контактирующие с пищевыми продуктами, выполнены из нержавеющей стали. Защитная решётка. Ременная передача. Система защиты от перегрузки. Низкий уровень шума. Механический подъёмник дежи. Подкатная тележка. Съёмная дежа объёмом 60 л. Скорость вращения 80 / 160 / 185 / 370 об/мин. В комплекте крюк, лопатка, венчик. Мощность 30 кВт. Напряжение 380 В. Габаритные размеры 800х650х1180 мм. Вес 280 кг.
A77: Мясорубки
A78: Кутер TQ-5A | B78: 68,820.00 | C78: 600х490х670 | D78: 62.00 | E78: 70.00 | F78: 0.20 | H78: =G78*E78 -> 0.00 | I78: =G78*F78 -> 0.00 | J78: Корпус из пищевого алюминия. Все элементы, контактирующие с пищевыми продуктами выполнены из нержавеющей стали. Ёмкость чаши 5 л. Производительность 80 кг/ч. Мощность 0.37 кВт. Напряжение 220 В. Габаритные размеры 525х420х550 мм. Вес 62 кг.
A79: Кутер TQ-5 | B79: 61,900.00 | C79: 525х420х535 | D79: 62 | E79: 70 | F79: 0.19698 | H79: =G79*E79 -> 0 | I79: =G79*F79 -> 0 | J79: Все элементы, контактирующие с пищевыми продуктами выполнены из нержавеющей стали. Ёмкость чаши 5 л. Производительность 80 кг/ч. Мощность 0.37 кВт. Напряжение 220 В. Габаритные размеры 525х420х550 мм. Вес 62 кг.
A80: Мясорубка ТС12 | B80: 30,018.00 | C80: 465х320х490 | D80: 23.00 | E80: 25.00 | F80: 0.07 | H80: =G80*E80 -> 0.00 | I80: =G80*F80 -> 0.00 | J80: Производительность 150 кг/час. Полированный корпус и загрузочный лоток из нержавеющей стали. Энергоэкономичный электродвигатель с охлаждающим вентилятором и прецизионным зубчатым приводом. Защита от перегрузки. Долговременная консистентная смазка. Реверсный переключатель. Кнопка сброса. Стандартные насадки: решетки с диаметром отверстий 6 и 8 мм, нож крестовой, 1 насадка для колбасы. Мощность 0.75 кВт. Напряжение 220 В. Габаритные размеры 240х210х315 мм. Вес 23 кг.
A81: Мясорубка ТС22 | B81: 33,950.00 | C81: 595х365х600 | D81: 30.00 | E81: 32.50 | F81: 0.13 | H81: =G81*E81 -> 0.00 | I81: =G81*F81 -> 0.00 | J81: Производительность 250 кг/час. Полированный корпус и загрузочный лоток из нержавеющей стали. Энергоэкономичный электродвигатель с охлаждающим вентилятором и прецизионным зубчатым приводом. Защита от перегрузки. Долговременная консистентная смазка. Реверсный переключатель. Кнопка сброса. Стандартные насадки: решетки с диаметром отверстий 6 и 8 мм, нож крестовой, 1 насадка для колбасы. Мощность 1.1 кВт. Напряжение 220 В. Габаритные размеры 300х250х365 мм. Вес 30 кг.
A82: Мясорубка ТС22I | B82: 49,235.00 | C82: 595х365х601 | D82: 31.00 | E82: 33.50 | F82: 0.13 | H82: =G82*E82 -> 0.00 | I82: =G82*F82 -> 0.00 | J82: Производительность 300 кг/час. Полированный корпус и загрузочный лоток из нержавеющей стали. Энергоэкономичный электродвигатель с охлаждающим вентилятором и прецизионным зубчатым приводом. Защита от перегрузки. Долговременная консистентная смазка. Реверсный переключатель. Кнопка сброса. Стандартные насадки: полный унгер (3 решётки, 2 ножа), 1 насадка для колбасы. Мощность 1.1 кВт. Напряжение 220 В. Габаритные размеры 470х250х550 мм. Вес 31 кг.
A83: Мясорубка ТС8 | B83: 21,980.00 | C83: 465х320х490 | D83: 20.00 | E83: 22.50 | F83: 0.07 | H83: =G83*E83 -> 0.00 | I83: =G83*F83 -> 0.00 | J83: Производительность 80 кг/час. Полированный корпус и загрузочный лоток из нержавеющей стали. Энергоэкономичный электродвигатель с охлаждающим вентилятором и прецизионным зубчатым приводом. Защита от перегрузки. Долговременная консистентная смазка. Реверсный переключатель. Кнопка сброса. Стандартные насадки: решетки с диаметром отверстий 6 и 8 мм, нож крестовой, 1 насадка для колбасы. Мощность 0.3 кВт. Напряжение 220 В. Габаритные размеры 210х200х315 мм. Вес 20 кг.
A84: Мясорубка HFM-8 | B84: 24,500.00 | C84: 535х260х420 | D84: 15.00 | E84: 15.76 | F84: 0.06 | H84: =G84*E84 -> 0.00 | I84: =G84*F84 -> 0.00 | J84: Производительность 75 кг/час. Мощность 0.25 кВт. Напряжение 220 В. Вес 15 кг.
A85: Мясорубка HFM-12 | B85: 26,850.00 | C85: 565х260х465 | D85: 19.00 | E85: 20.28 | F85: 0.07 | H85: 0.00 | I85: 0.00 | J85: Производительность 120-150 кг/час. Мощность 0.55 кВт. Напряжение 220 В. Вес 19 кг.
A86: Мясорубка HFM-22 | B86: 33,950.00 | C86: 645х305х500 | D86: 23.00 | E86: 24.70 | F86: 0.10 | H86: 0.00 | I86: 0.00 | J86: Производительность 220 кг/час. Мощность 1.1 кВт. Напряжение 220 В. Вес 23 кг.
A87: Мясорубка HR-8 | B87: 9,100.00 | C87: 450х211х350 | D87: 11.00 | E87: 13.00 | F87: 0.03 | H87: 0.00 | I87: 0.00 | J87: Стальной корпус, чугунная "голова". Производительность 75 кг/час. Скорость вращения ножей 175 об./мин. Мощность 0.6 кВт. Напряжение 220 В. Вес 11 кг.
A88: Мясорубка HR-12 | B88: 11,500.00 | C88: 455х305х395 | D88: 20.00 | E88: 22.00 | F88: 0.06 | H88: 0.00 | I88: 0.00 | J88: Стальной корпус, чугунная "голова". Производительность 170 кг/час. Скорость вращения ножей 190 об./мин. Мощность 0.85 кВт. Напряжение 220 В. Вес 20 кг.
A89: Мясорубка HR-22 | B89: 18,000.00 | C89: 530х330х460 | D89: 25.00 | E89: 26.00 | F89: 0.08 | H89: 0.00 | I89: 0.00 | J89: Стальной корпус, чугунная "голова". Производительность 240 кг/час. Скорость вращения ножей 190 об./мин. Мощность 1.2 кВт. Напряжение 220 В. Вес 25 кг.
A90: Овощерезки
A91: Овощерезка TT-F30 | B91: 44,680.00 | C91: 560х560х290 | D91: 22.00 | E91: 23.00 | F91: 0.09 | H91: =G91*E91 -> 0.00 | I91: =G91*F91 -> 0.00 | J91: Все элементы, контактирующие с пищевыми продуктами, выполнены из нержавеющей стали. Производительность 130 кг/час. В комплекте 5 дисков: слайсер 4 и 2 мм, терка 3, 4 и 7 мм. Диаметр диска 270 мм. Мощность 0.55 кВт. Напряжение 220 В. Габаритные размеры 570х230х510 мм. Вес 22 кг.
A92: Аппарат для нарезки картофеля спиралью TT-F34 | B92: 2,150.00 | C92: 310*160*160 | D92: 1.1 | E92: 1.3 | F92: 0.01 | H92: =G92*E92 -> 0 | I92: =G92*F92 -> 0 | J92: Аппарат для нарезки картофеля спиралью помогает приготовить картофельные чипсы. Корпус выполнен из высококачественной нержавеющей стали. Габаритные размеры 300*150*150
A93: Пилы
A94: Пила JG 210A | B94: 76,100.00 | C94: 600х615х1000 | D94: 56.00 | E94: 77.00 | F94: 0.37 | H94: =G94*E94 -> 0.00 | I94: =G94*F94 -> 0.00 | J94: Корпус из нержавеющей стали. Скорость полотна 15 м/сек. Диаметр вала 210 мм. Высота пропила 185 мм. Ширина нарезки 4-180 мм. Размер стола 610х530 мм. Габаритные размеры 660х530х970 мм. Мощность 0.5 кВт. Напряжение 220 В. Вес 56 кг.
A95: Пила JG 300A | B95: 146,990.00 | C95: 920х750х1790 | D95: 109.00 | E95: 153.00 | F95: 1.24 | H95: =G95*E95 -> 0.00 | I95: =G95*F95 -> 0.00 | J95: Корпус из нержавеющей стали. Скорость полотна 15 м/сек. Диаметр вала 300 мм. Высота пропила 275 мм. Ширина нарезки 30-250 мм. Размер стола 712х662 мм. Габаритные размеры 780х710х1690 мм. Мощность 1.5 кВт. Напряжение 380 В. Вес 109 кг.
A96: Пила JG 400А | B96: 254,500.00 | C96: 1260х1120х1960 | D96: 175.00 | E96: 295.00 | F96: 2.77 | H96: =G96*E96 -> 0.00 | I96: =G96*F96 -> 0.00 | J96: Корпус из нержавеющей стали. Скорость полотна 15 м/сек. Диаметр вала 400 мм. Высота пропила 375 мм. Ширина нарезки 30-350 мм. Размер стола 890х900 мм. Габаритные размеры 980х1160х1800 мм. Мощность 1.5 кВт. Напряжение 380 В. Вес 175 кг.
A97: Пила JG 210M | B97: 69,700.00 | C97: 700х615х1000 | D97: 60 | E97: 80 | F97: =0.7*0.615*1 -> 0.4305 | H97: =G97*E97 -> 0 | I97: =G97*F97 -> 0 | J97: Корпус из нержавеющей стали. Скорость полотна 15 м/сек. Диаметр вала 210 мм. Высота пропила 185 мм. Ширина нарезки 4-180 мм. Размер стола 610х530 мм. Габаритные размеры 660х530х970 мм. Мощность 0.5 кВт. Напряжение 220 В. Вес 60 кг.
A98: Слайсеры
A99: Слайсер HS8 | B99: 20,150.00 | C99: 470х460х410 | D99: 14.50 | E99: 16.00 | F99: 0.09 | H99: =G99*E99 -> 0.00 | I99: =G99*F99 -> 0.00 | J99: Корпус из аноидированного алюминиевого сплава. Нож из нержавеющей стали (Италия). Вентилируемый мотор. Каретка передвигающаяся самосмазывающаяся. Автозаточка ножей. Диаметр лезвия 220 мм. Ширина нарезки 0-13 мм. Мощность 0.21 кВт. Напряжение 220 В. Габаритные размеры 410х400х350 мм. Вес 14.5 кг.
A100: Слайсер HS10 | B100: 22,800.00 | C100: 540х535х480 | D100: 20.50 | E100: 21.50 | F100: 0.14 | H100: =G100*E100 -> 0.00 | I100: =G100*F100 -> 0.00 | J100: Корпус из аноидированного алюминиевого сплава. Нож из нержавеющей стали (Италия). Вентилируемый мотор. Каретка передвигающаяся самосмазывающаяся. Автозаточка ножей. Диаметр лезвия 250 мм. Ширина нарезки 0-17 мм. Мощность 0.24 кВт. Напряжение 220 В. Габаритные размеры 480х475х420 мм. Вес 20.5 кг.
A101: Слайсер HS12 | B101: 33,800.00 | C101: 630х472х520 | D101: 27.00 | E101: 30.00 | F101: 0.15 | H101: =G101*E101 -> 0.00 | I101: =G101*F101 -> 0.00 | J101: Корпус из аноидированного алюминиевого сплава. Нож из нержавеющей стали (Италия). Вентилируемый мотор. Каретка передвигающаяся самосмазывающаяся. Автозаточка ножей. Диаметр лезвия 300 мм. Ширина нарезки 0-18 мм. Мощность 0.27 кВт. Напряжение 220 В. Габаритные размеры 570х412х460 мм. Вес 27 кг.
A102: Слайсер для мяса ТТ-М29С | B102: 55,220.00 | C102: 620х400х590 | D102: 33.00 | E102: 41.00 | F102: 0.12 | H102: =G102*E102 -> 0.00 | I102: =G102*F102 -> 0.00 | J102: Один комплект лезвий. Производительность 250 кг/ч. Загрузочное окно 90х80 мм. Ширина нарезки 5 мм. Диаметр лезвий 90 мм. Количество ломтиков 28 шт. Мощность 0.6 кВт. Напряжение 220 В. Габаритные размеры 450х320х430 мм. Вес 33 кг.
A103: Слайсер для мяса ТТ-М29H | B103: 53,235.00 | C103: 620х400х590 | D103: 33.00 | E103: 41.00 | F103: 0.12 | H103: =G103*E103 -> 0.00 | I103: =G103*F103 -> 0.00 | J103: Один комплект лезвий. Производительность 250 кг/ч. Загрузочное окно 90х80 мм. Ширина нарезки 3 мм. Диаметр лезвий 90 мм. Мощность 0.6 кВт. Напряжение 220 В. Габаритные размеры 450х320х430 мм. Вес 33 кг.
A104: Слайсер HBS-220JS | B104: 20,150.00 | J104: Предназачен для нарезки мясных и колбасных изделий, сыров. Диаметр лезвия 220 мм. Толщина нарезки 0.2-12 мм. Ширина нарезки 160 мм. Мощность 1.2 кВт. Напряжение 220 В. Габаритные размеры 520х420х380 мм. Вес 12.2 кг.
A105: Слайсер HBS-250A | B105: 22,800.00 | J105: Предназачен для нарезки мясных и колбасных изделий, сыров. Диаметр лезвия 250 мм. Толщина нарезки 0.2-12 мм. Ширина нарезки 180 мм. Мощность 1.2 кВт. Напряжение 220 В. Габаритные размеры 575х465х415 мм. Вес 15.5 кг.
A106: Слайсер HBS-300A | B106: 33,800.00 | J106: Предназачен для нарезки мясных и колбасных изделий, сыров. Диаметр лезвия 300 мм. Толщина нарезки 0.2-15 мм. Ширина нарезки 200 мм. Мощность 2.5 кВт. Напряжение 220 В. Габаритные размеры 540х310х550 мм. Вес 22.5 кг.
A107: Слайсер-нож для нарезки мяса ТТ-ЕК3 | B107: 8,895.00
A108: Соки
A109: Диспенсер для соков JDS-1S | B109: 7,415.00 | C109: 300х280х370 | D109: 4.00 | E109: 4.50 | F109: 0.03 | H109: =G109*E109 -> 0.00 | I109: =G109*F109 -> 0.00 | J109: Объем 7.5 л. Корпус из нержавеющей стали (зеркало). Резиновое основание. Съемный каплесборник и решётка. Двухходовой герметичный кран. Вес 4 кг.
A110: Диспенсер для соков JDS-2S | B110: 14,960.00 | C110: 560х360х590 | D110: 11.00 | E110: 12.00 | F110: 0.12 | H110: =G110*E110 -> 0.00 | I110: =G110*F110 -> 0.00 | J110: Объем 2 х 7.5 л. Корпус из нержавеющей стали (зеркало). Резиновое основание. Съемный каплесборник и решётка. Двухходовой герметичный кран. Вес 11 кг.
A111: Соковыжималка TT- J113 | B111: 20,290.00 | C111: 400х260х350 | D111: 7.00 | E111: 7.50 | F111: 0.04 | H111: =G111*E111 -> 0.00 | I111: =G111*F111 -> 0.00 | J111: Корпус из нержавеющей стали. Стакан для сока объёмом 1 л. Бункер для отходов объёмом 5 л. Широкая входная горловина. Переключатель скоростей. Защитный микровыключатель. Производительность 50-65 кг/час. Скорость 4300 об/мин. Мощность 0.18 кВт. Напряжение 220 В. Вес 7 кг.
A112: Соковыжималка для цитрусовых CJ4 | B112: 9,078.00 | C112: 350х250х390 | D112: 5 | E112: 5.5 | F112: =0.35*0.25*0.39 -> 0.034125 | H112: =G112*E112 -> 0 | I112: =G112*F112 -> 0 | J112: Мощный двигатель, высокая скорость, выход сока до 80%. Большое загрузочное отверстие, быстро выжимает сок, высокопроизводительная, динамическая балансировка, полностью отделяет сок от твердой массы. Две формы разного размера. Напряжение 220 В. Мощность 0,18 кВт. Выход 75-80%. Габаритные размеры 308*218*354. 0,18 кВт, вес 5 кг.
A113: Тележки сервировочные
A114: Тележка для сбора посуды ТТ-ВU100A | B114: 9,360.00 | C114: 930х530х155 | F114: 0.08 | H114: =G114*E114 -> 0.00 | I114: =G114*F114 -> 0.00 | J114: Тележка для сбора посуды из нержавеющей стали. 3 полки. Штампованный борт высотой 10 мм. 4 поворотных колеса, 2 из них с тормозом. Разборная. Габаритные размеры 950х500х950 мм.
A115: Тележка для сбора посуды ТТ-ВU104A | B115: 8,920.00 | C115: 980х530х145 | F115: 0.08 | H115: =G115*E115 -> 0.00 | I115: =G115*F115 -> 0.00 | J115: Тележка для сбора посуды из нержавеющей стали. 2 полки. Штампованный борт высотой 10 мм. Усиленные ограничители на полках. 4 поворотных колеса, 2 из них с тормозом. Разборная. Габаритные размеры 950х500х950 мм.
A116: Тележка для сбора посуды ТТ-ВU105A | B116: 10,150.00 | C116: 960х530х140 | F116: 0.07 | H116: =G116*E116 -> 0.00 | I116: =G116*F116 -> 0.00 | J116: Тележка для сбора посуды из нержавеющей стали. 2 глубокие полки (100 мм). 4 поворотных колеса, 2 из них с тормозом. Разборная. Габаритные размеры 950х500х950 мм.
A117: Тендерайзеры
A118: Тендерайзер универсальный TS737А | B118: 17,745.00 | C118: 410х365х265 | D118: 6.20 | E118: 7.00 | F118: 0.04 | H118: =G118*E118 -> 0.00 | I118: =G118*F118 -> 0.00 | J118: Разрыхляет мясо, придает ему ровную толщину, тем самым сокращая время приготовления. Корпус и ножи из нержавеющей стали. Работает как от ручного управления, так и от привода мясорубки. Ширина загрузочной горловины 175 мм. 37 пар ножей. Габаритные размеры 320х170х280 мм. Вес 6.2 кг.
A119: Тендерайзер электрический ETS720 | B119: 34,450.00 | C119: 465х320х490 | D119: 23.50 | E119: 25.00 | F119: 0.07 | H119: =G119*E119 -> 0.00 | I119: =G119*F119 -> 0.00 | J119: Разрыхляет мясо, придает ему ровную толщину, тем самым сокращая время приготовления. Корпус и ножи из нержавеющей стали. Электрический привод. Реверсивный переключатель. Ширина загрузочной горловины 175 мм. 20 пар ножей. Мощность 0.3 кВт. Напряжение 220 В. Габаритные размеры 495х220х410. Вес 23.5 кг.
A120: Тендерайзер электрический ETS737 | B120: 35,900.00 | C120: 410х365х265 | D120: 24.50 | E120: 26.00 | F120: 0.04 | H120: =G120*E120 -> 0.00 | I120: =G120*F120 -> 0.00 | J120: Разрыхляет мясо, придает ему ровную толщину, тем самым сокращая время приготовления. Корпус и ножи из нержавеющей стали. Электрический привод. Реверсивный переключатель. Ширина загрузочной горловины 175 мм. 37 пар ножей. Мощность 0.3 кВт. Напряжение 220 В. Габаритные размеры 495х220х410. Вес 24.5 кг.
A121: Тестомесы
A122: Тестомес HS20S | B122: 40,980.00 | C122: 800х500х950 | D122: 85.00 | E122: 95.00 | F122: 0.38 | H122: =G122*E122 -> 0.00 | I122: =G122*F122 -> 0.00 | J122: Ремённая передача. Защитная решетка. Несъёмная дежа объёмом 20 л. Максимальная загрузка сухого продукта 8 кг. Скорость спирали 112/198 об/мин. Скорость дежи 12/20 об/мин. Мощность 1.5 кВт. Напряжение 220 В. Габаритные размеры 730х390х900 мм. Вес 85 кг.
A123: Тестомес HS30S | B123: 50,150.00 | C123: 800х500х950 | D123: 90.00 | E123: 100.00 | F123: 0.38 | H123: 0.00 | I123: 0.00 | J123: Ремённая передача. Защитная решетка. Несъёмная дежа объёмом 35 л. Максимальная загрузка сухого продукта 12.5 кг. Скорость спирали 112/198 об/мин. Скорость дежи 12/20 об/мин. Мощность 1.5 кВт. Напряжение 220 В. Габаритные размеры 750х435х900 мм. Вес 90 кг.
A124: Тестомес HS40S | B124: 69,950.00 | C124: 900х500х1150 | D124: 140.00 | E124: 160.00 | F124: 0.52 | H124: 0.00 | I124: 0.00 | J124: Ремённая передача. Защитная решетка. Несъёмная дежа объёмом 40 л. Максимальная загрузка сухого продукта 16 кг. Скорость спирали 112/198 об/мин. Скорость дежи 12/20 об/мин. Мощность 3 кВт. Напряжение 220/380 В. Габаритные размеры 840х480х1000 мм. Вес 140 кг.
A125: Тестомес HS50S | B125: 92,891.00 | C125: 1080х630х1260 | D125: 150.00 | E125: 170.00 | F125: 0.86 | H125: 0.00 | I125: 0.00 | J125: Ремённая передача. Защитная решетка. Несъёмная дежа объёмом 54 л. Максимальная загрузка сухого продукта 20 кг. Скорость спирали 112/198 об/мин. Скорость дежи 12/20 об/мин. Мощность 3 кВт. Напряжение 220/380 В. Габаритные размеры 840х480х1000 мм. Вес 150 кг.
A126: Тестомес HS80S | B126: 225,260.00 | C126: 1080х850х1570 | D126: 350.00 | E126: 390.00 | F126: 1.44 | H126: 0.00 | I126: 0.00 | J126: Ремённая передача. Защитная решетка. Несъёмная дежа объёмом 80 л. Максимальная загрузка сухого продукта 32 кг. Скорость спирали 100/200 об/мин. Скорость дежи 12 об/мин. Мощность 2.4 кВт. Напряжение 380 В. Габаритные размеры 1000х560х1380 мм. Вес 350 кг.
A127: Тестомес HTD20 | B127: 71,450.00 | C127: 860х460х840 | D127: 124.00 | E127: 145.00 | F127: 0.33 | H127: 0.00 | I127: 0.00 | J127: Цепная передача. Подъемная крышка. Съемная дежа объемом 20 л. Предохранительное реле решётки. Аварийный выключатель. Таймер. Скорость дежи 16 об/мин. Скорость спирали 156 об/мин. Загрузка сухого продукта 8 кг. Мощность 1.5 кВт. Напряжение 220 В. Габаритные размеры 865х460х855 мм Вес 124 кг.
A128: Тестомес HTD20B | B128: 72,980.00 | C128: 860х460х841 | D128: 124.00 | E128: 145.00 | F128: 0.33 | H128: 0.00 | I128: 0.00 | J128: Цепная передача. Подъемная крышка. Съемная дежа объемом 20 л. Предохранительное реле решётки. Аварийный выключатель. Таймер. Скорость дежи 16/11 об/мин. Скорость спирали 156/103 об/мин. Загрузка сухого продукта 8 кг. Мощность 1.5 / 1.1 кВт. Напряжение 380 В. Габаритные размеры 865х460х855 мм. Вес 124 кг.
A129: Тестомес HTD30 | B129: 76,808.00 | C129: 900х480х950 | D129: 130.00 | E129: 156.50 | F129: 0.41 | H129: 0.00 | I129: 0.00 | J129: Цепная передача. Подъемная крышка. Съемная дежа объемом 30 л. Предохранительное реле решётки. Аварийный выключатель. Таймер. Скорость дежи 16 об/мин. Скорость спирали 156 об/мин. Загрузка сухого продукта 12 кг. Мощность 1.5 кВт. Напряжение 220 В. Габаритные размеры 890х480х915 мм Вес 130 кг.
A130: Тестомес HTD30B | B130: 81,620.00 | C130: 900х480х951 | D130: 130.00 | E130: 156.50 | F130: 0.41 | H130: 0.00 | I130: 0.00 | J130: Цепная передача. Подъемная крышка. Съемная дежа объемом 30 л. Предохранительное реле решётки. Аварийный выключатель. Таймер. Скорость дежи 16/11 об/мин. Скорость спирали 156/103 об/мин. Загрузка сухого продукта 12 кг. Мощность 1.5 / 1.1 кВт. Напряжение 380 В. Габаритные размеры 890х480х915 мм. Вес 130 кг.
A131: Тестомес HTD40 | B131: 102,980.00 | C131: 950х550х1050 | D131: 177.00 | E131: 201.00 | F131: 0.55 | H131: 0.00 | I131: 0.00 | J131: Цепная передача. Подъемная крышка. Съемная дежа объемом 40 л. Предохранительное реле решётки. Аварийный выключатель. Таймер. Скорость дежи 16 об/мин. Скорость спирали 156 об/мин. Загрузка сухого продукта 16 кг. Мощность 2.2 кВт. Напряжение 220 В. Габаритные размеры 935х585х1030 мм Вес 177 кг.
A132: Тестомес HTD40B | B132: 104,600.00 | C132: 950*550*1060 | D132: 177.00 | E132: 201.00 | F132: 0.55 | H132: 0.00 | I132: 0.00 | J132: Цепная передача. Подъемная крышка. Съемная дежа объемом 40 л. Предохранительное реле решётки. Аварийный выключатель. Таймер. Скорость дежи 16/11 об/мин. Скорость спирали 156/103 об/мин. Загрузка сухого продукта 16 кг. Мощность 2.2 / 1.5 кВт. Напряжение 380 В. Габаритные размеры 935х585х1030 мм. Вес 177 кг.
A133: Тестомес ТТ-D25D | B133: 45,980.00 | C133: 870х690х820 | D133: 85.00 | E133: 95.00 | F133: 0.49 | H133: 0.00 | I133: 0.00 | J133: Односкоростной. Все элементы, контактирующие с пищевыми продуктами, выполнены из нержавеющей стали. Подходит для всех видов теста. Z-образная спираль. Объем дежи 50 л. Загрузка теста 25 кг. Скорость спирали 42 об/мин. Мощность 1.5 кВт. Напряжение 220 В. Габаритные размеры 800х580х740. Вес 85 кг.
A134: Тестомес ТТ-D50D | B134: 81,580.00 | C134: 1020х770х1040 | D134: 118.00 | E134: 130.00 | F134: 0.82 | H134: 0.00 | I134: 0.00 | J134: Односкоростной. Все элементы, контактирующие с пищевыми продуктами, выполнены из нержавеющей стали. Подходит для всех видов теста. Z-образная спираль. Объем дежи 100 л. Загрузка теста 50 кг. Скорость спирали 42 об/мин. Мощность 2.2 кВт. Напряжение 220/380 В. Габаритные размеры 920х640х920. Вес 118 кг.
A135: Тестомес HS50B | B135: 101,150.00 | C135: 1170х640х1380 | D135: 230.00 | E135: 250.00 | F135: 1.03 | H135: 0.00 | I135: 0.00 | J135: Двойная ремённая передача. Сверхмощный. Высокие эксплуатационные характеристики. Защитная решетка. Несъёмная дежа объёмом 66 л. Максимальная загрузка 39,6 кг. Скорость спирали 285/138 об/мин. Скорость дежи 21 об/мин. Мощность 1.5 кВт. Напряжение 220 В. Габаритные размеры 930х490х1120 мм. Вес 230 кг.
A136: Тестораскаточная (тестоформовочная) машина YP350 | B136: 30,403.00 | C136: 600х700х1000 | D136: 134 | E136: 150 | F136: =0.6*0.7*1 -> 0.42 | H136: =G136*E136 -> 0 | I136: =G136*F136 -> 0 | J136: Используется для раскатки рассыпчатого, вязкого и тугого теста. Напряжение 380 В, мощность 2кВт, размеры валиков Ф118*350, регулируемый зазор валиков 0-25 мм, скороситьм оборотов валиков 76 об/мин, обычный V-образный ремень: A1219, двигатель 1,5 кВт. габариитный размеры 580х400х860. Вес 134 кг.
A137: Фаршемесы
A138: Фаршемес ручной FMM03 | B138: 13,870.00 | C138: 350х420х320 | D138: 5.60 | E138: 6.50 | F138: 0.05 | H138: =G138*E138 -> 0.00 | I138: =G138*F138 -> 0.00 | J138: Предназначен для перемешивания различных начинок. Корпус из нержавеющей стали. Ручное управление. Специальный месильный орган обеспечивает равномерное перемешивание. Объем 10л. Вес продукта 9 кг. Габаритные размеры 380х230х340 мм. Вес 6.5 кг.
A139: Фаршемес BX35A | B139: 109,690.00 | C139: 800х580х1140 | D139: 136.00 | E139: 166.00 | F139: 0.53 | H139: =G139*E139 -> 0.00 | I139: =G139*F139 -> 0.00 | J139: Предназначен для перемешивания различных начинок.Корпус из нерж.стали.Электромеханическое управление.Специальный месильный орган обеспечивает равномерное перемешивание.Объем 35л. Мощность 0.75 кВт. Напряжение 220 В. Габаритные размеры 720х510х1050 мм. Вес 130 кг.
A140: Фаршемес BX50A | B140: 125,860.00 | C140: 860х560х1200 | D140: 151.00 | E140: 186.50 | F140: 0.58 | H140: =G140*E140 -> 0.00 | I140: =G140*F140 -> 0.00 | J140: Предназначен для перемешивания различных начинок.Корпус из нерж.стали.Электромеханическое управление.Специальный месильный орган обеспечивает равномерное перемешивание.Объем 50 л. Мощность 1.1 кВт. Напряжение 220 В. Габаритные размеры 820х510х1100 мм. Вес 138 кг.
A141: Фаршемес BX70A | B141: 156,200.00 | C141: 950х590х1180 | D141: 178.00 | E141: 210.00 | F141: 0.66 | H141: =G141*E141 -> 0.00 | I141: =G141*F141 -> 0.00 | J141: Предназначен для перемешивания различных начинок. Корпус из нерж.стали. Электромеханическое управление. Специальный месильный орган обеспечивает равномерное перемешивание. Объем 70 л. Мощность 1.5 кВт. Напряжени 220 В. Габаритные размеры 850х500х1100. Вес 203 кг.
A142: Фаршемес BX100A | B142: 190,220.00 | C142: 1110х680х1190 | D142: 223.00 | E142: 263.50 | F142: 0.90 | H142: =G142*E142 -> 0.00 | I142: =G142*F142 -> 0.00 | J142: Предназначен для перемешивания различных начинок.Корпус из нерж.стали.Электромеханическое управление.Специальный месильный орган обеспечивает равномерное перемешивание.Объем 100 л. Мощность 1.5 кВт. Напряжение 220 В. Габаритные размеры 1010х556х1140 мм. Вес 225 кг.
A143: Фритюрницы
A144: Фритюрница TEF- 4L | B144: 5,060.00 | C144: 415х280х345 | D144: 5.00 | E144: 6.10 | F144: 0.04 | H144: =G144*E144 -> 0.00 | I144: =G144*F144 -> 0.00 | J144: Корпус из нержавеющей стали. Хромированная корзина. Термостат и индикатор нагрева. Рабочие температуры от 60 до 190°C. Защита от перегрева. Объем масла 4 л. Размер емкости 185х270х175 мм. Мощность 2 кВт. Напряжение 220 В. Габаритные размеры 217х400х320 мм. Вес 5.5 кг.
A145: Фритюрница TEF- 4L-2 | B145: 10,250.00 | C145: 470х425х345 | D145: 10.00 | E145: 11.00 | F145: 0.07 | H145: 0.00 | I145: 0.00 | J145: Корпус из нержавеющей стали. Хромированная корзина. Термостат и индикатор нагрева. Рабочие температуры от 60 до 190°C.Защита от перегрева. Объем масла 2х4 л. Размер емкости 185х270х175 мм. Мощность 2х2 кВт. Напряжение 220 В. Габаритные размеры 435х400х320 мм. Вес 10.2 кг.
A146: Фритюрница TEF- 6L | B146: 5,250.00 | C146: 450х300х310 | D146: 5.60 | E146: 6.80 | F146: 0.04 | H146: 0.00 | I146: 0.00 | J146: Корпус из нержавеющей стали. Хромированная корзина. Термостат и индикатор нагрева. Рабочие температуры от 60 до 190°C. Защита от перегрева. Объем масла 6 л. Размер емкости 240х300х150 мм. Мощность 2.5 кВт. Напряжение 220 В. Габаритные размеры 425х265х285 мм. Вес 6 кг.
A147: Фритюрница TEF- 6L-2 | B147: 10,520.00 | C147: 570х450х310 | D147: 10.70 | E147: 12.00 | F147: 0.08 | H147: 0.00 | I147: 0.00 | J147: Корпус из нержавеющей стали. Хромированная корзина. Термостат и индикатор нагрева. Рабочие температуры от 60 до 190°C. Защита от перегрева. Объем масла 2х6 л. Размер емкости 240х300х150 мм. Мощность 2х2.5 кВт. Напряжение 220 В. Габаритные размеры 545х425х285 мм. Вес 11.1 кг.
A148: Фритюрница TEF- 8L | B148: 6,250.00 | C148: 450х300х380 | D148: 8.00 | E148: 9.00 | F148: 0.05 | H148: 0.00 | I148: 0.00 | J148: Корпус из нержавеющей стали. Хромированная корзина. Термостат и индикатор нагрева. Рабочие температуры от 60 до 190°C. Защита от перегрева. Объем масла 8 л. Размер емкости 240х300х200 мм. Мощность 3.25 кВт. Напряжение 220 В. Габаритные размеры 265х430х345 мм. Вес 7.2 кг.
A149: Фритюрница TEF- 8L-2 | B149: 12,300.00 | C149: 570х450х380 | D149: 12.00 | E149: 14.00 | F149: 0.10 | H149: 0.00 | I149: 0.00 | J149: Корпус из нержавеющей стали. Хромированная корзина. Термостат и индикатор нагрева. Рабочие температуры от 60 до 190°C. Защита от перегрева. Объем масла 2х8 л. Размер емкости 240х300х150 мм. Мощность 2х3.25 кВт. Напряжение 220 В. Габаритные размеры 550х430х345 мм. Вес 13.1 кг.
A150: Фритюрница TТ- WE 1254 (10L) | B150: 12,450.00 | C150: 600х400х520 | D150: 7.50 | E150: 8.50 | F150: 0.12 | H150: 0.00 | I150: 0.00 | J150: Корпус из нержавеющей стали. Хромированная корзина. Термостат и индикатор нагрева. Рабочие температуры от 60 до 240°C. Защита от перегрева. Объем масла 10 л. Мощность 4 кВт. Напряжение 220 В. Габаритные размеры 280х460х325 мм. Вес 7.5 кг.
A151: Фритюрница TТ- WE 1254 (10-2L) | B151: 20,676.00 | C151: 840х400х520 | D151: 11.00 | E151: 13.00 | F151: 0.17 | H151: 0.00 | I151: 0.00 | J151: Корпус из нержавеющей стали. Хромированная корзина. Термостат и индикатор нагрева. Рабочие температуры от 60 до 240°C. Защита от перегрева. Объем масла 2х10 л. Мощность 2х4 кВт. Напряжение 220 В. Габаритные размеры 570х460х325 мм. Вес 11 кг.
A152: Фритюрница TEF-12L | B152: 14,935.00 | C152: 600х400х600 | D152: 7.00 | E152: 8.00 | F152: 0.14 | H152: 0.00 | I152: 0.00 | J152: Корпус из нержавеющей стали. Хромированная корзина. Термостат и индикатор нагрева. Рабочие температуры от 60 до 240°C. Защита от перегрева. Объем масла 8 л. Кран для слива масла. Мощность 3.25 кВт. Напряжение 220 В. Габаритные размеры 290х525х425 мм. Вес 10 кг.
A153: Фритюрница TEF-12L-2 | B153: 27,494.00 | C153: 840х400х600 | D153: 7.50 | E153: 8.50 | F153: 0.20 | H153: 0.00 | I153: 0.00 | J153: Корпус из нержавеющей стали. Хромированная корзина. Термостат и индикатор нагрева. Рабочие температуры от 60 до 240°C. Защита от перегрева. Объем масла 2х8 л. Кран для слива масла. Мощность 2х3.25 кВт. Напряжение 220 В. Габаритные размеры 580х525х425 мм. Вес 18.6 кг.
A154: Хлеборезки
A155: Хлеборезка ТТ D7C | B155: 76,895.00 | C155: 780х670х830 | D155: 68.00 | E155: 87.00 | F155: 0.43 | H155: =G155*E155 -> 0.00 | I155: =G155*F155 -> 0.00 | J155: Производительность 240 батонов/час. Нарезка 31 ломтик. Максимальный размер батона 375х150 мм. Толщина нарезки 12 мм. Блок ножей 385 мм. Мощность 0.2 кВт. Напряжение 220 В. Габаритные размеры 630х630х685 мм. Вес 70 кг.
A156: Шприцы колбасные
A157: Климпер ручной для обвязки мяса HP001 | B157: 35,890.00 | C157: 180х370х700 | D157: 16.00 | E157: 17.00 | F157: 0.05 | H157: =G157*E157 -> 0.00 | I157: =G157*F157 -> 0.00 | J157: Конструкция выполнена из нержавеющей стали. Быстрая обвязка колбас. Вес 18 кг.
A158: Насадка для колбасного шприца "Гамбургер пресс" | B158: 3,956.00 | C158: 270х270х260 | D158: 2.00 | E158: 2.50 | F158: 0.02 | H158: 0.00 | I158: 0.00 | J158: Предназначены для изготовления начинки для гамбургеров диаметром 100мм. Изготовление начинки происходит со скоростью подачи фарша из мясорубки или шприца, до 20 штук в минуту. Пластиковый и акриловый пресс образует начинку толщиной 19мм, весом 150г под давлением подачи фарша, готовые формы извлекаются путем передвижения лотка. Гигиенически чистый способ изготовления. Совместимы с мясорубками TC-8, TC-12 и со всеми колбасными шприцами вертикального типа.
A159: Шприц колбасный CV-3 | B159: 8,950.00 | C159: 560*330*250 | D159: 8.00 | E159: 9.00 | F159: 0.05 | H159: 0.00 | I159: 0.00 | J159: Корпус из окрашеной стали. Четыре насадки из пластика (Æ10, Æ20, Æ30, Æ40мм). Размер цилиндра Æ140х200 мм. Объем 3л. Габаритные размеры 300х220х530 мм. Вес 8 кг.
A160: Шприц колбасный СV-5 | B160: 9,800.00 | C160: 680*320*290 | D160: 9.50 | E160: 10.60 | F160: 0.06 | H160: 0.00 | I160: 0.00 | J160: Корпус из окрашеной стали. Четыре насадки из пластика (Æ10, Æ20, Æ30, Æ40мм). Размер цилиндра Æ140х320 мм. Объем 5л. Габаритные размеры 300х260х650 мм. Вес 9.5 кг.
A161: Шприц колбасный СV-7 | B161: 11,950.00 | C161: 830*320*330 | D161: 13.00 | E161: 10.00 | F161: 0.09 | H161: 0.00 | I161: 0.00 | J161: Корпус из окрашеной стали. Четыре насадки из пластика (Æ10, Æ20, Æ30, Æ40мм). Размер цилиндра Æ140х460 мм. Объем 7л. Габаритные размеры 300х300х780 мм. Вес 13 кг.
A162: Шприц колбасный СV-10 | B162: 13,450.00 | C162: 330*360*610 | D162: 14.00 | E162: 16.00 | F162: 0.07 | H162: 0.00 | I162: 0.00 | J162: Корпус из окрашеной стали. Четыре насадки из пластика (Æ10, Æ20, Æ30, Æ40мм). Размер цилиндра Æ290х270 мм. Объем 10л. Габаритные размеры 300х330х580 мм. Вес 14 кг.
A163: Шприц колбасный SV-3 | B163: 8,250.00 | C163: 560х330х250 | D163: 9.00 | E163: 10.00 | F163: 0.05 | H163: 0.00 | I163: 0.00 | J163: Полностью из нержавеющей стали. Четыре насадки из нержавеющей стали (Æ16, Æ22, Æ32, Æ32мм). Размер цилиндра Æ140х200 мм. Объем 53. Габаритные размеры 300х220х530 мм. Вес 9 кг.
A164: Шприц колбасный SV-5 | B164: 10,250.00 | C164: 680х320х290 | D164: 10.60 | E164: 11.50 | F164: 0.06 | H164: 0.00 | I164: 0.00 | J164: Полностью из нержавеющей стали. Четыре насадки из нержавеющей стали (Æ16, Æ22, Æ32, Æ32мм). Размер цилиндра Æ140х320 мм. Объем 5л. Габаритные размеры 300х260х650 мм. Вес 10.6 кг.
A165: Шприц колбасный SV-7 | B165: 10,960.00 | C165: 830х320х330 | D165: 12.50 | E165: 13.50 | F165: 0.09 | H165: 0.00 | I165: 0.00 | J165: Полностью из нержавеющей стали. Четыре насадки из нержавеющей стали (Æ16, Æ22, Æ32, Æ32мм). Размер цилиндра Æ140х460мл. Объем 7л. Габаритные размеры 300х300х780 мм. Вес 12.5 кг.
A166: Шприц колбасный SV-10 | B166: 16,200.00 | C166: 330*360*610 | D166: 14.00 | E166: 16.00 | F166: 0.07 | H166: 0.00 | I166: 0.00 | J166: Полностью из нержавеющей стали стали. Четыре насадки из нержавеющей стали (Æ16, Æ22, Æ32, Æ32мм). Размер цилиндра Æ290х270 мм. Объем 10л. Габаритные размеры 300х330х580 мм. Вес 14 кг.
A167: Шприц колбасный СН-3 | B167: 8,100.00 | C167: 450х270х270 | D167: 8.00 | E167: 9.00 | F167: 0.03 | H167: 0.00 | I167: 0.00 | J167: Корпус из окрашеной стали. Четыре насадки из пластика (Æ10, Æ20, Æ30, Æ40мм). Размер цилиндра Æ140х200 мм. Объем 3л. Габаритные размеры 450х185х210 мм. Вес 8 кг.
A168: Шприц колбасный СН-5 | B168: 9,650.00 | C168: 580х270х270 | D168: 9.50 | E168: 10.00 | F168: 0.04 | H168: 0.00 | I168: 0.00 | J168: Корпус из окрашеной стали. Четыре насадки из пластика (Æ10, Æ20, Æ30, Æ40мм). Размер цилиндра Æ140х320 мм. Объем 5л. Габаритные размеры 550х185х210 мм. Вес 9.5 кг.
A169: Шприц колбасный SН-3 | B169: 8,250.00 | C169: 450х270х270 | D169: 9.00 | E169: 9.00 | F169: 0.03 | H169: 0.00 | I169: 0.00 | J169: Полностью из нержавеющей стали. Четыре насадки из нержавеющей стали (Æ16, Æ22, Æ32, Æ32мм). Размер цилиндра Æ140х200 мм. Объем 53. Габаритные размеры 450х185х210 мм. Вес 9 кг.
A170: Шприц колбасный SН-5 | B170: 9,550.00 | C170: 580х270х270 | D170: 10.60 | E170: 10.00 | F170: 0.04 | H170: 0.00 | I170: 0.00 | J170: Полностью из нержавеющей стали. Четыре насадки из нержавеющей стали (Æ16, Æ22, Æ32, Æ32мм). Размер цилиндра Æ140х320 мм. Объем 5л. Габаритные размеры 550х185х210 мм. Вес 10.6 кг.
A171: Шприц колбасный SН-7 | B171: 13,500.00 | C171: 730х270х270 | D171: 13.00 | E171: 13.50 | F171: 0.05 | H171: 0.00 | I171: 0.00 | J171: Полностью из нержавеющей стали. Четыре насадки из нержавеющей стали (Æ16, Æ22, Æ32, Æ32мм). Размер цилиндра Æ140х460мл. Объем 7л. Габаритные размеры 690х185х210 мм. Вес 13 кг.
A172: Шприц колбасный гидравлический SF-150 | B172: 127,420.00 | C172: 530х410х1380 | D172: 113.00 | E172: 130.00 | F172: 0.30 | H172: 0.00 | I172: 0.00 | J172: Конструкция из нержавеющей стали. Насадка из нержавеющей стали. Производительность 280 кг/час. Диаметр цилиндра 150 мм. Вес продукта 10 кг. Мощность 0.55 кВт. Напряжение 220 В. Габаритные размеры 600х400х1240 мм. Вес 113 кг
A173: Шприц колбасный гидравлический SF-260 | B173: 155,160.00 | C173: 640х520х1380 | D173: 158.00 | E173: 179.00 | F173: 0.46 | H173: 0.00 | I173: 0.00 | J173: Конструкция из нержавеющей стали. Насадка из нержавеющей стали. Производительность 400 кг/час. Диаметр цилиндра 260 мм. Вес продукта 17кг. Мощность 0.75 кВт. Напряжение 220 В. Габаритные размеры 640х485х1240 мм. Вес 158 кг
A174: Шприц колбасный гидравлический SF-350 | B174: 189,911.00 | C174: 770х620х1380 | D174: 163.00 | E174: 188.00 | F174: 0.66 | H174: 0.00 | I174: 0.00 | J174: Конструкция из нержавеющей стали. Насадка из нержавеющей стали. Производительность 520 кг/час. Диаметр цилиндра 350 мм. Вес продукта 25 кг. Мощность 0.75 кВт. Напряжение 220 В. Габаритные размеры 735х560х1240 мм. Вес 163 кг.
A175: Упаковочное оборудование
A176: Вакуум-упаковочная машина DZQ-400/2E (Aeration) | B176: 71,260.00 | C176: 660х600х560 | D176: 120.00 | E176: 140.00 | F176: 0.22 | H176: =G176*E176 -> 0.00 | I176: =G176*F176 -> 0.00 | J176: Поностью из нержавеющей стали. Аерация. Русифицированная панель управления. Сварочная планка 400х10 мм. Производительность 20 м³/час. Размеры камеры 440х335х75. Время цикла 10-25 сек. Мощность 0.8 кВт. Напряжение 220 В. Габаритные размеры 560х500х1050 мм. Вес 120 кг.
A177: Вакуум-упаковочная машина DZQ-500/2E (Aeration) | B177: 82,300.00 | C177: 730х720х1150 | D177: 125.00 | E177: 160.00 | F177: 0.60 | H177: 0.00 | I177: 0.00 | J177: Поностью из нержавеющей стали. Аерация. Русифицированная панель управления. Сварочная планка 500х10мм. Прооизводительность 20 м³/час. Размеры камеры 365х525х100. Время цикла 10-25 сек. Мощность 0.8 кВт. Напряжение 220 В. Габаритные размеры 630х620х1050 мм. Вес 125 кг.
A178: Вакуум-упаковочная машина DZQ-600/2E (Aeration) | B178: 120,220.00 | C178: 780х680х1060 | D178: 140.00 | E178: 170.00 | F178: 0.56 | H178: 0.00 | I178: 0.00 | J178: Поностью из нержавеющей стали. Аерация. Русифицированная панель управления. Сварочная планка 600х10мм. Прооизводительность 40 м³/час. Размеры камеры 625х625х100. Время цикла 10-35 сек. Мощность 1.5 кВт. Напряжение 220 В. Габаритные размеры 680х580х960 мм. Вес 140 кг.
A179: Вакуум-упаковочная машина DZQ-400/2SB (Aeration) | B179: 120,960.00 | C179: 1100х640х1020 | D179: 200.00 | E179: 230.00 | F179: 0.72 | H179: 0.00 | I179: 0.00 | J179: Поностью из нержавеющей стали. Аерация. Русифицированная панель управления. Сварочная планка 400х10 мм. Прооизводительность 20 м³/час. Размеры камеры 450х440х100. Время цикла 10-40 сек. Мощность 1.5 кВт. Напряжение 380 В. Габаритные размеры 1000х540х920 мм. Вес 200 кг.
A180: Вакуум-упаковочная машина DZQ-500/2SB (Aeration) | B180: 165,350.00 | C180: 1150х850х1050 | D180: 240.00 | E180: 280.00 | F180: 1.03 | H180: 0.00 | I180: 0.00 | J180: Поностью из нержавеющей стали. Аерация. Русифицированная панель управления. Сварочная планка 500х10 мм. Прооизводительность 40 м³/час. Размеры камеры 540х410х100. Время цикла 10-40 сек. Мощность 1.5 кВт. Напряжение 380 В. Габаритные размеры 1250х750х950 мм. Вес 240 кг.
A181: Вакуум-упаковочная машина DZQ-600/2SB (Aeration) | B181: 212,350.00 | C181: 1550х1080х1100 | D181: 380.00 | E181: 400.00 | F181: 1.84 | H181: 0.00 | I181: 0.00 | J181: Поностью из нержавеющей стали. Аерация. Русифицированная панель управления. Сварочная планка 600х10 мм. Прооизводительность 40 м³/час. Размеры камеры 540х670х50. Время цикла 10-40 сек. Мощность 1.5 кВт. Напряжение 380 В. Габаритные размеры 1160х820х1015 мм. Вес 380 кг.
A182: Вакуум-упаковочная машина напольная DZ-400/2E | B182: 59,170.00 | C182: 660х600х560 | D182: 120.00 | E182: 140.00 | F182: 0.22 | H182: 0.00 | I182: 0.00 | J182: Поностью из нержавеющей стали. Русифицированная панель управления. Сварочная планка 400х10 мм. Производительность 20 м³/час. Размеры камеры 440х335х75. Время цикла 10-25 сек. Мощность 0.8 кВт. Напряжение 220 В. Габаритные размеры 560х500х1050 мм. Вес 120 кг.
A183: Вакуум-упаковочная машина напольная DZ-500/2Е | B183: 63,600.00 | C183: 730х720х1150 | D183: 125.00 | E183: 160.00 | F183: 0.60 | H183: 0.00 | I183: 0.00 | J183: Поностью из нержавеющей стали. Русифицированная панель управления. Сварочная планка 500х10мм. Прооизводительность 20 м³/час. Размеры камеры 365х525х100. Время цикла 10-25 сек. Мощность 0.8 кВт. Напряжение 220 В. Габаритные размеры 630х620х1050 мм. Вес 125 кг.
A184: Вакуум-упаковочная машина напольная DZ-600/2E | B184: 102,150.00 | C184: 780х680х1060 | D184: 140.00 | E184: 170.00 | F184: 0.56 | H184: 0.00 | I184: 0.00 | J184: Поностью из нержавеющей стали. Русифицированная панель управления. Сварочная планка 600х10мм. Прооизводительность 40 м³/час. Размеры камеры 625х625х100. Время цикла 10-35 сек. Мощность 1.5 кВт. Напряжение 220 В. Габаритные размеры 680х580х960 мм. Вес 140 кг.
A185: Вакуум-упаковочная машина двухкамерная DZ-400/2SB | B185: 89,450.00 | C185: 1100х640х1020 | D185: 200.00 | E185: 230.00 | F185: 0.72 | H185: 0.00 | I185: 0.00 | J185: Поностью из нержавеющей стали. Русифицированная панель управления. Сварочная планка 400х10 мм. Прооизводительность 20 м³/час. Размеры камеры 450х440х100. Время цикла 10-40 сек. Мощность 1.5 кВт. Напряжение 380 В. Габаритные размеры 1000х540х920 мм. Вес 200 кг.
A186: Вакуум-упаковочная машина двухкамерная DZ-500/2SB | B186: 137,780.00 | C186: 1150х850х1050 | D186: 240.00 | E186: 280.00 | F186: 1.03 | H186: 0.00 | I186: 0.00 | J186: Поностью из нержавеющей стали. Русифицированная панель управления. Сварочная планка 500х10 мм. Прооизводительность 40 м³/час. Размеры камеры 540х410х100. Время цикла 10-40 сек. Мощность 1.5 кВт. Напряжение 380 В. Габаритные размеры 1250х750х950 мм. Вес 240 кг.
A187: Вакуум-упаковочная машина двухкамерная DZ-600/2SB | B187: 165,980.00 | C187: 1550х1080х1100 | D187: 380.00 | E187: 400.00 | F187: 1.84 | H187: 0.00 | I187: 0.00 | J187: Поностью из нержавеющей стали. Русифицированная панель управления. Сварочная планка 600х10 мм. Прооизводительность 40 м³/час. Размеры камеры 540х670х50. Время цикла 10-40 сек. Мощность 1.5 кВт. Напряжение 380 В. Габаритные размеры 1160х820х1015 мм. Вес 380 кг.
A188: Вакуум-упаковочная машина настольная DZ-260/PD | B188: 42,600.00 | C188: 580х430х420 | D188: 35.00 | E188: 40.00 | F188: 0.10 | H188: 0.00 | I188: 0.00 | J188: Поностью из нерж.стали. Русифицированная панель управления. Сварочная планка одна- 260*8мм. Прооизводительность 10 м³/час. Размеры камеры 385х280х50. Время цикла 10-20 сек. Мощность 0.8 кВт. Напряжение 220 В. Габаритные размеры 480х330х320 мм. Вес 35 кг.
A189: Вакуум-упаковочная машина настольная DZ-280/A | B189: 4,390.00 | C189: 280х180х100 | D189: 2.40 | E189: 6.20 | F189: 0.01 | H189: 0.00 | I189: 0.00 | J189: Безкамерный упаковщик. Длина уплотнения 40-280 мм. Вакуум 0.35 Мпа. Напряжение 220 В. Габаритный размер 350х140х70 мм. Вес 2.4 кг
A190: Вакуум-упаковочная машина настольная DZ-400/2F | B190: 52,680.00 | C190: 660х600х550 | D190: 80.00 | E190: 100.00 | F190: 0.22 | H190: 0.00 | I190: 0.00 | J190: Полностью из нержавеющей стали. Русифицированная панель управления. Сварочная планка 400х10мм. Прооизводительность 20 м³/час. Размеры камеры 380х480х75 мм. Время цикла 15-30 сек. Габаритные размеры 560х500х460 мм. Мощность 0.8 кВт. Напряжение 220 В. Вес.80 кг.
A191: Горячий стол упаковщик HW-450Е | B191: 5,306.00 | C191: 520х350х170 | D191: 5.60 | E191: 6.00 | F191: 0.03 | H191: 0.00 | I191: 0.00 | J191: Корпус - нержавеющая сталь. Максимальная ширина пленки 450 мм. Габаритные размеры 620х540х140 мм. Мощность 0.23 кВт. Напряжение 220 В. Вес 5.6 кг.
A192: Запайщик FS-200 ABS | B192: 740.00 | C192: 370х180х100 | D192: 1.50 | E192: 1.60 | F192: 0.01 | H192: 0.00 | I192: 0.00 | J192: Пластиковый корпус. Длина запайки 200 мм. Ширина шва 2 мм. Мощность 0.3 кВт. Напряжение 220 В. Габаритные размеры 320х80х150 мм. Вес 1.5 кг.
A193: Запайщик FS-300 ABS | B193: 1,070.00 | C193: 470х180х100 | D193: 2.50 | E193: 2.60 | F193: 0.01 | H193: 0.00 | I193: 0.00 | J193: Пластиковый корпус. Длина запайки 300 мм. Ширина шва 2 мм. Мощность 0.4 кВт. Напряжение 220 В. Габаритные размеры 450х85х255 мм. Вес 2.5 кг.
A194: Запайщик FS-400 ABS | B194: 1,450.00 | C194: 570х180х100 | D194: 2.90 | E194: 3.00 | F194: 0.01 | H194: 0.00 | I194: 0.00 | J194: Пластиковый корпус. Длина запайки 400 мм. Ширина шва 2 мм. Мощность 0.6 кВт. Напряжение 220 В. Габаритные размеры 450х85х280 мм. Вес 2.9 кг.
A195: Запайщик FS-200 IRON | B195: 1,050.00 | C195: 370х180х100 | D195: 2.00 | E195: 2.10 | F195: 0.01 | H195: 0.00 | I195: 0.00 | J195: Металлический корпус. Длина запайки 200 мм. Ширина шва 2 мм. Мощность 0.3 кВт. Напряжение 220 В. Габаритные размеры 320х80х150 мм. Вес 2 кг.
A196: Запайщик FS-300 IRON | B196: 1,928.00 | C196: 470х180х100 | D196: 3.00 | E196: 3.10 | F196: 0.01 | H196: 0.00 | I196: 0.00 | J196: Металлический корпус. Длина запайки 300 мм. Ширина шва 2 мм. Мощность 0.4 кВт. Напряжение 220 В. Габаритные размеры 450х85х255 мм. Вес 3 кг.
A197: Запайщик FS-400 IRON | B197: 2,260.00 | C197: 570х180х100 | D197: 4.50 | E197: 4.60 | F197: 0.01 | H197: 0.00 | I197: 0.00 | J197: Металлический корпус. Длина запайки 400 мм. Ширина шва 2 мм. Мощность 0.6 кВт. Напряжение 220 В. Габаритные размеры 450х85х280 мм. Вес 4.5 кг.
A198: Запайщик FS- 500 IRON | B198: 6,538.00 | C198: 670х180х100 | D198: 6.60 | E198: 7.00 | F198: 0.01 | H198: 0.00 | I198: 0.00 | J198: Металлический корпус. Длина запайки 500 мм. Ширина шва 2 мм. Мощность 0.8 кВт. Напряжение 220 В. Габаритные размеры 650х85х180 мм. Вес 6.6 кг.
A199: Запайщик FS- 200C | B199: 2,050.00 | C199: 370х180х100 | D199: 2.60 | E199: 2.70 | F199: 0.01 | H199: 0.00 | I199: 0.00 | J199: Металлический корпус. Нож. Длина запайки 200 мм. Ширина шва 2 мм. Мощность 0.3 кВт. Напряжение 220 В. Габаритные размеры 320х80х150 мм. Вес 2.6 кг.
A200: Запайщик FS- 300C | B200: 2,780.00 | C200: 470х180х100 | D200: 3.80 | E200: 3.90 | F200: 0.01 | H200: 0.00 | I200: 0.00 | J200: Металлический корпус. Нож. Длина запайки 300 мм. Ширина шва 2 мм. Мощность 0.4 кВт. Напряжение 220 В. Габаритные размеры 450х85х255 мм. Вес 3.8 кг.
A201: Запайщик FS- 400C | B201: 3,932.00 | C201: 570х180х100 | D201: 4.50 | E201: 4.60 | F201: 0.01 | H201: 0.00 | I201: 0.00 | J201: Металлический корпус. Нож. Длина запайки 400 мм. Ширина шва 2 мм. Мощность 0.6 кВт. Напряжение 220 В. Габаритные размеры 450х85х280 мм. Вес 4.5 кг.
A202: Запайщик FS- 500С | B202: 4,680.00 | C202: 670х180х100 | D202: 6.70 | E202: 7.20 | F202: 0.01 | H202: 0.00 | I202: 0.00 | J202: Металлический корпус. Нож. Длина запайки 500 мм. Ширина шва 2 мм. Мощность 0.8 кВт. Напряжение 220 В. Габаритные размеры 650х85х180 мм. Вес 4.7 кг.
A203: Запайщик FS- 600H | B203: 7,130.00 | C203: 930х205х305 | D203: 7.00 | E203: 8.00 | F203: 0.06 | H203: 0.00 | I203: 0.00 | J203: Металлический корпус. Длина запайки 600 мм. Ширина шва 2 мм. Мощность 0.8 кВт, Напряжение 220 В. Габаритные размеры 870х145х270 мм. Вес 7 кг.
A204: Запайщик FS- 800H | B204: 8,440.00 | C204: 1060х410х305 | D204: 8.00 | E204: 9.00 | F204: 0.13 | H204: 0.00 | I204: 0.00 | J204: Металлический корпус. Длина запайки 800 мм. Ширина шва 2 мм. Мощность 1 кВт, Напряжение 220 В. Габаритные размеры 1000х350х245 мм. Вес 8 кг.
A205: Запайщик FS- 900H | B205: 8,616.00 | C205: 1160х410х305 | D205: 9.00 | E205: 10.00 | F205: 0.15 | J205: Металлический корпус. Длина запайки 900 мм. Ширина шва 2 мм. Мощность 1.2 кВт, Напряжение 220 В. Габаритные размеры 1100х350х245 мм. Вес 9 кг.
... 8 more rows

Sheet Ассум_нейтр
K2: Главное меню
I5: Вес заказа | J5: Объем заказа
I7: =SUM(I12:I251) -> 0.00 | J7: =SUM(J12:J251) -> 0.00
A8: Артикул | B8: Полное наименование/габариты | C8: Розничная цена, руб. | D8: Габариты упаковки, мм | E8: Вес нетто, кг | F8: Вес брутто, кг | G8: Объем, м. куб. | H8: Заказ | I8: Вес брутто, кг | J8: Объем, м.куб. | K8: Описание
A11: Ванны моечные цельнотянутые серии "ASSUM-Standart" (цельнотянутые)
A12: ВМС-1/400 | B12: Ванна моечная "ASSUM-Standart" ВМС-1/400 (500х600х850) | C12: 11,327.19 | D12: 510х610х350 | E12: 12.60 | F12: 13.60 | G12: 0.11 | I12: =H12*F12 -> 0.00 | J12: =H12*G12 -> 0.00 | K12: Ванна моечная с цельнотянутой раковиной 400х400х300 мм и бортом 45 мм. Материалы: раковина цельнотянутая из нержавеющей стали AISI 304 толщиной 1 мм; столешница - нержавеющая сталь AISI 430 толщиной 1 мм; ножки - оцинкованная сталь (уголок 40х40 мм) толщиной 1.5 мм. Обвязка с 4-х сторон из оцинкованной стали. Отверстие под смеситель. Регулируемые по высоте пластиковые опоры. В комплекте выпуск. Конструкция разборная.
A13: ВМС-2/400 | B13: Ванна моечная "ASSUM-Standart" ВМС-2/400 (950х600х850) | C13: 20,345.70 | D13: 960х610х350 | E13: 15.00 | F13: 15.50 | G13: 0.20 | I13: =H13*F13 -> 0.00 | J13: =H13*G13 -> 0.00 | K13: Ванна моечная с двумя цельнотянутыми раковинами 400х400х300 мм и бортом 45 мм. Материалы: раковина цельнотянутая из нержавеющей стали AISI 304 толщиной 1 мм; столешница - нержавеющая сталь AISI 430 толщиной 1 мм; ножки - оцинкованная сталь (уголок 40х40 мм) толщиной 1.5 мм. Обвязка с 4-х сторон из оцинкованной стали. Отверстие под смеситель. Регулируемые по высоте пластиковые опоры. В комплекте выпуск. Конструкция разборная.
A14: ВМС-1/500 | B14: Ванна моечная "ASSUM-Standart" ВМС-1/500 (600х700х850) | C14: 15,336.09 | D14: 610х710х350 | E14: 18.60 | F14: 19.60 | G14: 0.15 | I14: =H14*F14 -> 0.00 | J14: =H14*G14 -> 0.00 | K14: Ванна моечная с цельнотянутой раковиной 500х500х300 мм и бортом 45 мм. Материалы: раковина цельнотянутая из нержавеющей стали AISI 304 толщиной 1 мм; столешница - нержавеющая сталь AISI 430 толщиной 1 мм; ножки - оцинкованная сталь (уголок 40х40 мм) толщиной 1.5 мм. Обвязка с 4-х сторон из оцинкованной стали. Отверстие под смеситель. Регулируемые по высоте пластиковые опоры. В комплекте выпуск. Конструкция разборная.
A15: ВМС-2/500 | B15: Ванна моечная "ASSUM-Standart" ВМС-2/500 (1150х700х850) | C15: 26,669.48 | D15: 1160х710х350 | E15: 19.35 | F15: 20.20 | G15: 0.29 | I15: =H15*F15 -> 0.00 | J15: =H15*G15 -> 0.00 | K15: Ванна моечная с двумя цельнотянутыми раковинами 500х500х300 мм и бортом 45 мм. Материалы: раковина цельнотянутая из нержавеющей стали AISI 304 толщиной 1 мм; столешница - нержавеющая сталь AISI 430 толщиной 1 мм; ножки - оцинкованная сталь (уголок 40х40 мм) толщиной 1.5 мм. Обвязка с 4-х сторон из оцинкованной стали. Отверстие под смеситель. Регулируемые по высоте пластиковые опоры. В комплекте выпуск. Конструкция разборная.
A16: Ванны моечные цельнотянутые серии "ASSUM-Premium" (цельнотянутые)
A17: ВМП-1/400 | B17: Ванна моечная "ASSUM-Premium" ВМП-1/400 (500х600х850) | C17: 14,519.22 | D17: 510х610х900 | E17: 12.60 | F17: 13.60 | G17: 0.28 | I17: =H17*F17 -> 0.00 | J17: =H17*G17 -> 0.00 | K17: Ванна моечная с цельнотянутой раковиной 400х400х300 мм и бортом 45 мм. Материалы: раковина цельнотянутая из нержавеющей стали AISI 304 толщиной 1 мм; столешница - нержавеющая сталь AISI 430 толщиной 1 мм; ножки - нержавеющая сталь AISI 430 (квадратная труба 40х40 мм) толщиной 1 мм; облицовка с 3-х сторон ("юбка") - нержавеющая сталь AISI 430 толщиной 1.5 мм. Отверстие под смеситель. Регулируемые по высоте пластиковые опоры. В комплекте выпуск. Конструкция сварная.
A18: ВМП-2/400 | B18: Ванна моечная "ASSUM-Premium" ВМП-2/400 (950х600х850) | C18: 23,722.02 | D18: 960х610х900 | E18: 15.00 | F18: 15.50 | G18: 0.53 | I18: =H18*F18 -> 0.00 | J18: =H18*G18 -> 0.00 | K18: Ванна моечная с двумя цельнотянутыми раковинами 400х400х300 мм и бортом 45 мм. Материалы: раковина цельнотянутая из нержавеющей стали AISI 304 толщиной 1 мм; столешница - нержавеющая сталь AISI 430 толщиной 1 мм; ножки - нержавеющая сталь AISI 430 (квадратная труба 40х40 мм) толщиной 1 мм; облицовка с 3-х сторон ("юбка") - нержавеющая сталь AISI 430 толщиной 1.5 мм. Отверстие под смеситель. Регулируемые по высоте пластиковые опоры. В комплекте выпуск. Конструкция сварная.
A19: ВМП-1/500 | B19: Ванна моечная "ASSUM-Premium" ВМП-1/500 (600х700х850) | C19: 18,064.95 | D19: 610х710х900 | E19: 18.60 | F19: 19.60 | G19: 0.39 | I19: =H19*F19 -> 0.00 | J19: =H19*G19 -> 0.00 | K19: Ванна моечная с цельнотянутой раковиной 500х500х300 мм и бортом 45 мм. Материалы: раковина цельнотянутая из нержавеющей стали AISI 304 толщиной 1 мм; столешница - нержавеющая сталь AISI 430 толщиной 1 мм; ножки - нержавеющая сталь AISI 430 (квадратная труба 40х40 мм) толщиной 1 мм; облицовка с 3-х сторон ("юбка") - нержавеющая сталь AISI 430 толщиной 1.5 мм. Отверстие под смеситель. Регулируемые по высоте пластиковые опоры. В комплекте выпуск. Конструкция сварная.
A20: ВМП-2/500 | B20: Ванна моечная "ASSUM-Premium" ВМП-2/500 (1150х700х850) | C20: 30,262.35 | D20: 1160х710х900 | E20: 19.35 | F20: 20.20 | G20: 0.74 | I20: =H20*F20 -> 0.00 | J20: =H20*G20 -> 0.00 | K20: Ванна моечная с двумя цельнотянутыми раковинами 500х500х300 мм и бортом 45 мм. Материалы: раковина цельнотянутая из нержавеющей стали AISI 304 толщиной 1 мм; столешница - нержавеющая сталь AISI 430 толщиной 1 мм; ножки - нержавеющая сталь AISI 430 (квадратная труба 40х40 мм) толщиной 1 мм; облицовка с 3-х сторон ("юбка") - нержавеющая сталь AISI 430 толщиной 1.5 мм. Отверстие под смеситель. Регулируемые по высоте пластиковые опоры. В комплекте выпуск. Конструкция сварная.
A21: Ванны моечные сварные серии "ASSUM-Standart"
A22: ВМЭ-1/400 | B22: Ванна моечная "ASSUM-Standart" ВМЭ-1/400 (500х500х850) | C22: 4,875.00 | D22: 520х520х320 | E22: 11.00 | F22: 12.00 | G22: 0.09 | I22: =H22*F22 -> 0.00 | J22: =H22*G22 -> 0.00 | K22: Ванна моечная со сварной раковиной 400х400х300 мм. Материалы: мойка из нержавеющей стали AISI 430 толщиной 0.7 мм; ножки - оцинкованная сталь (уголок 40х40 мм) толщиной 1.5 мм. Обвязка с 4-х сторон из оцинкованной стали. Без борта. Отверстие под смеситель (заглушка в комплекте). Регулируемые по высоте пластиковые опоры. В комплекте выпуск. Конструкция разборная.
A23: ВМЭ-1/500 | B23: Ванна моечная "ASSUM-Standart" ВМЭ-1/500 (600х600х850) | C23: 5,482.00 | D23: 620х620х320 | E23: 12.00 | F23: 13.00 | G23: 0.12 | I23: 0.00 | J23: 0.00 | K23: Ванна моечная со сварной раковиной 500х500х300 мм. Материалы: мойка из нержавеющей стали AISI 430 толщиной 0.7 мм; ножки - оцинкованная сталь (уголок 40х40 мм) толщиной 1.5 мм. Обвязка с 4-х сторон из оцинкованной стали. Без борта. Отверстие под смеситель (заглушка в комплекте). Регулируемые по высоте пластиковые опоры. В комплекте выпуск. Конструкция разборная.
A24: ВМЭ-1/600 | B24: Ванна моечная "ASSUM-Standart" ВМЭ-1/600 (700х700х850) | C24: 7,450.00 | D24: 720х720х420 | E24: 20.50 | F24: 21.50 | G24: 0.22 | I24: 0.00 | J24: 0.00 | K24: Ванна моечная со сварной раковиной 600х600х400 мм. Материалы: мойка из нержавеющей стали AISI 430 толщиной 0.7 мм; ножки - оцинкованная сталь (уголок 40х40 мм) толщиной 1.5 мм. Обвязка с 4-х сторон из оцинкованной стали. Без борта. Отверстие под смеситель (заглушка в комплекте). Регулируемые по высоте пластиковые опоры. В комплекте выпуск. Конструкция разборная.
A25: ВМЭ-1/700 | B25: Ванна моечная "ASSUM-Standart" ВМЭ-1/700 (800х800х850) | C25: 9,036.00 | D25: 820х820х470 | E25: 22.90 | F25: 24.00 | G25: 0.32 | I25: 0.00 | J25: 0.00 | K25: Ванна моечная со сварной раковиной 700х700х450 мм. Материалы: мойка из нержавеющей стали AISI 430 толщиной 1 мм; ножки - оцинкованная сталь (уголок 40х40 мм) толщиной 1.5 мм. Обвязка с 4-х сторон из оцинкованной стали. Без борта. Отверстие под смеситель (заглушка в комплекте). Регулируемые по высоте пластиковые опоры. В комплекте выпуск. Конструкция разборная.
A26: ВМЭ-2/400 | B26: Ванна моечная "ASSUM-Standart" ВМЭ-2/400 (1000х500х850) | C26: 9,607.00 | D26: 1020х520х320 | E26: 16.90 | F26: 18.00 | G26: 0.17 | I26: 0.00 | J26: 0.00 | K26: Ванна моечная со сварными раковинами 400х400х300 мм. Материалы: мойки из нержавеющей стали AISI 430 толщиной 0.7 мм; ножки - оцинкованая сталь (уголок 40х40 мм) толщиной 1.5 мм. Обвязка с 4-х сторон из оцинкованной стали. Без борта. Отверстие под смеситель (заглушка в комплекте). Регулируемые по высоте пластиковые опоры. В комплекте выпуск. Конструкция разборная.
A27: ВМЭ-2/500 | B27: Ванна моечная "ASSUM-Standart" ВМЭ-2/500 (1200х600х850) | C27: 10,142.00 | D27: 1220х620х320 | E27: 19.50 | F27: 22.00 | G27: 0.24 | I27: 0.00 | J27: 0.00 | K27: Ванна моечная со сварными раковинами 500х500х300 мм. Материалы: мойки из нержавеющей стали AISI 430 толщиной 0.7 мм; ножки - оцинкованная сталь (уголок 40х40 мм) толщиной 1.5 мм. Обвязка с 4-х сторон из оцинкованной стали. Без борта. Отверстие под смеситель (заглушка в комплекте). Регулируемые по высоте пластиковые опоры. В комплекте выпуск. Конструкция разборная.
A28: ВМЭ-2/600 | B28: Ванна моечная "ASSUM-Standart" ВМЭ-2/600 (1400х700х850) | C28: 13,783.00 | D28: 1420х720х420 | E28: 36.00 | F28: 38.00 | G28: 0.43 | I28: 0.00 | J28: 0.00 | K28: Ванна моечная со сварными раковинами 600х600х400 мм. Материалы: мойки из нержавеющей стали AISI 430 толщиной 0.7 мм; ножки - оцинкованная сталь (уголок 40х40 мм) толщиной 1.5 мм. Обвязка с 4-х сторон из оцинкованной стали. Без борта. Отверстие под смеситель (заглушка в комплекте). Регулируемые по высоте пластиковые опоры. В комплекте выпуск. Конструкция разборная.
A29: ВМЭ-2/700 | B29: Ванна моечная "ASSUM-Standart" ВМЭ-2/700 (1600х800х850) | C29: 17,022.00 | D29: 1620х820х470 | E29: 40.50 | F29: 42.80 | G29: 0.62 | I29: 0.00 | J29: 0.00 | K29: Ванна моечная со сварными раковинами 700х700х450 мм. Материалы: мойки из нержавеющей стали AISI 430 толщиной 1 мм; ножки - оцинкованная сталь (уголок 40х40 мм) толщиной 1.5 мм. Обвязка с 4-х сторон из оцинкованной стали. Без борта. Отверстие под смеситель (заглушка в комплекте). Регулируемые по высоте пластиковые опоры. В комплекте выпуск. Конструкция разборная.
A30: Ванны котломоечные сварные серии "ASSUM-Standart"
A31: ВМКЭ-1/400/900 | B31: Ванна моечная "ASSUM-Standart" ВМКЭ-1/400/900 (1000х500х850) | C31: 13,643.86 | D31: 1020х520х320 | E31: 22.50 | F31: 24.00 | G31: 0.17 | I31: =H31*F31 -> 0.00 | J31: =H31*G31 -> 0.00 | K31: Ванна котломоечная со сварной раковиной 900х400х300 мм. Материалы: мойка из нержавеющей стали AISI 430 толщиной 1 мм; ножки - оцинкованная сталь (уголок 40х40 мм) толщиной 1.5 мм. Обвязка с 4-х сторон из оцинкованной стали. Без борта. Отверстие под смеситель (заглушка в комплекте). Регулируемые по высоте пластиковые опоры. В комплекте выпуск. Конструкция разборная.
A32: ВМКЭ-1/500/1100 | B32: Ванна моечнаяи "ASSUM-Standart" ВМКЭ-1/500/1100 (1200х600х850) | C32: 16,345.86 | D32: 1220х620х420 | E32: 25.00 | F32: 27.00 | G32: 0.32 | I32: =H32*F32 -> 0.00 | J32: =H32*G32 -> 0.00 | K32: Ванна котломоечная со сварной раковиной 1100х500х400 мм. Материалы: мойка из нержавеющей стали AISI 430 толщиной 1 мм; ножки - оцинкованная сталь (уголок 40х40 мм) толщиной 1.5 мм. Обвязка с 4-х сторон из оцинкованной стали. Без борта. Отверстие под смеситель (заглушка в комплекте). Регулируемые по высоте пластиковые опоры. В комплекте выпуск. Конструкция разборная.
A33: ВМКЭ-1/600/1250 | B33: Ванна моечная "ASSUM-Standart" ВМКЭ-1/600/1250 (1350х700х850) | C33: 19,010.69 | D33: 1370х720х420 | E33: 38.00 | F33: 40.00 | G33: 0.41 | I33: =H33*F33 -> 0.00 | J33: =H33*G33 -> 0.00 | K33: Ванна котломоечная со сварной раковиной 1250х600х400 мм. Материалы: мойка из нержавеющей стали AISI 430 толщиной 1 мм; ножки - оцинкованная сталь (уголок 40х40 мм) толщиной 1.5 мм. Обвязка с 4-х сторон из оцинкованной стали. Без борта. Отверстие под смеситель (заглушка в комплекте). Регулируемые по высоте пластиковые опоры. В комплекте выпуск. Конструкция разборная.
A34: ВМКЭ-1/700/1450 | B34: Ванна моечная "ASSUM-Standart" ВМКЭ-1/700/1450 (1550х800х850) | C34: 20,990.97 | D34: 1570х820х470 | E34: 42.00 | F34: 44.00 | G34: 0.61 | I34: =H34*F34 -> 0.00 | J34: =H34*G34 -> 0.00 | K34: Ванна котломоечная со сварной раковиной 1450х700х450 мм. Материалы: мойка из нержавеющей стали AISI 430 толщиной 1 мм; ножки - оцинкованная сталь (уголок 40х40 мм) толщиной 1.5 мм. Обвязка с 4-х сторон из оцинкованной стали. Без борта. Отверстие под смеситель (заглушка в комплекте). Регулируемые по высоте пластиковые опоры. В комплекте выпуск. Конструкция разборная.
A35: Рукомойники серии "ASSUM"
A36: ВМР-1 | B36: Рукомойник "ASSUM" ВМР-1 (500х400х150) | C36: 4,725.00 | D36: 510х410х160 | E36: 3 | F36: 3.5 | G36: 0.03 | I36: =H36*F36 -> 0.00 | J36: =H36*G36 -> 0.00 | K36: Рукомойник с цельнотянутой мойкой 400х300х100 мм. Материалы: мойка цельнотянутая из нержавеющей стали AISI 430 толщиной 0.5 мм; каркас из нержавеющей стали AISI 430 толщиной 0.7 мм. Крепление консольное (к стене). В комплект поставки входит крепеж для стены. Ванна укомплектована сливным сифоном с гидрозатвором. Смеситель в комплект не входит. Без отверстия под смеситель.
A37: ВМР-2 | B37: Рукомойник "ASSUM" ВМР-2 (500х400х850) | C37: 6,825.00 | D37: 510х410х860 | E37: 7 | F37: 7.5 | G37: 0.18 | I37: =H37*F37 -> 0.00 | J37: =H37*G37 -> 0.00 | K37: Рукомойник с цельнотянутой мойкой 400х300х100 мм. Материалы: мойка цельнотянутая из нержавеющей стали AISI 430 толщиной 0.5 мм; ножки из оцинкованной стали толщиной 1.5 мм. Ванна укомплектована сливным сифоном с гидрозатвором. Смеситель в комплект не входит. Без отверстия под смеситель.
A38: ВМР-3 | B38: Рукомойник "ASSUM" ВМР-3 (500х400х850) | C38: 8,505.00 | D38: 510х410х860 | E38: 7 | F38: 7.5 | G38: 0.18 | I38: =H38*F38 -> 0.00 | J38: =H38*G38 -> 0.00 | K38: Рукомойник с цельнотянутой мойкой 400х300х100 мм. Материалы: мойка цельнотянутая из нержавеющей стали AISI 430 толщиной 0.5 мм; ножки из нержавеющей стали AISI 430 толщиной 1.5 мм. Ванна укомплектована сливным сифоном с гидрозатвором. Смеситель в комплект не входит. Без отверстия под смеситель.
A39: Подтоварники серии "ASSUM"
A40: ПП-6/6 | B40: Подтоварник "ASSUM" ПП-6/6 (600х600х300) | C40: 4,426.04 | D40: 620х620х70 | E40: 11.80 | F40: 12.70 | G40: 0.03 | I40: =H40*F40 -> 0.00 | J40: =H40*G40 -> 0.00 | K40: Материалы: столешница - нержавеющая сталь AISI 430 толщиной 0.7 мм, усиленная ламинированным ДСП толщиной 16 мм; Z-образные крепления столешницы из нержавеющей стали толщиной 1 мм (на углах) и 0,7 мм (в центре изделия); рамка столешницы из оцинкованной стали толщиной 1.5 мм; ножки - нержавеющая сталь AISI 430 (уголок 40х40 мм) толщиной 1.5 мм; обвязка - нержавеющая сталь AISI 430 толщиной 0.7 мм. Регулируемые по высоте пластиковые опоры. Конструкция разборная. Максимальная равномерно распределенная нагрузка на столешницу - до 200 кг.
A41: ПП-10/6 | B41: Подтоварник "ASSUM" ПП-10/6 (1000х600х300) | C41: 5,119.65 | D41: 1020х620х70 | E41: 17.90 | F41: 19.00 | G41: 0.04 | I41: 0.00 | J41: 0.00
A42: ПП-12/6 | B42: Подтоварник "ASSUM" ПП-12/6 (1200х600х300) | C42: 5,633.76 | D42: 1220х620х70 | E42: 20.00 | F42: 21.00 | G42: 0.05 | I42: 0.00 | J42: 0.00
A43: ПП-15/6 | B43: Подтоварник "ASSUM" ПП-15/6 (1500х600х300) | C43: 6,110.38 | D43: 1520х620х70 | E43: 24.20 | F43: 25.20 | G43: 0.07 | I43: 0.00 | J43: 0.00
A44: ПП-6/4 Оц | B44: Подтоварник "ASSUM" ПП-6/4 Оц (600х400х300) | C44: 4,205.00 | D44: 620х420х70 | E44: 9.00 | F44: 9.50 | G44: 0.02 | I44: 0.00 | J44: 0.00 | K44: Материалы: столешница - нержавеющая сталь AISI 430 толщиной 0.7 мм, усиленная ламинированным ДСП толщиной 16 мм; Z-образные крепления столешницы из нержавеющей стали толщиной 1 мм (на углах) и 0,7 мм (в центре изделия); рамка столешницы из оцинкованной стали толщиной 1.5 мм; ножки - оцинкованная сталь (уголок 40х40 мм) толщиной 1.5 мм; обвязка - оцинкованная сталь толщиной 0.7 мм. Регулируемые по высоте пластиковые опоры. Конструкция разборная. Максимальная равномерно распределенная нагрузка на столешницу - до 200 кг.
A45: ПП-10/4 Оц | B45: Подтоварник "ASSUM" ПП-10/4 Оц (1000х400х300) | C45: 4,833.00 | D45: 1020х420х70 | E45: 13.00 | F45: 13.60 | G45: 0.03 | I45: 0.00 | J45: 0.00
A46: ПП-12/4 Оц | B46: Подтоварник "ASSUM" ПП-12/4 Оц (1200х400х300) | C46: 5,274.00 | D46: 1220х420х70 | E46: 15.00 | F46: 15.80 | G46: 0.04 | I46: 0.00 | J46: 0.00
A47: ПП-15/4 Оц | B47: Подтоварник "ASSUM" ПП-15/4 Оц (1500х400х300) | C47: 5,683.00 | D47: 1520х420х70 | E47: 18.00 | F47: 19.00 | G47: 0.04 | I47: 0.00 | J47: 0.00
A48: Подставки для печей и пароконвектоматов серии "ASSUM"
A49: ППК-9/7 | B49: Подставка под пароконвектомат "ASSUM" ППК-9/7 (900х700х700) | C49: 16,509.23 | D49: 910х710х710 | E49: 14.25 | F49: 15.15 | G49: 0.46 | I49: =H49*F49 -> 0.00 | J49: =H49*G49 -> 0.00 | K49: Подставка под пароконвектомат. Одна секция из 6-ти уровней направляющих для гастроемкостей GN 1/1. Материалы: столешница - нержавеющая сталь AISI 430 толщиной 1.5 мм; каркас - нержавеющая сталь AISI 430 (труба 40х40 мм) толщиной 1 мм; направляющие для гастроёмкостей - нержавеющая сталь AISI 430 толщиной 0.7 мм. Регулируемые по высоте пластиковые опоры. Конструкция сварная.
A50: ППК-10/7 | B50: Подставка под пароконвектомат "ASSUM" ППК-10/7 (1000х700х700) | C50: 18,278.40 | D50: 1010х710х710 | E50: 15.50 | F50: 16.40 | G50: 0.51 | I50: =H50*F50 -> 0.00 | J50: =H50*G50 -> 0.00
A51: ППК-9/9 | B51: Подставка под пароконвектомат "ASSUM" ППК-9/9 (900х900х700) | C51: 21,108.15 | D51: 910х910х710 | E51: 15.30 | F51: 16.20 | G51: 0.59 | I51: =H51*F51 -> 0.00 | J51: =H51*G51 -> 0.00 | K51: Подставка под пароконвектомат. Одна секция из 7-ми уровней направляющих для протвиней 600х400 мм. Материалы: столешница - нержавеющая сталь AISI 430 толщиной 1.5 мм; каркас - нержавеющая сталь AISI 430 (труба 40х40 мм) толщиной 1 мм; направляющие для противней - нержавеющая сталь AISI 430 толщиной 1 мм. Регулируемые по высоте пластиковые опоры. Конструкция сварная.
A52: Полки настенные серии "ASSUM"
A53: ПН-6/3 | B53: Полка настенная "ASSUM" ПН-6/3 (600х300х300) | C53: 1,990.07 | D53: 610х320х40 | E53: 2.75 | F53: 3.50 | G53: 0.01 | I53: =H53*F53 -> 0.00 | J53: =H53*G53 -> 0.00 | K53: Сплошная полка. Материалы: уголки крепления - нержавеющая сталь AISI 430 толщиной 1 мм; полки - нержавеющая сталь AISI 430 толщиной 0.7 мм; усиление полки (ребро жесткости) - оцинкованная сталь толщиной 0.7 мм. Максимальная равномерно распределенная нагрузка на полку - до 25 кг.
A54: ПН-10/3 | B54: Полка настенная "ASSUM" ПН-10/3 (1000х300х300) | C54: 2,416.26 | D54: 1010х320х40 | E54: 4.00 | F54: 4.10 | G54: 0.01 | I54: 0.00 | J54: 0.00
A55: ПН-12/3 | B55: Полка настенная "ASSUM" ПН-12/3 (1200х300х300) | C55: 2,736.20 | D55: 1210х320х40 | E55: 4.50 | F55: 5.10 | G55: 0.02 | I55: 0.00 | J55: 0.00
A56: ПН-15/3 | B56: Полка настенная "ASSUM" ПН-15/3 (1500х300х300) | C56: 3,135.83 | D56: 1510х320х40 | E56: 5.40 | F56: 6.10 | G56: 0.02 | I56: 0.00 | J56: 0.00
A57: ПНП-6/3 | B57: Полка настенная "ASSUM" ПНП-6/3 (600х300х300) | C57: 2,310.00 | D57: 610х320х40 | E57: 3.45 | F57: 3.50 | G57: 0.01 | I57: 0.00 | J57: 0.00 | K57: Перфорированная полка. Материалы: уголки крепления - нержавеющая сталь AISI 430 толщиной 1 мм; полки - нержавеющая сталь AISI 430 толщиной 0.7 мм; усиление полки (ребро жесткости) - оцинкованная сталь толщиной 0.7 мм. Максимальная равномерно распределенная нагрузка на полку - до 25 кг.
A58: ПНП-10/3 | B58: Полка настенная "ASSUM" ПНП-10/3 (1000х300х300) | C58: 2,665.74 | D58: 1010х320х40 | E58: 4.00 | F58: 4.50 | G58: 0.01 | I58: 0.00 | J58: 0.00
A59: ПНП-12/3 | B59: Полка настенная "ASSUM" ПНП-12/3 (1200х300х300) | C59: 3,038.81 | D59: 1210х320х40 | E59: 6.25 | F59: 7.20 | G59: 0.02 | I59: 0.00 | J59: 0.00
A60: ПНП-15/3 | B60: Полка настенная "ASSUM" ПНП-15/3 (1500х300х300) | C60: 3,660.20 | D60: 1510х320х40 | E60: 8.60 | F60: 9.60 | G60: 0.02 | I60: 0.00 | J60: 0.00
A61: Полки настенные полуоткрытые серии "ASSUM"
A62: ПНО-9,5/4 | B62: Полка настенная "ASSUM" ПНО-9.5/4 (950х400х600) | C62: 14,805.00 | D62: 960х410х610 | E62: 13.50 | F62: 15.00 | G62: 0.24 | I62: =H62*F62 -> 0.00 | J62: =H62*G62 -> 0.00 | K62: Полка настенная полуоткрытая. Материалы: каркас - нержавеющая сталь AISI 430 толщиной 07 мм; задняя стенка - нержавеющая сталь AISI 430 толщиной 1 мм; полки - нержавеющая сталь AISI 430 толщиной 0.7 мм. 2 уровня хранения. Сварная конструкция.
A63: ПНО-12/4 | B63: Полка настенная "ASSUM" ПНО-12/4 (1200х400х600) | C63: 20,895.00 | D63: 1210х410х610 | E63: 19.00 | F63: 21.00 | G63: 0.30 | I63: =H63*F63 -> 0.00 | J63: =H63*G63 -> 0.00
A64: Полки настенные закрытые купе серии "ASSUM"
A65: ПЗК-8/4 | B65: Полка закрытая купе "ASSUM" ПЗК-8/4 (800х400х600) | C65: 15,750.00 | D65: 810х410х610 | E65: 15.5 | F65: 16.5 | G65: 0.20 | I65: =H65*F65 -> 0.00 | J65: =H65*G65 -> 0.00 | K65: Полка настенная закрытая. Материалы: каркас, двери - нержавеющая сталь AISI 430 толщиной 07 мм; задняя стенка - нержавеющая сталь AISI 430 толщиной 1 мм; полки - нержавеющая сталь AISI 430 толщиной 0.7 мм. Двери-купе. 2 уровня хранения. Сварная конструкция.
A66: ПЗК-9,5/4 | B66: Полка закрытая купе "ASSUM" ПЗК-9.5/4 (950х400х600) | C66: 17,115.00 | D66: 960х410х610 | E66: 18 | F66: 19 | G66: 0.24 | I66: =H66*F66 -> 0.00 | J66: =H66*G66 -> 0.00
A67: ПЗК-10/4 | B67: Полка закрытая купе "ASSUM" ПЗК-10/4 (1000х400х600) | C67: 18,795.00 | D67: 1010х410х610 | E67: 19.5 | F67: 20.5 | G67: 0.25 | I67: =H67*F67 -> 0.00 | J67: =H67*G67 -> 0.00
A68: ПЗК-12/4 | B68: Полка закрытая купе "ASSUM" ПЗК-12/4 (1200х400х600) | C68: 21,630.00 | D68: 1210х410х610 | E68: 23.5 | F68: 25 | G68: 0.30 | I68: =H68*F68 -> 0.00 | J68: =H68*G68 -> 0.00
A69: Стеллажи производственные серии "ASSUM - Standart"
A70: СТПЭ-6/4 | B70: Стеллаж производственный "ASSUM-Standart" СТПЭ-6/4 (600х400х1800) | C70: 6,112.46 | D70: 620х420х180 | E70: 19.50 | F70: 20.50 | G70: =0.62*0.42*0.18 -> 0.05 | I70: =H70*F70 -> 0.00 | J70: =H70*G70 -> 0.00 | K70: 4 сплошные полки. Материалы: стойки - оцинкованная сталь (уголок 40х40 мм) толщиной 1.5 мм; полки - нержавеющая сталь AISI 430 толщиной 0.7 мм; усиление полки (ребро жесткости) - оцинкованная сталь толщиной 0.7 мм. Регулируемые по высоте пластиковые опоры. Шаг регулировки высоты полок 100 мм. Максимальная равномерно распределенная нагрузка на полку - до 80 кг.
A71: СТПЭ-6/5 | B71: Стеллаж производственный "ASSUM-Standart" СТПЭ-6/5 (600х500х1800) | C71: 6,723.58 | D71: 620х520х180 | E71: 21.00 | F71: 22.00 | G71: =0.62*0.52*0.18 -> 0.06 | I71: 0.00 | J71: 0.00
A72: СТПЭ-6/6 | B72: Стеллаж производственный "ASSUM-Standart" СТПЭ-6/6 (600х600х1800) | C72: 8,581.00 | D72: 620х620х180 | E72: 22.50 | F72: 23.50 | G72: =0.62*0.62*0.18 -> 0.07 | I72: 0.00 | J72: 0.00
A73: СТПЭ-10/4 | B73: Стеллаж производственный "ASSUM-Standart" СТПЭ-10/4 (1000х400х1800) | C73: 7,226.38 | D73: 1020*420*180 | E73: 24.00 | F73: 25.00 | G73: =1.02*0.42*0.18 -> 0.08 | I73: 0.00 | J73: 0.00
A74: СТПЭ-10/5 | B74: Стеллаж производственный "ASSUM-Standart" СТПЭ-10/5 (1000х500х1800) | C74: 8,582.00 | D74: 1020х520х180 | E74: 26.50 | F74: 27.50 | G74: =1.02*0.52*0.18 -> 0.10 | I74: 0.00 | J74: 0.00
A75: СТПЭ-10/6 | B75: Стеллаж производственный "ASSUM-Standart" СТПЭ-10/6 (1000х600х1800) | C75: 12,122.00 | D75: 1020х620х180 | E75: 29.00 | F75: 30.00 | G75: =1.02*0.62*0.18 -> 0.11 | I75: 0.00 | J75: 0.00
A76: СТПЭ-12/4 | B76: Стеллаж производственный "ASSUM-Standart" СТПЭ-12/4 (1200х400х1800) | C76: 8,891.00 | D76: 1220х420х180 | E76: 25.45 | F76: 26.65 | G76: =1.22*0.42*0.18 -> 0.09 | I76: 0.00 | J76: 0.00
A77: СТПЭ-12/5 | B77: Стеллаж производственный "ASSUM-Standart" СТПЭ-12/5 (1200х500х1800) | C77: 10,063.00 | D77: 1220х520х180 | E77: 28.75 | F77: 29.75 | G77: =1.22*0.52*0.18 -> 0.11 | I77: 0.00 | J77: 0.00
A78: СТПЭ-12/6 | B78: Стеллаж производственный "ASSUM-Standart" СТПЭ-12/6 (1200х600х1800) | C78: 14,356.00 | D78: 1220х620х180 | E78: 32.00 | F78: 33.80 | G78: =1.22*0.62*0.18 -> 0.14 | I78: 0.00 | J78: 0.00
A79: СТПЭ-15/4 | B79: Стеллаж производственный "ASSUM-Standart" СТПЭ-15/4 (1500х400х1800) | C79: 10,141.00 | D79: 1520х420х180 | E79: 30.00 | F79: 31.50 | G79: =1.52*0.42*0.18 -> 0.11 | I79: 0.00 | J79: 0.00
A80: СТПЭ-15/5 | B80: Стеллаж производственный "ASSUM-Standart" СТПЭ-15/5 (1500х500х1800) | C80: 11,482.00 | D80: 1520х520х180 | E80: 35.75 | F80: 36.75 | G80: =1.52*0.52*0.18 -> 0.14 | I80: 0.00 | J80: 0.00
A81: СТПЭ-15/6 | B81: Стеллаж производственный "ASSUM-Standart" СТПЭ-15/6 (1500х600х1800) | C81: 17,164.00 | D81: 1520х620х180 | E81: 41.00 | F81: 42.00 | G81: =1.52*0.62*0.18 -> 0.17 | I81: 0.00 | J81: 0.00
A82: СТПЭ-18/5 | B82: Стеллаж производственный "ASSUM-Standart" СТПЭ-18/4 (1800х400х1800) | C82: 11,574.25 | D82: 1820х420х180 | E82: 32.00 | F82: 33.50 | G82: =1.82*0.42*0.18 -> 0.14 | I82: 0.00 | J82: 0.00
A83: СТПЭ-18/5 | B83: Стеллаж производственный "ASSUM-Standart" СТПЭ-18/5 (1800х500х1800) | C83: 13,100.00 | D83: 1820х520х180 | E83: 37.00 | F83: 38.00 | G83: =1.82*0.52*0.18 -> 0.17 | I83: 0.00 | J83: 0.00
A84: СТПЭ-18/6 | B84: Стеллаж производственный "ASSUM-Standart" СТПЭ-18/6 (1800х600х1800) | C84: 19,991.00 | D84: 1820х620х180 | E84: 42.00 | F84: 43.00 | G84: =1.82*0.62*0.18 -> 0.20 | I84: 0.00 | J84: 0.00
A85: СТППЭ-6/4 | B85: Стеллаж производственный "ASSUM-Standart" СТППЭ-6/4 (600х400х1800) | C85: 6,723.71 | D85: 620х420х210 | E85: 22.00 | F85: 23.00 | G85: =0.62*0.42*0.21 -> 0.05 | I85: 0.00 | J85: 0.00 | K85: 4 перфорированные полки.Материалы: стойки - оцинкованная сталь (уголок 40х40 мм) толщиной 1.5 мм; полки, поддон - нержавеющая сталь AISI 430 толщиной 0.7 мм; усиление полки (ребро жесткости) - оцинкованная сталь толщиной 0.7 мм. Поддон для сбора воды под нижней полкой. Регулируемые по высоте пластиковые опоры. Шаг регулировки высоты полок 100 мм. Максимальная равномерно распределенная нагрузка на полку - до 80 кг.
A86: СТППЭ-6/5 | B86: Стеллаж производственный "ASSUM-Standart" СТППЭ-6/5 (600х500х1800) | C86: 7,395.94 | D86: 620х520х210 | E86: 23.20 | F86: 24.00 | G86: =0.62*0.52*0.21 -> 0.07 | I86: 0.00 | J86: 0.00
A87: СТППЭ-6/6 | B87: Стеллаж производственный "ASSUM-Standart" СТППЭ-6/6 (600х600х1800) | C87: 10,670.00 | D87: 620х620х210 | E87: 24.40 | F87: 25.20 | G87: =0.62*0.62*0.21 -> 0.08 | I87: 0.00 | J87: 0.00
A88: СТППЭ-10/4 | B88: Стеллаж производственный "ASSUM-Standart" СТППЭ-10/4 (1000х400х1800) | C88: 7,949.01 | D88: 1020х420х210 | E88: 27.00 | F88: 28.00 | G88: =1.02*0.42*0.21 -> 0.09 | I88: 0.00 | J88: 0.00
A89: СТППЭ-10/5 | B89: Стеллаж производственный "ASSUM-Standart" СТППЭ-10/5 (1000х500х1800) | C89: 9,440.20 | D89: 1020х520х210 | E89: 29.50 | F89: 30.50 | G89: =1.02*0.52*0.21 -> 0.11 | I89: 0.00 | J89: 0.00
A90: СТППЭ-10/6 | B90: Стеллаж производственный "ASSUM-Standart" СТППЭ-10/6 (1000х600х1800) | C90: 15,601.00 | D90: 1020х620х210 | E90: 31.50 | F90: 33.00 | G90: =1.02*0.62*0.21 -> 0.13 | I90: 0.00 | J90: 0.00
A91: СТППЭ-12/4 | B91: Стеллаж производственный "ASSUM-Standart" СТППЭ-12/4 (1200х400х1800) | C91: 9,780.10 | D91: 1220х420х210 | E91: 30.45 | F91: 31.45 | G91: =1.22*0.42*0.21 -> 0.11 | I91: 0.00 | J91: 0.00
A92: СТППЭ-12/5 | B92: Стеллаж производственный "ASSUM-Standart" СТППЭ-12/5 (1200х500х1800) | C92: 11,069.30 | D92: 1220х520х210 | E92: 35.45 | F92: 36.45 | G92: =1.22*0.52*0.21 -> 0.13 | I92: 0.00 | J92: 0.00
A93: СТППЭ-12/6 | B93: Стеллаж производственный "ASSUM-Standart" СТППЭ-12/6 (1200х600х1800) | C93: 16,634.00 | D93: 1220х620х210 | E93: 40.50 | F93: 41.50 | G93: =1.22*0.62*0.21 -> 0.16 | I93: 0.00 | J93: 0.00
A94: СТППЭ-15/4 | B94: Стеллаж производственный "ASSUM-Standart" СТППЭ-15/4 (1500х400х1800) | C94: 11,155.10 | D94: 1520х420х210 | E94: 38.20 | F94: 39.20 | G94: =1.52*0.42*0.21 -> 0.13 | I94: 0.00 | J94: 0.00
A95: СТППЭ-15/5 | B95: Стеллаж производственный "ASSUM-Standart" СТППЭ-15/5 (1500х500х1800) | C95: 12,630.20 | D95: 1520х520х210 | E95: 43.40 | F95: 44.40 | G95: =1.52*0.52*0.21 -> 0.17 | I95: 0.00 | J95: 0.00
A96: СТППЭ-15/6 | B96: Стеллаж производственный "ASSUM-Standart" СТППЭ-15/6 (1500х600х1800) | C96: 18,370.00 | D96: 1520х620х210 | E96: 48.20 | F96: 50.00 | G96: =1.52*0.62*0.21 -> 0.20 | I96: 0.00 | J96: 0.00
A97: СТППЭ-18/4 | B97: Стеллаж производственный "ASSUM-Standart" СТППЭ-18/4 (1800х400х1800) | C97: 12,731.68 | D97: 1820х420х210 | E97: 38.20 | F97: 39.20 | G97: =1.82*0.42*0.21 -> 0.16 | I97: 0.00 | J97: 0.00
A98: СТППЭ-18/5 | B98: Стеллаж производственный "ASSUM-Standart" СТППЭ-18/5 (1800х500х1800) | C98: 14,410.00 | D98: 1820х520х210 | E98: 43.40 | F98: 44.40 | G98: =1.82*0.52*0.21 -> 0.20 | I98: 0.00 | J98: 0.00
A99: СТППЭ-18/6 | B99: Стеллаж производственный "ASSUM-Standart" СТППЭ-18/6 (1800х600х1800) | C99: 25,875.00 | D99: 1820х620х210 | E99: 48.40 | F99: 49.40 | G99: =1.82*0.62*0.21 -> 0.24 | I99: 0.00 | J99: 0.00
A100: Стеллажи производственные серии "ASSUM - Premium"
A101: СТП-6/4 | B101: Стеллаж производственный "ASSUM-Premium" СТП-6/4 (600х400х1800) | C101: 6,759.90 | D101: 620х420х180 | E101: 19.50 | F101: 20.50 | G101: =0.62*0.42*0.18 -> 0.05 | I101: =H101*F101 -> 0.00 | J101: =H101*G101 -> 0.00 | K101: 4 сплошные полки. Материалы: стойки - нержавеющая сталь AISI 430 (уголок 40х40 мм) толщиной 1.5 мм; полки - нержавеющая сталь AISI 430 толщиной 0.7 мм; усиление полки (ребро жесткости) - оцинкованная сталь толщиной 0.7 мм. Регулируемые по высоте пластиковые опоры. Шаг регулировки высоты полок 100 мм. Максимальная равномерно распределенная нагрузка на полку - до 80 кг.
A102: СТП-6/5 | B102: Стеллаж производственный "ASSUM-Premium" СТП-6/5 (600х500х1800) | C102: 7,430.85 | D102: 620х520х180 | E102: 21.00 | F102: 22.00 | G102: =0.62*0.52*0.18 -> 0.06 | I102: 0.00 | J102: 0.00
A103: СТП-6/6 | B103: Стеллаж производственный "ASSUM-Premium" СТП-6/6 (600х600х1800) | C103: 10,970.00 | D103: 620х620х180 | E103: 22.50 | F103: 23.50 | G103: =0.62*0.62*0.18 -> 0.07 | I103: 0.00 | J103: 0.00
A104: СТП-10/4 | B104: Стеллаж производственный "ASSUM-Premium" СТП-10/4 (1000х400х1800) | C104: 9,329.25 | D104: 1020*420*180 | E104: 24.00 | F104: 25.00 | G104: =1.02*0.42*0.18 -> 0.08 | I104: 0.00 | J104: 0.00
A105: СТП-10/5 | B105: Стеллаж производственный "ASSUM-Premium" СТП-10/5 (1000х500х1800) | C105: 10,500.00 | D105: 1020х520х180 | E105: 26.50 | F105: 27.50 | G105: =1.02*0.52*0.18 -> 0.10 | I105: 0.00 | J105: 0.00
A106: СТП-10/6 | B106: Стеллаж производственный "ASSUM-Premium" СТП-10/6 (1000х600х1800) | C106: 14,511.00 | D106: 1020х620х180 | E106: 29.00 | F106: 30.00 | G106: =1.02*0.62*0.18 -> 0.11 | I106: 0.00 | J106: 0.00
A107: СТП-12/4 | B107: Стеллаж производственный "ASSUM-Premium" СТП-12/4 (1200х400х1800) | C107: 10,080.00 | D107: 1220х420х180 | E107: 25.45 | F107: 26.65 | G107: =1.22*0.42*0.18 -> 0.09 | I107: 0.00 | J107: 0.00
A108: СТП-12/5 | B108: Стеллаж производственный "ASSUM-Premium" СТП-12/5 (1200х500х1800) | C108: 11,921.70 | D108: 1220х520х180 | E108: 28.75 | F108: 29.75 | G108: =1.22*0.52*0.18 -> 0.11 | I108: 0.00 | J108: 0.00
A109: СТП-12/6 | B109: Стеллаж производственный "ASSUM-Premium" СТП-12/6 (1200х600х1800) | C109: 16,746.00 | D109: 1220х620х180 | E109: 32.00 | F109: 33.80 | G109: =1.22*0.62*0.18 -> 0.14 | I109: 0.00 | J109: 0.00
A110: СТП-15/4 | B110: Стеллаж производственный "ASSUM-Premium" СТП-15/4 (1500х400х1800) | C110: 11,630.85 | D110: 1520х420х180 | E110: 30.00 | F110: 31.50 | G110: =1.52*0.42*0.18 -> 0.11 | I110: 0.00 | J110: 0.00
A111: СТП-15/5 | B111: Стеллаж производственный "ASSUM-Premium" СТП-15/5 (1500х500х1800) | C111: 12,744.90 | D111: 1520х520х180 | E111: 35.75 | F111: 36.75 | G111: =1.52*0.52*0.18 -> 0.14 | I111: 0.00 | J111: 0.00
A112: СТП-15/6 | B112: Стеллаж производственный "ASSUM-Premium" СТП-15/6 (1500х600х1800) | C112: 19,553.00 | D112: 1520х620х180 | E112: 41.00 | F112: 42.00 | G112: =1.52*0.62*0.18 -> 0.17 | I112: 0.00 | J112: 0.00
A113: СТП-18/4 | B113: Стеллаж производственный "ASSUM-Premium" СТП-18/4 (1800х400х1800) | C113: 13,181.70 | D113: 1820х420х180 | E113: 32.00 | F113: 33.50 | G113: =1.82*0.42*0.18 -> 0.14 | I113: 0.00 | J113: 0.00
A114: СТП-18/5 | B114: Стеллаж производственный "ASSUM-Premium" СТП-18/5 (1800х500х1800) | C114: 15,359.40 | D114: 1820х520х180 | E114: 37.00 | F114: 38.00 | G114: =1.82*0.52*0.18 -> 0.17 | I114: 0.00 | J114: 0.00
A115: СТП-18/6 | B115: Стеллаж производственный "ASSUM-Premium" СТП-18/6 (1800х600х1800) | C115: 22,380.00 | D115: 1820х620х180 | E115: 42.00 | F115: 43.00 | G115: =1.82*0.62*0.18 -> 0.20 | I115: 0.00 | J115: 0.00
A116: СТПП-6/4 | B116: Стеллаж производственный "ASSUM-Premium" СТПП-6/4 (600х400х1800) | C116: 7,511.70 | D116: 620х420х210 | E116: 22.00 | F116: 23.00 | G116: =0.62*0.42*0.21 -> 0.05 | I116: 0.00 | J116: 0.00 | K116: 4 перфорированные полки. Материалы: стойки - нержавеющая сталь AISI 430 (уголок 40х40 мм) толщиной 1.5 мм; полки, поддон - нержавеющая сталь AISI 430 толщиной 0.7 мм; усиление полки (ребро жесткости) - оцинкованная сталь толщиной 0.7 мм. Поддон для сбора воды под нижней полкой. Регулируемые по высоте пластиковые опоры. Шаг регулировки высоты полок 100 мм. Максимальная равномерно распределенная нагрузка на полку - до 80 кг.
A117: СТПП-6/5 | B117: Стеллаж производственный "ASSUM-Premium" СТПП-6/5 (600х500х1800) | C117: 8,544.90 | D117: 620х520х210 | E117: 23.20 | F117: 24.00 | G117: =0.62*0.52*0.21 -> 0.07 | I117: 0.00 | J117: 0.00
A118: СТПП-6/6 | B118: Стеллаж производственный "ASSUM-Premium" СТПП-6/6 (600х600х1800) | C118: 13,060.00 | D118: 620х620х210 | E118: 24.40 | F118: 25.20 | G118: =0.62*0.62*0.21 -> 0.08 | I118: 0.00 | J118: 0.00
A119: СТПП-10/4 | B119: Стеллаж производственный "ASSUM-Premium" СТПП-10/4 (1000х400х1800) | C119: 10,661.70 | D119: 1020х420х210 | E119: 27.00 | F119: 28.00 | G119: =1.02*0.42*0.21 -> 0.09 | I119: 0.00 | J119: 0.00
A120: СТПП-10/5 | B120: Стеллаж производственный "ASSUM-Premium" СТПП-10/5 (1000х500х1800) | C120: 12,075.00 | D120: 1020х520х210 | E120: 29.50 | F120: 30.50 | G120: =1.02*0.52*0.21 -> 0.11 | I120: 0.00 | J120: 0.00
A121: СТПП-10/6 | B121: Стеллаж производственный "ASSUM-Premium" СТПП-10/6 (1000х600х1800) | C121: 17,990.00 | D121: 1020х620х210 | E121: 31.50 | F121: 33.00 | G121: =1.02*0.62*0.21 -> 0.13 | I121: 0.00 | J121: 0.00
A122: СТПП-12/4 | B122: Стеллаж производственный "ASSUM-Premium" СТПП-12/4 (1200х400х1800) | C122: 12,665.10 | D122: 1220х420х210 | E122: 30.45 | F122: 31.45 | G122: =1.22*0.42*0.21 -> 0.11 | I122: 0.00 | J122: 0.00
A123: СТПП-12/5 | B123: Стеллаж производственный "ASSUM-Premium" СТПП-12/5 (1200х500х1800) | C123: 12,803.40 | D123: 1220х520х210 | E123: 35.45 | F123: 36.45 | G123: =1.22*0.52*0.21 -> 0.13 | I123: 0.00 | J123: 0.00
A124: СТПП-12/6 | B124: Стеллаж производственный "ASSUM-Premium" СТПП-12/6 (1200х600х1800) | C124: 19,024.00 | D124: 1220х620х210 | E124: 40.50 | F124: 41.50 | G124: =1.22*0.62*0.21 -> 0.16 | I124: 0.00 | J124: 0.00
A125: СТПП-15/4 | B125: Стеллаж производственный "ASSUM-Premium" СТПП-15/4 (1500х400х1800) | C125: 13,698.30 | D125: 1520х420х210 | E125: 38.20 | F125: 39.20 | G125: =1.52*0.42*0.21 -> 0.13 | I125: 0.00 | J125: 0.00
A126: СТПП-15/5 | B126: Стеллаж производственный "ASSUM-Premium" СТПП-15/5 (1500х500х1800) | C126: 14,658.00 | D126: 1520х520х210 | E126: 43.40 | F126: 44.40 | G126: =1.52*0.52*0.21 -> 0.17 | I126: 0.00 | J126: 0.00
A127: СТПП-15/6 | B127: Стеллаж производственный "ASSUM-Premium" СТПП-15/6 (1500х600х1800) | C127: 20,759.00 | D127: 1520х620х210 | E127: 48.20 | F127: 50.00 | G127: =1.52*0.62*0.21 -> 0.20 | I127: 0.00 | J127: 0.00
A128: СТПП-18/4 | B128: Стеллаж производственный "ASSUM-Premium" СТПП-18/4 (1800х400х1800) | C128: 15,507.45 | D128: 1820х420х210 | E128: 38.20 | F128: 39.20 | G128: =1.82*0.42*0.21 -> 0.16 | I128: 0.00 | J128: 0.00
A129: СТПП-18/5 | B129: Стеллаж производственный "ASSUM-Premium" СТПП-18/5 (1800х500х1800) | C129: 17,663.10 | D129: 1820х520х210 | E129: 43.40 | F129: 44.40 | G129: =1.82*0.52*0.21 -> 0.20 | I129: 0.00 | J129: 0.00
A130: СТПП-18/6 | B130: Стеллаж производственный "ASSUM-Premium" СТПП-18/6 (1800х600х1800) | C130: 28,265.00 | D130: 1820х620х210 | E130: 48.40 | F130: 49.40 | G130: =1.82*0.62*0.21 -> 0.24 | I130: 0.00 | J130: 0.00
A131: Тележки - шпильки серии "ASSUM"
A132: СГ-7 | B132: Тележка-шпилька для гастроемкостей (GN 1/1, 2/1) "ASSUM" СГ-7 (575х680х1050) | C132: 13,700.00 | D132: 785х690х985 | E132: 18.60 | F132: 19.60 | G132: 0.53 | I132: =H132*F132 -> 0.00 | J132: =H132*G132 -> 0.00 | K132: Тележка-шпилька 7 уровней для хранения и перемещения гастроемкостей GN 1/1, 2/1. Материалы: каркас - квадратная труба 20х20 мм из нержавеющей стали AISI 430 толщиной 1 мм; направляющие - нержавеющая сталь AISI 430 толщиной 0.7 мм; поворотные колёса диаметром 75 мм, два из них с тормозом. Сварная конструкция.
A133: СГ-12 | B133: Тележка-шпилька для гастроемкостей (GN 1/1, 2/1) "ASSUM" СГ-12 (575х680х1750) | C133: 14,600.00 | D133: 785х690х1685 | E133: 12.60 | F133: 13.60 | G133: 0.91 | I133: =H133*F133 -> 0.00 | J133: =H133*G133 -> 0.00 | K133: Тележка-шпилька 12 уровней для хранения и перемещения гастроемкостей GN 1/1, 2/1. Материалы: каркас - квадратная труба 20х20 мм из нержавеющей стали AISI 430 толщиной 1 мм; направляющие - нержавеющая сталь AISI 430 толщиной 0.7 мм; поворотные колёса диаметром 75 мм, два из них с тормозом. Сварная конструкция.
A134: СП-15 | B134: Тележка-шпилька для противней (600х400) "ASSUM" СП-15 (450х645х1750) | C134: 14,600.00 | D134: 460х655х1685 | E134: 15.00 | F134: 15.50 | G134: 0.51 | I134: =H134*F134 -> 0.00 | J134: =H134*G134 -> 0.00 | K134: Тележка-шпилька 15 уровней для хранения и перемещения противней 600х400 мм. Материалы: каркас - квадратная труба 20х20 мм из нержавеющей стали AISI 430 толщиной 1 мм; направляющие - нержавеющая сталь AISI 430 толщиной 1 мм; поворотные колёса диаметром 75 мм, два из них с тормозом. Сварная конструкция.
A135: Столы производственные серии "ASSUM-Standart"
A136: СПС-6/6 | B136: Стол производственный "ASSUM-Standart" СПС-6/6 (600х600х850) | C136: 3,345.00 | D136: 610х610х100 | E136: 12.60 | F136: 13.60 | G136: 0.04 | I136: =H136*F136 -> 0.00 | J136: =H136*G136 -> 0.00 | K136: Без борта. Материалы: столешница - нержавеющая сталь AISI 430 толщиной 0.7 мм, усиленная ламинированным ДСП толщиной 16 мм; Z-образные крепления столешницы из нержавеющей стали толщиной 1 мм (на углах) и 0,7 мм (в центре изделия); рамка столешницы из оцинкованной стали толщиной 1.5 мм ножки стола - оцинкованная сталь (уголок 40х40 мм) толщиной 1.5 мм; полка - решетка из оцинкованной стали толщиной 0.7 мм. Регулируемые по высоте пластиковые опоры. Конструкция разборная. Максимальная равномерно распределенная нагрузка на столешницу - до 150 кг.
A137: СПС-6/7 | B137: Стол производственный "ASSUM-Standart" СПС-6/7 (600х700х850) | C137: 4,136.00 | D137: 610х710х100 | E137: 15.00 | F137: 15.50 | G137: 0.04 | I137: 0.00 | J137: 0.00
A138: СПС-10/6 | B138: Стол производственный "ASSUM-Standart" СПС-10/6 (1000х600х850) | C138: 4,056.00 | D138: 1010х610х100 | E138: 18.60 | F138: 19.60 | G138: 0.06 | I138: 0.00 | J138: 0.00
A139: СПС-10/7 | B139: Стол производственный "ASSUM-Standart" СПС-10/7 (1000х700х850) | C139: 4,798.00 | D139: 1010х710х100 | E139: 19.35 | F139: 20.20 | G139: 0.07 | I139: 0.00 | J139: 0.00
A140: СПС-12/6 | B140: Стол производственный "ASSUM-Standart" СПС-12/6 (1200х600х850) | C140: 4,567.00 | D140: 1210х610х100 | E140: 21.60 | F140: 22.80 | G140: 0.07 | I140: 0.00 | J140: 0.00
A141: СПС-12/7 | B141: Стол производственный "ASSUM-Standart" СПС-12/7 (1200х700х850) | C141: 5,806.00 | D141: 1210х710х100 | E141: 23.25 | F141: 24.00 | G141: 0.09 | I141: 0.00 | J141: 0.00
A142: СПС-15/6 | B142: Стол производственный "ASSUM-Standart" СПС-15/6 (1500х600х850) | C142: 5,413.00 | D142: 1510х610х100 | E142: 25.80 | F142: 27.30 | G142: 0.09 | I142: 0.00 | J142: 0.00
A143: СПС-15/7 | B143: Стол производственный "ASSUM-Standart" СПС-15/7 (1500х700х850) | C143: 6,966.00 | D143: 1510х710х100 | E143: 27.50 | F143: 28.30 | G143: 0.11 | I143: 0.00 | J143: 0.00
A144: СПС-18/6 | B144: Стол производственный "ASSUM-Standart" СПС-18/6 (1800х600х850) | C144: 6,906.00 | D144: 1810х610х100 | E144: 34.00 | F144: 33.00 | G144: 0.11 | I144: 0.00 | J144: 0.00
A145: СПС-18/7 | B145: Стол производственный "ASSUM-Standart" СПС-18/7 (1800х700х850) | C145: 8,381.00 | D145: 1810х710х100 | E145: 36.00 | F145: 35.00 | G145: 0.13 | I145: 0.00 | J145: 0.00
A146: СПСБ-6/6 | B146: Стол производственный "ASSUM-Standart" СПСБ-6/6 (600х600х850) | C146: 3,611.00 | D146: 610х610х100 | E146: 12.80 | F146: 13.85 | G146: 0.04 | I146: 0.00 | J146: 0.00 | K146: С бортом. Высота борта 45 мм. Материалы: столешница - нержавеющая сталь AISI 430 толщиной 0.7 мм, усиленная ламинированным ДСП толщиной 16 мм; Z-образные крепления столешницы из нержавеющей стали толщиной 1 мм (на углах) и 0,7 мм (в центре изделия); рамка столешницы из оцинкованной стали толщиной 1.5 мм ножки стола - оцинкованная сталь (уголок 40х40 мм) толщиной 1.5 мм; полка - решетка из оцинкованной стали толщиной 0.7 мм. Регулируемые по высоте пластиковые опоры. Конструкция разборная. Максимальная равномерно распределенная нагрузка на столешницу - до 150 кг.
A147: СПСБ-6/7 | B147: Стол производственный "ASSUM-Standart" СПСБ-6/7 (600х700х850) | C147: 4,188.00 | D147: 610х710х100 | E147: 15.45 | F147: 16.50 | G147: 0.04 | I147: 0.00 | J147: 0.00
A148: СПСБ-10/6 | B148: Стол производственный "ASSUM-Standart" СПСБ-10/6 (1000х600х850) | C148: 4,248.00 | D148: 1010х610х100 | E148: 19.00 | F148: 20.00 | G148: 0.06 | I148: 0.00 | J148: 0.00
A149: СПСБ-10/7 | B149: Стол производственный "ASSUM-Standart" СПСБ-10/7 (1000х700х850) | C149: 5,181.00 | D149: 1010х710х100 | E149: 20.80 | F149: 21.60 | G149: 0.07 | I149: 0.00 | J149: 0.00
A150: СПСБ-12/6 | B150: Стол производственный "ASSUM-Standart" СПСБ-12/6 (1200х600х850) | C150: 4,790.00 | D150: 1210х610х100 | E150: 22.70 | F150: 23.90 | G150: 0.07 | I150: 0.00 | J150: 0.00
A151: СПСБ-12/7 | B151: Стол производственный "ASSUM-Standart" СПСБ-12/7 (1200х700х850) | C151: 6,275.00 | D151: 1210х710х100 | E151: 24.50 | F151: 25.40 | G151: 0.09 | I151: 0.00 | J151: 0.00
A152: СПСБ-15/6 | B152: Стол производственный "ASSUM-Standart" СПСБ-15/6 (1500х600х850) | C152: 5,810.00 | D152: 1510х610х100 | E152: 26.50 | F152: 28.90 | G152: 0.09 | I152: 0.00 | J152: 0.00
A153: СПСБ-15/7 | B153: Стол производственный "ASSUM-Standart" СПСБ-15/7 (1500х700х850) | C153: 7,551.00 | D153: 1510х710х100 | E153: 28.30 | F153: 30.00 | G153: 0.11 | I153: 0.00 | J153: 0.00
A154: СПСБ-18/6 | B154: Стол производственный "ASSUM-Standart" СПСБ-18/6 (1800х600х850) | C154: 7,144.00 | D154: 1810х610х100 | E154: 34.00 | F154: 33.00 | G154: 0.11 | I154: 0.00 | J154: 0.00
A155: СПСБ-18/7 | B155: Стол производственный "ASSUM-Standart" СПСБ-18/7 (1800х700х850) | C155: 8,994.00 | D155: 1810х710х100 | E155: 36.00 | F155: 35.00 | G155: 0.13 | I155: 0.00 | J155: 0.00
A156: Столы производственные серии "ASSUM-Premium"
A157: СПП-6/6 | B157: Стол производственный "ASSUM-Premium" СПП-6/6 (600х600х850) | C157: 5,861.00 | D157: 610х610х150 | E157: 14.50 | F157: 15.00 | G157: 0.06 | I157: =H157*F157 -> 0.00 | J157: =H157*G157 -> 0.00 | K157: Без борта. Материалы: столешница - нержавеющая сталь AISI 430 толщиной 0.7 мм, усиленная ламинированным ДСП толщиной 16 мм; Z-образные крепления столешницы из нержавеющей стали толщиной 1 мм (на углах) и 0,7 мм (в центре изделия); рамка столешницы из оцинкованной стали толщиной 1.5 мм ножки стола - нержавеющая сталь AISI 430 (уголок 40х40 мм) толщиной 1.5 мм; сплошная полка - нержавеющая сталь AISI 430 толщиной 0.7 мм; усиление полки (ребро жесткости) - оцинкованная сталь толщиной 0.7 мм. Регулируемые по высоте пластиковые опоры. Конструкция разборная. Максимальная равномерно распределенная нагрузка на столешницу - до 150 кг.
A158: СПП-6/7 | B158: Стол производственный "ASSUM-Premium" СПП-6/7 (600х700х850) | C158: 6,541.00 | D158: 610х710х150 | E158: 16.75 | F158: 17.25 | G158: 0.06 | I158: 0.00 | J158: 0.00
A159: СПП-10/6 | B159: Стол производственный "ASSUM-Premium" СПП-10/6 (1000х600х850) | C159: 6,910.00 | D159: 1010х610х150 | E159: 21.80 | F159: 22.70 | G159: 0.09 | I159: 0.00 | J159: 0.00
A160: СПП-10/7 | B160: Стол производственный "ASSUM-Premium" СПП-10/7 (1000х700х850) | C160: 7,740.00 | D160: 1010х710х150 | E160: 23.40 | F160: 24.70 | G160: 0.11 | I160: 0.00 | J160: 0.00
A161: СПП-12/6 | B161: Стол производственный "ASSUM-Premium" СПП-12/6 (1200х600х850) | C161: 7,843.00 | D161: 1210х610х150 | E161: 24.30 | F161: 25.50 | G161: 0.11 | I161: 0.00 | J161: 0.00
A162: СПП-12/7 | B162: Стол производственный "ASSUM-Premium" СПП-12/7 (1200х700х850) | C162: 9,016.00 | D162: 1210х710х150 | E162: 27.40 | F162: 28.40 | G162: 0.13 | I162: 0.00 | J162: 0.00
A163: СПП-15/6 | B163: Стол производственный "ASSUM-Premium" СПП-15/6 (1500х600х850) | C163: 9,192.00 | D163: 1510х610х150 | E163: 29.50 | F163: 31.00 | G163: 0.14 | I163: 0.00 | J163: 0.00
A164: СПП-15/7 | B164: Стол производственный "ASSUM-Premium" СПП-15/7 (1500х700х850) | C164: 10,253.00 | D164: 1510х710х150 | E164: 32.80 | F164: 34.40 | G164: 0.16 | I164: 0.00 | J164: 0.00
A165: СПП-18/6 | B165: Стол производственный "ASSUM-Premium" СПП-18/6 (1800х600х850) | C165: 10,306.00 | D165: 1810х610х150 | E165: 34.00 | F165: 33.00 | G165: 0.17 | I165: 0.00 | J165: 0.00
A166: СПП-18/7 | B166: Стол производственный "ASSUM-Premium" СПП-18/7 (1800х700х850) | C166: 11,412.00 | D166: 1810х710х150 | E166: 36.00 | F166: 35.00 | G166: 0.19 | I166: 0.00 | J166: 0.00
A167: СППБ-6/6 | B167: Стол производственный "ASSUM-Premium" СППБ-6/6 (600х600х850) | C167: 5,955.00 | D167: 610х610х150 | E167: 14.65 | F167: 15.15 | G167: 0.06 | I167: 0.00 | J167: 0.00 | K167: С бортом. Высота борта 45 мм. Материалы: столешница - нержавеющая сталь AISI 430 толщиной 0.7 мм, усиленная ламинированным ДСП толщиной 16 мм; Z-образные крепления столешницы из нержавеющей стали толщиной 1 мм (на углах) и 0,7 мм (в центре изделия); рамка столешницы из оцинкованной стали толщиной 1.5 мм ножки стола - нержавеющая сталь AISI 430 (уголок 40х40 мм) толщиной 1.5 мм; сплошная полка - нержавеющая сталь AISI 430 толщиной 0.7 мм; усиление полки (ребро жесткости) - оцинкованная сталь толщиной 0.7 мм. Регулируемые по высоте пластиковые опоры. Конструкция разборная. Максимальная равномерно распределенная нагрузка на столешницу - до 150 кг.
A168: СППБ-6/7 | B168: Стол производственный "ASSUM-Premium" СППБ-6/7 (600х700х850) | C168: 7,510.00 | D168: 610х710х150 | E168: 17.00 | F168: 17.60 | G168: 0.06 | I168: 0.00 | J168: 0.00
A169: СППБ-10/6 | B169: Стол производственный "ASSUM-Premium" СППБ-10/6 (1000х600х850) | C169: 7,179.00 | D169: 1010х610х150 | E169: 22.00 | F169: 22.90 | G169: 0.09 | I169: 0.00 | J169: 0.00
A170: СППБ-10/7 | B170: Стол производственный "ASSUM-Premium" СППБ-10/7 (1000х700х850) | C170: 9,225.30 | D170: 1010х710х150 | E170: 23.50 | F170: 24.20 | G170: 0.11 | I170: 0.00 | J170: 0.00
A171: СППБ-12/6 | B171: Стол производственный "ASSUM-Premium" СППБ-12/6 (1200х600х850) | C171: 8,077.00 | D171: 1210х610х150 | E171: 24.80 | F171: 26.00 | G171: 0.11 | I171: 0.00 | J171: 0.00
A172: СППБ-12/7 | B172: Стол производственный "ASSUM-Premium" СППБ-12/7 (1200х700х850) | C172: 9,753.45 | D172: 1210х710х150 | E172: 25.25 | F172: 26.45 | G172: 0.13 | I172: 0.00 | J172: 0.00
A173: СППБ-15/6 | B173: Стол производственный "ASSUM-Premium" СППБ-15/6 (1500х600х850) | C173: 9,416.00 | D173: 1510х610х150 | E173: 30.50 | F173: 32.00 | G173: 0.14 | I173: 0.00 | J173: 0.00
A174: СППБ-15/7 | B174: Стол производственный "ASSUM-Premium" СППБ-15/7 (1500х700х850) | C174: 11,099.00 | D174: 1510х710х150 | E174: 34.50 | F174: 35.40 | G174: 0.16 | I174: 0.00 | J174: 0.00
A175: СППБ-18/6 | B175: Стол производственный "ASSUM-Premium" СППБ-18/6 (1800х600х850) | C175: 11,392.00 | D175: 1810х610х150 | E175: 34.00 | F175: 35.00 | G175: 0.17 | I175: 0.00 | J175: 0.00
A176: СППБ-18/7 | B176: Стол производственный "ASSUM-Premium" СППБ-18/7 (1800х700х850) | C176: 12,446.00 | D176: 1810х710х150 | E176: 36.00 | F176: 38.00 | G176: 0.19 | I176: 0.00 | J176: 0.00
A177: Столы производственные серии "ASSUM-Premium - 2"
A178: СПП-2-6/6 | B178: Стол производственный "ASSUM-Premium" СПП-2-6/6 (600х600х850) | C178: 7,673.40 | D178: 610х610х180 | E178: 18.50 | F178: 20.00 | G178: 0.04 | I178: =H178*F178 -> 0.00 | J178: =H178*G178 -> 0.00 | K178: Без борта. Материалы: столешница - нержавеющая сталь AISI 430 толщиной 0.7 мм, усиленная ламинированным ДСП толщиной 16 мм; Z-образные крепления столешницы из нержавеющей стали AISI 430 толщиной 1 мм (на углах) и 0,7 мм (в центре изделия); рамка столешницы (юбка) из нержавеющей стали AISI 430 толщиной 1.5 мм ножки стола - нержавеющая сталь AISI 430 (квадратная труба 40х40 мм) толщиной 1 мм; сплошная полка - нержавеющая сталь AISI 430 толщиной 0.7 мм; усиление полки (ребро жесткости) - нержавеющая сталь AISI 430 толщиной 0.7 мм. Регулируемые по высоте пластиковые опоры. Конструкция разборная. Максимальная равномерно распределенная нагрузка на столешницу - до 150 кг.
A179: СПП-2-6/7 | B179: Стол производственный "ASSUM-Premium" СПП-2-6/7 (600х700х850) | C179: 9,207.45 | D179: 610х710х180 | E179: 20.75 | F179: 22.25 | G179: 0.08 | I179: 0.00 | J179: 0.00
A180: СПП-2-10/6 | B180: Стол производственный "ASSUM-Premium" СПП-2-10/6 (1000х600х850) | C180: 8,699.25 | D180: 1010х610х180 | E180: 25.80 | F180: 27.70 | G180: 0.11 | I180: 0.00 | J180: 0.00
A181: СПП-2-10/7 | B181: Стол производственный "ASSUM-Premium" СПП-2-10/7 (1000х700х850) | C181: 10,439.10 | D181: 1010х710х180 | E181: 27.40 | F181: 29.70 | G181: 0.13 | I181: 0.00 | J181: 0.00
A182: СПП-2-12/6 | B182: Стол производственный "ASSUM-Premium" СПП-2-12/6 (1200х600х850) | C182: 9,392.25 | D182: 1210х610х180 | E182: 28.30 | F182: 30.50 | G182: 0.13 | I182: 0.00 | J182: 0.00
A183: СПП-2-12/7 | B183: Стол производственный "ASSUM-Premium" СПП-2-12/7 (1200х700х850) | C183: 11,270.70 | D183: 1210х710х180 | E183: 31.40 | F183: 33.40 | G183: 0.15 | I183: 0.00 | J183: 0.00
A184: СПП-2-15/6 | B184: Стол производственный "ASSUM-Premium" СПП-2-15/6 (1500х600х850) | C184: 10,598.70 | D184: 1510х610х180 | E184: 33.50 | F184: 36.00 | G184: 0.17 | I184: 0.00 | J184: 0.00
A185: СПП-2-15/7 | B185: Стол производственный "ASSUM-Premium" СПП-2-15/7 (1500х700х850) | C185: 12,717.60 | D185: 1510х710х180 | E185: 36.80 | F185: 39.40 | G185: 0.19 | I185: 0.00 | J185: 0.00
A186: СПП-2-18/6 | B186: Стол производственный "ASSUM-Premium" СПП-2-18/6 (1800х600х850) | C186: 11,805.15 | D186: 1810х610х180 | E186: 38.00 | F186: 39.00 | G186: 0.20 | I186: 0.00 | J186: 0.00
A187: СПП-2-18/7 | B187: Стол производственный "ASSUM-Premium" СПП-2-18/7 (1800х700х850) | C187: 14,165.55 | D187: 1810х710х180 | E187: 40.00 | F187: 41.00 | G187: 0.23 | I187: 0.00 | J187: 0.00
A188: СППБ-2-6/6 | B188: Стол производственный "ASSUM-Premium" СППБ-2-6/6 (600х600х850) | C188: 8,045.10 | D188: 610х610х180 | E188: 18.65 | F188: 20.15 | G188: 0.04 | I188: 0.00 | J188: 0.00 | K188: С бортом. Высота борта 45 мм. Материалы: столешница - нержавеющая сталь AISI 430 толщиной 0.7 мм, усиленная ламинированным ДСП толщиной 16 мм; Z-образные крепления столешницы из нержавеющей стали AISI 430 толщиной 1 мм (на углах) и 0,7 мм (в центре изделия); рамка столешницы (юбка) из нержавеющей стали AISI 430 толщиной 1.5 мм ножки стола - нержавеющая сталь AISI 430 (квадратная труба 40х40 мм) толщиной 1 мм; сплошная полка - нержавеющая сталь AISI 430 толщиной 0.7 мм; усиление полки (ребро жесткости) - нержавеющая сталь AISI 430 толщиной 0.7 мм. Регулируемые по высоте пластиковые опоры. Конструкция разборная. Максимальная равномерно распределенная нагрузка на столешницу - до 150 кг.
A189: СППБ-2-6/7 | B189: Стол производственный "ASSUM-Premium" СППБ-2-6/7 (600х700х850) | C189: 9,653.70 | D189: 610х710х180 | E189: 21.00 | F189: 22.60 | G189: 0.08 | I189: 0.00 | J189: 0.00
A190: СППБ-2-10/6 | B190: Стол производственный "ASSUM-Premium" СППБ-2-10/6 (1000х600х850) | C190: 9,114.00 | D190: 1010х610х180 | E190: 26.00 | F190: 27.90 | G190: 0.11 | I190: 0.00 | J190: 0.00
A191: СППБ-2-10/7 | B191: Стол производственный "ASSUM-Premium" СППБ-2-10/7 (1000х700х850) | C191: 10,935.75 | D191: 1010х710х180 | E191: 27.50 | F191: 29.20 | G191: 0.13 | I191: 0.00 | J191: 0.00
A192: СППБ-2-12/6 | B192: Стол производственный "ASSUM-Premium" СППБ-2-12/6 (1200х600х850) | C192: 10,095.75 | D192: 1210х610х180 | E192: 28.80 | F192: 31.00 | G192: 0.13 | I192: 0.00 | J192: 0.00
A193: СППБ-2-12/7 | B193: Стол производственный "ASSUM-Premium" СППБ-2-12/7 (1200х700х850) | C193: 12,114.90 | D193: 1210х710х180 | E193: 29.25 | F193: 31.20 | G193: 0.15 | I193: 0.00 | J193: 0.00
A194: СППБ-2-15/6 | B194: Стол производственный "ASSUM-Premium" СППБ-2-15/6 (1500х600х850) | C194: 10,998.75 | D194: 1510х610х180 | E194: 34.50 | F194: 36.00 | G194: 0.17 | I194: 0.00 | J194: 0.00
A195: СППБ-2-15/7 | B195: Стол производственный "ASSUM-Premium" СППБ-2-15/7 (1500х700х850) | C195: 13,198.50 | D195: 1510х710х180 | E195: 38.50 | F195: 40.40 | G195: 0.19 | I195: 0.00 | J195: 0.00
A196: СППБ-2-18/6 | B196: Стол производственный "ASSUM-Premium" СППБ-2-18/6 (1800х600х850) | C196: 11,901.75 | D196: 1810х610х180 | E196: 38.00 | F196: 39.50 | G196: 0.20 | I196: 0.00 | J196: 0.00
A197: СППБ-2-18/7 | B197: Стол производственный "ASSUM-Premium" СППБ-2-18/7 (1800х700х850) | C197: 14,488.00 | D197: 1810х710х180 | E197: 40.00 | F197: 41.45 | G197: 0.23 | I197: 0.00 | J197: 0.00
A198: Столы-тумбы серии "ASSUM-Premium"
A199: СПК-10/6 | B199: Стол-тумба "ASSUM-Premium" СПК-10/6 (1000х600х850) | C199: 21,505.00 | D199: 1010х610х850 | E199: 36.50 | F199: 37.50 | G199: 0.52 | I199: =H199*F199 -> 0.00 | J199: =H199*G199 -> 0.00 | K199: Стол-тумба с раздвижными дверями (купе). Закрыт с 4-х сторон. Два уровня хранения (дно+полка). Без борта. Материалы: столешница - нержавеющая сталь AISI 430 толщиной 0.7 мм, усиленная ламинированным ДСП толщиной 16 мм; ножки стола - нержавеющая сталь AISI 430 (квадратная труба 40х40 мм) толщиной 1 мм; боковые стенки, двери, дно, сплошная полка - нержавеющая сталь AISI 430 толщиной 0.7 мм; усиление полки (ребро жесткости) - нержавеющая сталь AISI 430 толщиной 0.7 мм. Регулируемые по высоте пластиковые опоры. Сварная конструкция. Максимальная равномерно распределенная нагрузка на столешницу - до 120 кг.
A200: СПК-10/7 | B200: Стол-тумба "ASSUM-Premium" СПК-10/7 (1000х700х850) | C200: 24,731.00 | D200: 1010х710х850 | E200: 40.00 | F200: 41.00 | G200: 0.61 | I200: 0.00 | J200: 0.00
A201: СПК-12/6 | B201: Стол-тумба "ASSUM-Premium" СПК-12/6 (1200х600х850) | C201: 25,192.00 | D201: 1210х610х850 | E201: 41.00 | F201: 42.00 | G201: 0.63 | I201: 0.00 | J201: 0.00
A202: СПК-12/7 | B202: Стол-тумба "ASSUM-Premium" СПК-12/7 (1200х700х850) | C202: 28,971.00 | D202: 1210х710х850 | E202: 44.50 | F202: 45.50 | G202: 0.73 | I202: 0.00 | J202: 0.00
A203: СПК-15/6 | B203: Стол-тумба "ASSUM-Premium" СПК-15/6 (1500х600х850) | C203: 28,878.00 | D203: 1510х610х850 | E203: 49.00 | F203: 50.00 | G203: 0.78 | I203: 0.00 | J203: 0.00
A204: СПК-15/7 | B204: Стол-тумба "ASSUM-Premium" СПК-15/7 (1500х700х850) | C204: 33,210.00 | D204: 1510х710х850 | E204: 53.50 | F204: 54.50 | G204: 0.91 | I204: 0.00 | J204: 0.00
A205: СПК-18/6 | B205: Стол-тумба "ASSUM-Premium" СПК-18/6 (1800х600х850) | C205: 32,565.00 | D205: 1810х610х850 | E205: 55.60 | F205: 56.50 | G205: 0.94 | I205: 0.00 | J205: 0.00
A206: СПК-18/7 | B206: Стол-тумба "ASSUM-Premium" СПК-18/7 (1800х700х850) | C206: 37,450.00 | D206: 1810х710х850 | E206: 61.00 | F206: 63.00 | G206: 1.09 | I206: 0.00 | J206: 0.00
... 68 more rows

Sheet Kuvings
D2: Главное меню
A5: Модель | B5: Технические характеристики | C5: Цена розничная, $
A6: Соковыжималка CS600 | B6: Цвет Серебро Тип Ветрикальная низкоскоростная шнековая Скорость60 оборотов в минуту Мощность200Ватт Размеры 260х183х515мм Вес 9.1 Кг. Вместимость 500 мл. Время работы Не более 1,440 минут (Максимум 24 часа) Материалы Ultem, Tritan, ABS, PC | C6: 1500
A9: Запатентованный низкоскоростной отжим, позволяет шнековой соковыжималке спрессовывать и отжимать ингредиенты, а не перемалывать их. Kuvings Slow Juicer Chef дает больше сока благодаря улучшенному шнеку, форме барабана и мелкому ситу, а с заполнением объема отжатым соком, сокращается время взаимодействия сока с воздухом.
A10: 1. Первая в мире профессиональная шнековая (бережная) соковыжималка
A11: 2. Уникальная система отжима
A12: 3. Прессование без разогрева
A13: 4. Экстра-широкий загрузочный лоток
A14: 5. Корпус с покрытием из нержавеющей стали
A15: 6. 24 часовая работа без остановок
A16: 7. Мощный и тихий мотор
A17: 8. 88 мм. загрузочное отверстие
A18: 9. 200 Ватт для эффективного выжимания сока
A19: 10. Мощная, надежная с прекрасным дизайном
A20: 11. Разработана с учетом эргономики
A22: Модель | B22: Технические характеристики | C22: Цена розничная, $
A23: Блендер KPB-351B | C23: 499
B63: Kuvings (соковыжималка)#Kuvings

Sheet Pacojet
B2: Пакоджеттинг - революционный процесс, при котором смешиваются в пюре глубоко замороженные пищевые продукты непосредственно в его замороженном виде, не допуская размораживания, позволяющий получить охлажденный с сильным естественным вкусом мусс с отличной консистенцией и идеальной температурой подачи | E2: Главное меню
A4: Модель | B4: Технические характеристики | C4: Цена розничная, евро
A5: PJ02 | B5: Pacojet 2 System, В комплекте: стакан с крышкой; нож; внешний защитный стакан; вставка для ополаскивания; вставка для чистки с вращающимися щетками; уплотнительное кольцо к вставке для чистки; Цвет: Серебро Мощность: 1000 Вт Напряжение:220-240 В / 50 Гц Давление: 1,2 бар Габариты : 500 x 200 x 360 мм Вес: 13 кг Упаковка: 600 x 300 x 460 мм Вес брутто: 16 кг Емкость стакана: 0,8 л Оптимальная температура приготовления:-18 - 22 °C Скорость вращения: моторная часть: 6000 об/мин, ножи: 2000 об/мин | C5: цена по согласованию
A6: PJ42249 | B6: Стакан с крышкой (комплект из 4) из нержавеющей стали с крышками, цвет крышки белый | C6: цена по согласованию
A8: 1. Новый цветной графический дисплей и сенсорный экран с интуитивно понятными пиктограммами
A9: 2. Режим давления воздуха с автоматической разгерметизацией – сброс давления во время работы с защитой от переполнения
A10: 3. Предохранительная функция – автоматический контроль к переполнению содержимого контейнера, без оттаивания продуктов
A11: 4. Полный цикл очистки отображается на дисплее – визуальное руководство для простой и гигиенической чистки машины
A12: 5. Настройки пользователя – возможность настроить PacoJet 2 в соответствии с вашими предпочтениями и потребностями
A13: 6. Всеобъемлющее, иллюстрированное руководство по эксплуатации;
A14: 7. С выдающейся производительностью и надежностью, значительно более тихий и практически без износа
A15: 8. Эксклюзивная разработка швейцарских инженеров бесщеточный двигатель с расширенной 5 летней гарантией

Sheet Hicoldbar
A2: МОДУЛЬНЫЕ БАРНЫЕ СТОЙКИ | G2: Главное меню
A4: БАРНЫЕ КОКТЕЙЛЬНЫЕ СТАНЦИИ ЗАКРЫТЫЕ
A6: Модель с бортом | B6: Ванна под лёд, мм | C6: Габариты, мм | D6: Цена, руб.
A7: НБМКС-12/5БПК | B7: 571х270х262 | C7: 1200х700х850 | D7: 47,579
A8: НБМКС-12/6БПК | B8: 631х416х262 | C8: 1200х800х850 | D8: 61,542
A9: НБМКС-12/7БПК | B9: 631х416х262 | C9: 1200х900х850 | D9: 67,697
A10: НБМКС-12/5БПК (без ящиков) | B10: 571х270х262 | C10: 1200х700х850 | D10: 39,465
A11: НБМКС-12/6БПК (без ящиков) | B11: 631х416х262 | C11: 1200х800х850 | D11: 46,042
A12: НБМКС-12/7БПК (без ящиков) | B12: 631х416х262 | C12: 1200х900х850 | D12: 50,647
A13: НБМКС-15/5БПК | B13: 476х270х262 | C13: 1500х700х850 | D13: 59,364
A14: НБМКС-16/5БПК | B14: 571х270х262 | C14: 1600х700х850 | D14: 62,567
A15: НБМКС-15/6БПК | B15: 522х416х262 | C15: 1500х800х850 | D15: 73,304
A16: НБМКС-16/6БПК | B16: 631х416х262 | C16: 1600х800х850 | D16: 77,319
A17: НБМКС-15/7БПК | B17: 522х416х262 | C17: 1500х900х850 | D17: 80,635
A18: НБМКС-16/7БПК | B18: 631х416х262 | C18: 1600х900х850 | D18: 85,051
A19: НБМКС-15/5БПК (без ящиков) | B19: 476х270х262 | C19: 1500х700х850 | D19: 51,624
A20: НБМКС-16/5БПК (без ящиков) | B20: 571х270х262 | C20: 1600х700х850 | D20: 55,593
A21: НБМКС-15/6БПК (без ящиков) | B21: 522х416х262 | C21: 1500х800х850 | D21: 58,198
A22: НБМКС-16/6БПК (без ящиков) | B22: 631х416х262 | C22: 1600х800х850 | D22: 63,018
A23: НБМКС-15/7БПК (без ящиков) | B23: 522х416х262 | C23: 1500х900х850 | D23: 64,018
A24: НБМКС-16/7БПК (без ящиков) | B24: 631х416х262 | C24: 1600х900х850 | D24: 69,320
A25: НБМКС-15/5БПК (без ящиков, без вертушки) | B25: 476х270х262 | C25: 1500х700х850 | D25: 50,954
A26: НБМКС-16/5БПК (без ящиков, без вертушки) | B26: 571х270х262 | C26: 1600х700х850 | D26: 54,922
A27: НБМКС-15/6БПК (без ящиков, без вертушки) | B27: 522х416х262 | C27: 1500х800х850 | D27: 57,492
A28: НБМКС-16/6БПК (без ящиков, без вертушки) | B28: 631х416х262 | C28: 1600х800х850 | D28: 62,312
A29: НБМКС-15/7БПК (без ящиков, без вертушки) | B29: 522х416х262 | C29: 1500х900х850 | D29: 63,242
A30: НБМКС-16/7БПК (без ящиков, без вертушки) | B30: 631х416х262 | C30: 1600х900х850 | D30: 68,544
A32: Каркасы, к барным станциям НБМКС
A34: Барная станция | B34: НБМКС-12/х | C34: НБМКС-15/х | D34: НБМС-16/х
A35: Каркасы | B35: НБСК 6/х + НБСК 6/х | C35: НБСК 6/х + НБСК 9/х, НБСК 10/х + НБСК 5/х | D35: НБСК 7/х + НБСК 9/х, НБСК 10/х + НБСК 6/х
A37: Примечание: комбинации каркасов, не указанные в данной таблице, к барным коктейльным станциям не подходят
A39: БАРНЫЕ КОКТЕЙЛЬНЫЕ СТАНЦИИ ОТКРЫТЫЕ
A41: Модель с бортом | B41: Ванна под лёд, мм | C41: Габариты, мм | D41: Цена, руб.
A42: НКС-10/5БПК | B42: 476х270х262 | C42: 1000х770х850 | D42: 22,005
A43: НКС-10/6БПК | B43: 476х270х262 | C43: 1000х870х850 | D43: 23,160
A44: НКС-10/7БПК | B44: 476х270х262 | C44: 1000х970х850 | D44: 25,480
A45: НКС-12/5БПК | B45: 667х270х262 | C45: 1200х770х850 | D45: 24,470
A46: НКС-12/6БПК | B46: 667х270х262 | C46: 1200х870х850 | D46: 25,755
A47: НКС-12/7БПК | B47: 667х270х262 | C47: 1200х970х850 | D47: 28,335
A48: НКС-10/5БК | B48: 476х270х262 | C48: 1000х770х850 | D48: 22,330
A49: НКС-10/6БК | B49: 476х270х262 | C49: 1000х870х850 | D49: 23,505
A50: НКС-10/7БК | B50: 476х270х262 | C50: 1000х970х850 | D50: 25,860
A51: НКС-12/5БК | B51: 667х270х262 | C51: 1200х770х850 | D51: 24,795
A52: НКС-12/6БК | B52: 667х270х262 | C52: 1200х870х850 | D52: 26,100
A53: НКС-12/7БК | B53: 667х270х262 | C53: 1200х970х850 | D53: 28,710
A54: НКС-14/5БПК | B54: 476х270х262 | C54: 1400х770х850 | D54: 24,970
A55: НКС-14/6БПК | B55: 476х270х262 | C55: 1400х870х850 | D55: 26,285
A56: НКС-14/7БПК | B56: 476х270х262 | C56: 1400х970х850 | D56: 28,915
A57: НКС-15/5БПК | B57: 571х270х262 | C57: 1500х770х850 | D57: 26,150
A58: НКС-15/6БПК | B58: 571х270х262 | C58: 1500х870х850 | D58: 27,525
A59: НКС-15/7БПК | B59: 571х270х262 | C59: 1500х970х850 | D59: 30,280
A60: НКС-14/5БК | B60: 476х270х262 | C60: 1400х770х850 | D60: 25,300
A61: НКС-14/6БК | B61: 476х270х262 | C61: 1400х870х850 | D61: 26,630
A62: НКС-14/7БК | B62: 476х270х262 | C62: 1400х970х850 | D62: 29,295
A63: НКС-15/5БК | B63: 571х270х262 | C63: 1500х770х850 | D63: 26,480
A64: НКС-15/6БК | B64: 571х270х262 | C64: 1500х870х850 | D64: 27,870
A65: НКС-15/7БК | B65: 571х270х262 | C65: 1500х970х850 | D65: 30,660
A67: Барные станции НКС не предназначены для установки в каркасы
A69: БАРНЫЕ СТАНЦИИ
A71: Модель с бортом | B71: Ванна под лёд, мм | C71: Габариты, мм | D71: Цена, руб.
A72: 500 серия без дополнительного кармана
A73: НБМВЛ-6/5Б | B73: 376х270х262 | C73: 600х500х850 | D73: 17,130
A74: НБМВЛ-7/5Б | B74: 476х270х262 | C74: 700х500х850 | D74: 19,501
A75: НБМВЛ-8/5Б | B75: 571х270х262 | C75: 800х500х850 | D75: 21,185
A76: НБМВЛ-9/5Б | B76: 667х270х262 | C76: 900х500х850 | D76: 24,200
A77: НМБВЛ-10/5Б | B77: 762х270х262 | C77: 1000х500х850 | D77: 27,912
A78: 600 серия без дополнительного кармана
A79: НБМВЛ-6/6Б | B79: 376х270х262 | C79: 600х600х850 | D79: 17,991
A80: НБМВЛ-7/6Б | B80: 476х270х262 | C80: 700х600х850 | D80: 20,491
A81: НБМВЛ-8/6Б | B81: 571х270х262 | C81: 800х600х850 | D81: 22,269
A82: НБМВЛ-9/6Б | B82: 667х270х262 | C82: 900х600х850 | D82: 25,447
A83: НМБВЛ-10/6Б | B83: 762х270х262 | C83: 1000х600х850 | D83: 29,359
A84: 700 серия без дополнительного кармана
A85: НБМВЛ-6/7Б | B85: 376х270х262 | C85: 600х700х850 | D85: 19,713
A86: НБМВЛ-7/7Б | B86: 476х270х262 | C86: 700х700х850 | D86: 22,472
A87: НБМВЛ-8/7Б | B87: 571х270х262 | C87: 800х700х850 | D87: 24,438
A88: НБМВЛ-9/7Б | B88: 667х270х262 | C88: 900х700х850 | D88: 27,941
A89: НМБВЛ-10/7Б | B89: 762х270х262 | C89: 1000х700х850 | D89: 32,252
A90: 500 серия с дополнительным карманом
A91: НБМВЛ-6/5БК | B91: 376х270х262 | C91: 600х500х850 | D91: 17,624
A92: НБМВЛ-7/5БК | B92: 476х270х262 | C92: 700х500х850 | D92: 20,076
A93: НБМВЛ-8/5БК | B93: 571х270х262 | C93: 800х500х850 | D93: 21,809
A94: НБМВЛ-9/5БК | B94: 667х270х262 | C94: 900х500х850 | D94: 24,900
A95: НМБВЛ-10/5БК | B95: 762х270х262 | C95: 1000х500х850 | D95: 28,692
A96: 600 серия с дополнительным карманом
A97: НБМВЛ-6/6БК | B97: 376х270х262 | C97: 600х600х850 | D97: 18,485
A98: НБМВЛ-7/6БК | B98: 476х270х262 | C98: 700х600х850 | D98: 21,067
A99: НБМВЛ-8/6БК | B99: 571х270х262 | C99: 800х600х850 | D99: 22,894
A100: НБМВЛ-9/6БК | B100: 667х270х262 | C100: 900х600х850 | D100: 26,147
A101: НМБВЛ-10/6БК | B101: 762х270х262 | C101: 1000х600х850 | D101: 30,139
A102: 700 серия с дополнительным карманом
A103: НБМВЛ-6/7БК | B103: 376х270х262 | C103: 600х700х850 | D103: 20,206
A104: НБМВЛ-7/7БК | B104: 476х270х262 | C104: 700х700х850 | D104: 23,047
A105: НБМВЛ-8/7БК | B105: 571х270х262 | C105: 800х700х850 | D105: 25,062
A106: НБМВЛ-9/7БК | B106: 667х270х262 | C106: 900х700х850 | D106: 28,641
A107: НМБВЛ-10/7БК | B107: 762х270х262 | C107: 1000х700х850 | D107: 33,032
A108: 500 серия без дополнительного кармана
A109: НБМВЛ-6/5БКР | B109: 376х270х262 | C109: 600х500х850 | D109: 20,780
A110: НБМВЛ-7/5БКР | B110: 476х270х262 | C110: 700х500х850 | D110: 23,150
A111: НБМВЛ-8/5БКР | B111: 571х270х262 | C111: 800х500х850 | D111: 24,660
A112: НБМВЛ-9/5БКР | B112: 667х270х262 | C112: 900х500х850 | D112: 27,675
A113: НМБВЛ-10/5БКР | B113: 762х270х262 | C113: 1000х500х850 | D113: 31,387
A114: 600 серия без дополнительного кармана
A115: НБМВЛ-6/6БКР | B115: 376х270х262 | C115: 600х600х850 | D115: 21,641
A116: НБМВЛ-7/6БКР | B116: 476х270х262 | C116: 700х600х850 | D116: 24,140
A117: НБМВЛ-8/6БКР | B117: 571х270х262 | C117: 800х600х850 | D117: 25,744
A118: НБМВЛ-9/6БКР | B118: 667х270х262 | C118: 900х600х850 | D118: 28,922
A119: НМБВЛ-10/6БКР | B119: 762х270х262 | C119: 1000х600х850 | D119: 32,834
A120: 700 серия без дополнительного кармана
A121: НБМВЛ-6/7БКР | B121: 376х270х262 | C121: 600х700х850 | D121: 23,363
A122: НБМВЛ-7/7БКР | B122: 476х270х262 | C122: 700х700х850 | D122: 26,120
A123: НБМВЛ-8/7БКР | B123: 571х270х262 | C123: 800х700х850 | D123: 27,913
A124: НБМВЛ-9/7БКР | B124: 667х270х262 | C124: 900х700х850 | D124: 31,416
A125: НМБВЛ-10/7БКР | B125: 762х270х262 | C125: 1000х700х850 | D125: 35,728
A126: 500 серия с дополнительным карманом
A127: НБМВЛ-6/5БККР | B127: 376х270х262 | C127: 600х500х850 | D127: 21,272
A128: НБМВЛ-7/5БККР | B128: 476х270х262 | C128: 700х500х850 | D128: 23,726
A129: НБМВЛ-8/5БККР | B129: 571х270х262 | C129: 800х500х850 | D129: 25,284
A130: НБМВЛ-9/5БККР | B130: 667х270х262 | C130: 900х500х850 | D130: 28,376
A131: НМБВЛ-10/5БККР | B131: 762х270х262 | C131: 1000х500х850 | D131: 32,167
A132: 600 серия с дополнительным карманом
A133: НБМВЛ-6/6БККР | B133: 376х270х262 | C133: 600х600х850 | D133: 22,133
A134: НБМВЛ-7/6БККР | B134: 476х270х262 | C134: 700х600х850 | D134: 24,716
A135: НБМВЛ-8/6БККР | B135: 571х270х262 | C135: 800х600х850 | D135: 26,369
A136: НБМВЛ-9/6БККР | B136: 667х270х262 | C136: 900х600х850 | D136: 29,622
A137: НМБВЛ-10/6БККР | B137: 762х270х262 | C137: 1000х600х850 | D137: 33,614
A138: 700 серия с дополнительным карманом
A139: НБМВЛ-6/7БККР | B139: 376х270х262 | C139: 600х700х850 | D139: 23,855
A140: НБМВЛ-7/7БККР | B140: 476х270х262 | C140: 700х700х850 | D140: 26,697
A141: НБМВЛ-8/7БККР | B141: 571х270х262 | C141: 800х700х850 | D141: 28,538
A142: НБМВЛ-9/7БККР | B142: 667х270х262 | C142: 900х700х850 | D142: 32,117
A143: НМБВЛ-10/7БККР | B143: 762х270х262 | C143: 1000х700х850 | D143: 36,507
A145: СТОЛЫ ОТКРЫТЫЕ
A147: Модель с бортом | B147: Габариты, мм | C147: Цена, руб.
A148: 250 серия без полки
A149: НБМСО-4/2,5Б | B149: 400х250х850 | C149: 10,147
A150: НБМСО-5/2,5Б | B150: 500х250х850 | C150: 10,570
A151: НБМСО-6/2,5Б | B151: 600х250х850 | C151: 10,993
A152: НБМСО-7/2,5Б | B152: 700х250х850 | C152: 11,415
A153: НБМСО-8/2,5Б | B153: 800х250х850 | C153: 12,270
A154: НБМСО-9/2,5Б | B154: 900х250х850 | C154: 12,774
A155: НБМСО-10/2,5Б | B155: 1000х250х850 | C155: 13,298
A156: НБМСО-11/2,5Б | B156: 1100х250х850 | C156: 14,154
A157: НБМСО-12/2,5Б | B157: 1200х250х850 | C157: 15,009
A158: 300 серия без полки
A159: НБМСО-4/3Б | B159: 400х300х850 | C159: 10,681
A160: НБМСО-5/3Б | B160: 500х300х850 | C160: 11,126
A161: НБМСО-6/3Б | B161: 600х300х850 | C161: 11,571
A162: НБМСО-7/3Б | B162: 700х300х850 | C162: 12,015
A163: НБМСО-8/3Б | B163: 800х300х850 | C163: 12,915
A164: НБМСО-9/3Б | B164: 900х300х850 | C164: 13,446
A165: НБМСО-10/3Б | B165: 1000х300х850 | C165: 13,997
A166: НБМСО-11/3Б | B166: 1100х300х850 | C166: 14,898
A167: НБМСО-12/3Б | B167: 1200х300х850 | C167: 15,798
A168: 400 серия без полки
A169: НБМСО-4/4Б | B169: 400х400х850 | C169: 11,243
A170: НБМСО-5/4Б | B170: 500х400х850 | C170: 11,711
A171: НБМСО-6/4Б | B171: 600х400х850 | C171: 12,179
A172: НБМСО-7/4Б | B172: 700х400х850 | C172: 12,647
A173: НБМСО-8/4Б | B173: 800х400х850 | C173: 13,594
A174: НБМСО-9/4Б | B174: 900х400х850 | C174: 14,153
A175: НБМСО-10/4Б | B175: 1000х400х850 | C175: 14,733
A176: НБМСО-11/4Б | B176: 1100х400х850 | C176: 15,682
A177: НБМСО-12/4Б | B177: 1200х400х850 | C177: 16,629
A178: 500 серия без полки
A179: НБМСО-4/5Б | B179: 400х500х850 | C179: 11,834
A180: НБМСО-5/5Б | B180: 500х500х850 | C180: 12,327
A181: НБМСО-6/5Б | B181: 600х500х850 | C181: 12,819
A182: НБМСО-7/5Б | B182: 700х500х850 | C182: 13,312
A183: НБМСО-8/5Б | B183: 800х500х850 | C183: 14,309
A184: НБМСО-9/5Б | B184: 900х500х850 | C184: 14,897
A185: НБМСО-10/5Б | B185: 1000х500х850 | C185: 15,508
A186: НБМСО-11/5Б | B186: 1100х500х850 | C186: 16,507
A187: НБМСО-12/5Б | B187: 1200х500х850 | C187: 17,504
A188: 600 серия без полки
A189: НБМСО-4/6Б | B189: 400х600х850 | C189: 12,456
A190: НБМСО-5/6Б | B190: 500х600х850 | C190: 12,975
A191: НБМСО-6/6Б | B191: 600х600х850 | C191: 13,493
A192: НБМСО-7/6Б | B192: 700х600х850 | C192: 14,012
A193: НБМСО-8/6Б | B193: 800х600х850 | C193: 15,062
A194: НБМСО-9/6Б | B194: 900х600х850 | C194: 15,681
A195: НБМСО-10/6Б | B195: 1000х600х850 | C195: 16,324
A196: НБМСО-11/6Б | B196: 1100х600х850 | C196: 17,375
A197: НБМСО-12/6Б | B197: 1200х600х850 | C197: 18,424
A198: 700 серия без полки
A199: НБМСО-4/7Б | B199: 400х700х850 | C199: 13,702
A200: НБМСО-5/7Б | B200: 500х700х850 | C200: 14,273
A201: НБМСО-6/7Б | B201: 600х700х850 | C201: 14,843
A202: НБМСО-7/7Б | B202: 700х700х850 | C202: 15,414
A203: НБМСО-8/7Б | B203: 800х700х850 | C203: 16,569
A204: НБМСО-9/7Б | B204: 900х700х850 | C204: 17,250
A205: НБМСО-10/7Б | B205: 1000х700х850 | C205: 17,957
A206: НБМСО-11/7Б | B206: 1100х700х850 | C206: 19,113
A207: НБМСО-12/7Б | B207: 1200х700х850 | C207: 20,268
A208: 250 серия с полкой
A209: НБМСО-4/2,5БП | B209: 400х250х850 | C209: 10,923
A210: НБМСО-5/2,5БП | B210: 500х250х850 | C210: 11,445
A211: НБМСО-6/2,5БП | B211: 600х250х850 | C211: 11,971
A212: НБМСО-7/2,5БП | B212: 700х250х850 | C212: 12,496
A213: НБМСО-8/2,5БП | B213: 800х250х850 | C213: 13,382
... 600 more rows

Sheet Hicoldkond
B2: ВИТРИНЫ ОХЛАЖДАЕМЫЕ КОНДИТЕРСКИЕ | L2: Главное меню
B4: На колёсах
B6: Модель | C6: Габариты, мм | D6: Объем, л | E6: Температурный режим, °C | F6: Цвет корпуса | G6: Вес, кг | H6: Описание | I6: Полки | J6: Цена, руб.
B7: VRC 350 | C7: 600х600 (628)х1915 | D7: 350 | E7: +2…+10 | F7: Металл | G7: 125 | H7: Подсветка внутри витрины, Напряжение питания: 220В, 50 Гц Мощность, Вт: 690 | I7: 5 полок (535x535мм) | J7: 92450
B8: VRC 350 R | I8: 5 вращающихся полок (535x535мм) | J8: 106390
B9: VRC 350 PG | C9: 600х600 (628)х1915 | D9: 350 | E9: +2…+10 | F9: Перламут золотой (RAL 1036) | G9: 135 | H9: Подсветка внутри витрины, Напряжение питания: 220В, 50 Гц Мощность, Вт: 690 | I9: 5 полок (d=470мм) | J9: 86520
B10: VRC 350 R PG | I10: 5 вращающихся полок (d=470мм) | J10: 100040
B11: VRC 350 Be | C11: 600х600 (628)х1915 | D11: 350 | E11: +2…+10 | F11: Бежевый (RAL 1001) | G11: 125 | H11: Подсветка внутри витрины Напряжение питания: 220В, 50 Гц Мощность, Вт: 690 | I11: 5 полок (535x535мм) | J11: 86520
B12: VRC 350 R Be | I12: 5 вращающихся полок (535x535мм) | J12: 100040
B14: На низких ножках
B16: Модель | C16: Габариты, мм | D16: Объем, л | E16: Температурный режим, °C | F16: Цвет корпуса | G16: Вес, кг | H16: Описание | I16: Полки | J16: Цена, руб.
B17: VRC 350 SH | C17: 600х600 (628)х1810 | D17: 350 | E17: +2…+10 | F17: Металл | G17: 125 | H17: Подсветка внутри витрины, Напряжение питания: 220В, 50 Гц Мощность, Вт: 690 | I17: 5 полок (535x535мм) | J17: 79450
B18: VRC 350 R Sh | I18: 5 вращающихся полок (535x535мм) | J18: 93390
B19: VRC 350 Sh PG | C19: 600х600 (628)х1810 | D19: 350 | E19: +2…+10 | F19: Перламут золотой (RAL 1036) | G19: 135 | H19: Подсветка внутри витрины, Напряжение питания: 220В, 50 Гц Мощность, Вт: 690 | I19: 5 полок (d=470мм) | J19: 73930
B20: VRC 350 RSh PG | I20: 5 вращающихся полок (d=470мм) | J20: 87040
B21: VRC 350 Sh Be | C21: 600х600 (628)х1810 | D21: 350 | E21: +2…+10 | F21: Бежевый (RAL 1001) | G21: 125 | H21: Подсветка внутри витрины Напряжение питания: 220В, 50 Гц Мощность, Вт: 690 | I21: 5 полок (535x535мм) | J21: 73930
B22: VRC 350 R Sh Be | I22: 5 вращающихся полок (535x535мм) | J22: 87040

Sheet Hicoldneitral
B2: НЕЙТРАЛЬНОЕ ОБОРУДОВАНИЕ | G2: Главное меню
B4: СТОЛЫ ПРОИЗВОДСТВЕННЫЕ
B6: СТОЛЫ ПРОИЗВОДСТВЕННЫЕ ОТКРЫТЫЕ
B7: столешница - усилена ДСП, сталь 0,8 мм; каркас – нержавеющая труба 40х40 мм
B9: Модель | C9: Габариты, мм | D9: Цена, руб.
B10: 600 серия
B11: НСО-4/6 | C11: 400х600х850 | D11: 5254
B12: НСО-5/6 | C12: 500х600х850 | D12: 5373
B13: НСО-6/6 | C13: 600х600х850 | D13: 5516
B14: НСО-7/6 | C14: 700х600х850 | D14: 6104
B15: НСО-8/6 | C15: 800х600х850 | D15: 6760
B16: НСО-9/6 | C16: 900х600х850 | D16: 7047
B17: НСО-10/6 | C17: 1000х600х850 | D17: 7407
B18: НСО-11/6 | C18: 1100х600х850 | D18: 8036
B19: НСО-12/6 | C19: 1200х600х850 | D19: 8311
B20: НСО-13/6 | C20: 1300х600х850 | D20: 9080
B21: НСО-14/6 | C21: 1400х600х850 | D21: 9356
B22: НСО-15/6 | C22: 1500х600х850 | D22: 9629
B23: НСО-16/6 | C23: 1600х600х850 | D23: 9882
B24: НСО-17/6 | C24: 1700х600х850 | D24: 10264
B25: НСО-18/6 | C25: 1800х600х850 | D25: 10426
B26: НСО-19/6 | C26: 1900х600х850 | D26: 10930
B27: НСО-20/6 | C27: 2000х600х850 | D27: 11577
B28: 700 серия
B29: НСО-4/7 | C29: 400х700х850 | D29: 5,430
B30: НСО-5/7 | C30: 500х700х850 | D30: 5,553
B31: НСО-6/7 | C31: 600х700х850 | D31: 5,973
B32: НСО-7/7 | C32: 700х700х850 | D32: 6,349
B33: НСО-8/7 | C33: 800х700х850 | D33: 7,257
B34: НСО-9/7 | C34: 900х700х850 | D34: 7,409
B35: НСО-10/7 | C35: 1000х700х850 | D35: 7,672
B36: НСО-11/7 | C36: 1100х700х850 | D36: 8,222
B37: НСО-12/7 | C37: 1200х700х850 | D37: 8,822
B38: НСО-13/7 | C38: 1300х700х850 | D38: 9,245
B39: НСО-14/7 | C39: 1400х700х850 | D39: 9,546
B40: НСО-15/7 | C40: 1500х700х850 | D40: 9,847
B41: НСО-16/7 | C41: 1600х700х850 | D41: 10,093
B42: НСО-17/7 | C42: 1700х700х850 | D42: 10,684
B43: НСО-18/7 | C43: 1800х700х850 | D43: 10,957
B44: НСО-19/7 | C44: 1900х700х850 | D44: 11,442
B45: НСО-20/7 | C45: 2000х700х850 | D45: 12,067
B46: 600 серия
B47: НСО-4/6Б | C47: 400х600х850 | D47: 5379
B48: НСО-5/6Б | C48: 500х600х850 | D48: 5503
B49: НСО-6/6Б | C49: 600х600х850 | D49: 5635
B50: НСО-7/6Б | C50: 700х600х850 | D50: 6315
B51: НСО-8/6Б | C51: 800х600х850 | D51: 6997
B52: НСО-9/6Б | C52: 900х600х850 | D52: 7283
B53: НСО-10/6Б | C53: 1000х600х850 | D53: 7605
B54: НСО-11/6Б | C54: 1100х600х850 | D54: 8639
B55: НСО-12/6Б | C55: 1200х600х850 | D55: 8959
B56: НСО-13/6Б | C56: 1300х600х850 | D56: 9329
B57: НСО-14/6Б | C57: 1400х600х850 | D57: 9610
B58: НСО-15/6Б | C58: 1500х600х850 | D58: 9944
B59: НСО-16/6Б | C59: 1600х600х850 | D59: 10196
B60: НСО-17/6Б | C60: 1700х600х850 | D60: 10552
B61: НСО-18/6Б | C61: 1800х600х850 | D61: 11021
B62: НСО-19/6Б | C62: 1900х600х850 | D62: 11275
B63: НСО-20/6Б | C63: 2000х600х850 | D63: 11920
B64: 700 серия
B65: НСО-4/7Б | C65: 400х700х850 | D65: 5,600
B66: НСО-5/7Б | C66: 500х700х850 | D66: 5,742
B67: НСО-6/7Б | C67: 600х700х850 | D67: 5,872
B68: НСО-7/7Б | C68: 700х700х850 | D68: 6,342
B69: НСО-8/7Б | C69: 800х700х850 | D69: 7,596
B70: НСО-9/7Б | C70: 900х700х850 | D70: 7,759
B71: НСО-10/7Б | C71: 1000х700х850 | D71: 8,045
B72: НСО-11/7Б | C72: 1100х700х850 | D72: 8,693
B73: НСО-12/7Б | C73: 1200х700х850 | D73: 9,147
B74: НСО-13/7Б | C74: 1300х700х850 | D74: 9,576
B75: НСО-14/7Б | C75: 1400х700х850 | D75: 9,821
B76: НСО-15/7Б | C76: 1500х700х850 | D76: 10,430
B77: НСО-16/7Б | C77: 1600х700х850 | D77: 10,620
B78: НСО-17/7Б | C78: 1700х700х850 | D78: 11,100
B79: НСО-18/7Б | C79: 1800х700х850 | D79: 11,345
B80: НСО-19/7Б | C80: 1900х700х850 | D80: 11,835
B81: НСО-20/7Б | C81: 2000х700х850 | D81: 12,465
B82: 600 серия
B83: НСО-4/6П | C83: 400х600х850 | D83: 6282
B84: НСО-5/6П | C84: 500х600х850 | D84: 6416
B85: НСО-6/6П | C85: 600х600х850 | D85: 6556
B86: НСО-7/6П | C86: 700х600х850 | D86: 7556
B87: НСО-8/6П | C87: 800х600х850 | D87: 7974
B88: НСО-9/6П | C88: 900х600х850 | D88: 8260
B89: НСО-10/6П | C89: 1000х600х850 | D89: 9291
B90: НСО-11/6П | C90: 1100х600х850 | D90: 9421
B91: НСО-12/6П | C91: 1200х600х850 | D91: 9969
B92: НСО-13/6П | C92: 1300х600х850 | D92: 10719
B93: НСО-14/6П | C93: 1400х600х850 | D93: 11252
B94: НСО-15/6П | C94: 1500х600х850 | D94: 11921
B95: НСО-16/6П | C95: 1600х600х850 | D95: 13463
B96: НСО-17/6П | C96: 1700х600х850 | D96: 14237
B97: НСО-18/6П | C97: 1800х600х850 | D97: 14924
B98: НСО-19/6П | C98: 1900х600х850 | D98: 15490
B99: НСО-20/6П | C99: 2000х600х850 | D99: 16229
B100: 700 серия
B101: НСО-4/7П | C101: 400х700х850 | D101: 5,688
B102: НСО-5/7П | C102: 500х700х850 | D102: 5,818
B103: НСО-6/7П | C103: 600х700х850 | D103: 7,349
B104: НСО-7/7П | C104: 700х700х850 | D104: 8,132
B105: НСО-8/7П | C105: 800х700х850 | D105: 8,638
B106: НСО-9/7П | C106: 900х700х850 | D106: 8,766
B107: НСО-10/7П | C107: 1000х700х850 | D107: 9,733
B108: НСО-11/7П | C108: 1100х700х850 | D108: 10,135
B109: НСО-12/7П | C109: 1200х700х850 | D109: 10,725
B110: НСО-13/7П | C110: 1300х700х850 | D110: 11,726
B111: НСО-14/7П | C111: 1400х700х850 | D111: 12,278
B112: НСО-15/7П | C112: 1500х700х850 | D112: 13,032
B113: НСО-16/7П | C113: 1600х700х850 | D113: 15,097
B114: НСО-17/7П | C114: 1700х700х850 | D114: 15,441
B115: НСО-18/7П | C115: 1800х700х850 | D115: 16,505
B116: НСО-19/7П | C116: 1900х700х850 | D116: 17,070
B117: НСО-20/7П | C117: 2000х700х850 | D117: 17,802
B118: 600 серия
B119: НСО-4/6БП | C119: 400х600х850 | D119: 6,597
B120: НСО-5/6БП | C120: 500х600х850 | D120: 6,736
B121: НСО-6/6БП | C121: 600х600х850 | D121: 6,879
B122: НСО-7/6БП | C122: 700х600х850 | D122: 7,693
B123: НСО-8/6БП | C123: 800х600х850 | D123: 8,289
B124: НСО-9/6БП | C124: 900х600х850 | D124: 8,587
B125: НСО-10/6БП | C125: 1000х600х850 | D125: 9,496
B126: НСО-11/6БП | C126: 1100х600х850 | D126: 10,023
B127: НСО-12/6БП | C127: 1200х600х850 | D127: 10,503
B128: НСО-13/6БП | C128: 1300х600х850 | D128: 11,401
B129: НСО-14/6БП | C129: 1400х600х850 | D129: 11,726
B130: НСО-15/6БП | C130: 1500х600х850 | D130: 12,218
B131: НСО-16/6БП | C131: 1600х600х850 | D131: 13,803
B132: НСО-17/6БП | C132: 1700х600х850 | D132: 14,560
B133: НСО-18/6БП | C133: 1800х600х850 | D133: 15,312
B134: НСО-19/6БП | C134: 1900х600х850 | D134: 15,883
B135: НСО-20/6БП | C135: 2000х600х850 | D135: 16,620
B136: 700 серия
B137: НСО-4/7БП | C137: 400х700х850 | D137: 7,245
B138: НСО-5/7БП | C138: 500х700х850 | D138: 7,395
B139: НСО-6/7БП | C139: 600х700х850 | D139: 7,544
B140: НСО-7/7БП | C140: 700х700х850 | D140: 8,286
B141: НСО-8/7БП | C141: 800х700х850 | D141: 8,802
B142: НСО-9/7БП | C142: 900х700х850 | D142: 8,910
B143: НСО-10/7БП | C143: 1000х700х850 | D143: 9,940
B144: НСО-11/7БП | C144: 1100х700х850 | D144: 10,452
B145: НСО-12/7БП | C145: 1200х700х850 | D145: 10,956
B146: НСО-13/7БП | C146: 1300х700х850 | D146: 12,087
B147: НСО-14/7БП | C147: 1400х700х850 | D147: 12,554
B148: НСО-15/7БП | C148: 1500х700х850 | D148: 13,454
B149: НСО-16/7БП | C149: 1600х700х850 | D149: 15,476
B150: НСО-17/7БП | C150: 1700х700х850 | D150: 15,743
B151: НСО-18/7БП | C151: 1800х700х850 | D151: 17,119
B152: НСО-19/7БП | C152: 1900х700х850 | D152: 17,684
B153: НСО-20/7БП | C153: 2000х700х850 | D153: 18,414
B155: СТОЛЫ ПРОИЗВОДСТВЕННЫЕ ОТКРЫТЫЕ УСИЛЕННЫЕ
B156: столешница - усилена рёбрами жёсткости, сталь 1 мм; каркас – нержавеющая труба 40х40 мм
B158: Модель | C158: Габариты, мм | D158: Цена, руб.
B159: 600 серия
B160: НСО-4/6-1 | C160: 400х600х850 | D160: 5,540
B161: НСО-5/6-1 | C161: 500х600х850 | D161: 5,663
B162: НСО-6/6-1 | C162: 600х600х850 | D162: 5,815
B163: НСО-7/6-1 | C163: 700х600х850 | D163: 6,436
B164: НСО-8/6-1 | C164: 800х600х850 | D164: 7,128
B165: НСО-9/6-1 | C165: 900х600х850 | D165: 7,430
B166: НСО-10/6-1 | C166: 1000х600х850 | D166: 7,455
B167: НСО-11/6-1 | C167: 1100х600х850 | D167: 8,471
B168: НСО-12/6-1 | C168: 1200х600х850 | D168: 8,763
B169: НСО-13/6-1 | C169: 1300х600х850 | D169: 9,572
B170: НСО-14/6-1 | C170: 1400х600х850 | D170: 9,863
B171: НСО-15/6-1 | C171: 1500х600х850 | D171: 10,151
B172: НСО-16/6-1 | C172: 1600х600х850 | D172: 10,420
B173: НСО-17/6-1 | C173: 1700х600х850 | D173: 10,820
B174: НСО-18/6-1 | C174: 1800х600х850 | D174: 10,992
B175: НСО-19/6-1 | C175: 1900х600х850 | D175: 11,523
B176: НСО-20/6-1 | C176: 2000х600х850 | D176: 12,204
B177: 700 серия
B178: НСО-4/7-1 | C178: 400х700х850 | D178: 5,724
B179: НСО-5/7-1 | C179: 500х700х850 | D179: 5,854
B180: НСО-6/7-1 | C180: 600х700х850 | D180: 6,297
B181: НСО-7/7-1 | C181: 700х700х850 | D181: 6,694
B182: НСО-8/7-1 | C182: 800х700х850 | D182: 7,651
B183: НСО-9/7-1 | C183: 900х700х850 | D183: 7,812
B184: НСО-10/7-1 | C184: 1000х700х850 | D184: 8,089
B185: НСО-11/7-1 | C185: 1100х700х850 | D185: 8,667
B186: НСО-12/7-1 | C186: 1200х700х850 | D186: 9,301
B187: НСО-13/7-1 | C187: 1300х700х850 | D187: 9,747
B188: НСО-14/7-1 | C188: 1400х700х850 | D188: 10,064
B189: НСО-15/7-1 | C189: 1500х700х850 | D189: 10,381
B190: НСО-16/7-1 | C190: 1600х700х850 | D190: 10,640
B191: НСО-17/7-1 | C191: 1700х700х850 | D191: 11,264
B192: НСО-18/7-1 | C192: 1800х700х850 | D192: 11,551
B193: НСО-19/7-1 | C193: 1900х700х850 | D193: 12,062
B194: НСО-20/7-1 | C194: 2000х700х850 | D194: 12,721
B195: 600 серия
B196: НСО-4/6Б-1 | C196: 400х600х850 | D196: 5,670
B197: НСО-5/6Б-1 | C197: 500х600х850 | D197: 5,801
B198: НСО-6/6Б-1 | C198: 600х600х850 | D198: 5,940
B199: НСО-7/6Б-1 | C199: 700х600х850 | D199: 6,657
B200: НСО-8/6Б-1 | C200: 800х600х850 | D200: 7,378
B201: НСО-9/6Б-1 | C201: 900х600х850 | D201: 7,678
B202: НСО-10/6Б-1 | C202: 1000х600х850 | D202: 8,018
B203: НСО-11/6Б-1 | C203: 1100х600х850 | D203: 9,108
B204: НСО-12/6Б-1 | C204: 1200х600х850 | D204: 9,445
B205: НСО-13/6Б-1 | C205: 1300х600х850 | D205: 9,836
B206: НСО-14/6Б-1 | C206: 1400х600х850 | D206: 10,131
... 1984 more rows

Sheet Hicoldstol
B2: ОХЛАЖДАЕМЫЕ СТОЛЫ | H2: Главное меню
B4: ОХЛАЖДАЕМЫЕ СТОЛЫ С БОКОВЫМ РАСПОЛОЖЕНИЕМ АГРЕГАТА
B6: Модель | C6: Объем, л | D6: Габариты, мм | E6: Темп. режим, °С | F6: Мощность, Вт | G6: Цена, руб.
B7: GN 1/TN | C7: 150 | D7: 900х700х850 | E7: -2…+10 | F7: 150 | G7: 47,890
B8: GN 1/BT | C8: 150 | D8: 900х700х850 | E8: -10…-18 | F8: 255 | G8: 55,590
B9: SN 1/TN | C9: 130 | D9: 900х600х850 | E9: -2…+10 | F9: 150 | G9: 47,590
B10: SN 1/BT | C10: 130 | D10: 900х600х850 | E10: -10…-18 | F10: 255 | G10: 55,290
B11: GN 11/TN | C11: 350 | D11: 1390х700х850 | E11: -2…+10 | F11: 220 | G11: 59,990
B12: GN 11/BT | C12: 350 | D12: 1390х700х850 | E12: -10…-18 | F12: 575 | G12: 69,790
B13: SN 11/TN | C13: 300 | D13: 1390х600х850 | E13: -2…+10 | F13: 220 | G13: 59,690
B14: SN 11/BT | C14: 300 | D14: 1390х600х850 | E14: -10…-18 | F14: 575 | G14: 69,490
B15: BN 11/TN | C15: 240 | D15: 1390х500х850 | E15: -2…+10 | F15: 220 | G15: 59,390
B16: BN 11/BT | C16: 240 | D16: 1390х500х850 | E16: -10…-18 | F16: 575 | G16: 69,190
B17: GN 111/TN | C17: 505 | D17: 1835х700х850 | E17: -2…+10 | F17: 460 | G17: 70,590
B18: GN 111/BT | C18: 505 | D18: 1835х700х850 | E18: -10…-18 | F18: 600 | G18: 89,390
B19: SN 111/TN | C19: 435 | D19: 1835х600х850 | E19: -2…+10 | F19: 460 | G19: 70,290
B20: SN 111/BT | C20: 435 | D20: 1835х600х850 | E20: -10…-18 | F20: 600 | G20: 89,090
B21: BN 111/TN | C21: 350 | D21: 1835х500х850 | E21: -2…+10 | F21: 460 | G21: 69,990
B22: BN 111/BT | C22: 350 | D22: 1835х500х850 | E22: -10…-18 | F22: 600 | G22: 88,790
B23: GN 1111/TN | C23: 660 | D23: 2280х700х850 | E23: -2…+10 | F23: 480 | G23: 85,290
B24: GN 1111/BT | C24: 660 | D24: 2280х700х850 | E24: -10…-18 | F24: 750 | G24: 105,490
B25: SN 1111/TN | C25: 570 | D25: 2280х600х850 | E25: -2…+10 | F25: 480 | G25: 84,990
B26: SN 1111/BT | C26: 570 | D26: 2280х600х850 | E26: -10…-18 | F26: 750 | G26: 105,190
B27: BN 1111/TN | C27: 455 | D27: 2280х500х850 | E27: -2…+10 | F27: 480 | G27: 84,690
B28: BN 1111/BT | C28: 455 | D28: 2280х500х850 | E28: -10…-18 | F28: 750 | G28: 104,890
B30: ОХЛАЖДАЕМЫЕ СТОЛЫ С НИЖНИМ РАСПОЛОЖЕНИЕМ АГРЕГАТА
B32: Модель | C32: Объем, л | D32: Габариты, мм | E32: Темп. режим, °С | F32: Мощность, Вт | G32: Цена, руб.
B33: GNE 1/TN | C33: 110 | D33: 565х700х850 | E33: -2…+10 | F33: 150 | G33: 40,290
B34: GNE 1/BT | C34: 110 | D34: 565х700х850 | E34: -10…-18 | F34: 240 | G34: 45,990
B35: SNE 1/TN | C35: 95 | D35: 565х600х850 | E35: -2…+10 | F35: 150 | G35: 39,990
B36: SNE 1/BT | C36: 95 | D36: 565х500х850 | E36: -10…-18 | F36: 240 | G36: 45,690
B37: GNE 11/TN | C37: 245 | D37: 1000х700х850 | E37: -2…+10 | F37: 150 | G37: 48,190
B38: GNE 11/BT | C38: 245 | D38: 1000х700х850 | E38: -10…-18 | F38: 255 | G38: 55,390
B39: SNE 11/TN | C39: 210 | D39: 1000х600х850 | E39: -2…+10 | F39: 150 | G39: 47,890
B40: SNE 11/BT | C40: 210 | D40: 1000х600х850 | E40: -10…-18 | F40: 255 | G40: 55,090
B41: GNE 111/TN | C41: 375 | D41: 1485х700х850 | E41: -2…+10 | F41: 220 | G41: 59,190
B42: GNE 111/BT | C42: 375 | D42: 1485х700х850 | E42: -10…-18 | F42: 575 | G42: 70,890
B43: SNE 111/TN | C43: 320 | D43: 1485х600х850 | E43: -2…+10 | F43: 220 | G43: 58,890
B44: SNE 111/BT | C44: 320 | D44: 1485х600х850 | E44: -10…-18 | F44: 575 | G44: 70,590
B45: GNE 1111/TN | C45: 500 | D45: 1970х700х850 | E45: -2…+10 | F45: 460 | G45: 76,390
B46: GNE 1111/BT | C46: 500 | D46: 1970х700х850 | E46: -10…-18 | F46: 660 | G46: 90,890
B47: SNE 1111/TN | C47: 430 | D47: 1970х600х850 | E47: -2…+10 | F47: 460 | G47: 76,090
B48: SNE 1111/BT | C48: 430 | D48: 1970х600х850 | E48: -10…-18 | F48: 660 | G48: 90,590
B50: ОХЛАЖДАЕМЫЕ СТОЛЫ С БОКОВЫМ РАСПОЛОЖЕНИЕМ АГРЕГАТА С ВЫДВИЖНЫМИ ЯЩИКАМИ
B52: Модель | C52: Объем, л | D52: Габариты, мм | E52: Темп. режим, °С | F52: Мощность, Вт | G52: Цена, руб.
B53: GN 2/TN | G53: 61,890
B54: GN 2/BT | G54: 69,590
B55: SN 2/TN | G55: 61,590
B56: SN 2/BT | G56: 69,290
B57: GN 3/TN | G57: 68,890
B58: GN 3/BT | G58: 76,590
B59: SN 3/TN | G59: 68,590
B60: SN 3/BT | G60: 76,290
B61: GN 12/TN | G61: 73,990
B62: GN 12/BT | G62: 83,790
B63: SN 12/TN | G63: 73,690
B64: SN 12/BT | G64: 83,490
B65: BN 12/TN | G65: 73,390
B66: BN 12/BT | G66: 83,190
B67: GN 13/TN | G67: 80,990
B68: GN 13/BT | G68: 90,790
B69: SN 13/TN | G69: 80,690
B70: SN 13/BT | G70: 90,490
B71: BN 13/TN | G71: 80,390
B72: BN 13/BT | G72: 90,190
B73: GN 22/TN | G73: 87,990
B74: GN 22/BT | G74: 97,790
B75: SN 22/TN | G75: 87,690
B76: SN 22/BT | G76: 97,490
B77: BN 22/TN | G77: 87,390
B78: BN 22/BT | G78: 97,090
B79: GN 33/TN | G79: 101,990
B80: GN 33/BT | G80: 111,790
B81: SN 33/TN | G81: 101,690
B82: SN 33/BT | G82: 111,490
B83: BN 33/TN | G83: 101,390
B84: BN 33/BT | G84: 111,190
B85: GN 112/TN | G85: 84,590
B86: GN 112/BT | G86: 103,390
B87: SN 112/TN | G87: 84,290
B88: SN 112/BT | G88: 103,090
B89: BN 112/TN | G89: 83,990
B90: BN 112/BT | G90: 102,790
B91: GN 113/TN | G91: 91,590
B92: GN 113/BT | G92: 110,390
B93: SN 113/TN | G93: 91,290
B94: SN 113/BT | G94: 110,090
B95: BN 113/TN | G95: 90,990
B96: BN 113/BT | G96: 109,790
B97: GN 122/TN | G97: 98,590
B98: GN 122/BT | G98: 117,390
B99: SN 122/TN | G99: 98,290
B100: SN 122/BT | G100: 117,090
B101: BN 122/TN | G101: 97,990
B102: BN 122/BT | G102: 116,790
B103: GN 133/TN | G103: 112,590
B104: GN 133/BT | G104: 131,390
B105: SN 133/TN | G105: 112,290
B106: SN 133/BT | G106: 131,090
B107: BN 133/TN | G107: 111,990
B108: BN 133/BT | G108: 130,790
B109: GN 1112/TN | G109: 99,290
B110: GN 1112/BT | G110: 119,490
B111: SN 1112/TN | G111: 98,990
B112: SN 1112/BT | G112: 119,190
B113: BN 1112/TN | G113: 98,690
B114: BN 1112/BT | G114: 118,890
B115: GN 1113/TN | G115: 106,290
B116: GN 1113/BT | G116: 126,490
B117: SN 1113/TN | G117: 105,990
B118: SN 1113/BT | G118: 126,190
B119: BN 1113/TN | G119: 105,690
B120: BN 1113/BT | G120: 125,890
B121: GN 1122/TN | G121: 113,290
B122: GN 1122/BT | G122: 133,490
B123: SN 1122/TN | G123: 112,990
B124: SN 1122/BT | G124: 133,190
B125: BN 1122/TN | G125: 112,690
B126: BN 1122/BT | G126: 132,890
B127: GN 1133/TN | G127: 127,290
B128: GN 1133/BT | G128: 147,490
B129: SN 1133/TN | G129: 126,990
B130: SN 1133/BT | G130: 147,190
B131: BN 1133/TN | G131: 126,690
B132: BN 1133/BT | G132: 146,890
B134: ОХЛАЖДАЕМЫЕ СТОЛЫ С НИЖНИМ РАСПОЛОЖЕНИЕМ АГРЕГАТА С ЕДИНОЙ ВЫДВИЖНОЙ СЕКЦИЕЙ
B136: Модель | C136: Объем, л | D136: Габариты, мм | E136: Темп. режим, °С | F136: Мощность, Вт | G136: Цена, руб.
B137: GNE 1/TN BOX | G137: 47,290
B138: GNE 1/BT BOX | G138: 52,990
B139: SNE 1/TN BOX | G139: 46,990
B140: SNE 1/BT BOX | G140: 52,690
B141: GNE 11/TN BOX | G141: 62,190
B142: GNE 11/BT BOX | G142: 69,390
B143: SNE 11/TN BOX | G143: 61,890
B144: SNE 11/BT BOX | G144: 69,090
B145: GNE 111/TN BOX | G145: 80,190
B146: GNE 111/BT BOX | G146: 91,890
B147: SNE 111/TN BOX | G147: 79,890
B148: SNE 111/BT BOX | G148: 91,590
B149: GNE 1111/TN BOX | G149: 104,390
B150: GNE 1111/BT BOX | G150: 118,890
B151: SNE 1111/TN BOX | G151: 104,090
B152: SNE 1111/BT BOX | G152: 118,590
B154: ОХЛАЖДАЕМЫЕ СТОЛЫ С НИЖНИМ РАСПОЛОЖЕНИЕМ АГРЕГАТА С ВЫДВИЖНЫМИ ЯЩИКАМИ
B156: Модель | C156: Объем, л | D156: Габариты, мм | E156: Темп. режим, °С | F156: Мощность, Вт | G156: Цена, руб.
B157: GNE 2/TN | G157: 54,290
B158: GNE 2/BT | G158: 59,990
B159: SNE 2/TN | G159: 53,990
B160: SNE 2/BT | G160: 59,690
B161: GNE 12/TN | G161: 62,190
B162: GNE 12/BT | G162: 69,390
B163: SNE 12/TN | G163: 61,890
B164: SNE 12/BT | G164: 69,090
B165: GNE 22/TN | G165: 76,190
B166: GNE 22/BT | G166: 83,390
B167: SNE 22/TN | G167: 75,890
B168: SNE 22/BT | G168: 83,090
B169: GNE 112/TN | G169: 73,190
B170: GNE 112/BT | G170: 84,890
B171: SNE 112/TN | G171: 72,890
B172: SNE 112/BT | G172: 84,590
B173: GNE 122/TN | G173: 87,190
B174: GNE 122/BT | G174: 98,890
B175: SNE 122/TN | G175: 86,890
B176: SNE 122/BT | G176: 98,590
B177: GNE 1112/TN | G177: 90,390
B178: GNE 1112/BT | G178: 104,890
B179: SNE 1112/TN | G179: 90,090
B180: SNE 1112/BT | G180: 104,590
B181: GNE 1122/TN | G181: 104,390
B182: GNE 1122/BT | G182: 118,890
B183: SNE 1122/TN | G183: 104,090
B184: SNE 1122/BT | G184: 118,590
B186: ОХЛАЖДАЕМЫЕ СТОЛЫ С БОКОВЫМ РАСПОЛОЖЕНИЕМ АГРЕГАТА СО СТЕКЛЯННЫМИ ДВЕРЯМИ
B188: Модель | C188: Объем, л | D188: Габариты, мм | E188: Темп. режим, °С | F188: Мощность, Вт | G188: Цена, руб.
B189: GNG 1 HT | C189: 150 | D189: 900х700х850 | E189: -2…+10 | F189: 160 | G189: 58,490
B190: GNG 11 HT | C190: 350 | D190: 1390х700х850 | E190: -2…+10 | F190: 230 | G190: 66,990
B191: SNG 11 HT | C191: 300 | D191: 1390х600х850 | E191: -2…+10 | F191: 230 | G191: 66,690
B192: BNG 11 HT | C192: 240 | D192: 1390х500х850 | E192: -2…+10 | F192: 230 | G192: 66,390
B193: GNG 111 HT | C193: 505 | D193: 1835х700х850 | E193: -2…+10 | F193: 470 | G193: 81,090
B194: SNG 111 HT | C194: 435 | D194: 1835х600х850 | E194: -2…+10 | F194: 470 | G194: 80,790
B195: BNG 111 HT | C195: 350 | D195: 1835х500х850 | E195: -2…+10 | F195: 470 | G195: 80,490
B196: GNG 1111 HT | C196: 660 | D196: 2280х700х850 | E196: -2…+10 | F196: 510 | G196: 99,290
B197: SNG 1111 HT | C197: 570 | D197: 2280х600х850 | E197: -2…+10 | F197: 510 | G197: 98,990
B198: BNG 1111 HT | C198: 455 | D198: 2280х500х850 | E198: -2…+10 | F198: 510 | G198: 98,690
B200: ОХЛАЖДАЕМЫЕ СТОЛЫ С БОКОВЫМ РАСПОЛОЖЕНИЕМ АГРЕГАТА С КАМЕННОЙ СТОЛЕШНИЦЕЙ
B202: Модель | C202: Объем, л | D202: Габариты, мм | E202: Темп. режим, °С | F202: Мощность, Вт | G202: Цена, руб.
B203: GN 1/TN КАМЕНЬ | G203: 61,230
B204: SN 1/TN КАМЕНЬ | G204: 59,030
B205: GN 11/TN КАМЕНЬ | G205: 78,530
B206: SN 11/TN КАМЕНЬ | G206: 75,750
B207: BN 11/TN КАМЕНЬ | G207: 73,530
B208: GN 111/TN КАМЕНЬ | G208: 97,880
B209: SN 111/TN КАМЕНЬ | G209: 90,470
B210: BN 111/TN КАМЕНЬ | G210: 87,750
B211: GN 1111/TN КАМЕНЬ | G211: 118,140
B212: SN 1111/TN КАМЕНЬ | G212: 113,670
B213: BN 1111/TN КАМЕНЬ | G213: 109,930
B215: ОХЛАЖДАЕМЫЕ СТОЛЫ С НИЖНИМ РАСПОЛОЖЕНИЕМ АГРЕГАТА С КАМЕННОЙ СТОЛЕШНИЦЕЙ
B217: Модель | C217: Объем, л | D217: Габариты, мм | E217: Темп. режим, °С | F217: Мощность, Вт | G217: Цена, руб.
... 697 more rows

Sheet Hicoldtepl
A2: ТЕПЛОВЫЕ СТОЛЫ И ТЕПЛОВЫЕ ПОЛКИ | H2: Главное меню
A4: ТЕПЛОВЫЕ СТОЛЫ
A6: Модель | B6: Объём, л | C6: Габариты, мм | D6: Температурный режим, °С | E6: Мощность, Вт | F6: Цена, руб.
A7: 600 серия (пристенные)
A8: TS 10 SN | B8: 220 | C8: 1000х600х850 | D8: +65 | E8: 1525 | F8: 40080
A9: TS 11 SN | B9: 230 | C9: 1100х600х850 | D9: 65 | E9: 1525 | F9: 41810
A10: TS 12 SN | B10: 260 | C10: 1200х600х850 | D10: 65 | E10: 1525 | F10: 43530
A11: TS 13 SN | B11: 280 | C11: 1300х600х850 | D11: 65 | E11: 1525 | F11: 45800
A12: TS 14 SN | B12: 310 | C12: 1400х600х850 | D12: 65 | E12: 1525 | F12: 48060
A13: TS 15 SN | B13: 340 | C13: 1500х600х850 | D13: 65 | E13: 2025 | F13: 49580
A14: TS 16 SN | B14: 360 | C14: 1600х600х850 | D14: 65 | E14: 2025 | F14: 51450
A15: TS 17 SN | B15: 390 | C15: 1700х600х850 | D15: 65 | E15: 2025 | F15: 52980
A16: TS 18 SN | B16: 420 | C16: 1800х600х850 | D16: 65 | E16: 2025 | F16: 54510
A17: 700 серия (пристенные)
A18: TS 10 GN | B18: 250 | C18: 1000х700х850 | D18: +65 | E18: 1525 | F18: 42260
A19: TS 11 GN | B19: 280 | C19: 1100х700х850 | D19: +65 | E19: 1525 | F19: 44020
A20: TS 12 GN | B20: 310 | C20: 1200х700х850 | D20: +65 | E20: 1525 | F20: 45770
A21: TS 13 GN | B21: 350 | C21: 1300х700х850 | D21: +65 | E21: 1525 | F21: 47400
A22: TS 14 GN | B22: 360 | C22: 1400х700х850 | D22: +65 | E22: 1525 | F22: 49850
A23: TS 15 GN | B23: 410 | C23: 1500х700х850 | D23: +65 | E23: 2025 | F23: 52280
A24: TS 16 GN | B24: 450 | C24: 1600х700х850 | D24: +65 | E24: 2025 | F24: 54270
A25: TS 17 GN | B25: 480 | C25: 1700х700х850 | D25: +65 | E25: 2025 | F25: 55700
A26: TS 18 GN | B26: 510 | C26: 1800х700х850 | D26: +65 | E26: 2025 | F26: 57110
A27: 600 серия (островные)
A28: TS 10 SN O | B28: 220 | C28: 1000х600х850 | D28: +65 | E28: 1525 | F28: 40080
A29: TS 11 SN O | B29: 230 | C29: 1100х600х850 | D29: +65 | E29: 1525 | F29: 41810
A30: TS 12 SN O | B30: 260 | C30: 1200х600х850 | D30: +65 | E30: 1525 | F30: 43530
A31: TS 13 SN O | B31: 280 | C31: 1300х600х850 | D31: +65 | E31: 1525 | F31: 45800
A32: TS 14 SN O | B32: 310 | C32: 1400х600х850 | D32: +65 | E32: 1525 | F32: 48060
A33: TS 15 SN O | B33: 340 | C33: 1500х600х850 | D33: +65 | E33: 2025 | F33: 49580
A34: TS 16 SN O | B34: 360 | C34: 1600х600х850 | D34: +65 | E34: 2025 | F34: 51450
A35: TS 17 SN O | B35: 390 | C35: 1700х600х850 | D35: +65 | E35: 2025 | F35: 52980
A36: TS 18 SN O | B36: 420 | C36: 1800х600х850 | D36: +65 | E36: 2025 | F36: 54510
A37: 700 серия (островные)
A38: TS 10 GN O | B38: 250 | C38: 1000х700х850 | D38: +65 | E38: 1525 | F38: 42260
A39: TS 11 GN O | B39: 280 | C39: 1100х700х850 | D39: +65 | E39: 1525 | F39: 44020
A40: TS 12 GN O | B40: 310 | C40: 1200х700х850 | D40: +65 | E40: 1525 | F40: 45770
A41: TS 13 GN O | B41: 350 | C41: 1300х700х850 | D41: +65 | E41: 1525 | F41: 47400
A42: TS 14 GN O | B42: 360 | C42: 1400х700х850 | D42: +65 | E42: 1525 | F42: 49850
A43: TS 15 GN O | B43: 410 | C43: 1500х700х850 | D43: +65 | E43: 2025 | F43: 52280
A44: TS 16 GN O | B44: 450 | C44: 1600х700х850 | D44: +65 | E44: 2025 | F44: 54270
A45: TS 17 GN O | B45: 480 | C45: 1700х700х850 | D45: +65 | E45: 2025 | F45: 55700
A46: TS 18 GN O | B46: 510 | C46: 1800х700х850 | D46: +65 | E46: 2025 | F46: 57110
A47: 600 серия (сквозные)
A48: TS T 10 SN O | B48: 220 | C48: 1000х600х850 | D48: +65 | E48: 1525 | F48: 46080
A49: TS T 11 SN O | B49: 230 | C49: 1100х600х850 | D49: +65 | E49: 1525 | F49: 48070
A50: TS T 12 SN O | B50: 260 | C50: 1200х600х850 | D50: +65 | E50: 1525 | F50: 50060
A51: TS T 13 SN O | B51: 280 | C51: 1300х600х850 | D51: +65 | E51: 1525 | F51: 51410
A52: TS T 14 SN O | B52: 310 | C52: 1400х600х850 | D52: +65 | E52: 1525 | F52: 53800
A53: TS T 15 SN O | B53: 340 | C53: 1500х600х850 | D53: +65 | E53: 2025 | F53: 56170
A54: TS T 16 SN O | B54: 360 | C54: 1600х600х850 | D54: +65 | E54: 2025 | F54: 58120
A55: TS T 17 SN O | B55: 390 | C55: 1700х600х850 | D55: +65 | E55: 2025 | F55: 59500
A56: TS T 18 SN O | B56: 420 | C56: 1800х600х850 | D56: +65 | E56: 2025 | F56: 60860
A57: 700 серия (сквозные)
A58: TS T 10 GN O | B58: 250 | C58: 1000х700х850 | D58: +65 | E58: 1525 | F58: 48710
A59: TS T 11 GN O | B59: 280 | C59: 1100х700х850 | D59: +65 | E59: 1525 | F59: 50560
A60: TS T 12 GN O | B60: 310 | C60: 1200х700х850 | D60: +65 | E60: 1525 | F60: 52400
A61: TS T 13 GN O | B61: 350 | C61: 1300х700х850 | D61: +65 | E61: 1525 | F61: 53970
A62: TS T 14 GN O | B62: 360 | C62: 1400х700х850 | D62: +65 | E62: 1525 | F62: 56340
A63: TS T 15 GN O | B63: 410 | C63: 1500х700х850 | D63: +65 | E63: 2025 | F63: 58690
A64: TS T 16 GN O | B64: 450 | C64: 1600х700х850 | D64: +65 | E64: 2025 | F64: 60730
A65: TS T 17 GN O | B65: 480 | C65: 1700х700х850 | D65: +65 | E65: 2025 | F65: 62240
A66: TS T 18 GN O | B66: 510 | C66: 1800х700х850 | D66: +65 | E66: 2025 | F66: 63720
A68: ТЕПЛОВЫЕ ПОЛКИ
A70: Модель | B70: Габариты, мм | C70: Мощность, Вт | D70: Цена, руб.
A71: 300 серия (одноярусные)
A72: TP1-6/3 | B72: 600х300х400 | C72: 500 | D72: 10749
A73: TP1-7/3 | B73: 700х300х400 | C73: 500 | D73: 11211
A74: TP1-8/3 | B74: 800х300х400 | C74: 500 | D74: 11652
A75: TP1-9/3 | B75: 900х300х400 | C75: 1000 | D75: 17223
A76: TP1-10/3 | B76: 1000х300х400 | C76: 1000 | D76: 17668
A77: TP1-11/3 | B77: 1100х300х400 | C77: 1000 | D77: 18129
A78: TP1-12/3 | B78: 1200х300х400 | C78: 1000 | D78: 18716
A79: TP1-13/3 | B79: 1300х300х400 | C79: 1500 | D79: 24041
A80: TP1-14/3 | B80: 1400х300х400 | C80: 1500 | D80: 24876
A81: TP1-15/3 | B81: 1500х300х400 | C81: 1500 | D81: 25024
A82: TP1-16/3 | B82: 1600х300х400 | C82: 1500 | D82: 25344
A83: TP1-17/3 | B83: 1700х300х400 | C83: 1500 | D83: 31150
A84: TP1-18/3 | B84: 1800х300х400 | C84: 1500 | D84: 31931
A85: 400 серия (одноярусные)
A86: TP1-6/4 | B86: 600х400х400 | C86: 500 | D86: 12334
A87: TP1-7/4 | B87: 700х400х400 | C87: 500 | D87: 12629
A88: TP1-8/4 | B88: 800х400х400 | C88: 500 | D88: 13092
A89: TP1-9/4 | B89: 900х400х400 | C89: 1000 | D89: 18519
A90: TP1-10/4 | B90: 1000х400х400 | C90: 1000 | D90: 18910
A91: TP1-11/4 | B91: 1100х400х400 | C91: 1000 | D91: 18964
A92: TP1-12/4 | B92: 1200х400х400 | C92: 1000 | D92: 19446
A93: TP1-13/4 | B93: 1300х400х400 | C93: 1500 | D93: 25305
A94: TP1-14/4 | B94: 1400х400х400 | C94: 1500 | D94: 26219
A95: TP1-15/4 | B95: 1500х400х400 | C95: 1500 | D95: 26762
A96: TP1-16/4 | B96: 1600х400х400 | C96: 1500 | D96: 26784
A97: TP1-17/4 | B97: 1700х400х400 | C97: 1500 | D97: 32483
A98: TP1-18/4 | B98: 1800х400х400 | C98: 1500 | D98: 34103
A99: 300 серия (двухъярусные)
A100: TP2-6/3 | B100: 600х300х800 | C100: 1000 | D100: 21389
A101: TP2-7/3 | B101: 700х300х800 | C101: 1000 | D101: 22310
A102: TP2-8/3 | B102: 800х300х800 | C102: 1000 | D102: 23187
A103: TP2-9/3 | B103: 900х300х800 | C103: 2000 | D103: 34272
A104: TP2-10/3 | B104: 1000х300х800 | C104: 2000 | D104: 35158
A105: TP2-11/3 | B105: 1100х300х800 | C105: 2000 | D105: 36076
A106: TP2-12/3 | B106: 1200х300х800 | C106: 2000 | D106: 37242
A107: TP2-13/3 | B107: 1300х300х800 | C107: 3000 | D107: 47842
A108: TP2-14/3 | B108: 1400х300х800 | C108: 3000 | D108: 49504
A109: TP2-15/3 | B109: 1500х300х800 | C109: 3000 | D109: 49796
A110: TP2-16/3 | B110: 1600х300х800 | C110: 3000 | D110: 50435
A111: TP2-17/3 | B111: 1700х300х800 | C111: 3000 | D111: 61988
A112: TP2-18/3 | B112: 1800х300х800 | C112: 3000 | D112: 63543
A113: 400 серия (двухъярусные)
A114: TP2-6/4 | B114: 600х400х800 | C114: 1000 | D114: 24422
A115: TP2-7/4 | B115: 700х400х800 | C115: 1000 | D115: 25006
A116: TP2-8/4 | B116: 800х400х800 | C116: 1000 | D116: 25920
A117: TP2-9/4 | B117: 900х400х800 | C117: 2000 | D117: 36668
A118: TP2-10/4 | B118: 1000х400х800 | C118: 2000 | D118: 37439
A119: TP2-11/4 | B119: 1100х400х800 | C119: 2000 | D119: 37548
A120: TP2-12/4 | B120: 1200х400х800 | C120: 2000 | D120: 38504
A121: TP2-13/4 | B121: 1300х400х800 | C121: 3000 | D121: 50103
A122: TP2-14/4 | B122: 1400х400х800 | C122: 3000 | D122: 51912
A123: TP2-15/4 | B123: 1500х400х800 | C123: 3000 | D123: 52988
A124: TP2-16/4 | B124: 1600х400х800 | C124: 3000 | D124: 53033
A125: TP2-17/4 | B125: 1700х400х800 | C125: 3000 | D125: 64316
A126: TP2-18/4 | B126: 1800х400х800 | C126: 3000 | D126: 67522
A127: 300 серия (двухъярусные с нейтральным нижним уровнем)
A128: TP2K-6/3 | B128: 600х300х800 | C128: 500 | D128: 13436
A129: TP2K-7/3 | B129: 700х300х800 | C129: 500 | D129: 14015
A130: TP2K-8/3 | B130: 800х300х800 | C130: 500 | D130: 14565
A131: TP2K-9/3 | B131: 900х300х800 | C131: 1000 | D131: 21528
A132: TP2K-10/3 | B132: 1000х300х800 | C132: 1000 | D132: 22086
A133: TP2K-11/3 | B133: 1100х300х800 | C133: 1000 | D133: 22661
A134: TP2K-12/3 | B134: 1200х300х800 | C134: 1000 | D134: 23393
A135: TP2K-13/3 | B135: 1300х300х800 | C135: 1500 | D135: 30052
A136: TP2K-13,9/3 | B136: 1390х300х800 | C136: 1500 | D136: 30993
A137: TP2K-14/3 | B137: 1400х300х800 | C137: 1500 | D137: 31096
A138: TP2K-14,85/3 | B138: 1485х300х800 | C138: 1500 | D138: 31253
A139: TP2K-15/3 | B139: 1500х300х800 | C139: 1500 | D139: 31281
A140: TP2K-16/3 | B140: 1600х300х800 | C140: 1500 | D140: 31680
A141: TP2K-17/3 | B141: 1700х300х800 | C141: 1500 | D141: 38937
A142: TP2K-18/3 | B142: 1800х300х800 | C142: 1500 | D142: 39915
A143: TP2K-18,35/3 | B143: 1835х300х800 | C143: 1500 | D143: 40258
A144: 400 серия (двухъярусные с нейтральным нижним уровнем)
A145: TP2K-6/4 | B145: 600х400х800 | C145: 500 | D145: 15419
A146: TP2K-7/4 | B146: 700х400х800 | C146: 500 | D146: 15788
A147: TP2K-8/4 | B147: 800х400х800 | C147: 500 | D147: 16365
A148: TP2K-9/4 | B148: 900х400х800 | C148: 1000 | D148: 23148
A149: TP2K-10/4 | B149: 1000х400х800 | C149: 1000 | D149: 23637
A150: TP2K-11/4 | B150: 1100х400х800 | C150: 1000 | D150: 23706
A151: TP2K-12/4 | B151: 1200х400х800 | C151: 1000 | D151: 24308
A152: TP2K-13/4 | B152: 1300х400х800 | C152: 1500 | D152: 31630
A153: TP2K-13,9/4 | B153: 1390х400х800 | C153: 1500 | D153: 32660
A154: TP2K-14/4 | B154: 1400х400х800 | C154: 1500 | D154: 32774
A155: TP2K-14,85/4 | B155: 1485х400х800 | C155: 1500 | D155: 33351
A156: TP2K-15/4 | B156: 1500х400х800 | C156: 1500 | D156: 33452
A157: TP2K-16/4 | B157: 1600х400х800 | C157: 1500 | D157: 33480
A158: TP2K-17/4 | B158: 1700х400х800 | C158: 1500 | D158: 40605
A159: TP2K-18/4 | B159: 1800х400х800 | C159: 1500 | D159: 42629
A160: TP2K-18,35/4 | B160: 1835х400х800 | C160: 1500 | D160: 43340

Sheet Hicoldzont
A2: ВЫТЯЖНЫЕ ЗОНТЫ | D2: Главное меню
A4: ПРИСТЕННЫЕ ВЫТЯЖНЫЕ ЗОНТЫ
A6: Модель | B6: Габариты, мм | C6: Цена, руб.
A7: глубина 800 мм
A8: ЗВПОК-0808 | B8: 800х800х400 | C8: 12276
A9: ЗВПОК-08,508 | B9: 850х800х400 | C9: 12550
A10: ЗВПОК-0908 | B10: 900х800х400 | C10: 12878
A11: ЗВПОК-09,508 | B11: 950х800х400 | C11: 13206
A12: ЗВПОК-1008 | B12: 1000х800х400 | C12: 13363
A13: ЗВПОК-10,508 | B13: 1050х800х400 | C13: 13859
A14: ЗВПОК-1108 | B14: 1100х800х400 | C14: 14191
A15: ЗВПОК-11,508 | B15: 1150х800х400 | C15: 14841
A16: ЗВПОК-1208 | B16: 1200х800х400 | C16: 15177
A17: ЗВПОК-12,508 | B17: 1250х800х400 | C17: 15494
A18: ЗВПОК-1308 | B18: 1300х800х400 | C18: 15822
A19: ЗВПОК-13,508 | B19: 1350х800х400 | C19: 16153
A20: ЗВПОК-1408 | B20: 1400х800х400 | C20: 16494
A21: ЗВПОК-14,508 | B21: 1450х800х400 | C21: 16797
A22: ЗВПОК-1508 | B22: 1500х800х400 | C22: 17136
A23: глубина 900 мм
A24: ЗВПОК-0809 | B24: 800х900х400 | C24: 12784
A25: ЗВПОК-08,509 | B25: 850х900х400 | C25: 13196
A26: ЗВПОК-0909 | B26: 900х900х400 | C26: 13549
A27: ЗВПОК-09,509 | B27: 950х900х400 | C27: 13899
A28: ЗВПОК-1009 | B28: 1000х900х400 | C28: 14127
A29: ЗВПОК-10,509 | B29: 1050х900х400 | C29: 14625
A30: ЗВПОК-1109 | B30: 1100х900х400 | C30: 14976
A31: ЗВПОК-11,509 | B31: 1150х900х400 | C31: 15670
A32: ЗВПОК-1209 | B32: 1200х900х400 | C32: 16013
A33: ЗВПОК-12,509 | B33: 1250х900х400 | C33: 16369
A34: ЗВПОК-1309 | B34: 1300х900х400 | C34: 16718
A35: ЗВПОК-13,509 | B35: 1350х900х400 | C35: 17075
A36: ЗВПОК-1409 | B36: 1400х900х400 | C36: 17412
A37: ЗВПОК-14,509 | B37: 1450х900х400 | C37: 17606
A38: ЗВПОК-1509 | B38: 1500х900х400 | C38: 18131
A39: глубина 1000 мм
A40: ЗВПОК-0810 | B40: 800х1000х400 | C40: 13570
A41: ЗВПОК-08,510 | B41: 850х1000х400 | C41: 13990
A42: ЗВПОК-0910 | B42: 900х1000х400 | C42: 14382
A43: ЗВПОК-09,510 | B43: 950х1000х400 | C43: 14762
A44: ЗВПОК-1010 | B44: 1000х1000х400 | C44: 15191
A45: ЗВПОК-10,510 | B45: 1050х1000х400 | C45: 15518
A46: ЗВПОК-1110 | B46: 1100х1000х400 | C46: 15847
A47: ЗВПОК-11,510 | B47: 1150х1000х400 | C47: 16631
A48: ЗВПОК-1210 | B48: 1200х1000х400 | C48: 17004
A49: ЗВПОК-12,510 | B49: 1250х1000х400 | C49: 17380
A50: ЗВПОК-1310 | B50: 1300х1000х400 | C50: 17761
A51: ЗВПОК-13,510 | B51: 1350х1000х400 | C51: 18134
A52: ЗВПОК-1410 | B52: 1400х1000х400 | C52: 18510
A53: ЗВПОК-14,510 | B53: 1450х1000х400 | C53: 18889
A54: ЗВПОК-1510 | B54: 1500х1000х400 | C54: 19269
A55: глубина 1200 мм
A56: ЗВПОК-0812 | B56: 800х1200х400 | C56: 15008
A57: ЗВПОК-08,512 | B57: 850х1200х400 | C57: 15442
A58: ЗВПОК-0912 | B58: 900х1200х400 | C58: 15902
A59: ЗВПОК-09,512 | B59: 950х1200х400 | C59: 16304
A60: ЗВПОК-1012 | B60: 1000х1200х400 | C60: 16729
A61: ЗВПОК-10,512 | B61: 1050х1200х400 | C61: 17159
A62: ЗВПОК-1112 | B62: 1100х1200х400 | C62: 17642
A63: ЗВПОК-11,512 | B63: 1150х1200х400 | C63: 18126
A64: ЗВПОК-1212 | B64: 1200х1200х400 | C64: 18877
A65: ЗВПОК-12,512 | B65: 1250х1200х400 | C65: 19240
A67: Дополнительные опции:
A68: Подсветка - 3000 руб.
A69: Блок приточной вентиляции - 900 руб.
A70: Вытяжной вентилятор – 8200 руб.
A72: ПРИСТЕННЫЕ ВЫТЯЖНЫЕ ЗОНТЫ БЕЗ КОЗЫРЬКА
A74: Модель | B74: Габариты, мм | C74: Цена, руб.
A75: глубина 600 мм
A76: ЗВПО-0806 | B76: 800х600х400 | C76: 10756
A77: ЗВПО-08,506 | B77: 850х600х400 | C77: 10961
A78: ЗВПО-0906 | B78: 900х600х400 | C78: 11213
A79: ЗВПО-09,506 | B79: 950х600х400 | C79: 11468
A80: ЗВПО-1006 | B80: 1000х600х400 | C80: 11605
A81: ЗВПО-10,506 | B81: 1050х600х400 | C81: 11978
A82: ЗВПО-1106 | B82: 1100х600х400 | C82: 12240
A83: ЗВПО-11,506 | B83: 1150х600х400 | C83: 12817
A84: ЗВПО-1206 | B84: 1200х600х400 | C84: 13082
A85: ЗВПО-12,506 | B85: 1250х600х400 | C85: 13327
A86: ЗВПО-1306 | B86: 1300х600х400 | C86: 13582
A87: ЗВПО-13,506 | B87: 1350х600х400 | C87: 13839
A88: ЗВПО-1406 | B88: 1400х600х400 | C88: 14110
A89: ЗВПО-14,506 | B89: 1450х600х400 | C89: 14340
A90: ЗВПО-1506 | B90: 1500х600х400 | C90: 14607
A91: глубина 700 мм
A92: ЗВПО-0807 | B92: 800х700х400 | C92: 11336
A93: ЗВПО-08,507 | B93: 850х700х400 | C93: 11672
A94: ЗВПО-0907 | B94: 900х700х400 | C94: 11952
A95: ЗВПО-09,507 | B95: 950х700х400 | C95: 12229
A96: ЗВПО-1007 | B96: 1000х700х400 | C96: 12385
A97: ЗВПО-10,507 | B97: 1050х700х400 | C97: 12810
A98: ЗВПО-1107 | B98: 1100х700х400 | C98: 13092
A99: ЗВПО-11,507 | B99: 1150х700х400 | C99: 13713
A100: ЗВПО-1207 | B100: 1200х700х400 | C100: 13984
A101: ЗВПО-12,507 | B101: 1250х700х400 | C101: 14267
A102: ЗВПО-1307 | B102: 1300х700х400 | C102: 14544
A103: ЗВПО-13,507 | B103: 1350х700х400 | C103: 14827
A104: ЗВПО-1407 | B104: 1400х700х400 | C104: 15093
A105: ЗВПО-14,507 | B105: 1450х700х400 | C105: 15215
A106: ЗВПО-1507 | B106: 1500х700х400 | C106: 15669
A107: глубина 800 мм
A108: ЗВПО-0808 | B108: 800х800х400 | C108: 12048
A109: ЗВПО-08,508 | B109: 850х800х400 | C109: 12398
A110: ЗВПО-0908 | B110: 900х800х400 | C110: 12717
A111: ЗВПО-09,508 | B111: 950х800х400 | C111: 13023
A112: ЗВПО-1008 | B112: 1000х800х400 | C112: 13375
A113: ЗВПО-10,508 | B113: 1050х800х400 | C113: 13636
A114: ЗВПО-1108 | B114: 1100х800х400 | C114: 13896
A115: ЗВПО-11,508 | B115: 1150х800х400 | C115: 14603
A116: ЗВПО-1208 | B116: 1200х800х400 | C116: 14907
A117: ЗВПО-12,508 | B117: 1250х800х400 | C117: 15212
A118: ЗВПО-1308 | B118: 1300х800х400 | C118: 15516
A119: ЗВПО-13,508 | B119: 1350х800х400 | C119: 15820
A120: ЗВПО-1408 | B120: 1400х800х400 | C120: 16124
A121: ЗВПО-14,508 | B121: 1450х800х400 | C121: 16428
A122: ЗВПО-1508 | B122: 1500х800х400 | C122: 16739
A123: глубина 1000 мм
A124: ЗВПО-0810 | B124: 800х1000х400 | C124: 13457
A125: ЗВПО-08,510 | B125: 850х1000х400 | C125: 13820
A126: ЗВПО-0910 | B126: 900х1000х400 | C126: 14193
A127: ЗВПО-09,510 | B127: 950х1000х400 | C127: 14536
A128: ЗВПО-1010 | B128: 1000х1000х400 | C128: 14890
A129: ЗВПО-10,510 | B129: 1050х1000х400 | C129: 15248
A130: ЗВПО-1110 | B130: 1100х1000х400 | C130: 15608
A131: ЗВПО-11,510 | B131: 1150х1000х400 | C131: 16277
A132: ЗВПО-1210 | B132: 1200х1000х400 | C132: 16751
A133: ЗВПО-12,510 | B133: 1250х1000х400 | C133: 17041
A135: На вытяжные зонты без козырька подсветка, блок приточной вентиляции и вытяжной вентилятор не устанавливаются.
A137: ПРИСТЕННЫЕ КОРОБЧАТЫЕ ВЫТЯЖНЫЕ ЗОНТЫ
A139: Модель | B139: Габариты, мм | C139: Цена, руб.
A140: глубина 900 мм
A141: ЗКВПО-0809 | B141: 800х900х400 | C141: 15433
A142: ЗКВПО-08,509 | B142: 850х900х400 | C142: 15804
A143: ЗКВПО-0909 | B143: 900х900х400 | C143: 16228
A144: ЗКВПО-09,509 | B144: 950х900х400 | C144: 16659
A145: ЗКВПО-1009 | B145: 1000х900х400 | C145: 16991
A146: ЗКВПО-10,509 | B146: 1050х900х400 | C146: 17538
A147: ЗКВПО-1109 | B147: 1100х900х400 | C147: 17973
A148: ЗКВПО-11,509 | B148: 1150х900х400 | C148: 18738
A149: ЗКВПО-1209 | B149: 1200х900х400 | C149: 19125
A150: ЗКВПО-12,509 | B150: 1250х900х400 | C150: 19511
A151: ЗКВПО-1309 | B151: 1300х900х400 | C151: 20016
A152: ЗКВПО-13,509 | B152: 1350х900х400 | C152: 20452
A153: ЗКВПО-1409 | B153: 1400х900х400 | C153: 20889
A154: ЗКВПО-14,509 | B154: 1450х900х400 | C154: 21285
A155: ЗКВПО-1509 | B155: 1500х900х400 | C155: 21728
A156: глубина 1000 мм
A157: ЗКВПО-0810 | B157: 800х1000х400 | C157: 16073
A158: ЗКВПО-08,510 | B158: 850х1000х400 | C158: 16558
A159: ЗКВПО-0910 | B159: 900х1000х400 | C159: 17041
A160: ЗКВПО-09,510 | B160: 950х1000х400 | C160: 17492
A161: ЗКВПО-1010 | B161: 1000х1000х400 | C161: 17847
A162: ЗКВПО-10,510 | B162: 1050х1000х400 | C162: 18375
A163: ЗКВПО-1110 | B163: 1100х1000х400 | C163: 18903
A164: ЗКВПО-11,510 | B164: 1150х1000х400 | C164: 19710
A165: ЗКВПО-1210 | B165: 1200х1000х400 | C165: 20154
A166: ЗКВПО-12,510 | B166: 1250х1000х400 | C166: 20608
A167: ЗКВПО-1310 | B167: 1300х1000х400 | C167: 21061
A168: ЗКВПО-13,510 | B168: 1350х1000х400 | C168: 21517
A169: ЗКВПО-1410 | B169: 1400х1000х400 | C169: 21953
A170: ЗКВПО-14,510 | B170: 1450х1000х400 | C170: 22241
A171: ЗКВПО-1510 | B171: 1500х1000х400 | C171: 22877
A172: глубина 1100 мм
A173: ЗКВПО-0811 | B173: 800х1100х400 | C173: 16839
A174: ЗКВПО-08,511 | B174: 850х1100х400 | C174: 17365
A175: ЗКВПО-0911 | B175: 900х1100х400 | C175: 17859
A176: ЗКВПО-09,511 | B176: 950х1100х400 | C176: 18341
A177: ЗКВПО-1011 | B177: 1000х1100х400 | C177: 18903
A178: ЗКВПО-10,511 | B178: 1050х1100х400 | C178: 19327
A179: ЗКВПО-1111 | B179: 1100х1100х400 | C179: 19994
A180: ЗКВПО-11,511 | B180: 1150х1100х400 | C180: 20658
A181: ЗКВПО-1211 | B181: 1200х1100х400 | C181: 21134
A182: ЗКВПО-12,511 | B182: 1250х1100х400 | C182: 21537
A183: ЗКВПО-1311 | B183: 1300х1100х400 | C183: 22096
A184: ЗКВПО-13,511 | B184: 1350х1100х400 | C184: 22568
A185: ЗКВПО-1411 | B185: 1400х1100х400 | C185: 23048
A186: ЗКВПО-14,511 | B186: 1450х1100х400 | C186: 23525
A187: ЗКВПО-1511 | B187: 1500х1100х400 | C187: 24010
A188: глубина 1300 мм
A189: ЗКВПО-0813 | B189: 800х1300х400 | C189: 19184
A190: ЗКВПО-08,513 | B190: 850х1300х400 | C190: 19353
A191: ЗКВПО-0913 | B191: 900х1300х400 | C191: 19523
A192: ЗКВПО-09,513 | B192: 950х1300х400 | C192: 20030
A193: ЗКВПО-1013 | B193: 1000х1300х400 | C193: 20587
A194: ЗКВПО-10,513 | B194: 1050х1300х400 | C194: 21119
A195: ЗКВПО-1113 | B195: 1100х1300х400 | C195: 21712
A196: ЗКВПО-11,513 | B196: 1150х1300х400 | C196: 24534
A197: ЗКВПО-1213 | B197: 1200х1300х400 | C197: 27225
A198: ЗКВПО-12,513 | B198: 1250х1300х400 | C198: 29952
A200: Дополнительные опции:
A201: Подсветка - 3000 руб.
A202: Блок приточной вентиляции - 900 руб.
A203: Вытяжной вентилятор – 8200 руб.
A205: ОСТРОВНЫЕ ВЫТЯЖНЫЕ ЗОНТЫ С КОЗЫРЬКОМ
A207: Модель | B207: Габариты, мм | C207: Цена, руб.
A208: глубина 1000 мм
A209: ЗВООК-0810 | B209: 800х1000х400 | C209: 14667
A210: ЗВООК-08,510 | B210: 850х1000х400 | C210: 15065
A211: ЗВООК-0910 | B211: 900х1000х400 | C211: 15469
A212: ЗВООК-09,510 | B212: 950х1000х400 | C212: 15803
... 381 more rows

Sheet Шкафы
A1: ХОЛОДИЛЬНЫЕ ШКАФЫ POLAIR
A2: Модель | B2: Старая модель | C2: Линия | D2: Объем, л | E2: Температурный режим, *С | F2: Размер | G2: Описание | H2: Розничная цена, руб. | J2: Главное меню
A3: Холодильные шкафы с металлическими дверьми
A4: CM105-S | B4: ШХ-0.5 | C4: Standard | D4: 500 | E4: 0…+6 | F4: 697*1960*620 | G4: Внутренний объем 500 л. Верхнее расположение агрегата | H4: 37,777
A5: CM107-S | B5: ШХ-0.7 | C5: Standard | D5: 700 | E5: 0…+6 | F5: 697*1960*854 | G5: Внутренний объем 700 л. Верхнее расположение агрегата | H5: 39,990
A6: CM110-S | B6: ШХ-1.0 | C6: Standard | D6: 1000 | E6: 0…+6 | F6: 1402*1960*620 | G6: Внутренний объем 1000 л. Верхнее расположение агрегата | H6: 52,990
A7: CM114-S | B7: ШХ-1.4 | C7: Standard | D7: 1400 | E7: 0…+6 | F7: 1402*1960*854 | G7: Внутренний объем 1400л. Верхнее расположение агрегата | H7: 56,900
A8: CV105-S | C8: Standard | D8: 500 | E8: -5...+5 | F8: 697х1960х620 | G8: Внутренний объем 500 л. Верхнее расположение агрегата. Электрическая оттайка | H8: 47,770
A9: CV107-S | C9: Standard | D9: 700 | E9: -5...+5 | F9: 697х1960х854 | G9: Внутренний объем 700 л. Верхнее расположение агрегата. Электрическая оттайка | H9: 51,300
A10: CV110-S | C10: Standard | D10: 1000 | E10: -5...+5 | F10: 1402*1960*620 | G10: Внутренний объем 1000 л. Верхнее расположение агрегата. Электрическая оттайка | H10: 62,900
A11: CV114-S | C11: Standard | D11: 1400 | E11: -5...+5 | F11: 1402*1960*854 | G11: Внутренний объем 1400л. Верхнее расположение агрегата. Электрическая оттайка | H11: 68,800
A12: CB105-S | B12: CВ105-S | C12: Standard | D12: 500 | E12: -18 | F12: 697*1960*620 | G12: Внутренний объем 500 л. Верхнее расположение агрегата. Толщина стенки 43 мм. Электрическая оттайка | H12: 51,190
A13: CB107-S | B13: ШН-0.7 | C13: Standard | D13: 700 | E13: -18 | F13: 735*1996*884 | G13: Внутренний объем 700 л. Верхнее расположение агрегата.Электрическая оттайка | H13: 57,270
A14: CB114-S | B14: ШН-1.4 | C14: Standard | D14: 1400 | E14: -18 | F14: 1474*1996*884 | G14: Внутренний объем 1400 л. Верхнее расположение агрегата.Электрическая оттайка | H14: 79,700
A15: CC214-S | B15: ШКХ-1.4(0,7-0,7) | C15: Standard | D15: 700/700 | E15: 0…+6 / -15…-20 | F15: 1402*1960*854 | G15: Двухкамерный. Внутренний объем каждой камеры 700 л. Верхнее расположение агрегата | H15: 85,900
A16: CM105-Sm Alu | C16: Standard m | D16: 500 | E16: 0…+6 | F16: 697х695х2028 | G16: Внутренний объем 500 л, верхнее расположение агрегата, алюминиевые профили, 4 полки, замок, LED подсветка, педаль | H16: 41,555
A17: CM107-Sm Alu | C17: Standard m | D17: 700 | E17: 0…+6 | F17: 697х925х2028 | G17: Внутренний объем 700 л, верхнее расположение агрегата, алюминиевые профили, 4 полки, замок, LED подсветка, педаль | H17: 43,990
A18: CM110-Sm Alu | C18: Standard m | D18: 1000 | E18: 0…+6 | F18: 1402х695х2028 | G18: Внутренний объем 1 000 л, верхнеерасположение агрегата, алюминиевые профили, 8 полок, замки, LED подсветка, 2 педали | H18: 58,880
A19: CM114-Sm Alu | C19: Standard m | D19: 1400 | E19: 0…+6 | F19: 1402х925х2028 | G19: Внутренний объем 1 400 л, верхнеерасположение агрегата, алюминиевые профили, 8 полок, замки, LED подсветка, 2 педали | H19: 62,590
A20: CV105-Sm Alu | C20: Standard m | D20: 500 | E20: -5...+5 | F20: 697х695х2028 | G20: Внутренний объем 500 л, верхнее расположение агрегата, алюминиевые профили, 4 полки, замок, LED подсветка, педаль | H20: 51,900
A21: CV107-Sm Alu | C21: Standard m | D21: 700 | E21: -5...+5 | F21: 697х925х2028 | G21: Внутренний объем 700 л, верхнее расположение агрегата, алюминиевые профили, 4 полки, замок, LED подсветка, педаль | H21: 55,500
A22: CV110-Sm Alu | C22: Standard m | D22: 1000 | E22: -5...+5 | F22: 1402х695х2028 | G22: Внутренний объем 1 000 л, верхнеерасположение агрегата, алюминиевые профили, 8 полок, замки, LED подсветка, 2 педали | H22: 67,900
A23: CV114-Sm Alu | C23: Standard m | D23: 1400 | E23: -5...+5 | F23: 1402х925х2028 | G23: Внутренний объем 1 400 л, верхнеерасположение агрегата, алюминиевые профили, 8 полок, замки, LED подсветка, 2 педали | H23: 74,990
A24: CB105-Sm Alu | C24: Standard m | D24: 500 | E24: -18 | F24: 697х695х2028 | G24: Внутренний объем 500 л, верхнее расположение агрегата, алюминиевые профили, 4 полки, замок, LED подсветка, педаль, Электрическая оттайка | H24: 56,600
A25: CB107-Sm Alu | C25: Standard m | D25: 700 | E25: -18 | F25: 735х960х2064 | G25: Внутренний объем 700 л, верхнее расположение агрегата, алюминиевые профили, 4 полки, замок, LED подсветка, педаль, Электрическая оттайка | H25: 63,990
A26: CB114-Sm Alu | C26: Standard m | D26: 1400 | E26: -18 | F26: 1474х960х2064 | G26: Внутренний объем 1400 л, верхнее расположение агрегата, алюминиевые профили, 8 полки, замок, LED подсветка, педаль, Электрическая оттайка | H26: 89,900
A27: Холодильные шкафы со стеклянными дверьми
A28: DM105 S версии 2.0 | D28: 500 | E28: +1…+10 | F28: 697х710х2028 | G28: Модернизированный шкаф отличается увеличенной экспозицией. "Золотая" полка перемещена на уровень глаз мужчины среднего роста, по статистике, основного покупателя напитков. Зона оптимальной экспозиции стала в два раза больше. Facing увеличен на 20%. В комплект стандартной поставки входят 5 усиленных полок. Вертикальная подсветка выкладки и подсветка канапе осуществляется светодиодными лампами. Энергопотребление снижено на 33% (по сравнению с DM105-S). | H28: 37,790
A29: DM107 S версии 2.0 | D29: 700 | E29: +1…+10 | F29: 697х945х2028 | G29: Объем выкладки увеличен на 30%. "Золотая" полка перемещена на самую выигрышную высоту - на уровень глаз мужчины среднего роста, по статистике, основного покупателя напитков. Зона оптимальной экспозиции увеличена вдвое. В комплект стандартной поставки входит 5 усиленных полок. Энергопотребление снижено на 45% (по сравнению с DM107-S). Вертикальная подсветка выкладки и подсветка канапе осуществляется теперь светодиодными лампами. | H29: 45,550
A30: DM110Sd-S версия 2.0 | D30: 1000 | E30: +1…+10 | F30: 1402х710х2028 | G30: Увеличены обзорность и вместимость шкафа. Изменены конструкция и размер полок. Светодиодная подсветка выкладки и канапе привлекают дополнительное внимание к товару и снижают энергопотребление. Двери - купе обеспечивают оптимальный доступ к продуктам. Шкафы предназначены для магазинов любых форм торговли и площадей – от самых компактных до гипермаркетов. | H30: 60,600
A31: DM114Sd-S версия 2.0 | D31: 1400 | E31: +1…+10 | F31: 1402х945х2028 | G31: Шкафы имеют максимальный обзор экспозиции и обеспечивают увеличенный объем хранения продуктов и напитков. 5 уровней полок с вкладками в центральной зоне гарантируют беспрецедентную загрузку шкафа. Светодиодная подсветка выкладки и канапе повышают качество экспозиции, увеличивают продажи, снижают энергопотребление. | H31: 66,550
A32: DM102-Bravo | C32: Standard | D32: 150 | E32: +1…+10 | F32: 606*625*890 | G32: Внутренний объем 150 л , нижнее расположение агрегата, 2 полки, внутренняя LED подсветка. | H32: 28,880
A33: DM102-Bravo с замком | C33: Standard | D33: 150 | E33: +1…+10 | F33: 606*625*890 | G33: Внутренний объем 150 л , нижнее расположение агрегата, 2 полки, внутренняя LED подсветка, замок. | H33: 29,980
A34: DM102-Bravo черный | C34: Standard | D34: 150 | E34: +1…+10 | F34: 606*625*890 | G34: Внутренний объем 150 л , нижнее расположение агрегата, 2 полки, внутренняя LED подсветка. Корпус черного цвета - снаружи и изнутри | H34: 30,380
A35: DM102-Bravo черный с замком | C35: Standard | D35: 150 | E35: +1…+10 | F35: 606*625*890 | G35: Внутренний объем 150 л , нижнее расположение агрегата, 2 полки, внутренняя LED подсветка, замок. Корпус черного цвета - снаружи и изнутри | H35: 31,480
A36: DM104-Bravo | C36: Standard | D36: 390 | E36: +1…+10 | F36: 606х630х1730 | G36: Внутренний объем 390 л , нижнее расположение агрегата | H36: 35,500
A37: DM104c-Bravo | C37: Standard | D37: 390 | E37: +1…+10 | F37: 606х630х1930 | G37: Внутренний объем 390 л , нижнее расположение агрегата | H37: 35,900
A38: DM105-S | B38: ШХ-0.5 ДС | C38: Standard | D38: 500 | E38: +1…+12 | F38: 697*1960*620 | G38: Внутренний объем 500 л , верхнее расположение агрегата | H38: 37,790
A39: DM105-S мех. Замком | B39: ШХ-0.5 ДС | C39: Standard | D39: 500 | E39: +1…+12 | F39: 697*1960*620 | G39: Внутренний объем 500 л , верхнее расположение агрегата + механический замок | H39: 39,260
A40: DM107-S | B40: ШХ-0.7 ДС | C40: Standard | D40: 700 | E40: +1…+12 | F40: 697*1960*854 | G40: Внутренний объем 700 л , верхнее расположение агрегата | H40: 45,550
A41: DM110Sd-S | B41: ШХ-1.0 купе | C41: Standard | D41: 1000 | E41: +1…+12 | F41: 1402*1960*620 | G41: Внутренний объем 1000 л , верхнее расположение агрегата, двери купе | H41: 60,600
A42: DM114Sd-S | B42: ШХ-1.4 купе | C42: Standard | D42: 1400 | E42: +1…+12 | F42: 1402*1960*854 | G42: Внутренний объем 1400 л , верхнее расположение агрегата, двери купе | H42: 66,550
A43: DM110-S | C43: Standard | D43: 1000 | E43: +1…+12 | F43: 1402х710х2028 | G43: Внутренний объем 1000 л , верхнее расположение агрегата, двери распашные | H43: 60,600
A44: DM114-S | C44: Standard | D44: 1400 | E44: +1…+12 | F44: 1402х945х2028 | G44: Внутренний объем 1400 л , верхнее расположение агрегата, двери распашные | H44: 66,550
A45: DV110-S | C45: Standard | D45: 1000 | E45: -5…+5 | F45: 1402х710х2028 | G45: Внутренний объем 1000 л , верхнее расположение агрегата, двери распашные | H45: 65,500
A46: DP102-S | C46: Standard | D46: 150 | E46: -8…0 | F46: 600х625х890 | G46: Внутренний объем 150 л , верхнее расположение агрегата + механический замок | H46: 31,990
A47: DP105-S | C47: Standard | D47: 500 | E47: -8…0 | F47: 697*620*1960 | G47: Внутренний объем 500 л , верхнее расположение агрегата + механический замок | H47: 47,770
A48: DP107-S с мех замком | B48: ШХ-0.7 ДСН | C48: Standard | D48: 700 | E48: -8…0 | F48: 697*1960*854 | G48: Внутренний объем 700 л , верхнее расположение агрегата + механический замок | H48: 51,500
A49: DP107-S с эл. мех замком | B49: ШХ-0.7 ДСН | C49: Standard | D49: 700 | E49: -8…0 | F49: 697*1960*854 | G49: Внутренний объем 700 л , верхнее расположение агрегата + эл. механический замок и пульт дистанционного управления | H49: 56,054
A50: Холодильные шкафы из нержавеющей стали с металлическими дверьми
A51: CV105-G | C51: Grande | D51: 500 | E51: -5...+5 | F51: 697*1960*620 | G51: Внутренний объем 500 л , верхнее расположение агрегата. Электрическая оттайка | H51: 65,500
A52: CV107-G | C52: Grande | D52: 700 | E52: -5...+5 | F52: 697*1960*854 | G52: Внутренний объем 700 л , верхнее расположение агрегата. Электрическая оттайка | H52: 72,700
A53: CV110-G | C53: Grande | D53: 1000 | E53: -5...+5 | F53: 1402*1960*620 | G53: Внутренний объем 1000 л , верхнее расположение агрегата. Электрическая оттайка | H53: 93,930
A54: CV114-G | C54: Grande | D54: 1400 | E54: -5...+5 | F54: 1402*1960*854 | G54: Внутренний объем 1400 л , верхнее расположение агрегата. Электрическая оттайка | H54: 99,000
A55: CM105-G | B55: ШХ-0.5 (нерж) | C55: Grande | D55: 500 | E55: 0…+6 | F55: 697*1960*620 | G55: Внутренний объем 500 л , верхнее расположение агрегата | H55: 60,600
A56: CM107-G | B56: ШХ-0.7 (нерж) | C56: Grande | D56: 700 | E56: 0…+6 | F56: 697*1960*854 | G56: Внутренний объем 700 л , верхнее расположение агрегата | H56: 65,990
A57: CM110-G | B57: ШХ-1.0 (нерж) | C57: Grande | D57: 1000 | E57: 0…+6 | F57: 1402*1960*620 | G57: Внутренний объем 1000 л , верхнее расположение агрегата | H57: 79,790
A58: CM114-G | B58: ШХ-1.4 (нерж) | C58: Grande | D58: 1400 | E58: 0…+6 | F58: 1402*1960*854 | G58: Внутренний объем 1400 л , верхнее расположение агрегата | H58: 88,800
A59: CB107-G | B59: ШН-0.7 (нерж) | C59: Grande | D59: 700 | E59: -18 | F59: 735*1996*884 | G59: Внутренний объем 700 л , верхнее расположение агрегата. Электрическая оттайка | H59: 77,700
A60: CB114-G | B60: ШН-1.4 (нерж) | C60: Grande | D60: 1400 | E60: -18 | F60: 1474*1996*884 | G60: Внутренний объем 1400 л , верхнее расположение агрегата. Электрическая оттайка | H60: 109,900
A61: CV105-Gm | C61: Grande | D61: 500 | E61: -5...+5 | F61: 697*1960*620 | G61: Внутренний объем 500 л , верхнее расположение агрегата. Электрическая оттайка | H61: 65,500
A62: CV107-Gm | C62: Grande | D62: 700 | E62: -5...+5 | F62: 697*1960*854 | G62: Внутренний объем 700 л , верхнее расположение агрегата. Электрическая оттайка | H62: 72,700
A63: CV110-Gm | C63: Grande | D63: 1000 | E63: -5...+5 | F63: 1402*1960*620 | G63: Внутренний объем 1000 л , верхнее расположение агрегата. Электрическая оттайка | H63: 93,930
A64: CV114-Gm | C64: Grande | D64: 1400 | E64: -5...+5 | F64: 1402*1960*854 | G64: Внутренний объем 1400 л , верхнее расположение агрегата. Электрическая оттайка | H64: 99,000
A65: CM105-Gm | C65: Grande | D65: 500 | E65: 0…+6 | F65: 697*1960*620 | G65: Внутренний объем 500 л , верхнее расположение агрегата | H65: 60,600
A66: CM107-Gm | C66: Grande | D66: 700 | E66: 0…+6 | F66: 697*1960*854 | G66: Внутренний объем 700 л , верхнее расположение агрегата | H66: 65,990
A67: CM110-Gm | C67: Grande | D67: 1000 | E67: 0…+6 | F67: 1402*1960*620 | G67: Внутренний объем 1000 л , верхнее расположение агрегата | H67: 79,790
A68: CM114-Gm | C68: Grande | D68: 1400 | E68: 0…+6 | F68: 1402*1960*854 | G68: Внутренний объем 1400 л , верхнее расположение агрегата | H68: 88,800
A69: CB107-Gm | C69: Grande | D69: 700 | E69: -18 | F69: 735*1996*884 | G69: Внутренний объем 700 л , верхнее расположение агрегата. Электрическая оттайка | H69: 77,700
A70: CB114-Gm | C70: Grande | D70: 1400 | E70: -18 | F70: 1474*1996*884 | G70: Внутренний объем 1400 л , верхнее расположение агрегата. Электрическая оттайка | H70: 109,900
A71: CM105-Gk | C71: Grande | D71: 500 | E71: -2…+10 | F71: 697*1960*620 | G71: Внутренний объем 500 л , верхнее расположение агрегата | H71: 72,200
A72: CM107-Gk | C72: Grande | D72: 700 | E72: -2…+10 | F72: 697*1960*854 | G72: Внутренний объем 700 л , верхнее расположение агрегата | H72: 82,280
A73: CM110-Gk | C73: Grande | D73: 1000 | E73: -2…+10 | F73: 1402*1960*620 | G73: Внутренний объем 1000 л , верхнее расположение агрегата | H73: 103,900
A74: CM114-Gk | C74: Grande | D74: 1400 | E74: -2…+10 | F74: 1402*1960*854 | G74: Внутренний объем 1400 л , верхнее расположение агрегата | H74: 120,990
A75: CB107-Gk | C75: Grande | D75: 700 | E75: -18 | F75: 735*1996*884 | G75: Внутренний объем 700 л , верхнее расположение агрегата. Электрическая оттайка | H75: 94,900
A76: CB114-Gk | C76: Grande | D76: 1400 | E76: -18 | F76: 1474*1996*884 | G76: Внутренний объем 1400 л , верхнее расположение агрегата. Электрическая оттайка | H76: 143,000
A77: CM105-Gm Alu | C77: Grande m | D77: 500 | E77: 0…+6 | F77: 697х695х2028 | G77: Внутренний объем 500 л, верхнее расположение агрегата, нержавеющая сталь, алиминиевые профили, 4 полки, замок, LED подсветка, педаль | H77: 69,900
A78: CM107-Gm Alu | C78: Grande m | D78: 700 | E78: 0…+6 | F78: 697х925х2028 | G78: Внутренний объем 700 л, верхнее расположение агрегата, нержавеющая сталь, алиминиевые профили, 4 полки, замок, LED подсветка, педаль | H78: 75,700
A79: CM110-Gm Alu | C79: Grande m | D79: 1000 | E79: 0…+6 | F79: 1402х695х2028 | G79: Внутренний объем 1 000 л, верхнее расположение агрегата, нержавеющая сталь, алиминиевые профили, 8 полок, замки, LED подсветка, 2 педали | H79: 89,900
A80: CM114-Gm Alu | C80: Grande m | D80: 1400 | E80: 0…+6 | F80: 1402х925х2028 | G80: Внутренний объем 1 400 л, верхнее расположение агрегата, нержавеющая сталь, алиминиевые профили, 8 полок, замик, LED подсветка, 2 педали | H80: 101,100
A81: CB107-Gm Alu | C81: Grande m | D81: 700 | E81: -18 | F81: 735х960х2064 | G81: Внутренний объем 700 л, верхнее расположение агрегата, нержавеющая сталь, алиминиевые профили, 4 полки, замок, LED подсветка, педаль, Электрическая оттайка | H81: 88,880
A82: CB114-Gm Alu | C82: Grande m | D82: 1400 | E82: -18 | F82: 1474х960х2064 | G82: Внутренний объем 1 400 л, верхнее расположение агрегата, нержавеющая сталь, алиминиевые профили, 8 полок, замик, LED подсветка, 2 педали, Электрическая оттайка | H82: 125,500
A83: CV105-Gm Alu | C83: Grande m | D83: 500 | E83: -5…+5 | F83: 697х695х2028 | G83: Внутренний объем 500 л, верхнее расположение агрегата, нержавеющая сталь, алиминиевые профили, 4 полки, замок, LED подсветка, педаль | H83: 75,500
A84: CV107-Gm Alu | C84: Grande m | D84: 700 | E84: -5…+5 | F84: 697х925х2028 | G84: Внутренний объем 700 л, верхнее расположение агрегата, нержавеющая сталь, алиминиевые профили, 4 полки, замок, LED подсветка, педаль | H84: 82,800
A85: CV110-Gm Alu | C85: Grande m | D85: 1000 | E85: -5…+5 | F85: 1402х695х2028 | G85: Внутренний объем 1 000 л, верхнее расположение агрегата, нержавеющая сталь, алиминиевые профили, 8 полок, замки, LED подсветка, 2 педали | H85: 105,900
A86: CV114-Gm Alu | C86: Grande m | D86: 1400 | E86: -5…+5 | F86: 1402х925х2028 | G86: Внутренний объем 1 400 л, верхнее расположение агрегата, нержавеющая сталь, алиминиевые профили, 8 полок, замки, LED подсветка, 2 педали | H86: 112,200
A87: Холодильные шкафы из нержавеющей стали со стеклянными дверьми
A88: DM105-G | B88: ШХ-0.5 ДС (нерж) | C88: Grande | D88: 500 | E88: 0…+6 | F88: 697*1960*620 | G88: Внутренний объем 500 л , верхнее расположение агрегата. Стеклянная дверь. | H88: 62,895
A89: DM107-G | B89: ШХ-0.7 ДC (нерж) | C89: Grande | D89: 700 | E89: 0…+6 | F89: 697*1960*854 | G89: Внутренний объем 700 л, верхнее расположение агрегата. Стеклянная дверь. | H89: 79,370
A90: Холодильные шкафы из оцинкованной стали с полимерным покрытием со стеклянными дверьми
A91: BC105 | B91: Professionale | D91: 500 | E91: 0…+6 | F91: 697*1960*620 | G91: Внутренний объем 500 л , нижнее расположение агрегата. Стеклянная дверь.
A92: BC106 | B92: Professionale | D92: 600 | E92: 0…+6 | F92: 697*1960*854 | G92: Внутренний объем 600 л , нижнее расположение агрегата. Стеклянная дверь.
A93: BC110Sd | B93: Professionale | D93: 1000 | E93: 0…+6 | F93: 697*1960*620 | G93: Внутренний объем 1000 л , нижнее расположение агрегата. Стеклянная дверь.
A94: BC112Sd | B94: Professionale | D94: 1200 | E94: 0…+6 | F94: 697*1960*854 | G94: Внутренний объем 1200 л , нижнее расположение агрегата. Стеклянная дверь.
A95: POLAIR-Pk DM107-Pk | B95: Professionale | D95: 700 | E95: +1…+10 | F95: 697x820x2150 | G95: Расположение агрегата верхнее, кассета. Тип охлаждения динамически. Тип оттайки естественная, автоматическая с системой испарения конденсат.Корпус цельнозаливной ППУ. Подсветка вертикальная, LED - лента | H95: 52,520
A96: Модульный агрегат (кассета) для DM107-Pk | H96: 17857
A97: Фармацевтические холодильные шкафы с металлическими дверьми
A98: ШХФ-0,5 (R134a) с опциями | C98: Медико | D98: 500 | E98: +1 до +15°С | F98: 697х665х2028 | G98: Внутренний объем 500 л. 4 полки, замок, подсветка. Автоматическое отключение вращения вентилятора при открывании двери | H98: 37,777
A99: ШХФ-0,7 (R134a) с опциями | C99: Медико | D99: 700 | E99: +1 до +15°С | F99: 697х895х2028 | G99: Внутренний объем 700 л. 4 полки, замок, подсветка. Автоматическое отключение вращения вентилятора при открывании двери | H99: 39,990
A100: ШХФ-1,0 (R134a) с опциями | C100: Медико | D100: 1000 | E100: +1 до +15°С | F100: 1402х665х2028 | G100: Внутренний объем 1000 л. 8 полок, замки, подсветка. Автоматическое отключение вращения вентилятора при открывании двери | H100: 52,990
A101: ШХФ-1,4 (R134a) с опциями | C101: Медико | D101: 1400 | E101: +1 до +15°С | F101: 1402х895х2028 | G101: Внутренний объем 1400 л. 8 полок, замки, подсветка. Автоматическое отключение вращения вентилятора при открывании двери | H101: 56,900
A102: ШХКФ-1,4 (0,7-0,7) R404A, R134a с опциями | C102: Медико | D102: 700/700 | E102: +1 до +15°С | F102: 1402х895х2028 | G102: Двухкамерный. Внутренний объем каждой камеры 700 л. 8 полок, замки, подсветка. Автоматическое отключение вращения вентилятора при открывании двери | H102: 85,900
A103: Фармацевтические холодильные шкафы с стеклянными дверьми
A104: ШХФ-0,5 ДС (R134a) с опциями | C104: Медико | D104: 500 | E104: +1 до +15°С | F104: 697х710х2028 | G104: Внутренний объем 500л, 4 полки, вертикальная внутренняя подсветка, канапе с подсветкой | H104: 37,790
A105: ШХФ-0,7 ДС (R134a) с опциями | C105: Медико | D105: 700 | E105: +1 до +15°С | F105: 697х945х2028 | G105: Внутренний объем 700л, 4 полки, вертикальная внутренняя подсветка, канапе с подсветкой | H105: 45,550
A106: ШХФ-1,0 ДС (R134a) с опциями | C106: Медико | D106: 1000 | E106: +1 до +15°С | F106: 1402х710х2028 | G106: Внутренний объем 1000л, 8 полок, вертикальная внутренняя подсветка, канапе с подсветкой, распашные двери | H106: 60,600
A107: ШХФ-1,4 ДС (R134a) с опциями | C107: Медико | D107: 1400 | E107: +1 до +15°С / +1 до +15°С | F107: 1402х945х2028 | G107: Внутренний объем 1400л, 8 полок, вертикальная внутренняя подсветка, канапе с подсветкой, распашные двери | H107: 66,550
A108: Холодильные шкафы для экспозиции и хранения вина
A109: DW102-Bravo | D109: 150 | E109: +4...+18 | F109: 606*625*890 | G109: Внутренний объем 150л, 2 полки, внутренняя LED подсветка. Корпус черного цвета - снаружи и изнутри | H109: 34,990
A110: DW104-Bravo | D110: 390 | E110: +4...+18 | F110: 606*625*1730 | H110: 49,990

Sheet Машины
A2: Внимание новинка!!!
A3: Козырек для моноблоков и сплит-систем 1 серии | F3: Главное меню
A4: Козырек для моноблоков и сплит-систем 2 серии
A5: Козырек для моноблоков и сплит-систем 3 серии
A6: МАШИНЫ ХОЛОДИЛЬНЫЕ
A7: Модель | B7: Хладагент | C7: Рабочий диапазон, ° С | D7: Напряжение, В | E7: Розничная цена, руб
A8: Моноблоки потолочные
A9: MM 109 ST | B9: R 404a | C9: -5 … +5 | D9: 220 | E9: 44,300
A10: MM 113 ST | B10: R 404a | C10: -5 … +5 | D10: 220 | E10: 45,800
A11: MM 115 ST | B11: R 404a | C11: -5 … +5 | D11: 220 | E11: 61,300
A12: MB 109 ST | B12: R 404a | C12: -20…-15 | D12: 220 | E12: 60,200
A13: MB 214 ST | B13: R 404a | C13: -20…-15 | D13: 220 | E13: 83,600
A14: Моноблоки ранцевого типа
A15: MM 111 R | B15: R 404a | C15: -5 … +5 | D15: 220 | E15: 41,274
A16: MM 115 R | B16: R 404a | C16: -5 … +5 | D16: 220 | E16: 46,580
A17: MM 218 R | B17: R 404a | C17: -5 … +5 | D17: 220 | E17: 55,896
A18: MM 226 R | B18: R 404a | C18: -5 … +5 | D18: 380 | E18: 63,443
A19: MM 232 R | B19: R 404a | C19: -5 … +5 | D19: 380 | E19: 100,457
A20: MB 109 R | B20: R 404a | C20: -20 ...-15 | D20: 220 | E20: 49,882
A21: MB 211 R | B21: R 404a | C21: -20 ...-15 | D21: 220 | E21: 56,840
A22: MB 214 R | B22: R 404a | C22: -20 ...-15 | D22: 380 | E22: 69,104
A23: Моноблоки врезного типа
A24: MM 109 S | B24: R 404a | C24: -5 … +5 | D24: 220 | E24: 41,667
A25: MM 111 S | B25: R 404a | C25: -5 … +5 | D25: 220 | E25: 46,083
A26: MM 113 S | B26: R 404a | C26: -5 … +5 | D26: 220 | E26: 49,578
A27: MM 115 S | B27: R 404a | C27: -5 … +5 | D27: 220 | E27: 51,970
A28: MM 218 S | B28: R 404a | C28: -5 … +5 | D28: 220 | E28: 58,899
A29: MM 222 S | B29: R 404a | C29: -5 … +5 | D29: 380 | E29: 61,505
A30: MM 226 S | B30: R 404a | C30: -5 … +5 | D30: 380 | E30: 65,235
A31: MM 232 S | B31: R 404a | C31: -5 … +5 | D31: 380 | E31: 99,453
A32: MB 108 S | B32: R 404a | C32: -20 ...-15 | D32: 220 | E32: 51,050
A33: MB 109 S | B33: R 404a | C33: -20 ...-15 | D33: 220 | E33: 55,639
A34: MB 211 S | B34: R 404a | C34: -20 ...-15 | D34: 220 | E34: 63,375
A35: MB 214 S | B35: R 404a | C35: -20 ...-15 | D35: 380 | E35: 74,546
A36: MB 216 S | B36: R 404a | C36: -20 ...-15 | D36: 380 | E36: 80,882
A37: MB 220 S | B37: R 404a | C37: -20 ...-15 | D37: 380 | E37: 110,962
A38: Сплит-системы с микроканальным конденсатором
A39: SM111 M | B39: R 404a | C39: -5...+5 | D39: 220 | E39: 50,839
A40: SM115 M | B40: R 404a | C40: -5...+5 | D40: 220 | E40: 62,427
A41: SM218 M | B41: Уточняйте у менеджера
A42: SM226 M | B42: Уточняйте у менеджера
A43: SB109 M | B43: R 404a | C43: -20…-15 | D43: 220 | E43: 68,099
A44: SB211 M | B44: Уточняйте у менеджера
A45: SB214 M | B45: Уточняйте у менеджера
A46: Сплит-системы Standart
A47: Компрессорно-конденсаторный блок и воздухоохладитель заправлены сухим азотом.
A48: SM 109 S | B48: R 404a | C48: -5 … +10 | D48: 220 | E48: 49,795
A49: SM 111 S | B49: R 404a | C49: -5 … +10 | D49: 220 | E49: 52,619
A50: SM 113 S | B50: R 404a | C50: -5 … +10 | D50: 220 | E50: 55,169
A51: SM 115 S | B51: R 404a | C51: -5 … +10 | D51: 220 | E51: 64,612
A52: SM 218 S | B52: R 404a | C52: -5 … +10 | D52: 220 | E52: 73,549
A53: SM 222 S | B53: R 404a | C53: -5 … +10 | D53: 380 | E53: 80,482
A54: SM 226 S | B54: R 404a | C54: -5 … +10 | D54: 380 | E54: 86,311
A55: SM 232 S | B55: R 404a | C55: -5 … +10 | D55: 380 | E55: 110,642
A56: SM 337 S | B56: R 404a | C56: -5 … +10 | D56: 380 | E56: 112,019
A57: SM 342 S | B57: R 404a | C57: -5 … +10 | D57: 380 | E57: 126,705
A58: SB 108 S | B58: R 404a | C58: -20 ...-15 | D58: 220 | E58: 63,914
A59: SB 109 S | B59: R 404a | C59: -20 ...-15 | D59: 220 | E59: 70,482
A60: SB 211 S | B60: R 404a | C60: -20 ...-15 | D60: 220 | E60: 74,510
A61: SB 214 S | B61: R 404a | C61: -20 ...-15 | D61: 380 | E61: 81,140
A62: SB 216 S | B62: R 404a | C62: -20 ...-15 | D62: 380 | E62: 85,785
A63: SB 328 S | B63: R 404a | C63: -20 … -15 | D63: 380 | E63: 121,512
A64: SB 331 S | B64: R 404a | C64: -20 … -15 | D64: 380 | E64: 144,628
A65: Сплит-системы Professionale (с пультом)
A66: SM 109 P | B66: R 404a | C66: -5 … +5 | D66: 220 | E66: 60,861
A67: SM 111 P | B67: R 404a | C67: -5 … +5 | D67: 220 | E67: 64,311
A68: SM 113 P | B68: R 404a | C68: -5 … +5 | D68: 220 | E68: 67,429
A69: SM 115 P | B69: R 404a | C69: -5 … +5 | D69: 220 | E69: 78,970
A70: SM 218 P | B70: R 404a | C70: -5 … +5 | D70: 220 | E70: 89,893
A71: SM 222 P | B71: R 404a | C71: -5 … +5 | D71: 380 | E71: 98,367
A72: SM 226 P | B72: R 404a | C72: -5 … +5 | D72: 380 | E72: 105,492
A73: SB 108 P | B73: R 404a | C73: -20 … -15 | D73: 220 | E73: 78,117
A74: SB 109 P | B74: R 404a | C74: -20 … -15 | D74: 220 | E74: 86,145
A75: SB 211 P | B75: R 404a | C75: -20 … -15 | D75: 220 | E75: 91,068
A76: SB 214 P | B76: R 404a | C76: -20 … -15 | D76: 380 | E76: 100,974
A77: SB 216 P | B77: R 404a | C77: -20 … -15 | D77: 380 | E77: 106,755
A78: Дополнительные опции
A79: Зимний комплект* | E79: 11,538
A80: Выносной пульт управления* | E80: 10,808
A81: * скидки на данную позицию не предоставляются
A84: Воздухоохладители
A85: AS201-1.5 | B85: 415*420*284 | C85: 12,900
A86: AS202-2.8 | B86: 715*420*284 | C86: 17,900
A87: AS311-4.5 | B87: 800*480*500 | C87: 29,900

Sheet Лари
A1: МОРОЗИЛЬНЫЕ ЛАРИ | J1: Главное меню
A2: Модель | B2: Объем, л | C2: Размер | D2: Рабочий диапазон температур | E2: Температура окружающей среды | F2: Линия | G2: Описание | H2: Дополнительные опции | I2: Розничная цена, руб
A3: Морозильные лари с плоскими раздвижными стеклянными крышками
A4: DF120SF-S | B4: 215 | C4: 790*630*912 | D4: -25…-18 | E4: +35 | F4: Standard | G4: Внутренний объем 215 л, обшивки корпуса - оцинкованная сталь с полимерным покрытием. Колеса. | H4: корзина - 2 шт | I4: 25500
A5: DF130SF-S | B5: 320 | C5: 1070*630*912 | D5: -25…-18 | E5: +35 | F5: Standard | G5: Внутренний объем 320 л, обшивки корпуса - оцинкованная сталь с полимерным покрытием. Колеса. | H5: корзина - 4 шт | I5: 28280
A6: DF140SF-S | B6: 426 | C6: 1350*630*912 | D6: -25…-18 | E6: +35 | F6: Standard | G6: Внутренний объем 426 л , обшивки корпуса - оцинкованная сталь с полимерным покрытием. Колеса. | H6: корзина - 5 шт | I6: 33700
A7: DF150SF-S | B7: 532 | C7: 1630*630*912 | D7: -25…-18 | E7: +35 | F7: Standard | G7: Внутренний объем 532 л , обшивки корпуса - оцинкованная сталь с полимерным покрытием. Колеса. | H7: корзина - 6 шт | I7: 35735
A8: Морозильные лари с изогнутыми раздвижными стеклянными крышками
A9: DF120SC-S | B9: 159 | C9: 790*630*853 | D9: -25…-18 | E9: +35 | F9: Standard | G9: Внутренний объем 159 л, обшивки корпуса - оцинкованная сталь с полимерным покрытием. Колеса. | H9: корзина - 2 шт | I9: 25500
A10: DF130SC-S | B10: 241 | C10: 1070*630*853 | D10: -25…-18 | E10: +35 | F10: Standard | G10: Внутренний объем 241 л , обшивки корпуса - оцинкованная сталь с полимерным покрытием. Колеса. | H10: корзина - 4 шт | I10: 29730
A11: DF140SC-S | B11: 323 | C11: 1350*630*853 | D11: -25…-18 | E11: +35 | F11: Standard | G11: Внутренний объем 323 л , обшивки корпуса - оцинкованная сталь с полимерным покрытием. Колеса. | H11: корзина - 5 шт | I11: 35500
A12: DF150SC-S | B12: 405 | C12: 1630*630*850 | D12: -25…-18 | E12: +35 | F12: Standard | G12: Внутренний объем 405 л , обшивки корпуса - оцинкованная сталь с полимерным покрытием. Колеса. | H12: корзина - 6 шт | I12: 36,360
A13: Морозильные лари с глухими крышками
A14: SF120LF-S | B14: 197 | C14: 790*722*880 | D14: -25…-18 | E14: +35 | F14: Standard | G14: Внутренний объем 197 л , обшивки корпуса: внешних - оцинкованная сталь с полимерным покрытием; внутрених - пищевой алюминий. Подсветка. Замок. Корзина - 1шт | H14: корзина -2 шт | I14: 26260
A15: SF130LF-S | B15: 295 | C15: 1070*722*880 | D15: -25…-18 | E15: +35 | F15: Standard | G15: Внутренний объем 295 л , обшивки корпуса: внешних - оцинкованная сталь с полимерным покрытием; внутрених - пищевой алюминий. Подсветка. Замок. Корзина - 1шт | H15: корзина -3 шт | I15: 28990
A16: SF140LF-S | B16: 393 | C16: 1350*722*880 | D16: -25…-18 | E16: +35 | F16: Standard | G16: Внутренний объем 393 л , обшивки корпуса: внешних - оцинкованная сталь с полимерным покрытием; внутрених - пищевой алюминий. Подсветка. Замок. Корзина - 1шт | H16: корзина -4 шт | I16: 34690
A17: SF150LF-S | B17: 491 | C17: 1630*722*880 | D17: -25…-18 | E17: +35 | F17: Standard | G17: Внутренний объем 491 л , обшивки корпуса: внешних - оцинкованная сталь с полимерным покрытием; внутрених - пищевой алюминий. Подсветка. Замок. Корзина - 1шт | H17: корзина -6 шт | I17: 35500
A18: Дополнительные опции
A19: Корзина, 1шт | I19: 220
A20: Замок для ларей со стеклянными крышками | I20: 550
A22: Лари доукомплектовываются следующими корзинами:
A24: Лари с плоскими раздвижными стеклянными крышками | E24: "корзина для ларей (для плоской крышки)", артикул 45046000300d
A25: Лари с изогнутыми раздвижными стеклянными крышками | E25: 1 "корзина для ларей малая (изогнутая раздвижная крышка)", 45046000600d + "корзина для ларей (для плоской крышки)", артикул 45046000300d
A26: Лари с глухими крышками (одна корзина в комплекте) | E26: "корзина для ларей (поднимающаяся крышка)", артикул 45046000100d

Sheet pol_кам_стекл
A1: КАМЕРЫ СО СТЕКЛОПАКЕТОМ POLAIR | D1: Главное меню
A2: Оборудование | B2: Описание | C2: Розничная цена, руб
A3: КХН-2,94 Ст (1360*1360*2200) | B3: Стекл. блок по стороны 1360, дверь унив.по смежной стороне | C3: 64,170
B4: Стекл. блок с двухстворчатой дверью по стороне 1360 | C4: 72,018
B5: Стекл. блок по двум сторонам, дв.стекл. двухств. по стороне 1360 | C5: 83,415
A6: КХН-4,41 Ст (1960*1360*2200) | B6: Стекл. блок по стороны 1960, дверь унив.по смежной стороне | C6: 77,033
B7: Стекл. блок с одностворчатой дверью по стороне 1960 | C7: 76,642
B8: Стекл. блок по двум смежным сторонам, дв.стекл. одноств.по ст.1960 | C8: 86,324
A9: КХН-6,61 Ст (1960*1960*2200) | B9: Стекл. блок по стороны 1960, дверь унив.по смежной стороне | C9: 90,773
B10: Стекл. блок с одностворчатой дверью по стороне 1960 | C10: 90,382
B11: Стекл. блок по двум смежным сторонам, дв.стекл. одноств.по ст.1960 | C11: 103,425
A12: КХН-7,71 Ст (2260*1960*2200) | B12: Стекл. блок по стороны 2260, дверь унив.по смежной стороне | C12: 101,390
B13: Стекл. блок с одностворчатой дверью по стороне 2260 | C13: 100,998
B14: Стекл. блок по двум смежным сторонам, дв.стекл. одноств.по ст.2260 | C14: 111,661
A15: КХН-8,81 Ст (2560*1960*2200) | B15: Стекл. блок по стороны 1960, дверь унив.по смежной стороне | C15: 104,513
B16: Стекл. блок с одностворчатой дверью по стороне 1960 | C16: 104,122
B17: Стекл. блок по стороны 2560, дверь унив.по смежной стороне | C17: 108,888
B18: Стекл. блок с одностворчатой дверью по стороне 2560 | C18: 108,497
B19: Стекл. блок по двум смежным сторонам, дв.стекл. одноств.по ст.2560 | C19: 119,954
A20: КХН-11,02 Ст (3160*1960*2200) | B20: Стекл. блок по стороны 1960, дверь унив.по смежной стороне | C20: 118,253
B21: Стекл. блок с одностворчатой дверью по стороне 1960 | C21: 117,862
B22: Стекл. блок по стороны 3160, дверь унив.по смежной стороне | C22: 127,003
B23: Стекл. блок с одностворчатой дверью по стороне 3160 | C23: 126,611
B24: Стекл. блок по двум сторонам, дв.стекл. одноств.по ст.3160 | C24: 136,484
B25: Стекл. блок по двум сторонам, дв.стекл. двухств.по ст.3160 | C25: 148,304
A26: КХН-11,75 Ст (2560*2560*2200) | B26: Стекл. блок по стороны 2560, дверь унив.по смежной стороне | C26: 124,762
B27: Стекл. блок с одностворчатой дверью по стороне 2560 | C27: 124,365
B28: Стекл. блок по двум смежным сторонам, дв.стекл. одноств.по ст.2560 | C28: 139,052
A30: Все холодильные камеры со стеклом выпускаются на базе стандартных камер "Полаир" с толщиной панелей 80 мм. Размер стеклянного блока по высоте 1830 мм. Стеклянные дверные блоки одностворчатые имееют ширину 900 мм, двухстворчатые - 1200 мм. Комплектация: профиль соединительный для соединения стеклоблоков друг с другом; профиль отделочный с внутренней и наружной стороны камеры; ручка двери; замок (по запросу); метизы.

Sheet pol_ККБ
A1: Компрессорно-конденсаторные блоки | E1: Главное меню
A2: Наименование | B2: Габаритные размеры | C2: Розничная стоимость, руб. с НДС
A3: CUM-MLZ019 | B3: 1200*500*905 | C3: 149,428
A4: CUM-MLZ021 | B4: 1200*500*905 | C4: 150,675
A5: CUM-MLZ026 | B5: 1200*500*905 | C5: 152,886

Sheet pol_вынос_хол
A1: POLAIR - Monte M | G1: Главное меню
A2: Рабочий диапазон температур +1…+7° С, рассчитаны на работу при температуре окр. среды +25° С
A3: Xладагент R 404А
A4: Модель | B4: Комплектация | C4: Габаритные размеры, мм | F4: Цена*, Руб с НДС
C5: Длина | D5: Глубина | E5: Высота
A6: Monte M 1250 | B6: 4 ряда полок глубиной 500 мм с кронштейнами с регулировкой наклона, верхняя LED подсветка; механический ТРВ; электронный блок управления; комплект подключения к системе дренажа; режим естественной автоматической оттайки; бампер | C6: 1250 | D6: 975 | E6: 2040 | F6: 76,900
A7: Monte M 1875 | C7: 1875 | D7: 975 | E7: 2040 | F7: 103,500
A8: Monte M 2500 | C8: 2500 | D8: 975 | E8: 2040 | F8: 123,500
A9: Monte M 3750 | C9: 3750 | D9: 975 | E9: 2040 | F9: 172,270
A10: POLAIR - Monte MН
A11: Рабочий диапазон температур +1…+7° С, рассчитаны на работу при температуре окр. среды +25° С
A12: Xладагент R 404А
A13: Модель | B13: Комплектация | C13: Габаритные размеры, мм | F13: Цена*, Руб с НДС
C14: Длина | D14: Глубина | E14: Высота
A15: Monte MH 1250 | B15: 5 рядов полок глубиной 500 мм с кронштейнами с регулировкой наклона, верхняя LED подсветка; механический ТРВ; электронный блок управления; комплект подключения к системе дренажа; режим естественной автоматической оттайки; бампер | C15: 1250 | D15: 975 | E15: 2210 | F15: 84,900
A16: Monte MH 1875 | C16: 1875 | D16: 975 | E16: 2210 | F16: 111,900
A17: Monte MH 2500 | C17: 2500 | D17: 975 | E17: 2210 | F17: 128,500
A18: Monte MH 3750 | C18: 3750 | D18: 975 | E18: 2210 | F18: 179,900
A19: Боковые панели и разделители для Monte M**
A20: Наименование | C20: Габаритные размеры, мм | F20: Цена*, Руб с НДС
C21: Длина | D21: Глубина | E21: Высота
A22: Боковая панель Monte M глухая | C22: 40 | D22: 956 | E22: 2010 | F22: 6,990
A23: Боковая панель Monte M глухая с зеркалом | C23: 40 | D23: 956 | E23: 2010 | F23: 9,700
A24: Боковая панель Monte M со стеклопакетом | C24: 40 | D24: 956 | E24: 2010 | F24: 10,200
A25: Разделитель Monte M акриловое стекло | C25: Устанавливается по всей высоте между соседними полками | F25: 5,320
A26: Разделитель Monte M межсекционный одна сторона - глухая панель, другая - зеркало | C26: 40 | D26: 956 | E26: 2010 | F26: 10,550
A27: Разделитель Monte M межсекционный с 2-х сторонним зеркалом | C27: 40 | D27: 956 | E27: 2010 | F27: 11,990
A28: Разделитель Monte M межсекционный глухая панель | C28: 40 | D28: 956 | E28: 2010 | F28: 8,880
A29: Боковые панели и разделители для Monte MН**
A30: Наименование | B30: Габаритные размеры, мм | E30: Цена*, Руб с НДС
B31: Длина | C31: Глубина | D31: Высота
A32: Боковая панель Monte MН глухая | B32: 40 | C32: 956 | D32: 2184 | E32: 7,700
A33: Боковая панель Monte MН глухая с зеркалом | B33: 40 | C33: 956 | D33: 2184 | E33: 10,000
A34: Боковая панель Monte MН со стеклопакетом | B34: 40 | C34: 956 | D34: 2184 | E34: 11,500
A35: Разделитель Monte MН акриловое стекло | B35: Устанавливается по всей высоте между соседними полками | E35: 5,490
A36: Разделитель Monte MН межсекционный одна сторона - глухая панель, другая - зеркало | B36: 40 | C36: 956 | D36: 2184 | E36: 10,724
A37: Разделитель Monte MН межсекционный с 2-х сторонним зеркалом | B37: 40 | C37: 956 | D37: 2184 | E37: 12,720
A38: Разделитель Monte MН межсекционный глухая панель | B38: 40 | C38: 956 | D38: 2184 | E38: 9,900
A39: Опции и аксессуары - общие для Monte M и Monte MH**
A40: Наименование | B40: Описание | E40: Цена*, Руб с НДС
A41: Шторка ночная 1240 мм (с тормозящим механизмом) | B41: фиксация в любом положении | E41: 6,900
A42: Шторка ночная 1865 мм (с тормозящим механизмом) | B42: фиксация в любом положении | E42: 8,200
A43: Коплект Полка 500х1242+ 2 кронштейна( RAL9003) | B43: Для модулей длиной 1250,2500,3750 | E43: 1,800
A44: Коплект Полка 500х929+ 2 кронштейна( RAL9003) | B44: Для модулей длиной 1875 | E44: 1,500
A45: Коплект Полка 600х1242+ 2 кронштейна( RAL9003) | B45: Для модулей длиной 1250,2500,3750 | E45: 2,250
A46: Коплект Полка 600х929+ 2 кронштейна( RAL9003) | B46: Для модулей длиной 1875 | E46: 1,800
A47: Ограничитель проволочный 1230мм RAL 9003 | B47: Высота 50 мм (полная высота 85 мм) | E47: 500
A48: Ограничитель проволочный 920мм RAL 9003 | B48: Высота 50 мм (полная высота 85 мм) | E48: 350
A49: Ценникодержатели для полок 1230 | B49: 40 мм | E49: 140
A50: Ценникодержатели для полок 920 | B50: 40 мм | E50: 120
A51: Поперечный разделитель для полок прозрачный для полки глубиной 500 мм | B51: Высота 150 мм | E51: 330
A52: Поперечный разделитель полок проволочный RAL 9003 | B52: Высота 150 мм | E52: 250
A53: Делитель базовой полки проволочный RAL 9003 | B53: Высота 325 мм | E53: 800
A54: Подвес колбас проволочный RAL 9003 | E54: 830
A55: Планка для размещения подвесов для колбас 1250 мм | E55: 2,000
A56: Планка для размещения подвесов для колбас 930 мм | E56: 1,300
A57: ТЭН оттайки испарителя для стеллажа длиной 1250мм | E57: 1,300
A58: ТЭН оттайки испарителя для стеллажа длиной 1875мм | E58: 1,500
A59: ТЭН оттайки испарителя для стеллажа длиной 2500мм | E59: 1,800
A60: ТЭН оттайки испарителя для стеллажа длиной 3750мм | E60: 2,700
A61: Комплект для соединения стеллажей в линию RAL 9003 | E61: 2,100
A62: Комплект подсветки 3 рядов полок 1250, LED, (3 полки) | E62: 6,900
A63: Комплект подсветки 4 рядов полок 1250, LED, (4 полки) | E63: 9,200
A64: Комплект подсветки 5 рядов полок 1250 , LED, (5 полок) | E64: 11,000
A65: Комплект подсветки 3 рядов полок 1875 , LED, (6 полок) | E65: 12,000
A66: Комплект подсветки 4 рядов полок 1875, LED, (8 полок) | E66: 14,900
A67: Комплект подсветки 5 рядов полок 1875, LED, (10 полок) | E67: 19,800
A68: Комплект подсветки 3 рядов полок 2500, LED, (6 полок) | E68: 13,990
A69: Комплект подсветки 4 рядов полок 2500, LED, (8 полок) | E69: 19,850
A70: Комплект подсветки 5 рядов полок 2500 , LED, (10 полок) | E70: 21,500
A71: Комплект подсветки 3 рядов полок 3750 , LED, (9 полок) | E71: 19,000
A72: Комплект подсветки 4 ряда полок 3750 , LED, (12 полок) | E72: 29,800
A73: Комплект подсветки 5 рядов полок 3750 , LED, (15 полок) | E73: 34,000
A74: Наклонное зеркало для Monte 1250 | E74: 2,100
A75: Наклонное зеркало для Monte 1875 | E75: 3,770
A76: Наклонное зеркало для Monte 2500 | E76: 4,200
A77: Наклонное зеркало для Monte 3750 | E77: 6,300
A79: * Цена не учитывает стоимость логистических услуг. **Цены действуют для покупки вместе с пристенными охлаждаемыми стеллажами, для которых предназначены опции и аксессуары.

Sheet pol_stekl_front
A1: Высота стеклянного фронта, мм | E1: 1840 | F1: 1640 | H1: 1840 | I1: 1640 | K1: 1840 | L1: 1640 | M1: Главное меню
A2: К-во стеклян ных дверей | B2: Габаритные размеры камеры, мм
B3: Длина | C3: Глубина | D3: Высота 2 200 мм | G3: Высота 2 460 мм | J3: Высота 2 720 мм
D4: V камеры, м3 | E4: Цена, Руб с НДС | G4: V камеры, м3 | H4: Цена, Руб с НДС | J4: V камеры, м3 | K4: Цена, Руб с НДС
A5: 2 | B5: 1960 | C5: 1360 | D5: 4,41 | E5: 136173 | F5: 131183 | G5: 4,97 | H5: 141170 | I5: 136180 | J5: 5,53 | K5: 146700 | L5: 141710
C6: 1660 | D6: 5,51 | E6: 143730 | F6: 138740 | G6: 6,21 | H6: 149201 | I6: 144211 | J6: 6,91 | K6: 155206 | L6: 150216
C7: 1960 | D7: 6,61 | E7: 151287 | F7: 146297 | G7: 7,45 | H7: 157232 | I7: 152242 | J7: 8,29 | K7: 163712 | L7: 158722
C8: 2260 | D8: 7,71 | E8: 158844 | F8: 153854 | G8: 8,69 | H8: 165264 | I8: 160274 | J8: 9,68 | K8: 172219 | L8: 167229
C9: 2560 | D9: 8,81 | E9: 166401 | F9: 161411 | G9: 9,94 | H9: 173295 | I9: 168305 | J9: 11,06 | K9: 180724 | L9: 175734
A10: 3 | B10: 2860 | C10: 1360 | D10: 6,61 | E10: 181580 | F10: 177590 | G10: 7,45 | H10: 188020 | I10: 184030 | J10: 8,29 | K10: 194993 | L10: 191003
C11: 1660 | D11: 8,26 | E11: 190897 | F11: 186907 | G11: 9,32 | H11: 197812 | I11: 193822 | J11: 10,37 | K11: 205260 | L11: 201270
C12: 1960 | D12: 9,91 | E12: 200215 | F12: 196225 | G12: 11,18 | H12: 207604 | I12: 203614 | J12: 12,44 | K12: 215526 | L12: 211536
C13: 2260 | D13: 11,57 | E13: 209532 | F13: 205542 | G13: 13,04 | H13: 217396 | I13: 213406 | J13: 14,52 | K13: 225793 | L13: 221803
C14: 2560 | D14: 13,22 | E14: 218851 | F14: 214861 | G14: 14,90 | H14: 227189 | I14: 223199 | J14: 16,59 | K14: 236059 | L14: 232069
A15: 4 | B15: 3760 | C15: 1360 | D15: 8,81 | E15: 236979 | F15: 226999 | G15: 9,94 | H15: 244861 | I15: 234881 | J15: 11,06 | K15: 253276 | L15: 243296
C16: 1660 | D16: 11,02 | E16: 248057 | F16: 238077 | G16: 12,42 | H16: 256413 | I16: 246433 | J16: 13,82 | K16: 265303 | L16: 255323
C17: 1960 | D17: 13,22 | E17: 259135 | F17: 249155 | G17: 14,90 | H17: 267966 | I17: 257986 | J17: 16,59 | K17: 277330 | L17: 267350
C18: 2260 | D18: 15,42 | E18: 270213 | F18: 260233 | G18: 17,39 | H18: 279518 | I18: 269538 | J18: 19,35 | K18: 285244 | L18: 275264
C19: 2560 | D19: 17,63 | E19: 281292 | F19: 271312 | G19: 19,87 | H19: 287262 | I19: 277282 | J19: 22,12 | K19: 289358 | L19: 279378
A20: 5 | B20: 4360 | C20: 1360 | D20: 10,28 | E20: 275631 | F20: 266651 | G20: 11,59 | H20: 284434 | I20: 275454 | J20: 12,90 | K20: 293770 | L20: 284790
C21: 1660 | D21: 12,85 | E21: 287882 | F21: 278902 | G21: 14,49 | H21: 297160 | I21: 288180 | J21: 16,13 | K21: 306970 | L21: 297990
C22: 1960 | D22: 15,42 | E22: 300133 | F22: 291153 | G22: 17,39 | H22: 307349 | I22: 298369 | J22: 19,35 | K22: 320171 | L22: 311191
C23: 2260 | D23: 17,99 | E23: 309173 | F23: 300193 | G23: 20,29 | H23: 309886 | I23: 300906 | J23: 22,58 | K23: 317032 | L23: 308052
C24: 2560 | D24: 20,56 | E24: 312385 | F24: 303405 | G24: 23,18 | H24: 318802 | I24: 309822 | J24: 25,80 | K24: 328914 | L24: 319934
A25: 6 | B25: 5260 | C25: 1360 | D25: 12,48 | E25: 321039 | F25: 313059 | G25: 14,08 | H25: 331284 | I25: 323304 | J25: 15,67 | K25: 342063 | L25: 334083
C26: 1660 | D26: 15,61 | E26: 335051 | F26: 327071 | G26: 17,60 | H26: 344230 | I26: 336250 | J26: 19,58 | K26: 354784 | L26: 346804
C27: 1960 | D27: 18,73 | E27: 346766 | F27: 338786 | G27: 21,11 | H27: 345771 | I27: 337791 | J27: 23,50 | K27: 357024 | L27: 349044
C28: 2260 | D28: 21,85 | E28: 349064 | F28: 341084 | G28: 24,63 | H28: 357268 | I28: 349288 | J28: 27,42 | K28: 368249 | L28: 360269
C29: 2560 | D29: 24,97 | E29: 359378 | F29: 351398 | G29: 56,30 | H29: 370306 | I29: 362326 | J29: 31,33 | K29: 381714 | L29: 373734

Sheet Камеры
A1: КАМЕРЫ ХОЛОДИЛЬНЫЕ POLAIR | F1: Главное меню
A2: ПРАЙС-ЛИСТ - КАМЕРЫ POLAIR Standard (80мм) СКЛАДСКИЕ ПОЗИЦИИ
A4: Модель | B4: Размеры, мм | C4: Розничная цена, руб
A5: КХН-2,94 | B5: 1360*1360, h=2200 | C5: 47,970
A6: КХН-4,41 | B6: 1360*1960, h=2200 | C6: 57,460
A7: КХН-6,61 | B7: 1960*1960, h=2200 | C7: 66,645
A8: КХН-7,71 | B8: 1960*2260, h=2200 | C8: 74,490
A9: КХН-8,81 | B9: 1960*2560, h=2200 | C9: 78,700
A10: КХН-11,02 | B10: 1960*3160, h=2200 | C10: 90,285
A11: КХН-11,75 | B11: 2560*2560, h=2200 | C11: 91,280
A15: Прайс-лист на расширительные пояса (толщина панелей 80 мм) в упаковке
A18: Ширина камеры, мм | B18: Ширина пояса, мм | C18: Набор панелей
C19: потолочная и половая панели - по 1 шт. | D19: боковая панель - 2 шт.
A20: 1360 | B20: 1200 | C20: 1360х1200мм | D20: 2040х1200мм
B21: 900 | C21: 1360х900мм . | D21: 2040х900мм
B22: 600 | C22: 1360х600мм | D22: 2040х600мм
B23: 300 | C23: 1360х300мм | D23: 2040х300мм
A24: 1660 | B24: 1200 | C24: 1660х1200мм | D24: 2040х1200
B25: 900 | C25: 1660х900мм | D25: 2040х900мм
B26: 600 | C26: 1660х600мм | D26: 2040х600мм
B27: 300 | C27: 1660х300мм | D27: 2040х300мм
A28: 1960 | B28: 1200 | C28: 1960х1200мм | D28: 2040х1200
B29: 900 | C29: 1960х900мм | D29: 2040х900мм
B30: 600 | C30: 1960х600мм | D30: 2040х600мм
B31: 300 | C31: 1960х300мм | D31: 2040х300мм
A32: 2260 | B32: 1200 | C32: 2260х1200мм | D32: 2040х1200
B33: 900 | C33: 2260х900мм | D33: 2040х900мм
B34: 600 | C34: 2260х600мм | D34: 2040х600мм
B35: 300 | C35: 2260х300мм | D35: 2040х300мм
A36: 2560 | B36: 1200 | C36: 2560х1200мм | D36: 2040х1200
B37: 900 | C37: 2560х900мм | D37: 2040х900мм
B38: 600 | C38: 2560х600мм | D38: 2040х600мм
B39: 300 | C39: 2560х300мм | D39: 2040х300мм
A41: ПРАЙС-ЛИСТ - НА СТОЙКИ
A43: СТОЙКИ
A44: для панелей толщиной 80 мм | B44: Розничная цена, руб | C44: для панелей толщиной 100 мм | D44: Розничная цена, руб
A45: 1200х 80 x 80 мм | B45: 504 | C45: 1200х 100 x 100 мм | D45: 730
A46: 2040х 80 x 80 мм | B46: 853 | C46: 2040 х 100 x 100 мм | D46: 1,210
A47: 2300 х 80 x 80 мм | B47: 943 | C47: 2300 х 100 x 100 мм | D47: 1,380
A48: 2560 х 80 x 80 мм | B48: 1,058 | C48: 2560 х 100 x 100 мм | D48: 1,524
A50: ПРАЙС-ЛИСТ НА ДВЕРНЫЕ БЛОКИ УНИВЕРСАЛЬНЫЕ (распашная) световой проем 1850 x 800
A52: Комплектация: комплект ручки и петель, пороговая накладка, метизы
A53: 80 мм | B53: Розничная цена, руб | C53: 100 мм | D53: Розничная цена, руб
A54: 1200х2040 мм | B54: 26,603 | C54: 1200х2040 мм | D54: 27,439
A55: 1200х2300 мм | B55: 27,857 | C55: 1200х2300 мм | D55: 29,099
A56: 1200х2560 мм | B56: 29,517 | C56: 1200х2560 мм | D56: 32,025
A58: ДВЕРНЫЕ БЛОКИ КОНТЕЙНЕРНЫЕ (световой проем 1200 x1850) | E58: ДВЕРНЫЕ БЛОКИ С ОТКАТНОЙ ДВЕРЬЮ
A59: В состав дв.блока входят 2 боковые панели дв. проема с закладными элементами, панель-арка, дверь и комлектующие для монтажа
I60: Цена, Руб.
A61: ДВЕРЬ КОНТЕЙНЕРНАЯ (без панелей, с комплектацией) | D61: 35,379 | E61: ДВЕРЬ ОТКАТНАЯ (без панелей, с комплектацией) | I61: 55,877
A62: Комплектация: комплект ручки и петель, комплект деталей для монтажа двери (2 стойки+перекладина+ пальцы латунные), | E62: Комплектация: 1 упаковка - комплект деталей для сборки откатной двери, комплект ручка и замок, метизы
E63: 2 упаковка - козырек, кронштейны, профиль алюминевый L = 2 710 мм, уплотнение двери
D65: Цена, Руб. | I65: Цена, Руб.
A66: Высота камеры = 2 200 мм (толщ панелей 80 мм) | B66: 1800 x2040 (бок.пан.дв.пр. 2040*300-2шт; пан.-арка 1200*190) | D66: 40,058 | E66: Высота камеры = 2 200 мм (толщ панелей 80 мм) | F66: 1800 x2040 (бок.пан.дв.пр. 2040*300-2шт; пан.-арка 1200*190) | I66: 60,556
B67: 2400 x2040 (бок. пан.дв.пр. 2040*600-2шт; пан.-арка 1200*190) | D67: 43,540 | F67: 2400 x2040 (бок. пан.дв.пр. 2040*600-2шт; пан.-арка 1200*190) | I67: 64,039
B68: 3000 x2040 (бок. пан.дв.пр. 2040*900-2шт; пан.-арка 1200*190) | D68: 47,023 | F68: 3000 x2040 (бок. пан.дв.пр. 2040*900-2шт; пан.-арка 1200*190) | I68: 67,521
B69: 3600 x2040 (бок.пан.дв.пр. 2040*1200-2шт; пан.-арка 1200*190) | D69: 50,505 | F69: 3600 x2040 (бок.пан.дв.пр. 2040*1200-2шт; пан.-арка 1200*190) | I69: 73,098
A71: Высота камеры = 2 460 мм (толщ.панелей 80 мм) | B71: 1800 x2300 (бок. пан.дв.пр. 2300*300-2шт; пан.-арка 1200*450) | D71: 41,437 | E71: Высота камеры = 2 460 мм (толщ.панелей 80 мм) | F71: 1800 x2300 (бок. пан.дв.пр. 2300*300-2шт; пан.-арка 1200*450) | I71: 61,935
B72: 2400 x2300 (бок. пан.дв.пр. 2300*600-2шт; пан.-арка 1200*450) | D72: 45,364 | F72: 2400 x2300 (бок. пан.дв.пр. 2300*600-2шт; пан.-арка 1200*450) | I72: 65,862
B73: 3000 x2300 (бок. пан.дв.пр. 2300*900-2шт; пан.-арка 1200*450) | D73: 49,291 | F73: 3000 x2300 (бок. пан.дв.пр. 2300*900-2шт; пан.-арка 1200*450) | I73: 69,789
B74: 3600 x2300 (бок. пан.дв.пр. 2300*1200-2шт; пан.-арка 1200*450) | D74: 53,217 | F74: 3600 x2300 (бок. пан.дв.пр. 2300*1200-2шт; пан.-арка 1200*450) | I74: 73,649
A76: Высота камеры= 2 720 мм (толщ.панелей 80 мм) | B76: 1800 x2560 (бок. пан.дв.пр. 2560*300-2шт; пан.-арка 1200*710) | D76: 43,017 | E76: Высота камеры= 2 720 мм (толщ.панелей 80 мм) | F76: 1800 x2560 (бок. пан.дв.пр. 2560*300-2шт; пан.-арка 1200*710) | I76: 63,515
B77: 2400 x2560 (бок. пан.дв.пр. 2560*600-2шт; пан.-арка 1200*710) | D77: 47,387 | F77: 2400 x2560 (бок. пан.дв.пр. 2560*600-2шт; пан.-арка 1200*710) | I77: 67,886
B78: 3000 x2560 (бок. пан.дв.пр. 2560*900-2шт; пан.-арка 1200*710) | D78: 51,758 | F78: 3000 x2560 (бок. пан.дв.пр. 2560*900-2шт; пан.-арка 1200*710) | I78: 72,256
B79: 3600 x2560 (бок. пан.дв.пр. 2560*1200-2шт; пан.-арка 1200*710) | D79: 56,129 | F79: 3600 x2560 (бок. пан.дв.пр. 2560*1200-2шт; пан.-арка 1200*710) | I79: 76,627
I81: 0
A82: Высота камеры = 2 240 мм (толщ панелей 100 мм) | B82: 1800 x2040 (бок.пан.дв.пр. 2040*300-2шт; пан.-арка 1200*190) | D82: 40,363 | E82: Высота камеры = 2 240 мм (толщ панелей 100 мм) | F82: 1800 x2040 (бок.пан.дв.пр. 2040*300-2шт; пан.-арка 1200*190) | I82: 60,861
B83: 2400 x2040 (бок. пан.дв.пр. 2040*600-2шт; пан.-арка 1200*190) | D83: 44,241 | F83: 2400 x2040 (бок. пан.дв.пр. 2040*600-2шт; пан.-арка 1200*190) | I83: 64,739
B84: 3000 x2040 (бок. пан.дв.пр. 2040*900-2шт; пан.-арка 1200*190) | D84: 48,120 | F84: 3000 x2040 (бок. пан.дв.пр. 2040*900-2шт; пан.-арка 1200*190) | I84: 68,618
B85: 3600 x2040 (бок.пан.дв.пр. 2040*1200-2шт; пан.-арка 1200*190) | D85: 51,998 | F85: 3600 x2040 (бок.пан.дв.пр. 2040*1200-2шт; пан.-арка 1200*190) | I85: 72,496
A87: Высота камеры = 2 500 мм (толщ.панелей 100 мм) | B87: 1800 x2300 (бок. пан.дв.пр. 2300*300-2шт; пан.-арка 1200*450) | D87: 42,128 | E87: Высота камеры = 2 500 мм (толщ.панелей 100 мм) | F87: 1800 x2300 (бок. пан.дв.пр. 2300*300-2шт; пан.-арка 1200*450) | I87: 62,626
B88: 2400 x2300 (бок. пан.дв.пр. 2300*600-2шт; пан.-арка 1200*450) | D88: 46,500 | F88: 2400 x2300 (бок. пан.дв.пр. 2300*600-2шт; пан.-арка 1200*450) | I88: 66,998
B89: 3000 x2300 (бок. пан.дв.пр. 2300*900-2шт; пан.-арка 1200*450) | D89: 50,873 | F89: 3000 x2300 (бок. пан.дв.пр. 2300*900-2шт; пан.-арка 1200*450) | I89: 71,371
B90: 3600 x2300 (бок. пан.дв.пр. 2300*1200-2шт; пан.-арка 1200*450) | D90: 55,246 | F90: 3600 x2300 (бок. пан.дв.пр. 2300*1200-2шт; пан.-арка 1200*450) | I90: 75,744
A92: Высота камеры= 2 760 мм (толщ.панелей 100 мм) | B92: 1800 x2560 (бок. пан.дв.пр. 2560*300-2шт; пан.-арка 1200*710) | D92: 43,891 | E92: Высота камеры= 2 760 мм (толщ.панелей 100 мм) | F92: 1800 x2560 (бок. пан.дв.пр. 2560*300-2шт; пан.-арка 1200*710) | I92: 64,389
B93: 2400 x2560 (бок. пан.дв.пр. 2560*600-2шт; пан.-арка 1200*710) | D93: 48,758 | F93: 2400 x2560 (бок. пан.дв.пр. 2560*600-2шт; пан.-арка 1200*710) | I93: 69,257
B94: 3000 x2560 (бок. пан.дв.пр. 2560*900-2шт; пан.-арка 1200*710) | D94: 53,626 | F94: 3000 x2560 (бок. пан.дв.пр. 2560*900-2шт; пан.-арка 1200*710) | I94: 74,124
B95: 3600 x2560 (бок. пан.дв.пр. 2560*1200-2шт; пан.-арка 1200*710) | D95: 58,493 | F95: 3600 x2560 (бок. пан.дв.пр. 2560*1200-2шт; пан.-арка 1200*710) | I95: 78,991
A97: Комплект низкотемпературный (клапан выравнивания давления и ПЭН обогрева периметра двери)
D101: Дилерская цена, руб
A102: Для панелей толщиной 80 мм. | D102: 2,321
A103: Для панелей толщиной 100 мм. | D103: 2,500
A105: Пандусы с колесами для камер
A106: Артикул | B106: Наименование
A107: 2820027 | B107: Пандус для камер с толщ. панелей 80 мм
A108: 2820028 | B108: Пандус для камер с толщ. панелей 100 мм
A113: ПРАЙС-ЛИСТ - КАМЕРЫ POLAIR Standard (80мм) ИЗ СТАНДАРТНЫХ ПАНЕЛЕЙ (дверной блок универсальный с распашной дверью)
A115: Внешние габариты | C115: Высота 2 200 мм | F115: Высота 2 720 мм
A116: Длина | B116: Ширина | C116: объём, м3 | D116: Розничная цена, руб | E116: Розничная цена, руб | F116: объём, м3 | G116: Розничная цена, руб
A117: 1360 | B117: 1,360 | C117: 2.94 | D117: Складская | E117: 53,173 | F117: 3.69 | G117: 56,917
B118: 1,660 | C118: 3.67 | D118: 55,040 | E118: 58,698 | F118: 4.61 | G118: 62,823
B119: 1,960 | C119: 4.41 | D119: Складская | E119: 64,223 | F119: 5.53 | G119: 68,729
B120: 2,260 | C120: 5.14 | D120: 65,319 | E120: 69,749 | F120: 6.45 | G120: 74,645
B121: 2,560 | C121: 5.88 | D121: 70,472 | E121: 75,283 | F121: 7.37 | G121: 80,551
B122: 2,860 | C122: 6.61 | D122: 75,607 | E122: 80,798 | F122: 8.29 | G122: 86,457
B123: 3,160 | C123: 7.34 | D123: 80,741 | E123: 86,323 | F123: 9.22 | G123: 92,363
B124: 3,460 | C124: 8.08 | D124: 85,895 | E124: 91,848 | F124: 10.14 | G124: 98,278
B125: 3,760 | C125: 8.81 | D125: 91,029 | E125: 97,374 | F125: 11.06 | G125: 104,175
B126: 4,060 | C126: 9.55 | D126: 96,183 | E126: 102,899 | F126: 11.98 | G126: 110,081
B127: 4,360 | C127: 10.28 | D127: 101,317 | E127: 108,424 | F127: 12.90 | G127: 115,987
B128: 4,660 | C128: 11.02 | D128: 106,471 | E128: 114,006 | F128: 13.82 | G128: 121,893
B129: 4,960 | C129: 11.75 | D129: 111,605 | E129: 119,474 | F129: 14.75 | G129: 127,809
B130: 5,260 | C130: 12.48 | D130: 116,749 | E130: 124,999 | F130: 15.67 | G130: 133,715
B131: 5,560 | C131: 13.22 | D131: 121,893 | E131: 130,524 | F131: 16.59 | G131: 139,621
A132: 1660 | B132: 1,660 | C132: 4.59 | D132: 60,661 | E132: 64,700 | F132: 5.76 | G132: 69,215
B133: 1,960 | C133: 5.51 | D133: 66,281 | E133: 70,758 | F133: 6.91 | G133: 75,588
B134: 2,260 | C134: 6.43 | D134: 71,882 | E134: 76,693 | F134: 8.06 | G134: 81,961
B135: 2,560 | C135: 7.34 | D135: 77,503 | E135: 82,694 | F135: 9.22 | G135: 85,371
B136: 2,860 | C136: 8.26 | D136: 83,113 | E136: 88,686 | F136: 10.37 | G136: 94,725
B137: 3,160 | C137: 9.18 | D137: 88,734 | E137: 94,678 | F137: 11.52 | G137: 101,098
B138: 3,460 | C138: 10.10 | D138: 94,344 | E138: 100,689 | F138: 12.67 | G138: 107,490
B139: 3,760 | C139: 11.02 | D139: 99,965 | E139: 106,680 | F139: 13.82 | G139: 113,863
B140: 4,060 | C140: 11.93 | D140: 105,585 | E140: 112,682 | F140: 14.98 | G140: 120,255
B141: 4,360 | C141: 12.85 | D141: 111,186 | E141: 118,673 | F141: 16.13 | G141: 126,627
B142: 4,660 | C142: 13.77 | D142: 116,806 | E142: 124,675 | F142: 17.28 | G142: 133,000
B143: 4,960 | C143: 14.69 | D143: 122,417 | E143: 130,666 | F143: 18.43 | G143: 136,934
B144: 5,260 | C144: 15.61 | D144: 128,037 | E144: 136,668 | F144: 19.58 | G144: 139,392
B145: 5,560 | C145: 16.52 | D145: 133,648 | E145: 142,660 | F145: 20.74 | G145: 142,479
A146: 1960 | B146: 1,960 | C146: 6.61 | D146: Складская | E146: 77,169 | F146: 8.29 | G146: 79,160
B147: 2,260 | C147: 7.71 | D147: Складская | E147: 83,637 | F147: 9.68 | G147: 89,296
B148: 2,560 | C148: 8.81 | D148: Складская | E148: 90,115 | F148: 11.06 | G148: 96,154
B149: 2,860 | C149: 9.91 | D149: 89,985 | E149: 96,573 | F149: 12.44 | G149: 102,994
B150: 3,160 | C150: 11.02 | D150: Складская | E150: 103,080 | F150: 13.82 | G150: 109,852
B151: 3,460 | C151: 12.12 | D151: 102,803 | E151: 109,529 | F151: 15.21 | G151: 116,702
B152: 3,760 | C152: 13.22 | D152: 108,890 | E152: 115,987 | F152: 16.59 | G152: 123,560
B153: 4,060 | C153: 14.32 | D153: 114,977 | E153: 122,465 | F153: 17.97 | G153: 130,409
B154: 4,360 | C154: 15.42 | D154: 121,064 | E154: 128,923 | F154: 19.35 | G154: 133,677
B155: 4,660 | C155: 16.52 | D155: 127,151 | E155: 133,505 | F155: 20.74 | G155: 135,077
B156: 4,960 | C156: 17.63 | D156: 133,238 | E156: 135,401 | F156: 22.12 | G156: 138,059
B157: 5,260 | C157: 18.73 | D157: 139,325 | E157: 137,925 | F157: 23.50 | G157: 142,040
B158: 5,560 | C158: 19.83 | D158: 145,412 | E158: 139,335 | F158: 24.88 | G158: 148,204
A159: 2260 | B159: 2,260 | C159: 9.00 | D159: 85,009 | E159: 90,572 | F159: 11.29 | G159: 92,887
B160: 2,560 | C160: 10.28 | D160: 91,572 | E160: 97,516 | F160: 12.90 | G160: 103,937
B161: 2,860 | C161: 11.57 | D161: 98,136 | E161: 104,461 | F161: 14.52 | G161: 111,272
B162: 3,160 | C162: 12.85 | D162: 104,699 | E162: 111,405 | F162: 16.13 | G162: 118,597
B163: 3,460 | C163: 14.14 | D163: 111,243 | E163: 118,359 | F163: 17.74 | G163: 125,923
B164: 3,760 | C164: 15.42 | D164: 117,807 | E164: 124,208 | F164: 19.35 | G164: 128,857
B165: 4,060 | C165: 16.71 | D165: 124,370 | E165: 128,952 | F165: 20.97 | G165: 129,800
B166: 4,360 | C166: 17.99 | D166: 130,933 | E166: 131,524 | F166: 22.58 | G166: 133,105
B167: 4,660 | C167: 19.28 | D167: 133,076 | E167: 133,334 | F167: 24.19 | G167: 139,697
B168: 4,960 | C168: 20.56 | D168: 135,553 | E168: 137,763 | F168: 25.80 | G168: 146,289
B169: 5,260 | C169: 21.85 | D169: 137,296 | E169: 144,012 | F169: 27.42 | G169: 152,881
B170: 5,560 | C170: 23.13 | D170: 141,459 | E170: 150,252 | F170: 29.03 | G170: 159,482
A171: 2560 | B171: 2,560 | C171: 11.75 | D171: Складская | E171: 100,555 | F171: 14.75 | G171: 106,271
B172: 2,860 | C172: 13.22 | D172: 105,632 | E172: 112,348 | F172: 16.59 | G172: 119,540
B173: 3,160 | C173: 14.69 | D173: 112,672 | E173: 119,769 | F173: 18.43 | G173: 124,055
B174: 3,460 | C174: 16.16 | D174: 119,702 | E174: 127,189 | F174: 20.28 | G174: 126,008
B175: 3,760 | C175: 17.63 | D175: 126,732 | E175: 132,410 | F175: 22.12 | G175: 128,637
B176: 4,060 | C176: 19.09 | D176: 128,837 | E176: 134,391 | F176: 23.96 | G176: 135,668
B177: 4,360 | C177: 20.56 | D177: 133,057 | E177: 136,687 | F177: 25.80 | G177: 142,679
B178: 4,660 | C178: 22.03 | D178: 134,772 | E178: 141,164 | F178: 27.65 | G178: 149,699
B179: 4,960 | C179: 23.50 | D179: 139,373 | E179: 147,842 | F179: 29.49 | G179: 156,710
B180: 5,260 | C180: 24.97 | D180: 145,708 | E180: 154,519 | F180: 31.33 | G180: 163,731
B181: 5,560 | C181: 26.44 | D181: 152,043 | E181: 161,187 | F181: 33.18 | G181: 170,751
A182: 2860 | B182: 2,860 | C182: 14.87 | D182: 121,730 | E182: 128,834 | F182: 18.66 | G182: 136,399
B183: 3,160 | C183: 16.52 | D183: 130,138 | E183: 137,623 | F183: 20.74 | G183: 131,014
